Workbook

Sheet Start
G2: Risk Dashboard Interactive Tool
G3: =+'Reference Dates'!$C$4 -> Q42022 Data
E4: Please enable macros to ensure the correct functioning of the tool
O5: List showing in Dropdown menu | P5: RI number | Q5: RI Code | R5: Name for tables - change if needs to be different from dropdown names | T5: Tables name for dropdown
O6: Tier 1 capital ratio | P6: 1 | Q6: SVC_1 | R6: Tier 1 capital ratio | T6: Assets
B7: Choose a Risk Indicator: | E7: RI Number (*) | G7: RI Code | O7: Total capital ratio | P7: 2 | Q7: SVC_2 | R7: Total capital ratio | T7: Loans Composition
B8: Tier 1 capital ratio | E8: =IFERROR(VLOOKUP(B8,$O$6:$Q$27,2,0),"") -> 1 | G8: =IFERROR(VLOOKUP(B8,$O$6:$Q$27,3,0),"") -> SVC_1 | O8: CET1 ratio | P8: 3 | Q8: SVC_3 | R8: CET1 ratio | T8: Loans NPL and coverage ratio
O9: CET1 ratio (fully loaded) | P9: 4 | Q9: SVC_29 | R9: CET1 ratio (fully loaded) | T9: NACE composition
B10: Choose a set of Tables from the statistical Annex: | O10: Leverage ratio | P10: 5 | Q10: SVC_13 | R10: Leverage ratio (transitional definition of Tier 1) | T10: NPL ratio by NACE
B11: Assets | I11: =IFERROR((LEFT($B$11,FIND(" ",$B$11)-1)),$B$11) -> Assets | O11: Leverage ratio (fully phased-in definition of Tier 1) | P11: 6 | Q11: SVC_12 | R11: Leverage ratio (fully phased-in definition of Tier 1) | T11: RE and Construction Exposures
O12: Ratio of non-performing loans and advances (NPL ratio) | P12: 7 | Q12: AQT_3.2 | R12: Ratio of non-performing loans and advances (NPL ratio) | T12: IFRS9
O13: Coverage ratio of non-performing loans and advances | P13: 8 | Q13: AQT_41.2 | R13: Coverage ratio of non-performing loans and advances | T13: Sovereigns
O14: Forbearance ratio for loans and advances | P14: 9 | Q14: AQT_42.2 | R14: Forbearance ratio for loans and advances | T14: Liabilities
B15: (*) In order of appearance in the Risk Dashboard | O15: Ratio of non-performing exposures (NPE ratio) | P15: 10 | Q15: AQT_3.1 | R15: Ratio of non-performing exposures (NPE ratio) | T15: Liquidity
O16: Return on equity | P16: 11 | Q16: PFT_21 | R16: Return on equity | T16: Own funds and RWA
O17: Return on assets | P17: 12 | Q17: PFT_24 | R17: Return on assets | T17: Profitability
O18: Cost to income ratio | P18: 13 | Q18: PFT_23 | R18: Cost to income ratio | T18: Moratoria
O19: Net interest income to total net operating income | P19: 14 | Q19: PFT_25 | R19: Net interest income to total net operating income
O20: Net fee and commission income to total net operating income | P20: 15 | Q20: PFT_26 | R20: Net fee and commission income to total net operating income
O21: Net trading income to total net operating income | P21: 16 | Q21: PFT_29 | R21: Net trading income to total net operating income
O22: Net interest margin | P22: 17 | Q22: PFT_41 | R22: Net interest margin
O23: Cost of Risk | P23: 18 | Q23: PFT_43 | R23: Cost of Risk
O24: Loan-to-deposit ratio for households and non-financial corporations | P24: 19 | Q24: FND_32 | R24: Loan-to-deposit ratio for households and non-financial corporations
O25: Asset encumbrance ratio | P25: 20 | Q25: FND_33 | R25: Asset encumbrance ratio
O26: Liquidity coverage ratio (%) | P26: 21 | Q26: LIQ_17 | R26: Liquidity coverage ratio (%)
O27: Net Stable Funding Ratio | P27: 22 | Q27: LIQ_20 | R27: Net Stable Funding Ratio

Sheet Charts
B2: =$AR$21 -> Solvency
B3: =AM21&" - "&$AO$20 -> 1 - Tier 1 capital ratio
B4: Due to the automation of this file, charts axis are not scaled as in the booklet version. User may need to manually adjust it.
B5: Dispersion | J5: Numerator and denominator: trends
B7: 5th and 95th pct, interquartile range and median. | J7: =IF(AK21="PFT_43","Total numerator and denominator. 2018Q1=100.","Total numerator and denominator. "& IF(NOT(ISNA($AS$25)), YEAR($AM$25), IF(NOT(ISNA($AS$26)), YEAR($AM$26), IF(NOT(ISNA($AS$27)), YEAR($AM$27), IF(NOT(ISNA($AS$29)), YEAR($AM$29), IF(NOT(ISNA(#REF!)), YEAR($AM$30),IF(NOT(ISNA($AS$31)), YEAR($AM$31),IF(NOT(ISNA($AS$32)), YEAR($AM$32),IF(NOT(ISNA($AS$33)), YEAR($AM$33),IF(NOT(ISNA($AS$34)), YEAR($AM$34),IF(NOT(ISNA($AS$35)), YEAR($AM$35),IF(NOT(ISNA($AS$36)), YEAR($AM$36),YEAR($AM$37)))))))))))) &"Q"& IF(NOT(ISNA($AS$25)),ROUNDUP(MONTH($AM$25)/3,0), IF(NOT(ISNA($AS$26)),ROUNDUP(MONTH($AM$26)/3,0), IF(NOT(ISNA($AS$27)), ROUNDUP(MONTH($AM$27)/3,0), IF(NOT(ISNA($AS$29)), ROUNDUP(MONTH($AM$29)/3,0),NOT(ISNA($AS$30)))))) &" = 100.") -> Total numerator and denominator. 2020Q1 = 100.
B9: ="Country dispersion (as of "& YEAR(MAX(AM25:AM46))&" Q"&(ROUNDUP((MONTH(MAX(AM25:AM46))/3),0))&")" -> Country dispersion (as of 2022 Q4) | J9: KRI by size class
B11: ( * ) Not reported. Weighted Averages by country. | J11: ="Weighted average. Banks are classified in the size class according to the their average total assets between 2014Q4 and "&YEAR(MAX(AM25:AM46))&"Q"&(ROUNDUP(MONTH(MAX(AM25:AM46))/3,0))&IF(AN49="Y",". Non-FINREP banks are assigned to the bucket of small banks.",". ") -> Weighted average. Banks are classified in the size class according to the their average total assets between 2014Q4 and 2022Q4.
B14: Period | E14: Weighted average | H14: 25th percentile | K14: 50th percentile | N14: 75th percentile
C16: =AM25 -> 2020-03-01 | F16: =IF(AND(YEAR(C16)<2018,$AK$21="PFT_43"),"",IFERROR(VLOOKUP($C16,$AM$25:$BB$43,8,FALSE), "")) -> 0.1581940407 | I16: =IF(AND(YEAR(C16)<2018,$AK$21="PFT_43"),"",IFERROR(VLOOKUP($C16,$AM$25:$BB$43,5,FALSE), "")) -> 0.1427134004 | L16: =IF(AND(YEAR(C16)<2018,$AK$21="PFT_43"),"",IFERROR(VLOOKUP($C16,$AM$25:$BB$43,6,FALSE), "")) -> 0.162881694 | O16: =IF(AND(YEAR(C16)<2018,$AK$21="PFT_43"),"",IFERROR(VLOOKUP($C16,$AM$25:$BB$43,9,FALSE), "")) -> 0.1989703886
C17: =AM26 -> 2020-06-01 | F17: 0.1630563226 | I17: 0.1479937941 | L17: 0.1696146986 | O17: 0.2011049692
C18: =AM27 -> 2020-09-01 | F18: 0.1671962406 | I18: 0.1529035899 | L18: 0.172888396 | O18: 0.2052266468
C19: =AM29 -> 2020-12-01 | F19: 0.1719856936 | I19: 0.1583604907 | L19: 0.1803584264 | O19: 0.212919732
C20: 2021-03-01 | F20: 0.1705110613 | I20: 0.1574664782 | L20: 0.1802804216 | O20: 0.2109595522 | AN20: dashboard name | AO20: =VLOOKUP($AM$21*1,List!$A$3:$M$24,8,FALSE) -> Tier 1 capital ratio
C21: 2021-06-01 | F21: 0.1708387971 | I21: 0.1559383138 | L21: 0.1760116964 | O21: 0.2125969098 | AK21: =VLOOKUP($AM$21*1,List!$A$3:$F$24,6,0) -> SVC_1 | AM21: =Start!E8 -> 1 | AN21: =VLOOKUP($AM$21*1,List!$A$3:$F$24,4,0) -> 1 | AO21: =VLOOKUP($AM$21*1,List!$A$3:$E$24,5,0) -> Tier 1 capital ratio | AP21: =VLOOKUP($AM$21*1,List!$A$3:$K$24,11,FALSE) -> 0 | AR21: =VLOOKUP($AM$21*1,List!$A$3:$M$24,13,FALSE) -> Solvency
C22: 2021-09-01 | F22: 0.1700204526 | I22: 0.1555245461 | L22: 0.1754100082 | O22: 0.2129016755 | AT22: WA
C23: 2021-12-01 | F23: 0.1712589677 | I23: 0.1580837624 | L23: 0.179593877 | O23: 0.2132876528 | AP23: 5 | AQ23: 6 | AR23: 7 | AS23: 8 | AT23: 9 | AU23: 10 | AV23: 11 | AW23: 14 | AX23: 15 | AY23: Dispersion chart | BD23: 12 | BE23: 13 | BJ23: 16
C24: 2022-03-01 | F24: 0.1642334854 | I24: 0.1529304941 | L24: 0.1694540415 | O24: 0.2011821022 | AL24: =+'Reference Dates'!$C$6 -> 2022-12-31 | AP24: 5^ pct | AQ24: First quartile | AR24: Median | AS24: Average | AT24: All banks | AU24: Third quartile | AV24: 95^ pct | AW24: Small | AX24: Medium | AY24: Q1 | AZ24: Q1 Neg | BA24: Q2 | BB24: Q3 | BC24: 5pct | BD24: 95 pct | BE24: Numeratir | BF24: Denominator | BG24: =VLOOKUP($AN$21,List!$D:$L,6,0) -> Tier 1 capital | BH24: =VLOOKUP($AN$21,List!$D:$L,7,0) -> Total risk exposure amount | BI24: Quarter | BJ24: Large
C25: 2022-06-01 | F25: 0.164614996 | I25: 0.1494405523 | L25: 0.1711790317 | O25: 0.20361911 | AK25: 1 | AL25: =(+AN25)*1 -> 202003 | AM25: =+'Reference Dates'!$C$7 -> 2020-03-01 | AN25: =+IF(MONTH(AM25)=12,YEAR(AM25)&MONTH(AM25),YEAR(AM25)&0&MONTH(AM25)) -> 202003 | AO25: =CONCATENATE($AO$21,AN25) -> Tier 1 capital ratio202003 | AP25: =VLOOKUP($AO25,Data!$A$1:$P$688,Charts!AP$23,FALSE) -> 0.1310134759 | AQ25: =VLOOKUP($AO25,Data!$A$1:$P$688,Charts!AQ$23,FALSE) -> 0.1427134004 | AR25: =VLOOKUP($AO25,Data!$A$1:$P$688,Charts!AR$23,FALSE) -> 0.162881694 | AS25: =VLOOKUP($AO25,Data!$A$1:$P$688,Charts!AS$23,FALSE) -> 0.1985415454 | AT25: =VLOOKUP($AO25,Data!$A$1:$P$688,Charts!AT$23,FALSE) -> 0.1581940407 | AU25: =VLOOKUP($AO25,Data!$A$1:$P$688,Charts!AU$23,FALSE) -> 0.1989703886 | AV25: =VLOOKUP($AO25,Data!$A$1:$P$688,Charts!AV$23,FALSE) -> 0.3691135761 | AW25: =VLOOKUP($AO25,Data!$A$1:$P$688,Charts!AW$23,FALSE) -> 0.202283845 | AX25: =VLOOKUP($AO25,Data!$A$1:$P$688,Charts!AX$23,FALSE) -> 0.1685007428 | AY25: =IF(AQ25<0,0,AQ25) -> 0.1427134004 | AZ25: =IF(AQ25<0,AQ25,0) -> 0 | BA25: =AR25-AY25 -> 0.02016829364 | BB25: =AU25-AR25 -> 0.03608869459 | BC25: =AQ25-AP25 -> 0.01169992444 | BD25: =AV25-AU25 -> 0.1701431875 | BE25: =VLOOKUP($AO25,Data!$A$1:$P$688,BD$23,FALSE) -> 1.309958492e+12 | BF25: =VLOOKUP($AO25,Data!$A$1:$P$688,BE$23,FALSE) -> 8.390995061e+12 | BG25: =IFERROR(IF($AP$21=0,BE25/BE$25*100,(100*(BE25*12/$BI25)/BE$25)),IFERROR(IF($AP$21=0, BE25/BE$26*100, 100*(BE25*12/$BI25)/BE$26), IFERROR(IF($AP$21=0, BE25/BE$27*100, 100*(BE25*12/$BI25)/BE$27),IFERROR(IF($AP$21=0, BE25/BE$29*100, 100*(BE25*12/$BI25)/BE$29), IFERROR(IF($AP$21=0, BE25/BE$30*100, 100*(BE25*12/$BI25)/BE$30),IFERROR(IF($AP$21=0, BE25/BE$31*100, 100*(BE25*12/$BI25)/#REF!),IFERROR(IF($AP$21=0, BE25/BE$32*100, 100*(BE25*12/$BI25)/BE$32),IFERROR(IF($AP$21=0, BE25/BE$32*100, 100*(BE25*12/$BI25)/BE$32),IFERROR(IF($AP$21=0, BE25/BE$33*100, 100*(BE25*12/$BI25)/BE$33),IFERROR(IF($AP$21=0, BE25/BE$34*100, 100*(BE25*12/$BI25)/BE$34),IF($AP$21=0, BE25/BE$35*100, 100*(BE25*12/$BI25)/BE$35))))))))))) -> 100 | BH25: =IFERROR(IF($AP$21=0,BF25/BF$25*100,(100*(BF25*12/$BI25)/BF$25)),IFERROR(IF($AP$21=0, BF25/BF$26*100, 100*(BF25*12/$BI25)/BF$26), IFERROR(IF($AP$21=0, BF25/BF$27*100, 100*(BF25*12/$BI25)/BF$27),IFERROR(IF($AP$21=0, BF25/BF$29*100, 100*(BF25*12/$BI25)/BF$29), IFERROR(IF($AP$21=0, BF25/BF$30*100, 100*(BF25*12/$BI25)/BF$30),IFERROR(IF($AP$21=0, BF25/BF$31*100, 100*(BF25*12/$BI25)/#REF!),IFERROR(IF($AP$21=0, BF25/BF$32*100, 100*(BF25*12/$BI25)/BF$32),IFERROR(IF($AP$21=0, BF25/BF$32*100, 100*(BF25*12/$BI25)/BF$32),IFERROR(IF($AP$21=0, BF25/BF$33*100, 100*(BF25*12/$BI25)/BF$33),IFERROR(IF($AP$21=0, BF25/BF$34*100, 100*(BF25*12/$BI25)/BF$34),IF($AP$21=0, BF25/BF$35*100, 100*(BF25*12/$BI25)/BF$35))))))))))) -> 100 | BI25: =MONTH(AM25) -> 3 | BJ25: =VLOOKUP($AO25,Data!$A$1:$P$688,Charts!BJ$23,FALSE) -> 0.1540963595
C26: =AM36 -> 2022-09-01 | F26: 0.1628995888 | I26: 0.1496346017 | L26: 0.1685548993 | O26: 0.2033308191 | AL26: 202006 | AM26: =IF(AM25<$AL$24,+DATE(YEAR(AM25),MONTH(AM25)+3,DAY(AM25)),"") -> 2020-06-01 | AN26: =+IF(MONTH(AM26)=12,YEAR(AM26)&MONTH(AM26),YEAR(AM26)&0&MONTH(AM26)) -> 202006 | AO26: =CONCATENATE($AO$21,AN26) -> Tier 1 capital ratio202006 | AP26: =VLOOKUP($AO26,Data!$A$1:$P$688,Charts!AP$23,FALSE) -> 0.1330936645 | AQ26: =VLOOKUP($AO26,Data!$A$1:$P$688,Charts!AQ$23,FALSE) -> 0.1479937941 | AR26: =VLOOKUP($AO26,Data!$A$1:$P$688,Charts!AR$23,FALSE) -> 0.1696146986 | AS26: =VLOOKUP($AO26,Data!$A$1:$P$688,Charts!AS$23,FALSE) -> 0.2065639391 | AT26: =VLOOKUP($AO26,Data!$A$1:$P$688,Charts!AT$23,FALSE) -> 0.1630563226 | AU26: =VLOOKUP($AO26,Data!$A$1:$P$688,Charts!AU$23,FALSE) -> 0.2011049692 | AV26: =VLOOKUP($AO26,Data!$A$1:$P$688,Charts!AV$23,FALSE) -> 0.3597325392 | AW26: =VLOOKUP($AO26,Data!$A$1:$P$688,Charts!AW$23,FALSE) -> 0.2091849978 | AX26: =VLOOKUP($AO26,Data!$A$1:$P$688,Charts!AX$23,FALSE) -> 0.1730568317 | AY26: =IF(AQ26<0,0,AQ26) -> 0.1479937941 | AZ26: =IF(AQ26<0,AQ26,0) -> 0 | BA26: =AR26-AY26 -> 0.02162090451 | BB26: =AU26-AR26 -> 0.0314902706 | BC26: =AQ26-AP26 -> 0.01490012965 | BD26: =AV26-AU26 -> 0.1586275699 | BE26: =VLOOKUP($AO26,Data!$A$1:$P$688,BD$23,FALSE) -> 1.341615656e+12 | BF26: =VLOOKUP($AO26,Data!$A$1:$P$688,BE$23,FALSE) -> 8.339473996e+12 | BG26: =IFERROR(IF($AP$21=0,BE26/BE$25*100,(100*(BE26*12/$BI26)/BE$25)),IFERROR(IF($AP$21=0, BE26/BE$26*100, 100*(BE26*12/$BI26)/BE$26), IFERROR(IF($AP$21=0, BE26/BE$27*100, 100*(BE26*12/$BI26)/BE$27),IFERROR(IF($AP$21=0, BE26/BE$29*100, 100*(BE26*12/$BI26)/BE$29), IFERROR(IF($AP$21=0, BE26/BE$30*100, 100*(BE26*12/$BI26)/BE$30),IFERROR(IF($AP$21=0, BE26/BE$31*100, 100*(BE26*12/$BI26)/#REF!),IFERROR(IF($AP$21=0, BE26/BE$32*100, 100*(BE26*12/$BI26)/BE$32),IFERROR(IF($AP$21=0, BE26/BE$32*100, 100*(BE26*12/$BI26)/BE$32),IFERROR(IF($AP$21=0, BE26/BE$33*100, 100*(BE26*12/$BI26)/BE$33),IFERROR(IF($AP$21=0, BE26/BE$34*100, 100*(BE26*12/$BI26)/BE$34),IF($AP$21=0, BE26/BE$35*100, 100*(BE26*12/$BI26)/BE$35))))))))))) -> 102.416654 | BH26: =IFERROR(IF($AP$21=0,BF26/BF$25*100,(100*(BF26*12/$BI26)/BF$25)),IFERROR(IF($AP$21=0, BF26/BF$26*100, 100*(BF26*12/$BI26)/BF$26), IFERROR(IF($AP$21=0, BF26/BF$27*100, 100*(BF26*12/$BI26)/BF$27),IFERROR(IF($AP$21=0, BF26/BF$29*100, 100*(BF26*12/$BI26)/BF$29), IFERROR(IF($AP$21=0, BF26/BF$30*100, 100*(BF26*12/$BI26)/BF$30),IFERROR(IF($AP$21=0, BF26/BF$31*100, 100*(BF26*12/$BI26)/#REF!),IFERROR(IF($AP$21=0, BF26/BF$32*100, 100*(BF26*12/$BI26)/BF$32),IFERROR(IF($AP$21=0, BF26/BF$32*100, 100*(BF26*12/$BI26)/BF$32),IFERROR(IF($AP$21=0, BF26/BF$33*100, 100*(BF26*12/$BI26)/BF$33),IFERROR(IF($AP$21=0, BF26/BF$34*100, 100*(BF26*12/$BI26)/BF$34),IF($AP$21=0, BF26/BF$35*100, 100*(BF26*12/$BI26)/BF$35))))))))))) -> 99.38599575 | BI26: 6 | BJ26: =VLOOKUP($AO26,Data!$A$1:$P$688,Charts!BJ$23,FALSE) -> 0.1589869672
C27: =AM37 -> 2022-12-01 | F27: 0.168223836 | I27: 0.1562061041 | L27: 0.176398818 | O27: 0.2064656841 | AL27: 202009 | AM27: =IF(AM26<$AL$24,+DATE(YEAR(AM26),MONTH(AM26)+3,DAY(AM26)),"") -> 2020-09-01 | AN27: 202009 | AO27: Tier 1 capital ratio202009 | AP27: =VLOOKUP($AO27,Data!$A$1:$P$688,Charts!AP$23,FALSE) -> 0.1338801773 | AQ27: =VLOOKUP($AO27,Data!$A$1:$P$688,Charts!AQ$23,FALSE) -> 0.1529035899 | AR27: =VLOOKUP($AO27,Data!$A$1:$P$688,Charts!AR$23,FALSE) -> 0.172888396 | AS27: =VLOOKUP($AO27,Data!$A$1:$P$688,Charts!AS$23,FALSE) -> 0.2147456218 | AT27: =VLOOKUP($AO27,Data!$A$1:$P$688,Charts!AT$23,FALSE) -> 0.1671962406 | AU27: =VLOOKUP($AO27,Data!$A$1:$P$688,Charts!AU$23,FALSE) -> 0.2052266468 | AV27: =VLOOKUP($AO27,Data!$A$1:$P$688,Charts!AV$23,FALSE) -> 0.4015620238 | AW27: =VLOOKUP($AO27,Data!$A$1:$P$688,Charts!AW$23,FALSE) -> 0.2241332579 | AX27: =VLOOKUP($AO27,Data!$A$1:$P$688,Charts!AX$23,FALSE) -> 0.1773145544 | AY27: 0.1529035899 | AZ27: 0 | BA27: 0.01998480614 | BB27: 0.0323382508 | BC27: 0.01902341254 | BD27: 0.196335377 | BE27: =VLOOKUP($AO27,Data!$A$1:$P$688,BD$23,FALSE) -> 1.351902958e+12 | BF27: =VLOOKUP($AO27,Data!$A$1:$P$688,BE$23,FALSE) -> 8.221702526e+12 | BG27: =IFERROR(IF($AP$21=0,BE27/BE$25*100,(100*(BE27*12/$BI27)/BE$25)),IFERROR(IF($AP$21=0, BE27/BE$26*100, 100*(BE27*12/$BI27)/BE$26), IFERROR(IF($AP$21=0, BE27/BE$27*100, 100*(BE27*12/$BI27)/BE$27),IFERROR(IF($AP$21=0, BE27/BE$29*100, 100*(BE27*12/$BI27)/BE$29), IFERROR(IF($AP$21=0, BE27/BE$30*100, 100*(BE27*12/$BI27)/BE$30),IFERROR(IF($AP$21=0, BE27/BE$31*100, 100*(BE27*12/$BI27)/#REF!),IFERROR(IF($AP$21=0, BE27/BE$32*100, 100*(BE27*12/$BI27)/BE$32),IFERROR(IF($AP$21=0, BE27/BE$32*100, 100*(BE27*12/$BI27)/BE$32),IFERROR(IF($AP$21=0, BE27/BE$33*100, 100*(BE27*12/$BI27)/BE$33),IFERROR(IF($AP$21=0, BE27/BE$34*100, 100*(BE27*12/$BI27)/BE$34),IF($AP$21=0, BE27/BE$35*100, 100*(BE27*12/$BI27)/BE$35))))))))))) -> 103.2019691 | BH27: =IFERROR(IF($AP$21=0,BF27/BF$25*100,(100*(BF27*12/$BI27)/BF$25)),IFERROR(IF($AP$21=0, BF27/BF$26*100, 100*(BF27*12/$BI27)/BF$26), IFERROR(IF($AP$21=0, BF27/BF$27*100, 100*(BF27*12/$BI27)/BF$27),IFERROR(IF($AP$21=0, BF27/BF$29*100, 100*(BF27*12/$BI27)/BF$29), IFERROR(IF($AP$21=0, BF27/BF$30*100, 100*(BF27*12/$BI27)/BF$30),IFERROR(IF($AP$21=0, BF27/BF$31*100, 100*(BF27*12/$BI27)/#REF!),IFERROR(IF($AP$21=0, BF27/BF$32*100, 100*(BF27*12/$BI27)/BF$32),IFERROR(IF($AP$21=0, BF27/BF$32*100, 100*(BF27*12/$BI27)/BF$32),IFERROR(IF($AP$21=0, BF27/BF$33*100, 100*(BF27*12/$BI27)/BF$33),IFERROR(IF($AP$21=0, BF27/BF$34*100, 100*(BF27*12/$BI27)/BF$34),IF($AP$21=0, BF27/BF$35*100, 100*(BF27*12/$BI27)/BF$35))))))))))) -> 97.98244983 | BI27: 9 | BJ27: =VLOOKUP($AO27,Data!$A$1:$P$688,Charts!BJ$23,FALSE) -> 0.1627480842
B29: From Q1 2020 onwards, EU aggregates no longer include figures for UK banks and they include data for subsidiaries of UK banks in EU countries. The EBA Risk Dashboard does not include data from Norwegian nor Liechtensteiner banks from June 2021 to March 2022 due to the implementation of the reporting framework based on CRR2/CRD5 taking place only in Q2 2022. | AL29: 202012 | AM29: =IF(AM27<$AL$24,+DATE(YEAR(AM27),MONTH(AM27)+3,DAY(AM27)),"") -> 2020-12-01 | AN29: 202012 | AO29: Tier 1 capital ratio202012 | AP29: =VLOOKUP($AO29,Data!$A$1:$P$688,Charts!AP$23,FALSE) -> 0.1378822295 | AQ29: =VLOOKUP($AO29,Data!$A$1:$P$688,Charts!AQ$23,FALSE) -> 0.1583604907 | AR29: =VLOOKUP($AO29,Data!$A$1:$P$688,Charts!AR$23,FALSE) -> 0.1803584264 | AS29: =VLOOKUP($AO29,Data!$A$1:$P$688,Charts!AS$23,FALSE) -> 0.2341510742 | AT29: =VLOOKUP($AO29,Data!$A$1:$P$688,Charts!AT$23,FALSE) -> 0.1719856936 | AU29: =VLOOKUP($AO29,Data!$A$1:$P$688,Charts!AU$23,FALSE) -> 0.212919732 | AV29: =VLOOKUP($AO29,Data!$A$1:$P$688,Charts!AV$23,FALSE) -> 0.3869305403 | AW29: =VLOOKUP($AO29,Data!$A$1:$P$688,Charts!AW$23,FALSE) -> 0.2225779191 | AX29: =VLOOKUP($AO29,Data!$A$1:$P$688,Charts!AX$23,FALSE) -> 0.1829106443 | AY29: 0.1583604907 | AZ29: 0 | BA29: 0.02199793567 | BB29: 0.03256130555 | BC29: 0.0204782612 | BD29: 0.1740108083 | BE29: =VLOOKUP($AO29,Data!$A$1:$P$688,BD$23,FALSE) -> 1.401522191e+12 | BF29: =VLOOKUP($AO29,Data!$A$1:$P$688,BE$23,FALSE) -> 8.285254522e+12 | BG29: =IFERROR(IF($AP$21=0,BE29/BE$25*100,(100*(BE29*12/$BI29)/BE$25)),IFERROR(IF($AP$21=0, BE29/BE$26*100, 100*(BE29*12/$BI29)/BE$26), IFERROR(IF($AP$21=0, BE29/BE$27*100, 100*(BE29*12/$BI29)/BE$27),IFERROR(IF($AP$21=0, BE29/BE$29*100, 100*(BE29*12/$BI29)/BE$29), IFERROR(IF($AP$21=0, BE29/BE$30*100, 100*(BE29*12/$BI29)/BE$30),IFERROR(IF($AP$21=0, BE29/BE$31*100, 100*(BE29*12/$BI29)/#REF!),IFERROR(IF($AP$21=0, BE29/BE$32*100, 100*(BE29*12/$BI29)/BE$32),IFERROR(IF($AP$21=0, BE29/BE$32*100, 100*(BE29*12/$BI29)/BE$32),IFERROR(IF($AP$21=0, BE29/BE$33*100, 100*(BE29*12/$BI29)/BE$33),IFERROR(IF($AP$21=0, BE29/BE$34*100, 100*(BE29*12/$BI29)/BE$34),IF($AP$21=0, BE29/BE$35*100, 100*(BE29*12/$BI29)/BE$35))))))))))) -> 106.9898169 | BH29: =IFERROR(IF($AP$21=0,BF29/BF$25*100,(100*(BF29*12/$BI29)/BF$25)),IFERROR(IF($AP$21=0, BF29/BF$26*100, 100*(BF29*12/$BI29)/BF$26), IFERROR(IF($AP$21=0, BF29/BF$27*100, 100*(BF29*12/$BI29)/BF$27),IFERROR(IF($AP$21=0, BF29/BF$29*100, 100*(BF29*12/$BI29)/BF$29), IFERROR(IF($AP$21=0, BF29/BF$30*100, 100*(BF29*12/$BI29)/BF$30),IFERROR(IF($AP$21=0, BF29/BF$31*100, 100*(BF29*12/$BI29)/#REF!),IFERROR(IF($AP$21=0, BF29/BF$32*100, 100*(BF29*12/$BI29)/BF$32),IFERROR(IF($AP$21=0, BF29/BF$32*100, 100*(BF29*12/$BI29)/BF$32),IFERROR(IF($AP$21=0, BF29/BF$33*100, 100*(BF29*12/$BI29)/BF$33),IFERROR(IF($AP$21=0, BF29/BF$34*100, 100*(BF29*12/$BI29)/BF$34),IF($AP$21=0, BF29/BF$35*100, 100*(BF29*12/$BI29)/BF$35))))))))))) -> 98.73983314 | BI29: 12 | BJ29: =VLOOKUP($AO29,Data!$A$1:$P$688,Charts!BJ$23,FALSE) -> 0.1674183198
AL30: 202103 | AM30: 2021-03-01 | AN30: 202103 | AO30: Tier 1 capital ratio202103 | AP30: =VLOOKUP($AO30,Data!$A$1:$P$688,Charts!AP$23,FALSE) -> 0.1374039246 | AQ30: =VLOOKUP($AO30,Data!$A$1:$P$688,Charts!AQ$23,FALSE) -> 0.1574664782 | AR30: =VLOOKUP($AO30,Data!$A$1:$P$688,Charts!AR$23,FALSE) -> 0.1802804216 | AS30: =VLOOKUP($AO30,Data!$A$1:$P$688,Charts!AS$23,FALSE) -> 0.2300475893 | AT30: =VLOOKUP($AO30,Data!$A$1:$P$688,Charts!AT$23,FALSE) -> 0.1705110613 | AU30: =VLOOKUP($AO30,Data!$A$1:$P$688,Charts!AU$23,FALSE) -> 0.2109595522 | AV30: =VLOOKUP($AO30,Data!$A$1:$P$688,Charts!AV$23,FALSE) -> 0.3839784168 | AW30: =VLOOKUP($AO30,Data!$A$1:$P$688,Charts!AW$23,FALSE) -> 0.2092172915 | AX30: =VLOOKUP($AO30,Data!$A$1:$P$688,Charts!AX$23,FALSE) -> 0.1808877562 | AY30: =IF(AQ30<0,0,AQ30) -> 0.1574664782 | AZ30: =IF(AQ30<0,AQ30,0) -> 0 | BA30: =AR30-AY30 -> 0.02281394334 | BB30: =AU30-AR30 -> 0.03067913059 | BC30: =AQ30-AP30 -> 0.02006255361 | BD30: =AV30-AU30 -> 0.1730188647 | BE30: =VLOOKUP($AO30,Data!$A$1:$P$688,BD$23,FALSE) -> 1.409228011e+12 | BF30: =VLOOKUP($AO30,Data!$A$1:$P$688,BE$23,FALSE) -> 8.40589362e+12 | BG30: =IFERROR(IF($AP$21=0,BE30/BE$25*100,(100*(BE30*12/$BI30)/BE$25)),IFERROR(IF($AP$21=0, BE30/BE$26*100, 100*(BE30*12/$BI30)/BE$26), IFERROR(IF($AP$21=0, BE30/BE$27*100, 100*(BE30*12/$BI30)/BE$27),IFERROR(IF($AP$21=0, BE30/BE$29*100, 100*(BE30*12/$BI30)/BE$29), IFERROR(IF($AP$21=0, BE30/BE$30*100, 100*(BE30*12/$BI30)/BE$30),IFERROR(IF($AP$21=0, BE30/BE$31*100, 100*(BE30*12/$BI30)/#REF!),IFERROR(IF($AP$21=0, BE30/BE$32*100, 100*(BE30*12/$BI30)/BE$32),IFERROR(IF($AP$21=0, BE30/BE$32*100, 100*(BE30*12/$BI30)/BE$32),IFERROR(IF($AP$21=0, BE30/BE$33*100, 100*(BE30*12/$BI30)/BE$33),IFERROR(IF($AP$21=0, BE30/BE$34*100, 100*(BE30*12/$BI30)/BE$34),IF($AP$21=0, BE30/BE$35*100, 100*(BE30*12/$BI30)/BE$35))))))))))) -> 107.578066 | BH30: =IFERROR(IF($AP$21=0,BF30/BF$25*100,(100*(BF30*12/$BI30)/BF$25)),IFERROR(IF($AP$21=0, BF30/BF$26*100, 100*(BF30*12/$BI30)/BF$26), IFERROR(IF($AP$21=0, BF30/BF$27*100, 100*(BF30*12/$BI30)/BF$27),IFERROR(IF($AP$21=0, BF30/BF$29*100, 100*(BF30*12/$BI30)/BF$29), IFERROR(IF($AP$21=0, BF30/BF$30*100, 100*(BF30*12/$BI30)/BF$30),IFERROR(IF($AP$21=0, BF30/BF$31*100, 100*(BF30*12/$BI30)/#REF!),IFERROR(IF($AP$21=0, BF30/BF$32*100, 100*(BF30*12/$BI30)/BF$32),IFERROR(IF($AP$21=0, BF30/BF$32*100, 100*(BF30*12/$BI30)/BF$32),IFERROR(IF($AP$21=0, BF30/BF$33*100, 100*(BF30*12/$BI30)/BF$33),IFERROR(IF($AP$21=0, BF30/BF$34*100, 100*(BF30*12/$BI30)/BF$34),IF($AP$21=0, BF30/BF$35*100, 100*(BF30*12/$BI30)/BF$35))))))))))) -> 100.1775541 | BI30: 3 | BJ30: =VLOOKUP($AO30,Data!$A$1:$P$688,Charts!BJ$23,FALSE) -> 0.1663589183
AL31: 202106 | AM31: 2021-06-01 | AN31: 202106 | AO31: Tier 1 capital ratio202106 | AP31: =VLOOKUP($AO31,Data!$A$1:$P$688,Charts!AP$23,FALSE) -> 0.1321016093 | AQ31: =VLOOKUP($AO31,Data!$A$1:$P$688,Charts!AQ$23,FALSE) -> 0.1559383138 | AR31: =VLOOKUP($AO31,Data!$A$1:$P$688,Charts!AR$23,FALSE) -> 0.1760116964 | AS31: =VLOOKUP($AO31,Data!$A$1:$P$688,Charts!AS$23,FALSE) -> 0.2268626834 | AT31: =VLOOKUP($AO31,Data!$A$1:$P$688,Charts!AT$23,FALSE) -> 0.1708387971 | AU31: =VLOOKUP($AO31,Data!$A$1:$P$688,Charts!AU$23,FALSE) -> 0.2125969098 | AV31: =VLOOKUP($AO31,Data!$A$1:$P$688,Charts!AV$23,FALSE) -> 0.3374986853 | AW31: =VLOOKUP($AO31,Data!$A$1:$P$688,Charts!AW$23,FALSE) -> 0.2139923236 | AX31: =VLOOKUP($AO31,Data!$A$1:$P$688,Charts!AX$23,FALSE) -> 0.1810946964 | AY31: 0.1559383138 | AZ31: 0 | BA31: 0.02007338259 | BB31: 0.03658521341 | BC31: 0.02383670454 | BD31: 0.1249017754 | BE31: =VLOOKUP($AO31,Data!$A$1:$P$688,BD$23,FALSE) -> 1.422894515e+12 | BF31: =VLOOKUP($AO31,Data!$A$1:$P$688,BE$23,FALSE) -> 8.442829029e+12 | BG31: =IFERROR(IF($AP$21=0,BE31/BE$25*100,(100*(BE31*12/$BI31)/BE$25)),IFERROR(IF($AP$21=0, BE31/BE$26*100, 100*(BE31*12/$BI31)/BE$26), IFERROR(IF($AP$21=0, BE31/BE$27*100, 100*(BE31*12/$BI31)/BE$27),IFERROR(IF($AP$21=0, BE31/BE$29*100, 100*(BE31*12/$BI31)/BE$29), IFERROR(IF($AP$21=0, BE31/BE$30*100, 100*(BE31*12/$BI31)/BE$30),IFERROR(IF($AP$21=0, BE31/BE$31*100, 100*(BE31*12/$BI31)/#REF!),IFERROR(IF($AP$21=0, BE31/BE$32*100, 100*(BE31*12/$BI31)/BE$32),IFERROR(IF($AP$21=0, BE31/BE$32*100, 100*(BE31*12/$BI31)/BE$32),IFERROR(IF($AP$21=0, BE31/BE$33*100, 100*(BE31*12/$BI31)/BE$33),IFERROR(IF($AP$21=0, BE31/BE$34*100, 100*(BE31*12/$BI31)/BE$34),IF($AP$21=0, BE31/BE$35*100, 100*(BE31*12/$BI31)/BE$35))))))))))) -> 108.6213437 | BH31: =IFERROR(IF($AP$21=0,BF31/BF$25*100,(100*(BF31*12/$BI31)/BF$25)),IFERROR(IF($AP$21=0, BF31/BF$26*100, 100*(BF31*12/$BI31)/BF$26), IFERROR(IF($AP$21=0, BF31/BF$27*100, 100*(BF31*12/$BI31)/BF$27),IFERROR(IF($AP$21=0, BF31/BF$29*100, 100*(BF31*12/$BI31)/BF$29), IFERROR(IF($AP$21=0, BF31/BF$30*100, 100*(BF31*12/$BI31)/BF$30),IFERROR(IF($AP$21=0, BF31/BF$31*100, 100*(BF31*12/$BI31)/#REF!),IFERROR(IF($AP$21=0, BF31/BF$32*100, 100*(BF31*12/$BI31)/BF$32),IFERROR(IF($AP$21=0, BF31/BF$32*100, 100*(BF31*12/$BI31)/BF$32),IFERROR(IF($AP$21=0, BF31/BF$33*100, 100*(BF31*12/$BI31)/BF$33),IFERROR(IF($AP$21=0, BF31/BF$34*100, 100*(BF31*12/$BI31)/BF$34),IF($AP$21=0, BF31/BF$35*100, 100*(BF31*12/$BI31)/BF$35))))))))))) -> 100.6177333 | BI31: 6 | BJ31: =VLOOKUP($AO31,Data!$A$1:$P$688,Charts!BJ$23,FALSE) -> 0.1665268355
AL32: 202109 | AM32: 2021-09-01 | AN32: 202109 | AO32: =CONCATENATE($AO$21,AN32) -> Tier 1 capital ratio202109 | AP32: =VLOOKUP($AO32,Data!$A$1:$P$688,Charts!AP$23,FALSE) -> 0.1313591355 | AQ32: =VLOOKUP($AO32,Data!$A$1:$P$688,Charts!AQ$23,FALSE) -> 0.1555245461 | AR32: =VLOOKUP($AO32,Data!$A$1:$P$688,Charts!AR$23,FALSE) -> 0.1754100082 | AS32: =VLOOKUP($AO32,Data!$A$1:$P$688,Charts!AS$23,FALSE) -> 0.2242327135 | AT32: =VLOOKUP($AO32,Data!$A$1:$P$688,Charts!AT$23,FALSE) -> 0.1700204526 | AU32: =VLOOKUP($AO32,Data!$A$1:$P$688,Charts!AU$23,FALSE) -> 0.2129016755 | AV32: =VLOOKUP($AO32,Data!$A$1:$P$688,Charts!AV$23,FALSE) -> 0.3315302694 | AW32: =VLOOKUP($AO32,Data!$A$1:$P$688,Charts!AW$23,FALSE) -> 0.2096800924 | AX32: =VLOOKUP($AO32,Data!$A$1:$P$688,Charts!AX$23,FALSE) -> 0.178807338 | AY32: =IF(AQ32<0,0,AQ32) -> 0.1555245461 | AZ32: =IF(AQ32<0,AQ32,0) -> 0 | BA32: =AR32-AY32 -> 0.01988546214 | BB32: =AU32-AR32 -> 0.03749166729 | BC32: =AQ32-AP32 -> 0.02416541054 | BD32: =AV32-AU32 -> 0.1186285939 | BE32: =VLOOKUP($AO32,Data!$A$1:$P$688,BD$23,FALSE) -> 1.42038276e+12 | BF32: =VLOOKUP($AO32,Data!$A$1:$P$688,BE$23,FALSE) -> 8.464659633e+12 | BG32: =IFERROR(IF($AP$21=0,BE32/BE$25*100,(100*(BE32*12/$BI32)/BE$25)),IFERROR(IF($AP$21=0, BE32/BE$26*100, 100*(BE32*12/$BI32)/BE$26), IFERROR(IF($AP$21=0, BE32/BE$27*100, 100*(BE32*12/$BI32)/BE$27),IFERROR(IF($AP$21=0, BE32/BE$29*100, 100*(BE32*12/$BI32)/BE$29), IFERROR(IF($AP$21=0, BE32/BE$30*100, 100*(BE32*12/$BI32)/BE$30),IFERROR(IF($AP$21=0, BE32/BE$31*100, 100*(BE32*12/$BI32)/#REF!),IFERROR(IF($AP$21=0, BE32/BE$32*100, 100*(BE32*12/$BI32)/BE$32),IFERROR(IF($AP$21=0, BE32/BE$32*100, 100*(BE32*12/$BI32)/BE$32),IFERROR(IF($AP$21=0, BE32/BE$33*100, 100*(BE32*12/$BI32)/BE$33),IFERROR(IF($AP$21=0, BE32/BE$34*100, 100*(BE32*12/$BI32)/BE$34),IF($AP$21=0, BE32/BE$35*100, 100*(BE32*12/$BI32)/BE$35))))))))))) -> 108.4296006 | BH32: =IFERROR(IF($AP$21=0,BF32/BF$25*100,(100*(BF32*12/$BI32)/BF$25)),IFERROR(IF($AP$21=0, BF32/BF$26*100, 100*(BF32*12/$BI32)/BF$26), IFERROR(IF($AP$21=0, BF32/BF$27*100, 100*(BF32*12/$BI32)/BF$27),IFERROR(IF($AP$21=0, BF32/BF$29*100, 100*(BF32*12/$BI32)/BF$29), IFERROR(IF($AP$21=0, BF32/BF$30*100, 100*(BF32*12/$BI32)/BF$30),IFERROR(IF($AP$21=0, BF32/BF$31*100, 100*(BF32*12/$BI32)/#REF!),IFERROR(IF($AP$21=0, BF32/BF$32*100, 100*(BF32*12/$BI32)/BF$32),IFERROR(IF($AP$21=0, BF32/BF$32*100, 100*(BF32*12/$BI32)/BF$32),IFERROR(IF($AP$21=0, BF32/BF$33*100, 100*(BF32*12/$BI32)/BF$33),IFERROR(IF($AP$21=0, BF32/BF$34*100, 100*(BF32*12/$BI32)/BF$34),IF($AP$21=0, BF32/BF$35*100, 100*(BF32*12/$BI32)/BF$35))))))))))) -> 100.8779003 | BI32: =MONTH(AM32) -> 9 | BJ32: =VLOOKUP($AO32,Data!$A$1:$P$688,Charts!BJ$23,FALSE) -> 0.1661522594
AL33: 202112 | AM33: =IF(AM32<$AL$24,+DATE(YEAR(AM32),MONTH(AM32)+3,DAY(AM32)),"") -> 2021-12-01 | AN33: 202112 | AO33: Tier 1 capital ratio202112 | AP33: =VLOOKUP($AO33,Data!$A$1:$P$688,Charts!AP$23,FALSE) -> 0.1317458173 | AQ33: =VLOOKUP($AO33,Data!$A$1:$P$688,Charts!AQ$23,FALSE) -> 0.1580837624 | AR33: =VLOOKUP($AO33,Data!$A$1:$P$688,Charts!AR$23,FALSE) -> 0.179593877 | AS33: =VLOOKUP($AO33,Data!$A$1:$P$688,Charts!AS$23,FALSE) -> 0.2327327106 | AT33: =VLOOKUP($AO33,Data!$A$1:$P$688,Charts!AT$23,FALSE) -> 0.1712589677 | AU33: =VLOOKUP($AO33,Data!$A$1:$P$688,Charts!AU$23,FALSE) -> 0.2132876528 | AV33: =VLOOKUP($AO33,Data!$A$1:$P$688,Charts!AV$23,FALSE) -> 0.3393697998 | AW33: =VLOOKUP($AO33,Data!$A$1:$P$688,Charts!AW$23,FALSE) -> 0.2007899672 | AX33: =VLOOKUP($AO33,Data!$A$1:$P$688,Charts!AX$23,FALSE) -> 0.182358296 | AY33: 0.1580837624 | AZ33: 0 | BA33: 0.02151011456 | BB33: 0.03369377578 | BC33: 0.02633794515 | BD33: 0.126082147 | BE33: =VLOOKUP($AO33,Data!$A$1:$P$688,BD$23,FALSE) -> 1.43821772e+12 | BF33: =VLOOKUP($AO33,Data!$A$1:$P$688,BE$23,FALSE) -> 8.489352494e+12 | BG33: =IFERROR(IF($AP$21=0,BE33/BE$25*100,(100*(BE33*12/$BI33)/BE$25)),IFERROR(IF($AP$21=0, BE33/BE$26*100, 100*(BE33*12/$BI33)/BE$26), IFERROR(IF($AP$21=0, BE33/BE$27*100, 100*(BE33*12/$BI33)/BE$27),IFERROR(IF($AP$21=0, BE33/BE$29*100, 100*(BE33*12/$BI33)/BE$29), IFERROR(IF($AP$21=0, BE33/BE$30*100, 100*(BE33*12/$BI33)/BE$30),IFERROR(IF($AP$21=0, BE33/BE$31*100, 100*(BE33*12/$BI33)/#REF!),IFERROR(IF($AP$21=0, BE33/BE$32*100, 100*(BE33*12/$BI33)/BE$32),IFERROR(IF($AP$21=0, BE33/BE$32*100, 100*(BE33*12/$BI33)/BE$32),IFERROR(IF($AP$21=0, BE33/BE$33*100, 100*(BE33*12/$BI33)/BE$33),IFERROR(IF($AP$21=0, BE33/BE$34*100, 100*(BE33*12/$BI33)/BE$34),IF($AP$21=0, BE33/BE$35*100, 100*(BE33*12/$BI33)/BE$35))))))))))) -> 109.791091 | BH33: =IFERROR(IF($AP$21=0,BF33/BF$25*100,(100*(BF33*12/$BI33)/BF$25)),IFERROR(IF($AP$21=0, BF33/BF$26*100, 100*(BF33*12/$BI33)/BF$26), IFERROR(IF($AP$21=0, BF33/BF$27*100, 100*(BF33*12/$BI33)/BF$27),IFERROR(IF($AP$21=0, BF33/BF$29*100, 100*(BF33*12/$BI33)/BF$29), IFERROR(IF($AP$21=0, BF33/BF$30*100, 100*(BF33*12/$BI33)/BF$30),IFERROR(IF($AP$21=0, BF33/BF$31*100, 100*(BF33*12/$BI33)/#REF!),IFERROR(IF($AP$21=0, BF33/BF$32*100, 100*(BF33*12/$BI33)/BF$32),IFERROR(IF($AP$21=0, BF33/BF$32*100, 100*(BF33*12/$BI33)/BF$32),IFERROR(IF($AP$21=0, BF33/BF$33*100, 100*(BF33*12/$BI33)/BF$33),IFERROR(IF($AP$21=0, BF33/BF$34*100, 100*(BF33*12/$BI33)/BF$34),IF($AP$21=0, BF33/BF$35*100, 100*(BF33*12/$BI33)/BF$35))))))))))) -> 101.1721784 | BI33: 12 | BJ33: =VLOOKUP($AO33,Data!$A$1:$P$688,Charts!BJ$23,FALSE) -> 0.1672746459
AL34: 202203 | AM34: =IF(AM33<$AL$24,+DATE(YEAR(AM33),MONTH(AM33)+3,DAY(AM33)),"") -> 2022-03-01 | AN34: 202203 | AO34: Tier 1 capital ratio202203 | AP34: =VLOOKUP($AO34,Data!$A$1:$P$688,Charts!AP$23,FALSE) -> 0.1311664396 | AQ34: =VLOOKUP($AO34,Data!$A$1:$P$688,Charts!AQ$23,FALSE) -> 0.1529304941 | AR34: =VLOOKUP($AO34,Data!$A$1:$P$688,Charts!AR$23,FALSE) -> 0.1694540415 | AS34: =VLOOKUP($AO34,Data!$A$1:$P$688,Charts!AS$23,FALSE) -> 0.220145542 | AT34: =VLOOKUP($AO34,Data!$A$1:$P$688,Charts!AT$23,FALSE) -> 0.1642334854 | AU34: =VLOOKUP($AO34,Data!$A$1:$P$688,Charts!AU$23,FALSE) -> 0.2011821022 | AV34: =VLOOKUP($AO34,Data!$A$1:$P$688,Charts!AV$23,FALSE) -> 0.357436876 | AW34: =VLOOKUP($AO34,Data!$A$1:$P$688,Charts!AW$23,FALSE) -> 0.2056602168 | AX34: =VLOOKUP($AO34,Data!$A$1:$P$688,Charts!AX$23,FALSE) -> 0.1769159557 | AY34: 0.1529304941 | AZ34: 0 | BA34: 0.01652354741 | BB34: 0.03172806073 | BC34: 0.02176405449 | BD34: 0.1562547738 | BE34: =VLOOKUP($AO34,Data!$A$1:$P$688,BD$23,FALSE) -> 1.41185283e+12 | BF34: =VLOOKUP($AO34,Data!$A$1:$P$688,BE$23,FALSE) -> 8.72206345e+12 | BG34: =IFERROR(IF($AP$21=0,BE34/BE$25*100,(100*(BE34*12/$BI34)/BE$25)),IFERROR(IF($AP$21=0, BE34/BE$26*100, 100*(BE34*12/$BI34)/BE$26), IFERROR(IF($AP$21=0, BE34/BE$27*100, 100*(BE34*12/$BI34)/BE$27),IFERROR(IF($AP$21=0, BE34/BE$29*100, 100*(BE34*12/$BI34)/BE$29), IFERROR(IF($AP$21=0, BE34/BE$30*100, 100*(BE34*12/$BI34)/BE$30),IFERROR(IF($AP$21=0, BE34/BE$31*100, 100*(BE34*12/$BI34)/#REF!),IFERROR(IF($AP$21=0, BE34/BE$32*100, 100*(BE34*12/$BI34)/BE$32),IFERROR(IF($AP$21=0, BE34/BE$32*100, 100*(BE34*12/$BI34)/BE$32),IFERROR(IF($AP$21=0, BE34/BE$33*100, 100*(BE34*12/$BI34)/BE$33),IFERROR(IF($AP$21=0, BE34/BE$34*100, 100*(BE34*12/$BI34)/BE$34),IF($AP$21=0, BE34/BE$35*100, 100*(BE34*12/$BI34)/BE$35))))))))))) -> 107.7784402 | BH34: =IFERROR(IF($AP$21=0,BF34/BF$25*100,(100*(BF34*12/$BI34)/BF$25)),IFERROR(IF($AP$21=0, BF34/BF$26*100, 100*(BF34*12/$BI34)/BF$26), IFERROR(IF($AP$21=0, BF34/BF$27*100, 100*(BF34*12/$BI34)/BF$27),IFERROR(IF($AP$21=0, BF34/BF$29*100, 100*(BF34*12/$BI34)/BF$29), IFERROR(IF($AP$21=0, BF34/BF$30*100, 100*(BF34*12/$BI34)/BF$30),IFERROR(IF($AP$21=0, BF34/BF$31*100, 100*(BF34*12/$BI34)/#REF!),IFERROR(IF($AP$21=0, BF34/BF$32*100, 100*(BF34*12/$BI34)/BF$32),IFERROR(IF($AP$21=0, BF34/BF$32*100, 100*(BF34*12/$BI34)/BF$32),IFERROR(IF($AP$21=0, BF34/BF$33*100, 100*(BF34*12/$BI34)/BF$33),IFERROR(IF($AP$21=0, BF34/BF$34*100, 100*(BF34*12/$BI34)/BF$34),IF($AP$21=0, BF34/BF$35*100, 100*(BF34*12/$BI34)/BF$35))))))))))) -> 103.94552 | BI34: 3 | BJ34: =VLOOKUP($AO34,Data!$A$1:$P$688,Charts!BJ$23,FALSE) -> 0.1591880114
AL35: 202206 | AM35: 2022-06-01 | AN35: 202206 | AO35: Tier 1 capital ratio202206 | AP35: =VLOOKUP($AO35,Data!$A$1:$P$688,Charts!AP$23,FALSE) -> 0.131848128 | AQ35: =VLOOKUP($AO35,Data!$A$1:$P$688,Charts!AQ$23,FALSE) -> 0.1494405523 | AR35: =VLOOKUP($AO35,Data!$A$1:$P$688,Charts!AR$23,FALSE) -> 0.1711790317 | AS35: =VLOOKUP($AO35,Data!$A$1:$P$688,Charts!AS$23,FALSE) -> 0.2153673235 | AT35: =VLOOKUP($AO35,Data!$A$1:$P$688,Charts!AT$23,FALSE) -> 0.164614996 | AU35: =VLOOKUP($AO35,Data!$A$1:$P$688,Charts!AU$23,FALSE) -> 0.20361911 | AV35: =VLOOKUP($AO35,Data!$A$1:$P$688,Charts!AV$23,FALSE) -> 0.3811808636 | AW35: =VLOOKUP($AO35,Data!$A$1:$P$688,Charts!AW$23,FALSE) -> 0.203646059 | AX35: =VLOOKUP($AO35,Data!$A$1:$P$688,Charts!AX$23,FALSE) -> 0.1768621569 | AY35: 0.1494405523 | AZ35: 0 | BA35: 0.0217384794 | BB35: 0.0324400783 | BC35: 0.01759242431 | BD35: 0.1775617536 | BE35: =VLOOKUP($AO35,Data!$A$1:$P$688,BD$23,FALSE) -> 1.418376568e+12 | BF35: =VLOOKUP($AO35,Data!$A$1:$P$688,BE$23,FALSE) -> 8.769152986e+12 | BG35: =IFERROR(IF($AP$21=0,BE35/BE$25*100,(100*(BE35*12/$BI35)/BE$25)),IFERROR(IF($AP$21=0, BE35/BE$26*100, 100*(BE35*12/$BI35)/BE$26), IFERROR(IF($AP$21=0, BE35/BE$27*100, 100*(BE35*12/$BI35)/BE$27),IFERROR(IF($AP$21=0, BE35/BE$29*100, 100*(BE35*12/$BI35)/BE$29), IFERROR(IF($AP$21=0, BE35/BE$30*100, 100*(BE35*12/$BI35)/BE$30),IFERROR(IF($AP$21=0, BE35/BE$31*100, 100*(BE35*12/$BI35)/#REF!),IFERROR(IF($AP$21=0, BE35/BE$32*100, 100*(BE35*12/$BI35)/BE$32),IFERROR(IF($AP$21=0, BE35/BE$32*100, 100*(BE35*12/$BI35)/BE$32),IFERROR(IF($AP$21=0, BE35/BE$33*100, 100*(BE35*12/$BI35)/BE$33),IFERROR(IF($AP$21=0, BE35/BE$34*100, 100*(BE35*12/$BI35)/BE$34),IF($AP$21=0, BE35/BE$35*100, 100*(BE35*12/$BI35)/BE$35))))))))))) -> 108.2764513 | BH35: =IFERROR(IF($AP$21=0,BF35/BF$25*100,(100*(BF35*12/$BI35)/BF$25)),IFERROR(IF($AP$21=0, BF35/BF$26*100, 100*(BF35*12/$BI35)/BF$26), IFERROR(IF($AP$21=0, BF35/BF$27*100, 100*(BF35*12/$BI35)/BF$27),IFERROR(IF($AP$21=0, BF35/BF$29*100, 100*(BF35*12/$BI35)/BF$29), IFERROR(IF($AP$21=0, BF35/BF$30*100, 100*(BF35*12/$BI35)/BF$30),IFERROR(IF($AP$21=0, BF35/BF$31*100, 100*(BF35*12/$BI35)/#REF!),IFERROR(IF($AP$21=0, BF35/BF$32*100, 100*(BF35*12/$BI35)/BF$32),IFERROR(IF($AP$21=0, BF35/BF$32*100, 100*(BF35*12/$BI35)/BF$32),IFERROR(IF($AP$21=0, BF35/BF$33*100, 100*(BF35*12/$BI35)/BF$33),IFERROR(IF($AP$21=0, BF35/BF$34*100, 100*(BF35*12/$BI35)/BF$34),IF($AP$21=0, BF35/BF$35*100, 100*(BF35*12/$BI35)/BF$35))))))))))) -> 104.5067113 | BI35: 6 | BJ35: =VLOOKUP($AO35,Data!$A$1:$P$688,Charts!BJ$23,FALSE) -> 0.1596211431
AL36: 202209 | AM36: 2022-09-01 | AN36: 202209 | AO36: Tier 1 capital ratio202209 | AP36: =VLOOKUP($AO36,Data!$A$1:$P$688,Charts!AP$23,FALSE) -> 0.1323149625 | AQ36: =VLOOKUP($AO36,Data!$A$1:$P$688,Charts!AQ$23,FALSE) -> 0.1496346017 | AR36: =VLOOKUP($AO36,Data!$A$1:$P$688,Charts!AR$23,FALSE) -> 0.1685548993 | AS36: =VLOOKUP($AO36,Data!$A$1:$P$688,Charts!AS$23,FALSE) -> 0.2303535762 | AT36: =VLOOKUP($AO36,Data!$A$1:$P$688,Charts!AT$23,FALSE) -> 0.1628995888 | AU36: =VLOOKUP($AO36,Data!$A$1:$P$688,Charts!AU$23,FALSE) -> 0.2033308191 | AV36: =VLOOKUP($AO36,Data!$A$1:$P$688,Charts!AV$23,FALSE) -> 0.3734115055 | AW36: =VLOOKUP($AO36,Data!$A$1:$P$688,Charts!AW$23,FALSE) -> 0.1967478047 | AX36: =VLOOKUP($AO36,Data!$A$1:$P$688,Charts!AX$23,FALSE) -> 0.1747185916 | AY36: 0.1496346017 | AZ36: 0 | BA36: 0.0189202976 | BB36: 0.03477591983 | BC36: 0.01731963917 | BD36: 0.1700806864 | BE36: =VLOOKUP($AO36,Data!$A$1:$P$688,BD$23,FALSE) -> 1.414689565e+12 | BF36: =VLOOKUP($AO36,Data!$A$1:$P$688,BE$23,FALSE) -> 8.821283098e+12 | BG36: =IFERROR(IF($AP$21=0,BE36/BE$25*100,(100*(BE36*12/$BI36)/BE$25)),IFERROR(IF($AP$21=0, BE36/BE$26*100, 100*(BE36*12/$BI36)/BE$26), IFERROR(IF($AP$21=0, BE36/BE$27*100, 100*(BE36*12/$BI36)/BE$27),IFERROR(IF($AP$21=0, BE36/BE$29*100, 100*(BE36*12/$BI36)/BE$29), IFERROR(IF($AP$21=0, BE36/BE$30*100, 100*(BE36*12/$BI36)/BE$30),IFERROR(IF($AP$21=0, BE36/BE$31*100, 100*(BE36*12/$BI36)/#REF!),IFERROR(IF($AP$21=0, BE36/BE$32*100, 100*(BE36*12/$BI36)/BE$32),IFERROR(IF($AP$21=0, BE36/BE$32*100, 100*(BE36*12/$BI36)/BE$32),IFERROR(IF($AP$21=0, BE36/BE$33*100, 100*(BE36*12/$BI36)/BE$33),IFERROR(IF($AP$21=0, BE36/BE$34*100, 100*(BE36*12/$BI36)/BE$34),IF($AP$21=0, BE36/BE$35*100, 100*(BE36*12/$BI36)/BE$35))))))))))) -> 107.9949918 | BH36: =IFERROR(IF($AP$21=0,BF36/BF$25*100,(100*(BF36*12/$BI36)/BF$25)),IFERROR(IF($AP$21=0, BF36/BF$26*100, 100*(BF36*12/$BI36)/BF$26), IFERROR(IF($AP$21=0, BF36/BF$27*100, 100*(BF36*12/$BI36)/BF$27),IFERROR(IF($AP$21=0, BF36/BF$29*100, 100*(BF36*12/$BI36)/BF$29), IFERROR(IF($AP$21=0, BF36/BF$30*100, 100*(BF36*12/$BI36)/BF$30),IFERROR(IF($AP$21=0, BF36/BF$31*100, 100*(BF36*12/$BI36)/#REF!),IFERROR(IF($AP$21=0, BF36/BF$32*100, 100*(BF36*12/$BI36)/BF$32),IFERROR(IF($AP$21=0, BF36/BF$32*100, 100*(BF36*12/$BI36)/BF$32),IFERROR(IF($AP$21=0, BF36/BF$33*100, 100*(BF36*12/$BI36)/BF$33),IFERROR(IF($AP$21=0, BF36/BF$34*100, 100*(BF36*12/$BI36)/BF$34),IF($AP$21=0, BF36/BF$35*100, 100*(BF36*12/$BI36)/BF$35))))))))))) -> 105.1279739 | BI36: 9 | BJ36: =VLOOKUP($AO36,Data!$A$1:$P$688,Charts!BJ$23,FALSE) -> 0.158282617
AL37: 202212 | AM37: =IF(AM36<$AL$24,+DATE(YEAR(AM36),MONTH(AM36)+3,DAY(AM36)),"") -> 2022-12-01 | AN37: =+IF(MONTH(AM37)=12,YEAR(AM37)&MONTH(AM37),YEAR(AM37)&0&MONTH(AM37)) -> 202212 | AO37: Tier 1 capital ratio202212 | AP37: =VLOOKUP($AO37,Data!$A$1:$P$688,Charts!AP$23,FALSE) -> 0.1377822869 | AQ37: =VLOOKUP($AO37,Data!$A$1:$P$688,Charts!AQ$23,FALSE) -> 0.1562061041 | AR37: =VLOOKUP($AO37,Data!$A$1:$P$688,Charts!AR$23,FALSE) -> 0.176398818 | AS37: =VLOOKUP($AO37,Data!$A$1:$P$688,Charts!AS$23,FALSE) -> 0.235165009 | AT37: =VLOOKUP($AO37,Data!$A$1:$P$688,Charts!AT$23,FALSE) -> 0.168223836 | AU37: =VLOOKUP($AO37,Data!$A$1:$P$688,Charts!AU$23,FALSE) -> 0.2064656841 | AV37: =VLOOKUP($AO37,Data!$A$1:$P$688,Charts!AV$23,FALSE) -> 0.4029680135 | AW37: =VLOOKUP($AO37,Data!$A$1:$P$688,Charts!AW$23,FALSE) -> 0.2124382571 | AX37: =VLOOKUP($AO37,Data!$A$1:$P$688,Charts!AX$23,FALSE) -> 0.1799329129 | AY37: 0.1562061041 | AZ37: 0 | BA37: 0.02019271389 | BB37: 0.03006686614 | BC37: 0.01842381718 | BD37: 0.1965023293 | BE37: =VLOOKUP($AO37,Data!$A$1:$P$688,BD$23,FALSE) -> 1.430226194e+12 | BF37: =VLOOKUP($AO37,Data!$A$1:$P$688,BE$23,FALSE) -> 8.674237783e+12 | BG37: =IFERROR(IF($AP$21=0,BE37/BE$25*100,(100*(BE37*12/$BI37)/BE$25)),IFERROR(IF($AP$21=0, BE37/BE$26*100, 100*(BE37*12/$BI37)/BE$26), IFERROR(IF($AP$21=0, BE37/BE$27*100, 100*(BE37*12/$BI37)/BE$27),IFERROR(IF($AP$21=0, BE37/BE$29*100, 100*(BE37*12/$BI37)/BE$29), IFERROR(IF($AP$21=0, BE37/BE$30*100, 100*(BE37*12/$BI37)/BE$30),IFERROR(IF($AP$21=0, BE37/BE$31*100, 100*(BE37*12/$BI37)/#REF!),IFERROR(IF($AP$21=0, BE37/BE$32*100, 100*(BE37*12/$BI37)/BE$32),IFERROR(IF($AP$21=0, BE37/BE$32*100, 100*(BE37*12/$BI37)/BE$32),IFERROR(IF($AP$21=0, BE37/BE$33*100, 100*(BE37*12/$BI37)/BE$33),IFERROR(IF($AP$21=0, BE37/BE$34*100, 100*(BE37*12/$BI37)/BE$34),IF($AP$21=0, BE37/BE$35*100, 100*(BE37*12/$BI37)/BE$35))))))))))) -> 109.1810315 | BH37: =IFERROR(IF($AP$21=0,BF37/BF$25*100,(100*(BF37*12/$BI37)/BF$25)),IFERROR(IF($AP$21=0, BF37/BF$26*100, 100*(BF37*12/$BI37)/BF$26), IFERROR(IF($AP$21=0, BF37/BF$27*100, 100*(BF37*12/$BI37)/BF$27),IFERROR(IF($AP$21=0, BF37/BF$29*100, 100*(BF37*12/$BI37)/BF$29), IFERROR(IF($AP$21=0, BF37/BF$30*100, 100*(BF37*12/$BI37)/BF$30),IFERROR(IF($AP$21=0, BF37/BF$31*100, 100*(BF37*12/$BI37)/#REF!),IFERROR(IF($AP$21=0, BF37/BF$32*100, 100*(BF37*12/$BI37)/BF$32),IFERROR(IF($AP$21=0, BF37/BF$32*100, 100*(BF37*12/$BI37)/BF$32),IFERROR(IF($AP$21=0, BF37/BF$33*100, 100*(BF37*12/$BI37)/BF$33),IFERROR(IF($AP$21=0, BF37/BF$34*100, 100*(BF37*12/$BI37)/BF$34),IF($AP$21=0, BF37/BF$35*100, 100*(BF37*12/$BI37)/BF$35))))))))))) -> 103.3755558 | BI37: 12 | BJ37: =VLOOKUP($AO37,Data!$A$1:$P$688,Charts!BJ$23,FALSE) -> 0.1632097919
AN49: =VLOOKUP(AM21*1,List!$A$1:$I$100,9,FALSE) -> 9 | AO49: Indicator | AP49: Country | AQ49: Country name | AR49: Value | AS49: EU value
AO50: 2 | AQ50: 5 | AR50: 8
AN51: =MAX($AL$25:$AL$46) -> 202212 | AO51: =CONCATENATE(VLOOKUP($AN$21*1,Data!$W$1:$AB$688,AO$50,FALSE),AP51) -> Tier 1 Capital Ratio1 | AP51: 1 | AQ51: =VLOOKUP($AO51,Data!$U$1:$AC$714,AQ$50,FALSE)&IF(AR51="","*","") -> LV | AR51: =IF(ISBLANK(VLOOKUP($AO51,Data!$U$1:$AC$714,AR$50,FALSE)),"",VLOOKUP($AO51,Data!$U$1:$AC$714,AR$50,FALSE)) -> 0.2403732408 | AS51: =VLOOKUP($AO$81,Data!$U$1:$AC$714,$AR$50,FALSE) -> 0.168223836
AN52: =MAX($AL$25:$AL$46) -> 202212 | AO52: =CONCATENATE(VLOOKUP($AN$21*1,Data!$W$1:$AB$688,AO$50,FALSE),AP52) -> Tier 1 Capital Ratio2 | AP52: 2 | AQ52: =VLOOKUP($AO52,Data!$U$1:$AC$714,AQ$50,FALSE)&IF(AR52="","*","") -> HR | AR52: =IF(ISBLANK(VLOOKUP($AO52,Data!$U$1:$AC$714,AR$50,FALSE)),"",VLOOKUP($AO52,Data!$U$1:$AC$714,AR$50,FALSE)) -> 0.2357583697 | AS52: =VLOOKUP($AO$81,Data!$U$1:$AC$714,$AR$50,FALSE) -> 0.168223836
AN53: 202212 | AO53: =CONCATENATE(VLOOKUP($AN$21*1,Data!$W$1:$AB$688,AO$50,FALSE),AP53) -> Tier 1 Capital Ratio3 | AP53: 3 | AQ53: =VLOOKUP($AO53,Data!$U$1:$AC$714,AQ$50,FALSE)&IF(AR53="","*","") -> EE | AR53: =IF(ISBLANK(VLOOKUP($AO53,Data!$U$1:$AC$714,AR$50,FALSE)),"",VLOOKUP($AO53,Data!$U$1:$AC$714,AR$50,FALSE)) -> 0.2222664567 | AS53: =VLOOKUP($AO$81,Data!$U$1:$AC$714,$AR$50,FALSE) -> 0.168223836
AN54: 202212 | AO54: =CONCATENATE(VLOOKUP($AN$21*1,Data!$W$1:$AB$688,AO$50,FALSE),AP54) -> Tier 1 Capital Ratio4 | AP54: 4 | AQ54: =VLOOKUP($AO54,Data!$U$1:$AC$714,AQ$50,FALSE)&IF(AR54="","*","") -> LU | AR54: =IF(ISBLANK(VLOOKUP($AO54,Data!$U$1:$AC$714,AR$50,FALSE)),"",VLOOKUP($AO54,Data!$U$1:$AC$714,AR$50,FALSE)) -> 0.2191567485 | AS54: =VLOOKUP($AO$81,Data!$U$1:$AC$714,$AR$50,FALSE) -> 0.168223836
AN55: 202212 | AO55: =CONCATENATE(VLOOKUP($AN$21*1,Data!$W$1:$AB$688,AO$50,FALSE),AP55) -> Tier 1 Capital Ratio5 | AP55: 5 | AQ55: =VLOOKUP($AO55,Data!$U$1:$AC$714,AQ$50,FALSE)&IF(AR55="","*","") -> BG | AR55: =IF(ISBLANK(VLOOKUP($AO55,Data!$U$1:$AC$714,AR$50,FALSE)),"",VLOOKUP($AO55,Data!$U$1:$AC$714,AR$50,FALSE)) -> 0.216861399 | AS55: =VLOOKUP($AO$81,Data!$U$1:$AC$714,$AR$50,FALSE) -> 0.168223836
AN56: 202212 | AO56: =CONCATENATE(VLOOKUP($AN$21*1,Data!$W$1:$AB$688,AO$50,FALSE),AP56) -> Tier 1 Capital Ratio6 | AP56: 6 | AQ56: =VLOOKUP($AO56,Data!$U$1:$AC$714,AQ$50,FALSE)&IF(AR56="","*","") -> IS | AR56: =IF(ISBLANK(VLOOKUP($AO56,Data!$U$1:$AC$714,AR$50,FALSE)),"",VLOOKUP($AO56,Data!$U$1:$AC$714,AR$50,FALSE)) -> 0.2113066741 | AS56: =VLOOKUP($AO$81,Data!$U$1:$AC$714,$AR$50,FALSE) -> 0.168223836
AN57: 202212 | AO57: =CONCATENATE(VLOOKUP($AN$21*1,Data!$W$1:$AB$688,AO$50,FALSE),AP57) -> Tier 1 Capital Ratio7 | AP57: 7 | AQ57: =VLOOKUP($AO57,Data!$U$1:$AC$714,AQ$50,FALSE)&IF(AR57="","*","") -> SE | AR57: =IF(ISBLANK(VLOOKUP($AO57,Data!$U$1:$AC$714,AR$50,FALSE)),"",VLOOKUP($AO57,Data!$U$1:$AC$714,AR$50,FALSE)) -> 0.2037414141 | AS57: =VLOOKUP($AO$81,Data!$U$1:$AC$714,$AR$50,FALSE) -> 0.168223836
AN58: 202212 | AO58: =CONCATENATE(VLOOKUP($AN$21*1,Data!$W$1:$AB$688,AO$50,FALSE),AP58) -> Tier 1 Capital Ratio8 | AP58: 8 | AQ58: =VLOOKUP($AO58,Data!$U$1:$AC$714,AQ$50,FALSE)&IF(AR58="","*","") -> IE | AR58: =IF(ISBLANK(VLOOKUP($AO58,Data!$U$1:$AC$714,AR$50,FALSE)),"",VLOOKUP($AO58,Data!$U$1:$AC$714,AR$50,FALSE)) -> 0.2021995458 | AS58: =VLOOKUP($AO$81,Data!$U$1:$AC$714,$AR$50,FALSE) -> 0.168223836
AN59: 202212 | AO59: =CONCATENATE(VLOOKUP($AN$21*1,Data!$W$1:$AB$688,AO$50,FALSE),AP59) -> Tier 1 Capital Ratio9 | AP59: 9 | AQ59: =VLOOKUP($AO59,Data!$U$1:$AC$714,AQ$50,FALSE)&IF(AR59="","*","") -> CY | AR59: =IF(ISBLANK(VLOOKUP($AO59,Data!$U$1:$AC$714,AR$50,FALSE)),"",VLOOKUP($AO59,Data!$U$1:$AC$714,AR$50,FALSE)) -> 0.1972558796 | AS59: =VLOOKUP($AO$81,Data!$U$1:$AC$714,$AR$50,FALSE) -> 0.168223836
AN60: 202212 | AO60: =CONCATENATE(VLOOKUP($AN$21*1,Data!$W$1:$AB$688,AO$50,FALSE),AP60) -> Tier 1 Capital Ratio10 | AP60: 10 | AQ60: =VLOOKUP($AO60,Data!$U$1:$AC$714,AQ$50,FALSE)&IF(AR60="","*","") -> NO | AR60: =IF(ISBLANK(VLOOKUP($AO60,Data!$U$1:$AC$714,AR$50,FALSE)),"",VLOOKUP($AO60,Data!$U$1:$AC$714,AR$50,FALSE)) -> 0.1963611235 | AS60: =VLOOKUP($AO$81,Data!$U$1:$AC$714,$AR$50,FALSE) -> 0.168223836
AN61: 202212 | AO61: =CONCATENATE(VLOOKUP($AN$21*1,Data!$W$1:$AB$688,AO$50,FALSE),AP61) -> Tier 1 Capital Ratio11 | AP61: 11 | AQ61: =VLOOKUP($AO61,Data!$U$1:$AC$714,AQ$50,FALSE)&IF(AR61="","*","") -> CZ | AR61: =IF(ISBLANK(VLOOKUP($AO61,Data!$U$1:$AC$714,AR$50,FALSE)),"",VLOOKUP($AO61,Data!$U$1:$AC$714,AR$50,FALSE)) -> 0.1944720254 | AS61: =VLOOKUP($AO$81,Data!$U$1:$AC$714,$AR$50,FALSE) -> 0.168223836
AN62: 202212 | AO62: =CONCATENATE(VLOOKUP($AN$21*1,Data!$W$1:$AB$688,AO$50,FALSE),AP62) -> Tier 1 Capital Ratio12 | AP62: 12 | AQ62: =VLOOKUP($AO62,Data!$U$1:$AC$714,AQ$50,FALSE)&IF(AR62="","*","") -> DK | AR62: =IF(ISBLANK(VLOOKUP($AO62,Data!$U$1:$AC$714,AR$50,FALSE)),"",VLOOKUP($AO62,Data!$U$1:$AC$714,AR$50,FALSE)) -> 0.1941867356 | AS62: =VLOOKUP($AO$81,Data!$U$1:$AC$714,$AR$50,FALSE) -> 0.168223836
AN63: 202212 | AO63: =CONCATENATE(VLOOKUP($AN$21*1,Data!$W$1:$AB$688,AO$50,FALSE),AP63) -> Tier 1 Capital Ratio13 | AP63: 13 | AQ63: =VLOOKUP($AO63,Data!$U$1:$AC$714,AQ$50,FALSE)&IF(AR63="","*","") -> LI | AR63: =IF(ISBLANK(VLOOKUP($AO63,Data!$U$1:$AC$714,AR$50,FALSE)),"",VLOOKUP($AO63,Data!$U$1:$AC$714,AR$50,FALSE)) -> 0.1937122778 | AS63: =VLOOKUP($AO$81,Data!$U$1:$AC$714,$AR$50,FALSE) -> 0.168223836
AN64: 202212 | AO64: =CONCATENATE(VLOOKUP($AN$21*1,Data!$W$1:$AB$688,AO$50,FALSE),AP64) -> Tier 1 Capital Ratio14 | AP64: 14 | AQ64: =VLOOKUP($AO64,Data!$U$1:$AC$714,AQ$50,FALSE)&IF(AR64="","*","") -> MT | AR64: =IF(ISBLANK(VLOOKUP($AO64,Data!$U$1:$AC$714,AR$50,FALSE)),"",VLOOKUP($AO64,Data!$U$1:$AC$714,AR$50,FALSE)) -> 0.1933780164 | AS64: =VLOOKUP($AO$81,Data!$U$1:$AC$714,$AR$50,FALSE) -> 0.168223836
AN65: 202212 | AO65: =CONCATENATE(VLOOKUP($AN$21*1,Data!$W$1:$AB$688,AO$50,FALSE),AP65) -> Tier 1 Capital Ratio15 | AP65: 15 | AQ65: =VLOOKUP($AO65,Data!$U$1:$AC$714,AQ$50,FALSE)&IF(AR65="","*","") -> BE | AR65: =IF(ISBLANK(VLOOKUP($AO65,Data!$U$1:$AC$714,AR$50,FALSE)),"",VLOOKUP($AO65,Data!$U$1:$AC$714,AR$50,FALSE)) -> 0.1915746488 | AS65: =VLOOKUP($AO$81,Data!$U$1:$AC$714,$AR$50,FALSE) -> 0.168223836
AN66: 202212 | AO66: =CONCATENATE(VLOOKUP($AN$21*1,Data!$W$1:$AB$688,AO$50,FALSE),AP66) -> Tier 1 Capital Ratio16 | AP66: 16 | AQ66: =VLOOKUP($AO66,Data!$U$1:$AC$714,AQ$50,FALSE)&IF(AR66="","*","") -> FI | AR66: =IF(ISBLANK(VLOOKUP($AO66,Data!$U$1:$AC$714,AR$50,FALSE)),"",VLOOKUP($AO66,Data!$U$1:$AC$714,AR$50,FALSE)) -> 0.1880243565 | AS66: =VLOOKUP($AO$81,Data!$U$1:$AC$714,$AR$50,FALSE) -> 0.168223836
AN67: 202212 | AO67: =CONCATENATE(VLOOKUP($AN$21*1,Data!$W$1:$AB$688,AO$50,FALSE),AP67) -> Tier 1 Capital Ratio17 | AP67: 17 | AQ67: =VLOOKUP($AO67,Data!$U$1:$AC$714,AQ$50,FALSE)&IF(AR67="","*","") -> LT | AR67: =IF(ISBLANK(VLOOKUP($AO67,Data!$U$1:$AC$714,AR$50,FALSE)),"",VLOOKUP($AO67,Data!$U$1:$AC$714,AR$50,FALSE)) -> 0.1877908395 | AS67: =VLOOKUP($AO$81,Data!$U$1:$AC$714,$AR$50,FALSE) -> 0.168223836
AN68: 202212 | AO68: =CONCATENATE(VLOOKUP($AN$21*1,Data!$W$1:$AB$688,AO$50,FALSE),AP68) -> Tier 1 Capital Ratio18 | AP68: 18 | AQ68: =VLOOKUP($AO68,Data!$U$1:$AC$714,AQ$50,FALSE)&IF(AR68="","*","") -> RO | AR68: =IF(ISBLANK(VLOOKUP($AO68,Data!$U$1:$AC$714,AR$50,FALSE)),"",VLOOKUP($AO68,Data!$U$1:$AC$714,AR$50,FALSE)) -> 0.1776925665 | AS68: =VLOOKUP($AO$81,Data!$U$1:$AC$714,$AR$50,FALSE) -> 0.168223836
AN69: 202212 | AO69: =CONCATENATE(VLOOKUP($AN$21*1,Data!$W$1:$AB$688,AO$50,FALSE),AP69) -> Tier 1 Capital Ratio19 | AP69: 19 | AQ69: =VLOOKUP($AO69,Data!$U$1:$AC$714,AQ$50,FALSE)&IF(AR69="","*","") -> NL | AR69: =IF(ISBLANK(VLOOKUP($AO69,Data!$U$1:$AC$714,AR$50,FALSE)),"",VLOOKUP($AO69,Data!$U$1:$AC$714,AR$50,FALSE)) -> 0.176385751 | AS69: =VLOOKUP($AO$81,Data!$U$1:$AC$714,$AR$50,FALSE) -> 0.168223836
AN70: 202212 | AO70: =CONCATENATE(VLOOKUP($AN$21*1,Data!$W$1:$AB$688,AO$50,FALSE),AP70) -> Tier 1 Capital Ratio20 | AP70: 20 | AQ70: =VLOOKUP($AO70,Data!$U$1:$AC$714,AQ$50,FALSE)&IF(AR70="","*","") -> SK | AR70: =IF(ISBLANK(VLOOKUP($AO70,Data!$U$1:$AC$714,AR$50,FALSE)),"",VLOOKUP($AO70,Data!$U$1:$AC$714,AR$50,FALSE)) -> 0.1735273821 | AS70: =VLOOKUP($AO$81,Data!$U$1:$AC$714,$AR$50,FALSE) -> 0.168223836
AN71: 202212 | AO71: =CONCATENATE(VLOOKUP($AN$21*1,Data!$W$1:$AB$688,AO$50,FALSE),AP71) -> Tier 1 Capital Ratio21 | AP71: 21 | AQ71: =VLOOKUP($AO71,Data!$U$1:$AC$714,AQ$50,FALSE)&IF(AR71="","*","") -> IT | AR71: =IF(ISBLANK(VLOOKUP($AO71,Data!$U$1:$AC$714,AR$50,FALSE)),"",VLOOKUP($AO71,Data!$U$1:$AC$714,AR$50,FALSE)) -> 0.1728782084 | AS71: =VLOOKUP($AO$81,Data!$U$1:$AC$714,$AR$50,FALSE) -> 0.168223836
AN72: 202212 | AO72: =CONCATENATE(VLOOKUP($AN$21*1,Data!$W$1:$AB$688,AO$50,FALSE),AP72) -> Tier 1 Capital Ratio22 | AP72: 22 | AQ72: =VLOOKUP($AO72,Data!$U$1:$AC$714,AQ$50,FALSE)&IF(AR72="","*","") -> DE | AR72: =IF(ISBLANK(VLOOKUP($AO72,Data!$U$1:$AC$714,AR$50,FALSE)),"",VLOOKUP($AO72,Data!$U$1:$AC$714,AR$50,FALSE)) -> 0.1698149961 | AS72: =VLOOKUP($AO$81,Data!$U$1:$AC$714,$AR$50,FALSE) -> 0.168223836
AN73: 202212 | AO73: =CONCATENATE(VLOOKUP($AN$21*1,Data!$W$1:$AB$688,AO$50,FALSE),AP73) -> Tier 1 Capital Ratio23 | AP73: 23 | AQ73: =VLOOKUP($AO73,Data!$U$1:$AC$714,AQ$50,FALSE)&IF(AR73="","*","") -> AT | AR73: =IF(ISBLANK(VLOOKUP($AO73,Data!$U$1:$AC$714,AR$50,FALSE)),"",VLOOKUP($AO73,Data!$U$1:$AC$714,AR$50,FALSE)) -> 0.1665540826 | AS73: =VLOOKUP($AO$81,Data!$U$1:$AC$714,$AR$50,FALSE) -> 0.168223836
AN74: 202212 | AO74: =CONCATENATE(VLOOKUP($AN$21*1,Data!$W$1:$AB$688,AO$50,FALSE),AP74) -> Tier 1 Capital Ratio24 | AP74: 24 | AQ74: =VLOOKUP($AO74,Data!$U$1:$AC$714,AQ$50,FALSE)&IF(AR74="","*","") -> PL | AR74: =IF(ISBLANK(VLOOKUP($AO74,Data!$U$1:$AC$714,AR$50,FALSE)),"",VLOOKUP($AO74,Data!$U$1:$AC$714,AR$50,FALSE)) -> 0.1662733969 | AS74: =VLOOKUP($AO$81,Data!$U$1:$AC$714,$AR$50,FALSE) -> 0.168223836
AN75: 202212 | AO75: =CONCATENATE(VLOOKUP($AN$21*1,Data!$W$1:$AB$688,AO$50,FALSE),AP75) -> Tier 1 Capital Ratio25 | AP75: 25 | AQ75: =VLOOKUP($AO75,Data!$U$1:$AC$714,AQ$50,FALSE)&IF(AR75="","*","") -> FR | AR75: =IF(ISBLANK(VLOOKUP($AO75,Data!$U$1:$AC$714,AR$50,FALSE)),"",VLOOKUP($AO75,Data!$U$1:$AC$714,AR$50,FALSE)) -> 0.1648025635 | AS75: =VLOOKUP($AO$81,Data!$U$1:$AC$714,$AR$50,FALSE) -> 0.168223836
AN76: 202212 | AO76: =CONCATENATE(VLOOKUP($AN$21*1,Data!$W$1:$AB$688,AO$50,FALSE),AP76) -> Tier 1 Capital Ratio26 | AP76: 26 | AQ76: =VLOOKUP($AO76,Data!$U$1:$AC$714,AQ$50,FALSE)&IF(AR76="","*","") -> HU | AR76: =IF(ISBLANK(VLOOKUP($AO76,Data!$U$1:$AC$714,AR$50,FALSE)),"",VLOOKUP($AO76,Data!$U$1:$AC$714,AR$50,FALSE)) -> 0.1634099686 | AS76: =VLOOKUP($AO$81,Data!$U$1:$AC$714,$AR$50,FALSE) -> 0.168223836
AN77: 202212 | AO77: =CONCATENATE(VLOOKUP($AN$21*1,Data!$W$1:$AB$688,AO$50,FALSE),AP77) -> Tier 1 Capital Ratio27 | AP77: 27 | AQ77: =VLOOKUP($AO77,Data!$U$1:$AC$714,AQ$50,FALSE)&IF(AR77="","*","") -> SI | AR77: =IF(ISBLANK(VLOOKUP($AO77,Data!$U$1:$AC$714,AR$50,FALSE)),"",VLOOKUP($AO77,Data!$U$1:$AC$714,AR$50,FALSE)) -> 0.1591723627 | AS77: =VLOOKUP($AO$81,Data!$U$1:$AC$714,$AR$50,FALSE) -> 0.168223836
AN78: 202212 | AO78: =CONCATENATE(VLOOKUP($AN$21*1,Data!$W$1:$AB$688,AO$50,FALSE),AP78) -> Tier 1 Capital Ratio28 | AP78: 28 | AQ78: =VLOOKUP($AO78,Data!$U$1:$AC$714,AQ$50,FALSE)&IF(AR78="","*","") -> PT | AR78: =IF(ISBLANK(VLOOKUP($AO78,Data!$U$1:$AC$714,AR$50,FALSE)),"",VLOOKUP($AO78,Data!$U$1:$AC$714,AR$50,FALSE)) -> 0.155575354 | AS78: =VLOOKUP($AO$81,Data!$U$1:$AC$714,$AR$50,FALSE) -> 0.168223836
AN79: 202212 | AO79: =CONCATENATE(VLOOKUP($AN$21*1,Data!$W$1:$AB$688,AO$50,FALSE),AP79) -> Tier 1 Capital Ratio29 | AP79: 29 | AQ79: =VLOOKUP($AO79,Data!$U$1:$AC$714,AQ$50,FALSE)&IF(AR79="","*","") -> GR | AR79: =IF(ISBLANK(VLOOKUP($AO79,Data!$U$1:$AC$714,AR$50,FALSE)),"",VLOOKUP($AO79,Data!$U$1:$AC$714,AR$50,FALSE)) -> 0.151931754 | AS79: =VLOOKUP($AO$81,Data!$U$1:$AC$714,$AR$50,FALSE) -> 0.168223836
AN80: 202212 | AO80: =CONCATENATE(VLOOKUP($AN$21*1,Data!$W$1:$AB$688,AO$50,FALSE),AP80) -> Tier 1 Capital Ratio30 | AP80: 30 | AQ80: =VLOOKUP($AO80,Data!$U$1:$AC$714,AQ$50,FALSE)&IF(AR80="","*","") -> ES | AR80: =IF(ISBLANK(VLOOKUP($AO80,Data!$U$1:$AC$714,AR$50,FALSE)),"",VLOOKUP($AO80,Data!$U$1:$AC$714,AR$50,FALSE)) -> 0.1413991198 | AS80: =VLOOKUP($AO$81,Data!$U$1:$AC$714,$AR$50,FALSE) -> 0.168223836
AN81: =MAX($AL$25:$AL$46) -> 202212 | AO81: =CONCATENATE(VLOOKUP($AN$21*1,Data!$W$1:$AB$688,AO$50,FALSE),AP81) -> Tier 1 Capital Ratio99 | AP81: 99 | AQ81: =VLOOKUP($AO81,Data!$U$1:$AC$714,AQ$50,FALSE)&IF(AR81="","*","") -> EU | AR81: =IF(ISBLANK(VLOOKUP($AO81,Data!$U$1:$AC$714,AR$50,FALSE)),"",VLOOKUP($AO81,Data!$U$1:$AC$714,AR$50,FALSE)) -> 0.168223836 | AS81: =VLOOKUP($AO$81,Data!$U$1:$AC$714,$AR$50,FALSE) -> 0.168223836

Sheet Assets
D1: =("'"&MID(CELL("filename",$A$1),FIND("]",CELL("filename",$A$1))+1,32)&"'") -> 'Assets' | E1: T01_1 | F1: T01_1 | G1: T01_1 | H1: T01_2 | I1: T01_2 | J1: T01_2 | K1: T01_3 | L1: T01_3 | M1: T01_3 | N1: T01_4 | O1: T01_4 | P1: T01_4 | Q1: T01_5 | R1: T01_5 | S1: T01_5 | T1: T01_6 | U1: T01_6 | V1: T01_6
A2: ='Reference Dates'!$C$8 -> 202212 | E2: =TEXT(E12,"YYYYMM")+0 -> 202112 | F2: 202209 | G2: 202212 | H2: 202112 | I2: 202209 | J2: 202212 | K2: 202112 | L2: 202209 | M2: 202212 | N2: 202112 | O2: 202209 | P2: 202212 | Q2: 202112 | R2: 202209 | S2: 202212 | T2: 202112 | U2: 202209 | V2: 202212
A3: =DATE(LEFT(A2,4),RIGHT(A2,2),1) -> 2022-12-01
D4: Statistical Annex
D5: Asset composition and volumes
B8: CH_1 | D8: Asset composition
D10: % of total assets
E11: Cash balances | H11: Equity instruments | K11: Debt securities | N11: Loans and advances | Q11: Derivatives | T11: Other Assets
E12: =EOMONTH($A$3,-12) -> 2021-12-31 | F12: =EOMONTH($A$3,-3) -> 2022-09-30 | G12: =$A$3 -> 2022-12-01 | H12: =EOMONTH($A$3,-12) -> 2021-12-31 | I12: =EOMONTH($A$3,-3) -> 2022-09-30 | J12: =$A$3 -> 2022-12-01 | K12: =EOMONTH($A$3,-12) -> 2021-12-31 | L12: =EOMONTH($A$3,-3) -> 2022-09-30 | M12: =$A$3 -> 2022-12-01 | N12: =EOMONTH($A$3,-12) -> 2021-12-31 | O12: =EOMONTH($A$3,-3) -> 2022-09-30 | P12: =$A$3 -> 2022-12-01 | Q12: =EOMONTH($A$3,-12) -> 2021-12-31 | R12: =EOMONTH($A$3,-3) -> 2022-09-30 | S12: =$A$3 -> 2022-12-01 | T12: =EOMONTH($A$3,-12) -> 2021-12-31 | U12: =EOMONTH($A$3,-3) -> 2022-09-30 | V12: =$A$3 -> 2022-12-01
B13: AT | D13: =IF(OR(E13="n.a.",F13="n.a.",G13="n.a.",H13="n.a.",I13="n.a.",J13="n.a.",K13="n.a.",L13="n.a.",M13="n.a.",N13="n.a.",O13="n.a.",P13="n.a.",Q13="n.a.",R13="n.a.",S13="n.a.",T13="n.a.",U13="n.a.",V13="n.a."),$B13&"*",$B13) -> AT | E13: =IFERROR(INDEX('Data Annex'!$K$1:$AV$6077,MATCH(Assets!E$1&"|"&Assets!$B13,'Data Annex'!$K$1:$K$6077,0),MATCH(Assets!E$2,'Data Annex'!$K$1:$AV$1,0)),"") -> 0.1799493416 | F13: =IFERROR(INDEX('Data Annex'!$K$1:$AV$6077,MATCH(Assets!F$1&"|"&Assets!$B13,'Data Annex'!$K$1:$K$6077,0),MATCH(Assets!F$2,'Data Annex'!$K$1:$AV$1,0)),"") -> 0.1841557121 | G13: =IFERROR(INDEX('Data Annex'!$K$1:$AV$6077,MATCH(Assets!G$1&"|"&Assets!$B13,'Data Annex'!$K$1:$K$6077,0),MATCH(Assets!G$2,'Data Annex'!$K$1:$AV$1,0)),"") -> 0.1679532864 | H13: =IFERROR(INDEX('Data Annex'!$K$1:$AV$6077,MATCH(Assets!H$1&"|"&Assets!$B13,'Data Annex'!$K$1:$K$6077,0),MATCH(Assets!H$2,'Data Annex'!$K$1:$AV$1,0)),"") -> 0.004995895352 | I13: =IFERROR(INDEX('Data Annex'!$K$1:$AV$6077,MATCH(Assets!I$1&"|"&Assets!$B13,'Data Annex'!$K$1:$K$6077,0),MATCH(Assets!I$2,'Data Annex'!$K$1:$AV$1,0)),"") -> 0.005593816692 | J13: =IFERROR(INDEX('Data Annex'!$K$1:$AV$6077,MATCH(Assets!J$1&"|"&Assets!$B13,'Data Annex'!$K$1:$K$6077,0),MATCH(Assets!J$2,'Data Annex'!$K$1:$AV$1,0)),"") -> 0.005791203947 | K13: =IFERROR(INDEX('Data Annex'!$K$1:$AV$6077,MATCH(Assets!K$1&"|"&Assets!$B13,'Data Annex'!$K$1:$K$6077,0),MATCH(Assets!K$2,'Data Annex'!$K$1:$AV$1,0)),"") -> 0.1299300175 | L13: =IFERROR(INDEX('Data Annex'!$K$1:$AV$6077,MATCH(Assets!L$1&"|"&Assets!$B13,'Data Annex'!$K$1:$K$6077,0),MATCH(Assets!L$2,'Data Annex'!$K$1:$AV$1,0)),"") -> 0.1300446796 | M13: =IFERROR(INDEX('Data Annex'!$K$1:$AV$6077,MATCH(Assets!M$1&"|"&Assets!$B13,'Data Annex'!$K$1:$K$6077,0),MATCH(Assets!M$2,'Data Annex'!$K$1:$AV$1,0)),"") -> 0.1384597193 | N13: =IFERROR(INDEX('Data Annex'!$K$1:$AV$6077,MATCH(Assets!N$1&"|"&Assets!$B13,'Data Annex'!$K$1:$K$6077,0),MATCH(Assets!N$2,'Data Annex'!$K$1:$AV$1,0)),"") -> 0.6269185654 | O13: =IFERROR(INDEX('Data Annex'!$K$1:$AV$6077,MATCH(Assets!O$1&"|"&Assets!$B13,'Data Annex'!$K$1:$K$6077,0),MATCH(Assets!O$2,'Data Annex'!$K$1:$AV$1,0)),"") -> 0.6330962351 | P13: =IFERROR(INDEX('Data Annex'!$K$1:$AV$6077,MATCH(Assets!P$1&"|"&Assets!$B13,'Data Annex'!$K$1:$K$6077,0),MATCH(Assets!P$2,'Data Annex'!$K$1:$AV$1,0)),"") -> 0.6412794539 | Q13: =IFERROR(INDEX('Data Annex'!$K$1:$AV$6077,MATCH(Assets!Q$1&"|"&Assets!$B13,'Data Annex'!$K$1:$K$6077,0),MATCH(Assets!Q$2,'Data Annex'!$K$1:$AV$1,0)),"") -> 0.01266251691 | R13: =IFERROR(INDEX('Data Annex'!$K$1:$AV$6077,MATCH(Assets!R$1&"|"&Assets!$B13,'Data Annex'!$K$1:$K$6077,0),MATCH(Assets!R$2,'Data Annex'!$K$1:$AV$1,0)),"") -> 0.02507324306 | S13: =IFERROR(INDEX('Data Annex'!$K$1:$AV$6077,MATCH(Assets!S$1&"|"&Assets!$B13,'Data Annex'!$K$1:$K$6077,0),MATCH(Assets!S$2,'Data Annex'!$K$1:$AV$1,0)),"") -> 0.02262893308 | T13: =IFERROR(INDEX('Data Annex'!$K$1:$AV$6077,MATCH(Assets!T$1&"|"&Assets!$B13,'Data Annex'!$K$1:$K$6077,0),MATCH(Assets!T$2,'Data Annex'!$K$1:$AV$1,0)),"") -> 0.04554366328 | U13: =IFERROR(INDEX('Data Annex'!$K$1:$AV$6077,MATCH(Assets!U$1&"|"&Assets!$B13,'Data Annex'!$K$1:$K$6077,0),MATCH(Assets!U$2,'Data Annex'!$K$1:$AV$1,0)),"") -> 0.02203631347 | V13: =IFERROR(INDEX('Data Annex'!$K$1:$AV$6077,MATCH(Assets!V$1&"|"&Assets!$B13,'Data Annex'!$K$1:$K$6077,0),MATCH(Assets!V$2,'Data Annex'!$K$1:$AV$1,0)),"") -> 0.02388740336 | W13: =IFERROR(INDEX('Data Annex'!$K$1:$AH$5813,MATCH(Assets!AC$1&"|"&Assets!$B13,'Data Annex'!$K$1:$K$5813,0),MATCH(Assets!AC$2,'Data Annex'!$K$1:$AH$1,0)),"") -> 
B14: BE | D14: =IF(OR(E14="n.a.",F14="n.a.",G14="n.a.",H14="n.a.",I14="n.a.",J14="n.a.",K14="n.a.",L14="n.a.",M14="n.a.",N14="n.a.",O14="n.a.",P14="n.a.",Q14="n.a.",R14="n.a.",S14="n.a.",T14="n.a.",U14="n.a.",V14="n.a."),$B14&"*",$B14) -> BE | E14: =IFERROR(INDEX('Data Annex'!$K$1:$AV$6077,MATCH(Assets!E$1&"|"&Assets!$B14,'Data Annex'!$K$1:$K$6077,0),MATCH(Assets!E$2,'Data Annex'!$K$1:$AV$1,0)),"") -> 0.1781004995 | F14: =IFERROR(INDEX('Data Annex'!$K$1:$AV$6077,MATCH(Assets!F$1&"|"&Assets!$B14,'Data Annex'!$K$1:$K$6077,0),MATCH(Assets!F$2,'Data Annex'!$K$1:$AV$1,0)),"") -> 0.1767880277 | G14: =IFERROR(INDEX('Data Annex'!$K$1:$AV$6077,MATCH(Assets!G$1&"|"&Assets!$B14,'Data Annex'!$K$1:$K$6077,0),MATCH(Assets!G$2,'Data Annex'!$K$1:$AV$1,0)),"") -> 0.153132807 | H14: =IFERROR(INDEX('Data Annex'!$K$1:$AV$6077,MATCH(Assets!H$1&"|"&Assets!$B14,'Data Annex'!$K$1:$K$6077,0),MATCH(Assets!H$2,'Data Annex'!$K$1:$AV$1,0)),"") -> 0.002053535804 | I14: =IFERROR(INDEX('Data Annex'!$K$1:$AV$6077,MATCH(Assets!I$1&"|"&Assets!$B14,'Data Annex'!$K$1:$K$6077,0),MATCH(Assets!I$2,'Data Annex'!$K$1:$AV$1,0)),"") -> 0.001779687952 | J14: =IFERROR(INDEX('Data Annex'!$K$1:$AV$6077,MATCH(Assets!J$1&"|"&Assets!$B14,'Data Annex'!$K$1:$K$6077,0),MATCH(Assets!J$2,'Data Annex'!$K$1:$AV$1,0)),"") -> 0.002048152629 | K14: =IFERROR(INDEX('Data Annex'!$K$1:$AV$6077,MATCH(Assets!K$1&"|"&Assets!$B14,'Data Annex'!$K$1:$K$6077,0),MATCH(Assets!K$2,'Data Annex'!$K$1:$AV$1,0)),"") -> 0.1280769451 | L14: =IFERROR(INDEX('Data Annex'!$K$1:$AV$6077,MATCH(Assets!L$1&"|"&Assets!$B14,'Data Annex'!$K$1:$K$6077,0),MATCH(Assets!L$2,'Data Annex'!$K$1:$AV$1,0)),"") -> 0.1143556895 | M14: =IFERROR(INDEX('Data Annex'!$K$1:$AV$6077,MATCH(Assets!M$1&"|"&Assets!$B14,'Data Annex'!$K$1:$K$6077,0),MATCH(Assets!M$2,'Data Annex'!$K$1:$AV$1,0)),"") -> 0.1220844459 | N14: =IFERROR(INDEX('Data Annex'!$K$1:$AV$6077,MATCH(Assets!N$1&"|"&Assets!$B14,'Data Annex'!$K$1:$K$6077,0),MATCH(Assets!N$2,'Data Annex'!$K$1:$AV$1,0)),"") -> 0.6166344183 | O14: =IFERROR(INDEX('Data Annex'!$K$1:$AV$6077,MATCH(Assets!O$1&"|"&Assets!$B14,'Data Annex'!$K$1:$K$6077,0),MATCH(Assets!O$2,'Data Annex'!$K$1:$AV$1,0)),"") -> 0.6282230066 | P14: =IFERROR(INDEX('Data Annex'!$K$1:$AV$6077,MATCH(Assets!P$1&"|"&Assets!$B14,'Data Annex'!$K$1:$K$6077,0),MATCH(Assets!P$2,'Data Annex'!$K$1:$AV$1,0)),"") -> 0.6491329077 | Q14: =IFERROR(INDEX('Data Annex'!$K$1:$AV$6077,MATCH(Assets!Q$1&"|"&Assets!$B14,'Data Annex'!$K$1:$K$6077,0),MATCH(Assets!Q$2,'Data Annex'!$K$1:$AV$1,0)),"") -> 0.03269310965 | R14: =IFERROR(INDEX('Data Annex'!$K$1:$AV$6077,MATCH(Assets!R$1&"|"&Assets!$B14,'Data Annex'!$K$1:$K$6077,0),MATCH(Assets!R$2,'Data Annex'!$K$1:$AV$1,0)),"") -> 0.0491244215 | S14: =IFERROR(INDEX('Data Annex'!$K$1:$AV$6077,MATCH(Assets!S$1&"|"&Assets!$B14,'Data Annex'!$K$1:$K$6077,0),MATCH(Assets!S$2,'Data Annex'!$K$1:$AV$1,0)),"") -> 0.04463457578 | T14: =IFERROR(INDEX('Data Annex'!$K$1:$AV$6077,MATCH(Assets!T$1&"|"&Assets!$B14,'Data Annex'!$K$1:$K$6077,0),MATCH(Assets!T$2,'Data Annex'!$K$1:$AV$1,0)),"") -> 0.04244149173 | U14: =IFERROR(INDEX('Data Annex'!$K$1:$AV$6077,MATCH(Assets!U$1&"|"&Assets!$B14,'Data Annex'!$K$1:$K$6077,0),MATCH(Assets!U$2,'Data Annex'!$K$1:$AV$1,0)),"") -> 0.02972916682 | V14: =IFERROR(INDEX('Data Annex'!$K$1:$AV$6077,MATCH(Assets!V$1&"|"&Assets!$B14,'Data Annex'!$K$1:$K$6077,0),MATCH(Assets!V$2,'Data Annex'!$K$1:$AV$1,0)),"") -> 0.02896711091 | W14: =IFERROR(INDEX('Data Annex'!$K$1:$AH$5813,MATCH(Assets!AC$1&"|"&Assets!$B14,'Data Annex'!$K$1:$K$5813,0),MATCH(Assets!AC$2,'Data Annex'!$K$1:$AH$1,0)),"") -> 
B15: BG | D15: BG | E15: =IFERROR(INDEX('Data Annex'!$K$1:$AV$6077,MATCH(Assets!E$1&"|"&Assets!$B15,'Data Annex'!$K$1:$K$6077,0),MATCH(Assets!E$2,'Data Annex'!$K$1:$AV$1,0)),"") -> 0.2004244947 | F15: =IFERROR(INDEX('Data Annex'!$K$1:$AV$6077,MATCH(Assets!F$1&"|"&Assets!$B15,'Data Annex'!$K$1:$K$6077,0),MATCH(Assets!F$2,'Data Annex'!$K$1:$AV$1,0)),"") -> 0.1825085566 | G15: =IFERROR(INDEX('Data Annex'!$K$1:$AV$6077,MATCH(Assets!G$1&"|"&Assets!$B15,'Data Annex'!$K$1:$K$6077,0),MATCH(Assets!G$2,'Data Annex'!$K$1:$AV$1,0)),"") -> 0.2020866268 | H15: =IFERROR(INDEX('Data Annex'!$K$1:$AV$6077,MATCH(Assets!H$1&"|"&Assets!$B15,'Data Annex'!$K$1:$K$6077,0),MATCH(Assets!H$2,'Data Annex'!$K$1:$AV$1,0)),"") -> 0.001330928429 | I15: =IFERROR(INDEX('Data Annex'!$K$1:$AV$6077,MATCH(Assets!I$1&"|"&Assets!$B15,'Data Annex'!$K$1:$K$6077,0),MATCH(Assets!I$2,'Data Annex'!$K$1:$AV$1,0)),"") -> 0.001011056022 | J15: =IFERROR(INDEX('Data Annex'!$K$1:$AV$6077,MATCH(Assets!J$1&"|"&Assets!$B15,'Data Annex'!$K$1:$K$6077,0),MATCH(Assets!J$2,'Data Annex'!$K$1:$AV$1,0)),"") -> 0.0009451662386 | K15: =IFERROR(INDEX('Data Annex'!$K$1:$AV$6077,MATCH(Assets!K$1&"|"&Assets!$B15,'Data Annex'!$K$1:$K$6077,0),MATCH(Assets!K$2,'Data Annex'!$K$1:$AV$1,0)),"") -> 0.167710877 | L15: =IFERROR(INDEX('Data Annex'!$K$1:$AV$6077,MATCH(Assets!L$1&"|"&Assets!$B15,'Data Annex'!$K$1:$K$6077,0),MATCH(Assets!L$2,'Data Annex'!$K$1:$AV$1,0)),"") -> 0.154257584 | M15: =IFERROR(INDEX('Data Annex'!$K$1:$AV$6077,MATCH(Assets!M$1&"|"&Assets!$B15,'Data Annex'!$K$1:$K$6077,0),MATCH(Assets!M$2,'Data Annex'!$K$1:$AV$1,0)),"") -> 0.1496037341 | N15: =IFERROR(INDEX('Data Annex'!$K$1:$AV$6077,MATCH(Assets!N$1&"|"&Assets!$B15,'Data Annex'!$K$1:$K$6077,0),MATCH(Assets!N$2,'Data Annex'!$K$1:$AV$1,0)),"") -> 0.5885238444 | O15: =IFERROR(INDEX('Data Annex'!$K$1:$AV$6077,MATCH(Assets!O$1&"|"&Assets!$B15,'Data Annex'!$K$1:$K$6077,0),MATCH(Assets!O$2,'Data Annex'!$K$1:$AV$1,0)),"") -> 0.6306659012 | P15: =IFERROR(INDEX('Data Annex'!$K$1:$AV$6077,MATCH(Assets!P$1&"|"&Assets!$B15,'Data Annex'!$K$1:$K$6077,0),MATCH(Assets!P$2,'Data Annex'!$K$1:$AV$1,0)),"") -> 0.6199739824 | Q15: =IFERROR(INDEX('Data Annex'!$K$1:$AV$6077,MATCH(Assets!Q$1&"|"&Assets!$B15,'Data Annex'!$K$1:$K$6077,0),MATCH(Assets!Q$2,'Data Annex'!$K$1:$AV$1,0)),"") -> 0.002033577026 | R15: =IFERROR(INDEX('Data Annex'!$K$1:$AV$6077,MATCH(Assets!R$1&"|"&Assets!$B15,'Data Annex'!$K$1:$K$6077,0),MATCH(Assets!R$2,'Data Annex'!$K$1:$AV$1,0)),"") -> 0.007421542306 | S15: =IFERROR(INDEX('Data Annex'!$K$1:$AV$6077,MATCH(Assets!S$1&"|"&Assets!$B15,'Data Annex'!$K$1:$K$6077,0),MATCH(Assets!S$2,'Data Annex'!$K$1:$AV$1,0)),"") -> 0.00486639485 | T15: =IFERROR(INDEX('Data Annex'!$K$1:$AV$6077,MATCH(Assets!T$1&"|"&Assets!$B15,'Data Annex'!$K$1:$K$6077,0),MATCH(Assets!T$2,'Data Annex'!$K$1:$AV$1,0)),"") -> 0.03997627844 | U15: =IFERROR(INDEX('Data Annex'!$K$1:$AV$6077,MATCH(Assets!U$1&"|"&Assets!$B15,'Data Annex'!$K$1:$K$6077,0),MATCH(Assets!U$2,'Data Annex'!$K$1:$AV$1,0)),"") -> 0.02413535992 | V15: =IFERROR(INDEX('Data Annex'!$K$1:$AV$6077,MATCH(Assets!V$1&"|"&Assets!$B15,'Data Annex'!$K$1:$K$6077,0),MATCH(Assets!V$2,'Data Annex'!$K$1:$AV$1,0)),"") -> 0.02252409561 | W15: =IFERROR(INDEX('Data Annex'!$K$1:$AH$5813,MATCH(Assets!AC$1&"|"&Assets!$B15,'Data Annex'!$K$1:$K$5813,0),MATCH(Assets!AC$2,'Data Annex'!$K$1:$AH$1,0)),"") -> 
B16: CY | D16: CY | E16: =IFERROR(INDEX('Data Annex'!$K$1:$AV$6077,MATCH(Assets!E$1&"|"&Assets!$B16,'Data Annex'!$K$1:$K$6077,0),MATCH(Assets!E$2,'Data Annex'!$K$1:$AV$1,0)),"") -> 0.3936153727 | F16: =IFERROR(INDEX('Data Annex'!$K$1:$AV$6077,MATCH(Assets!F$1&"|"&Assets!$B16,'Data Annex'!$K$1:$K$6077,0),MATCH(Assets!F$2,'Data Annex'!$K$1:$AV$1,0)),"") -> 0.3969220735 | G16: =IFERROR(INDEX('Data Annex'!$K$1:$AV$6077,MATCH(Assets!G$1&"|"&Assets!$B16,'Data Annex'!$K$1:$K$6077,0),MATCH(Assets!G$2,'Data Annex'!$K$1:$AV$1,0)),"") -> 0.4095884069 | H16: =IFERROR(INDEX('Data Annex'!$K$1:$AV$6077,MATCH(Assets!H$1&"|"&Assets!$B16,'Data Annex'!$K$1:$K$6077,0),MATCH(Assets!H$2,'Data Annex'!$K$1:$AV$1,0)),"") -> 0.001333507987 | I16: =IFERROR(INDEX('Data Annex'!$K$1:$AV$6077,MATCH(Assets!I$1&"|"&Assets!$B16,'Data Annex'!$K$1:$K$6077,0),MATCH(Assets!I$2,'Data Annex'!$K$1:$AV$1,0)),"") -> 0.001212459704 | J16: =IFERROR(INDEX('Data Annex'!$K$1:$AV$6077,MATCH(Assets!J$1&"|"&Assets!$B16,'Data Annex'!$K$1:$K$6077,0),MATCH(Assets!J$2,'Data Annex'!$K$1:$AV$1,0)),"") -> 0.00120976644 | K16: =IFERROR(INDEX('Data Annex'!$K$1:$AV$6077,MATCH(Assets!K$1&"|"&Assets!$B16,'Data Annex'!$K$1:$K$6077,0),MATCH(Assets!K$2,'Data Annex'!$K$1:$AV$1,0)),"") -> 0.1495129923 | L16: =IFERROR(INDEX('Data Annex'!$K$1:$AV$6077,MATCH(Assets!L$1&"|"&Assets!$B16,'Data Annex'!$K$1:$K$6077,0),MATCH(Assets!L$2,'Data Annex'!$K$1:$AV$1,0)),"") -> 0.1557146776 | M16: =IFERROR(INDEX('Data Annex'!$K$1:$AV$6077,MATCH(Assets!M$1&"|"&Assets!$B16,'Data Annex'!$K$1:$K$6077,0),MATCH(Assets!M$2,'Data Annex'!$K$1:$AV$1,0)),"") -> 0.1561124744 | N16: =IFERROR(INDEX('Data Annex'!$K$1:$AV$6077,MATCH(Assets!N$1&"|"&Assets!$B16,'Data Annex'!$K$1:$K$6077,0),MATCH(Assets!N$2,'Data Annex'!$K$1:$AV$1,0)),"") -> 0.3750038846 | O16: =IFERROR(INDEX('Data Annex'!$K$1:$AV$6077,MATCH(Assets!O$1&"|"&Assets!$B16,'Data Annex'!$K$1:$K$6077,0),MATCH(Assets!O$2,'Data Annex'!$K$1:$AV$1,0)),"") -> 0.3723158735 | P16: =IFERROR(INDEX('Data Annex'!$K$1:$AV$6077,MATCH(Assets!P$1&"|"&Assets!$B16,'Data Annex'!$K$1:$K$6077,0),MATCH(Assets!P$2,'Data Annex'!$K$1:$AV$1,0)),"") -> 0.3682467657 | Q16: =IFERROR(INDEX('Data Annex'!$K$1:$AV$6077,MATCH(Assets!Q$1&"|"&Assets!$B16,'Data Annex'!$K$1:$K$6077,0),MATCH(Assets!Q$2,'Data Annex'!$K$1:$AV$1,0)),"") -> 0.0001794564094 | R16: =IFERROR(INDEX('Data Annex'!$K$1:$AV$6077,MATCH(Assets!R$1&"|"&Assets!$B16,'Data Annex'!$K$1:$K$6077,0),MATCH(Assets!R$2,'Data Annex'!$K$1:$AV$1,0)),"") -> 0.001649873112 | S16: =IFERROR(INDEX('Data Annex'!$K$1:$AV$6077,MATCH(Assets!S$1&"|"&Assets!$B16,'Data Annex'!$K$1:$K$6077,0),MATCH(Assets!S$2,'Data Annex'!$K$1:$AV$1,0)),"") -> 0.00107648927 | T16: =IFERROR(INDEX('Data Annex'!$K$1:$AV$6077,MATCH(Assets!T$1&"|"&Assets!$B16,'Data Annex'!$K$1:$K$6077,0),MATCH(Assets!T$2,'Data Annex'!$K$1:$AV$1,0)),"") -> 0.08035478596 | U16: =IFERROR(INDEX('Data Annex'!$K$1:$AV$6077,MATCH(Assets!U$1&"|"&Assets!$B16,'Data Annex'!$K$1:$K$6077,0),MATCH(Assets!U$2,'Data Annex'!$K$1:$AV$1,0)),"") -> 0.07218504255 | V16: =IFERROR(INDEX('Data Annex'!$K$1:$AV$6077,MATCH(Assets!V$1&"|"&Assets!$B16,'Data Annex'!$K$1:$K$6077,0),MATCH(Assets!V$2,'Data Annex'!$K$1:$AV$1,0)),"") -> 0.06376609726 | W16: =IFERROR(INDEX('Data Annex'!$K$1:$AH$5813,MATCH(Assets!AC$1&"|"&Assets!$B16,'Data Annex'!$K$1:$K$5813,0),MATCH(Assets!AC$2,'Data Annex'!$K$1:$AH$1,0)),"") -> 
B17: CZ | D17: CZ | E17: =IFERROR(INDEX('Data Annex'!$K$1:$AV$6077,MATCH(Assets!E$1&"|"&Assets!$B17,'Data Annex'!$K$1:$K$6077,0),MATCH(Assets!E$2,'Data Annex'!$K$1:$AV$1,0)),"") -> 0.02293263435 | F17: =IFERROR(INDEX('Data Annex'!$K$1:$AV$6077,MATCH(Assets!F$1&"|"&Assets!$B17,'Data Annex'!$K$1:$K$6077,0),MATCH(Assets!F$2,'Data Annex'!$K$1:$AV$1,0)),"") -> 0.02555039336 | G17: =IFERROR(INDEX('Data Annex'!$K$1:$AV$6077,MATCH(Assets!G$1&"|"&Assets!$B17,'Data Annex'!$K$1:$K$6077,0),MATCH(Assets!G$2,'Data Annex'!$K$1:$AV$1,0)),"") -> 0.02090904062 | H17: =IFERROR(INDEX('Data Annex'!$K$1:$AV$6077,MATCH(Assets!H$1&"|"&Assets!$B17,'Data Annex'!$K$1:$K$6077,0),MATCH(Assets!H$2,'Data Annex'!$K$1:$AV$1,0)),"") -> 0.0004364897371 | I17: =IFERROR(INDEX('Data Annex'!$K$1:$AV$6077,MATCH(Assets!I$1&"|"&Assets!$B17,'Data Annex'!$K$1:$K$6077,0),MATCH(Assets!I$2,'Data Annex'!$K$1:$AV$1,0)),"") -> 0.0005021914867 | J17: =IFERROR(INDEX('Data Annex'!$K$1:$AV$6077,MATCH(Assets!J$1&"|"&Assets!$B17,'Data Annex'!$K$1:$K$6077,0),MATCH(Assets!J$2,'Data Annex'!$K$1:$AV$1,0)),"") -> 0.000386962364 | K17: =IFERROR(INDEX('Data Annex'!$K$1:$AV$6077,MATCH(Assets!K$1&"|"&Assets!$B17,'Data Annex'!$K$1:$K$6077,0),MATCH(Assets!K$2,'Data Annex'!$K$1:$AV$1,0)),"") -> 0.1638958389 | L17: =IFERROR(INDEX('Data Annex'!$K$1:$AV$6077,MATCH(Assets!L$1&"|"&Assets!$B17,'Data Annex'!$K$1:$K$6077,0),MATCH(Assets!L$2,'Data Annex'!$K$1:$AV$1,0)),"") -> 0.1620718528 | M17: =IFERROR(INDEX('Data Annex'!$K$1:$AV$6077,MATCH(Assets!M$1&"|"&Assets!$B17,'Data Annex'!$K$1:$K$6077,0),MATCH(Assets!M$2,'Data Annex'!$K$1:$AV$1,0)),"") -> 0.1778883378 | N17: =IFERROR(INDEX('Data Annex'!$K$1:$AV$6077,MATCH(Assets!N$1&"|"&Assets!$B17,'Data Annex'!$K$1:$K$6077,0),MATCH(Assets!N$2,'Data Annex'!$K$1:$AV$1,0)),"") -> 0.7695340638 | O17: =IFERROR(INDEX('Data Annex'!$K$1:$AV$6077,MATCH(Assets!O$1&"|"&Assets!$B17,'Data Annex'!$K$1:$K$6077,0),MATCH(Assets!O$2,'Data Annex'!$K$1:$AV$1,0)),"") -> 0.758909148 | P17: =IFERROR(INDEX('Data Annex'!$K$1:$AV$6077,MATCH(Assets!P$1&"|"&Assets!$B17,'Data Annex'!$K$1:$K$6077,0),MATCH(Assets!P$2,'Data Annex'!$K$1:$AV$1,0)),"") -> 0.7421238091 | Q17: =IFERROR(INDEX('Data Annex'!$K$1:$AV$6077,MATCH(Assets!Q$1&"|"&Assets!$B17,'Data Annex'!$K$1:$K$6077,0),MATCH(Assets!Q$2,'Data Annex'!$K$1:$AV$1,0)),"") -> 0.0292570628 | R17: =IFERROR(INDEX('Data Annex'!$K$1:$AV$6077,MATCH(Assets!R$1&"|"&Assets!$B17,'Data Annex'!$K$1:$K$6077,0),MATCH(Assets!R$2,'Data Annex'!$K$1:$AV$1,0)),"") -> 0.04262979093 | S17: =IFERROR(INDEX('Data Annex'!$K$1:$AV$6077,MATCH(Assets!S$1&"|"&Assets!$B17,'Data Annex'!$K$1:$K$6077,0),MATCH(Assets!S$2,'Data Annex'!$K$1:$AV$1,0)),"") -> 0.04620410993 | T17: =IFERROR(INDEX('Data Annex'!$K$1:$AV$6077,MATCH(Assets!T$1&"|"&Assets!$B17,'Data Annex'!$K$1:$K$6077,0),MATCH(Assets!T$2,'Data Annex'!$K$1:$AV$1,0)),"") -> 0.01394391042 | U17: =IFERROR(INDEX('Data Annex'!$K$1:$AV$6077,MATCH(Assets!U$1&"|"&Assets!$B17,'Data Annex'!$K$1:$K$6077,0),MATCH(Assets!U$2,'Data Annex'!$K$1:$AV$1,0)),"") -> 0.01033662343 | V17: =IFERROR(INDEX('Data Annex'!$K$1:$AV$6077,MATCH(Assets!V$1&"|"&Assets!$B17,'Data Annex'!$K$1:$K$6077,0),MATCH(Assets!V$2,'Data Annex'!$K$1:$AV$1,0)),"") -> 0.01248774018 | W17: =IFERROR(INDEX('Data Annex'!$K$1:$AH$5813,MATCH(Assets!AC$1&"|"&Assets!$B17,'Data Annex'!$K$1:$K$5813,0),MATCH(Assets!AC$2,'Data Annex'!$K$1:$AH$1,0)),"") -> 
B18: DE | D18: DE | E18: =IFERROR(INDEX('Data Annex'!$K$1:$AV$6077,MATCH(Assets!E$1&"|"&Assets!$B18,'Data Annex'!$K$1:$K$6077,0),MATCH(Assets!E$2,'Data Annex'!$K$1:$AV$1,0)),"") -> 0.1592971515 | F18: =IFERROR(INDEX('Data Annex'!$K$1:$AV$6077,MATCH(Assets!F$1&"|"&Assets!$B18,'Data Annex'!$K$1:$K$6077,0),MATCH(Assets!F$2,'Data Annex'!$K$1:$AV$1,0)),"") -> 0.1877524228 | G18: =IFERROR(INDEX('Data Annex'!$K$1:$AV$6077,MATCH(Assets!G$1&"|"&Assets!$B18,'Data Annex'!$K$1:$K$6077,0),MATCH(Assets!G$2,'Data Annex'!$K$1:$AV$1,0)),"") -> 0.1592271704 | H18: =IFERROR(INDEX('Data Annex'!$K$1:$AV$6077,MATCH(Assets!H$1&"|"&Assets!$B18,'Data Annex'!$K$1:$K$6077,0),MATCH(Assets!H$2,'Data Annex'!$K$1:$AV$1,0)),"") -> 0.006962025311 | I18: =IFERROR(INDEX('Data Annex'!$K$1:$AV$6077,MATCH(Assets!I$1&"|"&Assets!$B18,'Data Annex'!$K$1:$K$6077,0),MATCH(Assets!I$2,'Data Annex'!$K$1:$AV$1,0)),"") -> 0.004181421583 | J18: =IFERROR(INDEX('Data Annex'!$K$1:$AV$6077,MATCH(Assets!J$1&"|"&Assets!$B18,'Data Annex'!$K$1:$K$6077,0),MATCH(Assets!J$2,'Data Annex'!$K$1:$AV$1,0)),"") -> 0.004697322208 | K18: =IFERROR(INDEX('Data Annex'!$K$1:$AV$6077,MATCH(Assets!K$1&"|"&Assets!$B18,'Data Annex'!$K$1:$K$6077,0),MATCH(Assets!K$2,'Data Annex'!$K$1:$AV$1,0)),"") -> 0.1217553117 | L18: =IFERROR(INDEX('Data Annex'!$K$1:$AV$6077,MATCH(Assets!L$1&"|"&Assets!$B18,'Data Annex'!$K$1:$K$6077,0),MATCH(Assets!L$2,'Data Annex'!$K$1:$AV$1,0)),"") -> 0.1069688198 | M18: =IFERROR(INDEX('Data Annex'!$K$1:$AV$6077,MATCH(Assets!M$1&"|"&Assets!$B18,'Data Annex'!$K$1:$K$6077,0),MATCH(Assets!M$2,'Data Annex'!$K$1:$AV$1,0)),"") -> 0.1141460602 | N18: =IFERROR(INDEX('Data Annex'!$K$1:$AV$6077,MATCH(Assets!N$1&"|"&Assets!$B18,'Data Annex'!$K$1:$K$6077,0),MATCH(Assets!N$2,'Data Annex'!$K$1:$AV$1,0)),"") -> 0.5744865197 | O18: =IFERROR(INDEX('Data Annex'!$K$1:$AV$6077,MATCH(Assets!O$1&"|"&Assets!$B18,'Data Annex'!$K$1:$K$6077,0),MATCH(Assets!O$2,'Data Annex'!$K$1:$AV$1,0)),"") -> 0.5408066909 | P18: =IFERROR(INDEX('Data Annex'!$K$1:$AV$6077,MATCH(Assets!P$1&"|"&Assets!$B18,'Data Annex'!$K$1:$K$6077,0),MATCH(Assets!P$2,'Data Annex'!$K$1:$AV$1,0)),"") -> 0.5790930657 | Q18: =IFERROR(INDEX('Data Annex'!$K$1:$AV$6077,MATCH(Assets!Q$1&"|"&Assets!$B18,'Data Annex'!$K$1:$K$6077,0),MATCH(Assets!Q$2,'Data Annex'!$K$1:$AV$1,0)),"") -> 0.1115448682 | R18: =IFERROR(INDEX('Data Annex'!$K$1:$AV$6077,MATCH(Assets!R$1&"|"&Assets!$B18,'Data Annex'!$K$1:$K$6077,0),MATCH(Assets!R$2,'Data Annex'!$K$1:$AV$1,0)),"") -> 0.1413732831 | S18: =IFERROR(INDEX('Data Annex'!$K$1:$AV$6077,MATCH(Assets!S$1&"|"&Assets!$B18,'Data Annex'!$K$1:$K$6077,0),MATCH(Assets!S$2,'Data Annex'!$K$1:$AV$1,0)),"") -> 0.122495432 | T18: =IFERROR(INDEX('Data Annex'!$K$1:$AV$6077,MATCH(Assets!T$1&"|"&Assets!$B18,'Data Annex'!$K$1:$K$6077,0),MATCH(Assets!T$2,'Data Annex'!$K$1:$AV$1,0)),"") -> 0.02595412335 | U18: =IFERROR(INDEX('Data Annex'!$K$1:$AV$6077,MATCH(Assets!U$1&"|"&Assets!$B18,'Data Annex'!$K$1:$K$6077,0),MATCH(Assets!U$2,'Data Annex'!$K$1:$AV$1,0)),"") -> 0.01891736205 | V18: =IFERROR(INDEX('Data Annex'!$K$1:$AV$6077,MATCH(Assets!V$1&"|"&Assets!$B18,'Data Annex'!$K$1:$K$6077,0),MATCH(Assets!V$2,'Data Annex'!$K$1:$AV$1,0)),"") -> 0.02034094975 | W18: =IFERROR(INDEX('Data Annex'!$K$1:$AH$5813,MATCH(Assets!AC$1&"|"&Assets!$B18,'Data Annex'!$K$1:$K$5813,0),MATCH(Assets!AC$2,'Data Annex'!$K$1:$AH$1,0)),"") -> 
B19: DK | D19: DK | E19: =IFERROR(INDEX('Data Annex'!$K$1:$AV$6077,MATCH(Assets!E$1&"|"&Assets!$B19,'Data Annex'!$K$1:$K$6077,0),MATCH(Assets!E$2,'Data Annex'!$K$1:$AV$1,0)),"") -> 0.06868221651 | F19: =IFERROR(INDEX('Data Annex'!$K$1:$AV$6077,MATCH(Assets!F$1&"|"&Assets!$B19,'Data Annex'!$K$1:$K$6077,0),MATCH(Assets!F$2,'Data Annex'!$K$1:$AV$1,0)),"") -> 0.05696352925 | G19: =IFERROR(INDEX('Data Annex'!$K$1:$AV$6077,MATCH(Assets!G$1&"|"&Assets!$B19,'Data Annex'!$K$1:$K$6077,0),MATCH(Assets!G$2,'Data Annex'!$K$1:$AV$1,0)),"") -> 0.05272256244 | H19: =IFERROR(INDEX('Data Annex'!$K$1:$AV$6077,MATCH(Assets!H$1&"|"&Assets!$B19,'Data Annex'!$K$1:$K$6077,0),MATCH(Assets!H$2,'Data Annex'!$K$1:$AV$1,0)),"") -> 0.006894088743 | I19: =IFERROR(INDEX('Data Annex'!$K$1:$AV$6077,MATCH(Assets!I$1&"|"&Assets!$B19,'Data Annex'!$K$1:$K$6077,0),MATCH(Assets!I$2,'Data Annex'!$K$1:$AV$1,0)),"") -> 0.002898189909 | J19: =IFERROR(INDEX('Data Annex'!$K$1:$AV$6077,MATCH(Assets!J$1&"|"&Assets!$B19,'Data Annex'!$K$1:$K$6077,0),MATCH(Assets!J$2,'Data Annex'!$K$1:$AV$1,0)),"") -> 0.003496231456 | K19: =IFERROR(INDEX('Data Annex'!$K$1:$AV$6077,MATCH(Assets!K$1&"|"&Assets!$B19,'Data Annex'!$K$1:$K$6077,0),MATCH(Assets!K$2,'Data Annex'!$K$1:$AV$1,0)),"") -> 0.1244552238 | L19: =IFERROR(INDEX('Data Annex'!$K$1:$AV$6077,MATCH(Assets!L$1&"|"&Assets!$B19,'Data Annex'!$K$1:$K$6077,0),MATCH(Assets!L$2,'Data Annex'!$K$1:$AV$1,0)),"") -> 0.1207462452 | M19: =IFERROR(INDEX('Data Annex'!$K$1:$AV$6077,MATCH(Assets!M$1&"|"&Assets!$B19,'Data Annex'!$K$1:$K$6077,0),MATCH(Assets!M$2,'Data Annex'!$K$1:$AV$1,0)),"") -> 0.1194982936 | N19: =IFERROR(INDEX('Data Annex'!$K$1:$AV$6077,MATCH(Assets!N$1&"|"&Assets!$B19,'Data Annex'!$K$1:$K$6077,0),MATCH(Assets!N$2,'Data Annex'!$K$1:$AV$1,0)),"") -> 0.7194638871 | O19: =IFERROR(INDEX('Data Annex'!$K$1:$AV$6077,MATCH(Assets!O$1&"|"&Assets!$B19,'Data Annex'!$K$1:$K$6077,0),MATCH(Assets!O$2,'Data Annex'!$K$1:$AV$1,0)),"") -> 0.6943502754 | P19: =IFERROR(INDEX('Data Annex'!$K$1:$AV$6077,MATCH(Assets!P$1&"|"&Assets!$B19,'Data Annex'!$K$1:$K$6077,0),MATCH(Assets!P$2,'Data Annex'!$K$1:$AV$1,0)),"") -> 0.7162264039 | Q19: =IFERROR(INDEX('Data Annex'!$K$1:$AV$6077,MATCH(Assets!Q$1&"|"&Assets!$B19,'Data Annex'!$K$1:$K$6077,0),MATCH(Assets!Q$2,'Data Annex'!$K$1:$AV$1,0)),"") -> 0.05410772705 | R19: =IFERROR(INDEX('Data Annex'!$K$1:$AV$6077,MATCH(Assets!R$1&"|"&Assets!$B19,'Data Annex'!$K$1:$K$6077,0),MATCH(Assets!R$2,'Data Annex'!$K$1:$AV$1,0)),"") -> 0.1030688951 | S19: =IFERROR(INDEX('Data Annex'!$K$1:$AV$6077,MATCH(Assets!S$1&"|"&Assets!$B19,'Data Annex'!$K$1:$K$6077,0),MATCH(Assets!S$2,'Data Annex'!$K$1:$AV$1,0)),"") -> 0.08409246049 | T19: =IFERROR(INDEX('Data Annex'!$K$1:$AV$6077,MATCH(Assets!T$1&"|"&Assets!$B19,'Data Annex'!$K$1:$K$6077,0),MATCH(Assets!T$2,'Data Annex'!$K$1:$AV$1,0)),"") -> 0.02639685677 | U19: =IFERROR(INDEX('Data Annex'!$K$1:$AV$6077,MATCH(Assets!U$1&"|"&Assets!$B19,'Data Annex'!$K$1:$K$6077,0),MATCH(Assets!U$2,'Data Annex'!$K$1:$AV$1,0)),"") -> 0.02197286519 | V19: =IFERROR(INDEX('Data Annex'!$K$1:$AV$6077,MATCH(Assets!V$1&"|"&Assets!$B19,'Data Annex'!$K$1:$K$6077,0),MATCH(Assets!V$2,'Data Annex'!$K$1:$AV$1,0)),"") -> 0.02396404808 | W19: =IFERROR(INDEX('Data Annex'!$K$1:$AH$5813,MATCH(Assets!AC$1&"|"&Assets!$B19,'Data Annex'!$K$1:$K$5813,0),MATCH(Assets!AC$2,'Data Annex'!$K$1:$AH$1,0)),"") -> 
B20: EE | D20: EE | E20: =IFERROR(INDEX('Data Annex'!$K$1:$AV$6077,MATCH(Assets!E$1&"|"&Assets!$B20,'Data Annex'!$K$1:$K$6077,0),MATCH(Assets!E$2,'Data Annex'!$K$1:$AV$1,0)),"") -> 0.2222731371 | F20: =IFERROR(INDEX('Data Annex'!$K$1:$AV$6077,MATCH(Assets!F$1&"|"&Assets!$B20,'Data Annex'!$K$1:$K$6077,0),MATCH(Assets!F$2,'Data Annex'!$K$1:$AV$1,0)),"") -> 0.2162193524 | G20: =IFERROR(INDEX('Data Annex'!$K$1:$AV$6077,MATCH(Assets!G$1&"|"&Assets!$B20,'Data Annex'!$K$1:$K$6077,0),MATCH(Assets!G$2,'Data Annex'!$K$1:$AV$1,0)),"") -> 0.2006889816 | H20: =IFERROR(INDEX('Data Annex'!$K$1:$AV$6077,MATCH(Assets!H$1&"|"&Assets!$B20,'Data Annex'!$K$1:$K$6077,0),MATCH(Assets!H$2,'Data Annex'!$K$1:$AV$1,0)),"") -> 0.0002905101054 | I20: =IFERROR(INDEX('Data Annex'!$K$1:$AV$6077,MATCH(Assets!I$1&"|"&Assets!$B20,'Data Annex'!$K$1:$K$6077,0),MATCH(Assets!I$2,'Data Annex'!$K$1:$AV$1,0)),"") -> 0.0002036127944 | J20: =IFERROR(INDEX('Data Annex'!$K$1:$AV$6077,MATCH(Assets!J$1&"|"&Assets!$B20,'Data Annex'!$K$1:$K$6077,0),MATCH(Assets!J$2,'Data Annex'!$K$1:$AV$1,0)),"") -> 0.0001144772562 | K20: =IFERROR(INDEX('Data Annex'!$K$1:$AV$6077,MATCH(Assets!K$1&"|"&Assets!$B20,'Data Annex'!$K$1:$K$6077,0),MATCH(Assets!K$2,'Data Annex'!$K$1:$AV$1,0)),"") -> 0.08301371713 | L20: =IFERROR(INDEX('Data Annex'!$K$1:$AV$6077,MATCH(Assets!L$1&"|"&Assets!$B20,'Data Annex'!$K$1:$K$6077,0),MATCH(Assets!L$2,'Data Annex'!$K$1:$AV$1,0)),"") -> 0.0840249865 | M20: =IFERROR(INDEX('Data Annex'!$K$1:$AV$6077,MATCH(Assets!M$1&"|"&Assets!$B20,'Data Annex'!$K$1:$K$6077,0),MATCH(Assets!M$2,'Data Annex'!$K$1:$AV$1,0)),"") -> 0.04843212363 | N20: =IFERROR(INDEX('Data Annex'!$K$1:$AV$6077,MATCH(Assets!N$1&"|"&Assets!$B20,'Data Annex'!$K$1:$K$6077,0),MATCH(Assets!N$2,'Data Annex'!$K$1:$AV$1,0)),"") -> 0.683304639 | O20: =IFERROR(INDEX('Data Annex'!$K$1:$AV$6077,MATCH(Assets!O$1&"|"&Assets!$B20,'Data Annex'!$K$1:$K$6077,0),MATCH(Assets!O$2,'Data Annex'!$K$1:$AV$1,0)),"") -> 0.684544855 | P20: =IFERROR(INDEX('Data Annex'!$K$1:$AV$6077,MATCH(Assets!P$1&"|"&Assets!$B20,'Data Annex'!$K$1:$K$6077,0),MATCH(Assets!P$2,'Data Annex'!$K$1:$AV$1,0)),"") -> 0.7352484429 | Q20: =IFERROR(INDEX('Data Annex'!$K$1:$AV$6077,MATCH(Assets!Q$1&"|"&Assets!$B20,'Data Annex'!$K$1:$K$6077,0),MATCH(Assets!Q$2,'Data Annex'!$K$1:$AV$1,0)),"") -> 0.002621088699 | R20: =IFERROR(INDEX('Data Annex'!$K$1:$AV$6077,MATCH(Assets!R$1&"|"&Assets!$B20,'Data Annex'!$K$1:$K$6077,0),MATCH(Assets!R$2,'Data Annex'!$K$1:$AV$1,0)),"") -> 0.005104181645 | S20: =IFERROR(INDEX('Data Annex'!$K$1:$AV$6077,MATCH(Assets!S$1&"|"&Assets!$B20,'Data Annex'!$K$1:$K$6077,0),MATCH(Assets!S$2,'Data Annex'!$K$1:$AV$1,0)),"") -> 0.004631304302 | T20: =IFERROR(INDEX('Data Annex'!$K$1:$AV$6077,MATCH(Assets!T$1&"|"&Assets!$B20,'Data Annex'!$K$1:$K$6077,0),MATCH(Assets!T$2,'Data Annex'!$K$1:$AV$1,0)),"") -> 0.008496907963 | U20: =IFERROR(INDEX('Data Annex'!$K$1:$AV$6077,MATCH(Assets!U$1&"|"&Assets!$B20,'Data Annex'!$K$1:$K$6077,0),MATCH(Assets!U$2,'Data Annex'!$K$1:$AV$1,0)),"") -> 0.009903011629 | V20: =IFERROR(INDEX('Data Annex'!$K$1:$AV$6077,MATCH(Assets!V$1&"|"&Assets!$B20,'Data Annex'!$K$1:$K$6077,0),MATCH(Assets!V$2,'Data Annex'!$K$1:$AV$1,0)),"") -> 0.01088467027 | W20: =IFERROR(INDEX('Data Annex'!$K$1:$AH$5813,MATCH(Assets!AC$1&"|"&Assets!$B20,'Data Annex'!$K$1:$K$5813,0),MATCH(Assets!AC$2,'Data Annex'!$K$1:$AH$1,0)),"") -> 
B21: ES | D21: ES | E21: =IFERROR(INDEX('Data Annex'!$K$1:$AV$6077,MATCH(Assets!E$1&"|"&Assets!$B21,'Data Annex'!$K$1:$K$6077,0),MATCH(Assets!E$2,'Data Annex'!$K$1:$AV$1,0)),"") -> 0.1418593572 | F21: =IFERROR(INDEX('Data Annex'!$K$1:$AV$6077,MATCH(Assets!F$1&"|"&Assets!$B21,'Data Annex'!$K$1:$K$6077,0),MATCH(Assets!F$2,'Data Annex'!$K$1:$AV$1,0)),"") -> 0.1383539723 | G21: =IFERROR(INDEX('Data Annex'!$K$1:$AV$6077,MATCH(Assets!G$1&"|"&Assets!$B21,'Data Annex'!$K$1:$K$6077,0),MATCH(Assets!G$2,'Data Annex'!$K$1:$AV$1,0)),"") -> 0.1102749807 | H21: =IFERROR(INDEX('Data Annex'!$K$1:$AV$6077,MATCH(Assets!H$1&"|"&Assets!$B21,'Data Annex'!$K$1:$K$6077,0),MATCH(Assets!H$2,'Data Annex'!$K$1:$AV$1,0)),"") -> 0.01193010192 | I21: =IFERROR(INDEX('Data Annex'!$K$1:$AV$6077,MATCH(Assets!I$1&"|"&Assets!$B21,'Data Annex'!$K$1:$K$6077,0),MATCH(Assets!I$2,'Data Annex'!$K$1:$AV$1,0)),"") -> 0.006555638747 | J21: =IFERROR(INDEX('Data Annex'!$K$1:$AV$6077,MATCH(Assets!J$1&"|"&Assets!$B21,'Data Annex'!$K$1:$K$6077,0),MATCH(Assets!J$2,'Data Annex'!$K$1:$AV$1,0)),"") -> 0.00685005157 | K21: =IFERROR(INDEX('Data Annex'!$K$1:$AV$6077,MATCH(Assets!K$1&"|"&Assets!$B21,'Data Annex'!$K$1:$K$6077,0),MATCH(Assets!K$2,'Data Annex'!$K$1:$AV$1,0)),"") -> 0.1218106692 | L21: =IFERROR(INDEX('Data Annex'!$K$1:$AV$6077,MATCH(Assets!L$1&"|"&Assets!$B21,'Data Annex'!$K$1:$K$6077,0),MATCH(Assets!L$2,'Data Annex'!$K$1:$AV$1,0)),"") -> 0.1265120798 | M21: =IFERROR(INDEX('Data Annex'!$K$1:$AV$6077,MATCH(Assets!M$1&"|"&Assets!$B21,'Data Annex'!$K$1:$K$6077,0),MATCH(Assets!M$2,'Data Annex'!$K$1:$AV$1,0)),"") -> 0.1331565864 | N21: =IFERROR(INDEX('Data Annex'!$K$1:$AV$6077,MATCH(Assets!N$1&"|"&Assets!$B21,'Data Annex'!$K$1:$K$6077,0),MATCH(Assets!N$2,'Data Annex'!$K$1:$AV$1,0)),"") -> 0.6302510918 | O21: =IFERROR(INDEX('Data Annex'!$K$1:$AV$6077,MATCH(Assets!O$1&"|"&Assets!$B21,'Data Annex'!$K$1:$K$6077,0),MATCH(Assets!O$2,'Data Annex'!$K$1:$AV$1,0)),"") -> 0.6257809491 | P21: =IFERROR(INDEX('Data Annex'!$K$1:$AV$6077,MATCH(Assets!P$1&"|"&Assets!$B21,'Data Annex'!$K$1:$K$6077,0),MATCH(Assets!P$2,'Data Annex'!$K$1:$AV$1,0)),"") -> 0.6503665832 | Q21: =IFERROR(INDEX('Data Annex'!$K$1:$AV$6077,MATCH(Assets!Q$1&"|"&Assets!$B21,'Data Annex'!$K$1:$K$6077,0),MATCH(Assets!Q$2,'Data Annex'!$K$1:$AV$1,0)),"") -> 0.03268627522 | R21: =IFERROR(INDEX('Data Annex'!$K$1:$AV$6077,MATCH(Assets!R$1&"|"&Assets!$B21,'Data Annex'!$K$1:$K$6077,0),MATCH(Assets!R$2,'Data Annex'!$K$1:$AV$1,0)),"") -> 0.04689619904 | S21: =IFERROR(INDEX('Data Annex'!$K$1:$AV$6077,MATCH(Assets!S$1&"|"&Assets!$B21,'Data Annex'!$K$1:$K$6077,0),MATCH(Assets!S$2,'Data Annex'!$K$1:$AV$1,0)),"") -> 0.04072296179 | T21: =IFERROR(INDEX('Data Annex'!$K$1:$AV$6077,MATCH(Assets!T$1&"|"&Assets!$B21,'Data Annex'!$K$1:$K$6077,0),MATCH(Assets!T$2,'Data Annex'!$K$1:$AV$1,0)),"") -> 0.06146250438 | U21: =IFERROR(INDEX('Data Annex'!$K$1:$AV$6077,MATCH(Assets!U$1&"|"&Assets!$B21,'Data Annex'!$K$1:$K$6077,0),MATCH(Assets!U$2,'Data Annex'!$K$1:$AV$1,0)),"") -> 0.05590116161 | V21: =IFERROR(INDEX('Data Annex'!$K$1:$AV$6077,MATCH(Assets!V$1&"|"&Assets!$B21,'Data Annex'!$K$1:$K$6077,0),MATCH(Assets!V$2,'Data Annex'!$K$1:$AV$1,0)),"") -> 0.05862883631 | W21: =IFERROR(INDEX('Data Annex'!$K$1:$AH$5813,MATCH(Assets!AC$1&"|"&Assets!$B21,'Data Annex'!$K$1:$K$5813,0),MATCH(Assets!AC$2,'Data Annex'!$K$1:$AH$1,0)),"") -> 
B22: FI | D22: FI | E22: =IFERROR(INDEX('Data Annex'!$K$1:$AV$6077,MATCH(Assets!E$1&"|"&Assets!$B22,'Data Annex'!$K$1:$K$6077,0),MATCH(Assets!E$2,'Data Annex'!$K$1:$AV$1,0)),"") -> 0.127222981 | F22: =IFERROR(INDEX('Data Annex'!$K$1:$AV$6077,MATCH(Assets!F$1&"|"&Assets!$B22,'Data Annex'!$K$1:$K$6077,0),MATCH(Assets!F$2,'Data Annex'!$K$1:$AV$1,0)),"") -> 0.1437524958 | G22: =IFERROR(INDEX('Data Annex'!$K$1:$AV$6077,MATCH(Assets!G$1&"|"&Assets!$B22,'Data Annex'!$K$1:$K$6077,0),MATCH(Assets!G$2,'Data Annex'!$K$1:$AV$1,0)),"") -> 0.1451929718 | H22: =IFERROR(INDEX('Data Annex'!$K$1:$AV$6077,MATCH(Assets!H$1&"|"&Assets!$B22,'Data Annex'!$K$1:$K$6077,0),MATCH(Assets!H$2,'Data Annex'!$K$1:$AV$1,0)),"") -> 0.00914019227 | I22: =IFERROR(INDEX('Data Annex'!$K$1:$AV$6077,MATCH(Assets!I$1&"|"&Assets!$B22,'Data Annex'!$K$1:$K$6077,0),MATCH(Assets!I$2,'Data Annex'!$K$1:$AV$1,0)),"") -> 0.01330732312 | J22: =IFERROR(INDEX('Data Annex'!$K$1:$AV$6077,MATCH(Assets!J$1&"|"&Assets!$B22,'Data Annex'!$K$1:$K$6077,0),MATCH(Assets!J$2,'Data Annex'!$K$1:$AV$1,0)),"") -> 0.009406423533 | K22: =IFERROR(INDEX('Data Annex'!$K$1:$AV$6077,MATCH(Assets!K$1&"|"&Assets!$B22,'Data Annex'!$K$1:$K$6077,0),MATCH(Assets!K$2,'Data Annex'!$K$1:$AV$1,0)),"") -> 0.1089838444 | L22: =IFERROR(INDEX('Data Annex'!$K$1:$AV$6077,MATCH(Assets!L$1&"|"&Assets!$B22,'Data Annex'!$K$1:$K$6077,0),MATCH(Assets!L$2,'Data Annex'!$K$1:$AV$1,0)),"") -> 0.1055745006 | M22: =IFERROR(INDEX('Data Annex'!$K$1:$AV$6077,MATCH(Assets!M$1&"|"&Assets!$B22,'Data Annex'!$K$1:$K$6077,0),MATCH(Assets!M$2,'Data Annex'!$K$1:$AV$1,0)),"") -> 0.1009124548 | N22: =IFERROR(INDEX('Data Annex'!$K$1:$AV$6077,MATCH(Assets!N$1&"|"&Assets!$B22,'Data Annex'!$K$1:$K$6077,0),MATCH(Assets!N$2,'Data Annex'!$K$1:$AV$1,0)),"") -> 0.6827552996 | O22: =IFERROR(INDEX('Data Annex'!$K$1:$AV$6077,MATCH(Assets!O$1&"|"&Assets!$B22,'Data Annex'!$K$1:$K$6077,0),MATCH(Assets!O$2,'Data Annex'!$K$1:$AV$1,0)),"") -> 0.6483798055 | P22: =IFERROR(INDEX('Data Annex'!$K$1:$AV$6077,MATCH(Assets!P$1&"|"&Assets!$B22,'Data Annex'!$K$1:$K$6077,0),MATCH(Assets!P$2,'Data Annex'!$K$1:$AV$1,0)),"") -> 0.6690742928 | Q22: =IFERROR(INDEX('Data Annex'!$K$1:$AV$6077,MATCH(Assets!Q$1&"|"&Assets!$B22,'Data Annex'!$K$1:$K$6077,0),MATCH(Assets!Q$2,'Data Annex'!$K$1:$AV$1,0)),"") -> 0.05063591609 | R22: =IFERROR(INDEX('Data Annex'!$K$1:$AV$6077,MATCH(Assets!R$1&"|"&Assets!$B22,'Data Annex'!$K$1:$K$6077,0),MATCH(Assets!R$2,'Data Annex'!$K$1:$AV$1,0)),"") -> 0.07293501267 | S22: =IFERROR(INDEX('Data Annex'!$K$1:$AV$6077,MATCH(Assets!S$1&"|"&Assets!$B22,'Data Annex'!$K$1:$K$6077,0),MATCH(Assets!S$2,'Data Annex'!$K$1:$AV$1,0)),"") -> 0.05920252817 | T22: =IFERROR(INDEX('Data Annex'!$K$1:$AV$6077,MATCH(Assets!T$1&"|"&Assets!$B22,'Data Annex'!$K$1:$K$6077,0),MATCH(Assets!T$2,'Data Annex'!$K$1:$AV$1,0)),"") -> 0.02126176672 | U22: =IFERROR(INDEX('Data Annex'!$K$1:$AV$6077,MATCH(Assets!U$1&"|"&Assets!$B22,'Data Annex'!$K$1:$K$6077,0),MATCH(Assets!U$2,'Data Annex'!$K$1:$AV$1,0)),"") -> 0.01605086239 | V22: =IFERROR(INDEX('Data Annex'!$K$1:$AV$6077,MATCH(Assets!V$1&"|"&Assets!$B22,'Data Annex'!$K$1:$K$6077,0),MATCH(Assets!V$2,'Data Annex'!$K$1:$AV$1,0)),"") -> 0.01621132894 | W22: =IFERROR(INDEX('Data Annex'!$K$1:$AH$5813,MATCH(Assets!AC$1&"|"&Assets!$B22,'Data Annex'!$K$1:$K$5813,0),MATCH(Assets!AC$2,'Data Annex'!$K$1:$AH$1,0)),"") -> 
B23: FR | D23: FR | E23: =IFERROR(INDEX('Data Annex'!$K$1:$AV$6077,MATCH(Assets!E$1&"|"&Assets!$B23,'Data Annex'!$K$1:$K$6077,0),MATCH(Assets!E$2,'Data Annex'!$K$1:$AV$1,0)),"") -> 0.1491832807 | F23: =IFERROR(INDEX('Data Annex'!$K$1:$AV$6077,MATCH(Assets!F$1&"|"&Assets!$B23,'Data Annex'!$K$1:$K$6077,0),MATCH(Assets!F$2,'Data Annex'!$K$1:$AV$1,0)),"") -> 0.137548436 | G23: =IFERROR(INDEX('Data Annex'!$K$1:$AV$6077,MATCH(Assets!G$1&"|"&Assets!$B23,'Data Annex'!$K$1:$K$6077,0),MATCH(Assets!G$2,'Data Annex'!$K$1:$AV$1,0)),"") -> 0.1392099115 | H23: =IFERROR(INDEX('Data Annex'!$K$1:$AV$6077,MATCH(Assets!H$1&"|"&Assets!$B23,'Data Annex'!$K$1:$K$6077,0),MATCH(Assets!H$2,'Data Annex'!$K$1:$AV$1,0)),"") -> 0.03149238915 | I23: =IFERROR(INDEX('Data Annex'!$K$1:$AV$6077,MATCH(Assets!I$1&"|"&Assets!$B23,'Data Annex'!$K$1:$K$6077,0),MATCH(Assets!I$2,'Data Annex'!$K$1:$AV$1,0)),"") -> 0.02201050803 | J23: =IFERROR(INDEX('Data Annex'!$K$1:$AV$6077,MATCH(Assets!J$1&"|"&Assets!$B23,'Data Annex'!$K$1:$K$6077,0),MATCH(Assets!J$2,'Data Annex'!$K$1:$AV$1,0)),"") -> 0.02579876536 | K23: =IFERROR(INDEX('Data Annex'!$K$1:$AV$6077,MATCH(Assets!K$1&"|"&Assets!$B23,'Data Annex'!$K$1:$K$6077,0),MATCH(Assets!K$2,'Data Annex'!$K$1:$AV$1,0)),"") -> 0.09077575482 | L23: =IFERROR(INDEX('Data Annex'!$K$1:$AV$6077,MATCH(Assets!L$1&"|"&Assets!$B23,'Data Annex'!$K$1:$K$6077,0),MATCH(Assets!L$2,'Data Annex'!$K$1:$AV$1,0)),"") -> 0.08394099379 | M23: =IFERROR(INDEX('Data Annex'!$K$1:$AV$6077,MATCH(Assets!M$1&"|"&Assets!$B23,'Data Annex'!$K$1:$K$6077,0),MATCH(Assets!M$2,'Data Annex'!$K$1:$AV$1,0)),"") -> 0.08258714068 | N23: =IFERROR(INDEX('Data Annex'!$K$1:$AV$6077,MATCH(Assets!N$1&"|"&Assets!$B23,'Data Annex'!$K$1:$K$6077,0),MATCH(Assets!N$2,'Data Annex'!$K$1:$AV$1,0)),"") -> 0.5839699103 | O23: =IFERROR(INDEX('Data Annex'!$K$1:$AV$6077,MATCH(Assets!O$1&"|"&Assets!$B23,'Data Annex'!$K$1:$K$6077,0),MATCH(Assets!O$2,'Data Annex'!$K$1:$AV$1,0)),"") -> 0.5678583172 | P23: =IFERROR(INDEX('Data Annex'!$K$1:$AV$6077,MATCH(Assets!P$1&"|"&Assets!$B23,'Data Annex'!$K$1:$K$6077,0),MATCH(Assets!P$2,'Data Annex'!$K$1:$AV$1,0)),"") -> 0.589348707 | Q23: =IFERROR(INDEX('Data Annex'!$K$1:$AV$6077,MATCH(Assets!Q$1&"|"&Assets!$B23,'Data Annex'!$K$1:$K$6077,0),MATCH(Assets!Q$2,'Data Annex'!$K$1:$AV$1,0)),"") -> 0.0664832122 | R23: =IFERROR(INDEX('Data Annex'!$K$1:$AV$6077,MATCH(Assets!R$1&"|"&Assets!$B23,'Data Annex'!$K$1:$K$6077,0),MATCH(Assets!R$2,'Data Annex'!$K$1:$AV$1,0)),"") -> 0.1059644575 | S23: =IFERROR(INDEX('Data Annex'!$K$1:$AV$6077,MATCH(Assets!S$1&"|"&Assets!$B23,'Data Annex'!$K$1:$K$6077,0),MATCH(Assets!S$2,'Data Annex'!$K$1:$AV$1,0)),"") -> 0.08667963092 | T23: =IFERROR(INDEX('Data Annex'!$K$1:$AV$6077,MATCH(Assets!T$1&"|"&Assets!$B23,'Data Annex'!$K$1:$K$6077,0),MATCH(Assets!T$2,'Data Annex'!$K$1:$AV$1,0)),"") -> 0.07809545255 | U23: =IFERROR(INDEX('Data Annex'!$K$1:$AV$6077,MATCH(Assets!U$1&"|"&Assets!$B23,'Data Annex'!$K$1:$K$6077,0),MATCH(Assets!U$2,'Data Annex'!$K$1:$AV$1,0)),"") -> 0.0826772876 | V23: =IFERROR(INDEX('Data Annex'!$K$1:$AV$6077,MATCH(Assets!V$1&"|"&Assets!$B23,'Data Annex'!$K$1:$K$6077,0),MATCH(Assets!V$2,'Data Annex'!$K$1:$AV$1,0)),"") -> 0.07637584442 | W23: =IFERROR(INDEX('Data Annex'!$K$1:$AH$5813,MATCH(Assets!AC$1&"|"&Assets!$B23,'Data Annex'!$K$1:$K$5813,0),MATCH(Assets!AC$2,'Data Annex'!$K$1:$AH$1,0)),"") -> 
B24: GR | D24: GR | E24: =IFERROR(INDEX('Data Annex'!$K$1:$AV$6077,MATCH(Assets!E$1&"|"&Assets!$B24,'Data Annex'!$K$1:$K$6077,0),MATCH(Assets!E$2,'Data Annex'!$K$1:$AV$1,0)),"") -> 0.1940690128 | F24: =IFERROR(INDEX('Data Annex'!$K$1:$AV$6077,MATCH(Assets!F$1&"|"&Assets!$B24,'Data Annex'!$K$1:$K$6077,0),MATCH(Assets!F$2,'Data Annex'!$K$1:$AV$1,0)),"") -> 0.2054332313 | G24: =IFERROR(INDEX('Data Annex'!$K$1:$AV$6077,MATCH(Assets!G$1&"|"&Assets!$B24,'Data Annex'!$K$1:$K$6077,0),MATCH(Assets!G$2,'Data Annex'!$K$1:$AV$1,0)),"") -> 0.1718741359 | H24: =IFERROR(INDEX('Data Annex'!$K$1:$AV$6077,MATCH(Assets!H$1&"|"&Assets!$B24,'Data Annex'!$K$1:$K$6077,0),MATCH(Assets!H$2,'Data Annex'!$K$1:$AV$1,0)),"") -> 0.002381001723 | I24: =IFERROR(INDEX('Data Annex'!$K$1:$AV$6077,MATCH(Assets!I$1&"|"&Assets!$B24,'Data Annex'!$K$1:$K$6077,0),MATCH(Assets!I$2,'Data Annex'!$K$1:$AV$1,0)),"") -> 0.002634503373 | J24: =IFERROR(INDEX('Data Annex'!$K$1:$AV$6077,MATCH(Assets!J$1&"|"&Assets!$B24,'Data Annex'!$K$1:$K$6077,0),MATCH(Assets!J$2,'Data Annex'!$K$1:$AV$1,0)),"") -> 0.003308670794 | K24: =IFERROR(INDEX('Data Annex'!$K$1:$AV$6077,MATCH(Assets!K$1&"|"&Assets!$B24,'Data Annex'!$K$1:$K$6077,0),MATCH(Assets!K$2,'Data Annex'!$K$1:$AV$1,0)),"") -> 0.1561100097 | L24: =IFERROR(INDEX('Data Annex'!$K$1:$AV$6077,MATCH(Assets!L$1&"|"&Assets!$B24,'Data Annex'!$K$1:$K$6077,0),MATCH(Assets!L$2,'Data Annex'!$K$1:$AV$1,0)),"") -> 0.1548716965 | M24: =IFERROR(INDEX('Data Annex'!$K$1:$AV$6077,MATCH(Assets!M$1&"|"&Assets!$B24,'Data Annex'!$K$1:$K$6077,0),MATCH(Assets!M$2,'Data Annex'!$K$1:$AV$1,0)),"") -> 0.1635951837 | N24: =IFERROR(INDEX('Data Annex'!$K$1:$AV$6077,MATCH(Assets!N$1&"|"&Assets!$B24,'Data Annex'!$K$1:$K$6077,0),MATCH(Assets!N$2,'Data Annex'!$K$1:$AV$1,0)),"") -> 0.4819459302 | O24: =IFERROR(INDEX('Data Annex'!$K$1:$AV$6077,MATCH(Assets!O$1&"|"&Assets!$B24,'Data Annex'!$K$1:$K$6077,0),MATCH(Assets!O$2,'Data Annex'!$K$1:$AV$1,0)),"") -> 0.4786015998 | P24: =IFERROR(INDEX('Data Annex'!$K$1:$AV$6077,MATCH(Assets!P$1&"|"&Assets!$B24,'Data Annex'!$K$1:$K$6077,0),MATCH(Assets!P$2,'Data Annex'!$K$1:$AV$1,0)),"") -> 0.5054435956 | Q24: =IFERROR(INDEX('Data Annex'!$K$1:$AV$6077,MATCH(Assets!Q$1&"|"&Assets!$B24,'Data Annex'!$K$1:$K$6077,0),MATCH(Assets!Q$2,'Data Annex'!$K$1:$AV$1,0)),"") -> 0.02513635679 | R24: =IFERROR(INDEX('Data Annex'!$K$1:$AV$6077,MATCH(Assets!R$1&"|"&Assets!$B24,'Data Annex'!$K$1:$K$6077,0),MATCH(Assets!R$2,'Data Annex'!$K$1:$AV$1,0)),"") -> 0.02628462252 | S24: =IFERROR(INDEX('Data Annex'!$K$1:$AV$6077,MATCH(Assets!S$1&"|"&Assets!$B24,'Data Annex'!$K$1:$K$6077,0),MATCH(Assets!S$2,'Data Annex'!$K$1:$AV$1,0)),"") -> 0.02277971058 | T24: =IFERROR(INDEX('Data Annex'!$K$1:$AV$6077,MATCH(Assets!T$1&"|"&Assets!$B24,'Data Annex'!$K$1:$K$6077,0),MATCH(Assets!T$2,'Data Annex'!$K$1:$AV$1,0)),"") -> 0.1403576889 | U24: =IFERROR(INDEX('Data Annex'!$K$1:$AV$6077,MATCH(Assets!U$1&"|"&Assets!$B24,'Data Annex'!$K$1:$K$6077,0),MATCH(Assets!U$2,'Data Annex'!$K$1:$AV$1,0)),"") -> 0.1321743464 | V24: =IFERROR(INDEX('Data Annex'!$K$1:$AV$6077,MATCH(Assets!V$1&"|"&Assets!$B24,'Data Annex'!$K$1:$K$6077,0),MATCH(Assets!V$2,'Data Annex'!$K$1:$AV$1,0)),"") -> 0.1329987033 | W24: =IFERROR(INDEX('Data Annex'!$K$1:$AH$5813,MATCH(Assets!AC$1&"|"&Assets!$B24,'Data Annex'!$K$1:$K$5813,0),MATCH(Assets!AC$2,'Data Annex'!$K$1:$AH$1,0)),"") -> 
B25: HR | D25: HR | E25: =IFERROR(INDEX('Data Annex'!$K$1:$AV$6077,MATCH(Assets!E$1&"|"&Assets!$B25,'Data Annex'!$K$1:$K$6077,0),MATCH(Assets!E$2,'Data Annex'!$K$1:$AV$1,0)),"") -> 0.2123149314 | F25: =IFERROR(INDEX('Data Annex'!$K$1:$AV$6077,MATCH(Assets!F$1&"|"&Assets!$B25,'Data Annex'!$K$1:$K$6077,0),MATCH(Assets!F$2,'Data Annex'!$K$1:$AV$1,0)),"") -> 0.2036690776 | G25: =IFERROR(INDEX('Data Annex'!$K$1:$AV$6077,MATCH(Assets!G$1&"|"&Assets!$B25,'Data Annex'!$K$1:$K$6077,0),MATCH(Assets!G$2,'Data Annex'!$K$1:$AV$1,0)),"") -> 0.2757803287 | H25: =IFERROR(INDEX('Data Annex'!$K$1:$AV$6077,MATCH(Assets!H$1&"|"&Assets!$B25,'Data Annex'!$K$1:$K$6077,0),MATCH(Assets!H$2,'Data Annex'!$K$1:$AV$1,0)),"") -> 0.001318172686 | I25: =IFERROR(INDEX('Data Annex'!$K$1:$AV$6077,MATCH(Assets!I$1&"|"&Assets!$B25,'Data Annex'!$K$1:$K$6077,0),MATCH(Assets!I$2,'Data Annex'!$K$1:$AV$1,0)),"") -> 0.001077973444 | J25: =IFERROR(INDEX('Data Annex'!$K$1:$AV$6077,MATCH(Assets!J$1&"|"&Assets!$B25,'Data Annex'!$K$1:$K$6077,0),MATCH(Assets!J$2,'Data Annex'!$K$1:$AV$1,0)),"") -> 0.0006669282429 | K25: =IFERROR(INDEX('Data Annex'!$K$1:$AV$6077,MATCH(Assets!K$1&"|"&Assets!$B25,'Data Annex'!$K$1:$K$6077,0),MATCH(Assets!K$2,'Data Annex'!$K$1:$AV$1,0)),"") -> 0.1176396933 | L25: =IFERROR(INDEX('Data Annex'!$K$1:$AV$6077,MATCH(Assets!L$1&"|"&Assets!$B25,'Data Annex'!$K$1:$K$6077,0),MATCH(Assets!L$2,'Data Annex'!$K$1:$AV$1,0)),"") -> 0.1125839527 | M25: =IFERROR(INDEX('Data Annex'!$K$1:$AV$6077,MATCH(Assets!M$1&"|"&Assets!$B25,'Data Annex'!$K$1:$K$6077,0),MATCH(Assets!M$2,'Data Annex'!$K$1:$AV$1,0)),"") -> 0.1080975403 | N25: =IFERROR(INDEX('Data Annex'!$K$1:$AV$6077,MATCH(Assets!N$1&"|"&Assets!$B25,'Data Annex'!$K$1:$K$6077,0),MATCH(Assets!N$2,'Data Annex'!$K$1:$AV$1,0)),"") -> 0.6433147286 | O25: =IFERROR(INDEX('Data Annex'!$K$1:$AV$6077,MATCH(Assets!O$1&"|"&Assets!$B25,'Data Annex'!$K$1:$K$6077,0),MATCH(Assets!O$2,'Data Annex'!$K$1:$AV$1,0)),"") -> 0.6533022484 | P25: =IFERROR(INDEX('Data Annex'!$K$1:$AV$6077,MATCH(Assets!P$1&"|"&Assets!$B25,'Data Annex'!$K$1:$K$6077,0),MATCH(Assets!P$2,'Data Annex'!$K$1:$AV$1,0)),"") -> 0.5896190163 | Q25: =IFERROR(INDEX('Data Annex'!$K$1:$AV$6077,MATCH(Assets!Q$1&"|"&Assets!$B25,'Data Annex'!$K$1:$K$6077,0),MATCH(Assets!Q$2,'Data Annex'!$K$1:$AV$1,0)),"") -> 0.003038792349 | R25: =IFERROR(INDEX('Data Annex'!$K$1:$AV$6077,MATCH(Assets!R$1&"|"&Assets!$B25,'Data Annex'!$K$1:$K$6077,0),MATCH(Assets!R$2,'Data Annex'!$K$1:$AV$1,0)),"") -> 0.009056814623 | S25: =IFERROR(INDEX('Data Annex'!$K$1:$AV$6077,MATCH(Assets!S$1&"|"&Assets!$B25,'Data Annex'!$K$1:$K$6077,0),MATCH(Assets!S$2,'Data Annex'!$K$1:$AV$1,0)),"") -> 0.006317589482 | T25: =IFERROR(INDEX('Data Annex'!$K$1:$AV$6077,MATCH(Assets!T$1&"|"&Assets!$B25,'Data Annex'!$K$1:$K$6077,0),MATCH(Assets!T$2,'Data Annex'!$K$1:$AV$1,0)),"") -> 0.0223736817 | U25: =IFERROR(INDEX('Data Annex'!$K$1:$AV$6077,MATCH(Assets!U$1&"|"&Assets!$B25,'Data Annex'!$K$1:$K$6077,0),MATCH(Assets!U$2,'Data Annex'!$K$1:$AV$1,0)),"") -> 0.02030993327 | V25: =IFERROR(INDEX('Data Annex'!$K$1:$AV$6077,MATCH(Assets!V$1&"|"&Assets!$B25,'Data Annex'!$K$1:$K$6077,0),MATCH(Assets!V$2,'Data Annex'!$K$1:$AV$1,0)),"") -> 0.01951859703 | W25: =IFERROR(INDEX('Data Annex'!$K$1:$AH$5813,MATCH(Assets!AC$1&"|"&Assets!$B25,'Data Annex'!$K$1:$K$5813,0),MATCH(Assets!AC$2,'Data Annex'!$K$1:$AH$1,0)),"") -> 
B26: HU | D26: HU | E26: =IFERROR(INDEX('Data Annex'!$K$1:$AV$6077,MATCH(Assets!E$1&"|"&Assets!$B26,'Data Annex'!$K$1:$K$6077,0),MATCH(Assets!E$2,'Data Annex'!$K$1:$AV$1,0)),"") -> 0.08689802585 | F26: =IFERROR(INDEX('Data Annex'!$K$1:$AV$6077,MATCH(Assets!F$1&"|"&Assets!$B26,'Data Annex'!$K$1:$K$6077,0),MATCH(Assets!F$2,'Data Annex'!$K$1:$AV$1,0)),"") -> 0.08119383849 | G26: =IFERROR(INDEX('Data Annex'!$K$1:$AV$6077,MATCH(Assets!G$1&"|"&Assets!$B26,'Data Annex'!$K$1:$K$6077,0),MATCH(Assets!G$2,'Data Annex'!$K$1:$AV$1,0)),"") -> 0.1345723623 | H26: =IFERROR(INDEX('Data Annex'!$K$1:$AV$6077,MATCH(Assets!H$1&"|"&Assets!$B26,'Data Annex'!$K$1:$K$6077,0),MATCH(Assets!H$2,'Data Annex'!$K$1:$AV$1,0)),"") -> 0.002589966938 | I26: =IFERROR(INDEX('Data Annex'!$K$1:$AV$6077,MATCH(Assets!I$1&"|"&Assets!$B26,'Data Annex'!$K$1:$K$6077,0),MATCH(Assets!I$2,'Data Annex'!$K$1:$AV$1,0)),"") -> 0.002287220332 | J26: =IFERROR(INDEX('Data Annex'!$K$1:$AV$6077,MATCH(Assets!J$1&"|"&Assets!$B26,'Data Annex'!$K$1:$K$6077,0),MATCH(Assets!J$2,'Data Annex'!$K$1:$AV$1,0)),"") -> 0.002307264434 | K26: =IFERROR(INDEX('Data Annex'!$K$1:$AV$6077,MATCH(Assets!K$1&"|"&Assets!$B26,'Data Annex'!$K$1:$K$6077,0),MATCH(Assets!K$2,'Data Annex'!$K$1:$AV$1,0)),"") -> 0.2336197303 | L26: =IFERROR(INDEX('Data Annex'!$K$1:$AV$6077,MATCH(Assets!L$1&"|"&Assets!$B26,'Data Annex'!$K$1:$K$6077,0),MATCH(Assets!L$2,'Data Annex'!$K$1:$AV$1,0)),"") -> 0.2260844633 | M26: =IFERROR(INDEX('Data Annex'!$K$1:$AV$6077,MATCH(Assets!M$1&"|"&Assets!$B26,'Data Annex'!$K$1:$K$6077,0),MATCH(Assets!M$2,'Data Annex'!$K$1:$AV$1,0)),"") -> 0.2226239852 | N26: =IFERROR(INDEX('Data Annex'!$K$1:$AV$6077,MATCH(Assets!N$1&"|"&Assets!$B26,'Data Annex'!$K$1:$K$6077,0),MATCH(Assets!N$2,'Data Annex'!$K$1:$AV$1,0)),"") -> 0.6290048846 | O26: =IFERROR(INDEX('Data Annex'!$K$1:$AV$6077,MATCH(Assets!O$1&"|"&Assets!$B26,'Data Annex'!$K$1:$K$6077,0),MATCH(Assets!O$2,'Data Annex'!$K$1:$AV$1,0)),"") -> 0.628249192 | P26: =IFERROR(INDEX('Data Annex'!$K$1:$AV$6077,MATCH(Assets!P$1&"|"&Assets!$B26,'Data Annex'!$K$1:$K$6077,0),MATCH(Assets!P$2,'Data Annex'!$K$1:$AV$1,0)),"") -> 0.5809812834 | Q26: =IFERROR(INDEX('Data Annex'!$K$1:$AV$6077,MATCH(Assets!Q$1&"|"&Assets!$B26,'Data Annex'!$K$1:$K$6077,0),MATCH(Assets!Q$2,'Data Annex'!$K$1:$AV$1,0)),"") -> 0.01789216181 | R26: =IFERROR(INDEX('Data Annex'!$K$1:$AV$6077,MATCH(Assets!R$1&"|"&Assets!$B26,'Data Annex'!$K$1:$K$6077,0),MATCH(Assets!R$2,'Data Annex'!$K$1:$AV$1,0)),"") -> 0.03657107563 | S26: =IFERROR(INDEX('Data Annex'!$K$1:$AV$6077,MATCH(Assets!S$1&"|"&Assets!$B26,'Data Annex'!$K$1:$K$6077,0),MATCH(Assets!S$2,'Data Annex'!$K$1:$AV$1,0)),"") -> 0.03116595703 | T26: =IFERROR(INDEX('Data Annex'!$K$1:$AV$6077,MATCH(Assets!T$1&"|"&Assets!$B26,'Data Annex'!$K$1:$K$6077,0),MATCH(Assets!T$2,'Data Annex'!$K$1:$AV$1,0)),"") -> 0.02999523046 | U26: =IFERROR(INDEX('Data Annex'!$K$1:$AV$6077,MATCH(Assets!U$1&"|"&Assets!$B26,'Data Annex'!$K$1:$K$6077,0),MATCH(Assets!U$2,'Data Annex'!$K$1:$AV$1,0)),"") -> 0.0256142103 | V26: =IFERROR(INDEX('Data Annex'!$K$1:$AV$6077,MATCH(Assets!V$1&"|"&Assets!$B26,'Data Annex'!$K$1:$K$6077,0),MATCH(Assets!V$2,'Data Annex'!$K$1:$AV$1,0)),"") -> 0.02834914763 | W26: =IFERROR(INDEX('Data Annex'!$K$1:$AH$5813,MATCH(Assets!AC$1&"|"&Assets!$B26,'Data Annex'!$K$1:$K$5813,0),MATCH(Assets!AC$2,'Data Annex'!$K$1:$AH$1,0)),"") -> 
B27: IE | D27: IE | E27: =IFERROR(INDEX('Data Annex'!$K$1:$AV$6077,MATCH(Assets!E$1&"|"&Assets!$B27,'Data Annex'!$K$1:$K$6077,0),MATCH(Assets!E$2,'Data Annex'!$K$1:$AV$1,0)),"") -> 0.2919796471 | F27: =IFERROR(INDEX('Data Annex'!$K$1:$AV$6077,MATCH(Assets!F$1&"|"&Assets!$B27,'Data Annex'!$K$1:$K$6077,0),MATCH(Assets!F$2,'Data Annex'!$K$1:$AV$1,0)),"") -> 0.2911547896 | G27: =IFERROR(INDEX('Data Annex'!$K$1:$AV$6077,MATCH(Assets!G$1&"|"&Assets!$B27,'Data Annex'!$K$1:$K$6077,0),MATCH(Assets!G$2,'Data Annex'!$K$1:$AV$1,0)),"") -> 0.2783505616 | H27: =IFERROR(INDEX('Data Annex'!$K$1:$AV$6077,MATCH(Assets!H$1&"|"&Assets!$B27,'Data Annex'!$K$1:$K$6077,0),MATCH(Assets!H$2,'Data Annex'!$K$1:$AV$1,0)),"") -> 0.001457035509 | I27: =IFERROR(INDEX('Data Annex'!$K$1:$AV$6077,MATCH(Assets!I$1&"|"&Assets!$B27,'Data Annex'!$K$1:$K$6077,0),MATCH(Assets!I$2,'Data Annex'!$K$1:$AV$1,0)),"") -> 0.001308678639 | J27: =IFERROR(INDEX('Data Annex'!$K$1:$AV$6077,MATCH(Assets!J$1&"|"&Assets!$B27,'Data Annex'!$K$1:$K$6077,0),MATCH(Assets!J$2,'Data Annex'!$K$1:$AV$1,0)),"") -> 0.00152244586 | K27: =IFERROR(INDEX('Data Annex'!$K$1:$AV$6077,MATCH(Assets!K$1&"|"&Assets!$B27,'Data Annex'!$K$1:$K$6077,0),MATCH(Assets!K$2,'Data Annex'!$K$1:$AV$1,0)),"") -> 0.1212499981 | L27: =IFERROR(INDEX('Data Annex'!$K$1:$AV$6077,MATCH(Assets!L$1&"|"&Assets!$B27,'Data Annex'!$K$1:$K$6077,0),MATCH(Assets!L$2,'Data Annex'!$K$1:$AV$1,0)),"") -> 0.1062757036 | M27: =IFERROR(INDEX('Data Annex'!$K$1:$AV$6077,MATCH(Assets!M$1&"|"&Assets!$B27,'Data Annex'!$K$1:$K$6077,0),MATCH(Assets!M$2,'Data Annex'!$K$1:$AV$1,0)),"") -> 0.1082599806 | N27: =IFERROR(INDEX('Data Annex'!$K$1:$AV$6077,MATCH(Assets!N$1&"|"&Assets!$B27,'Data Annex'!$K$1:$K$6077,0),MATCH(Assets!N$2,'Data Annex'!$K$1:$AV$1,0)),"") -> 0.5008493329 | O27: =IFERROR(INDEX('Data Annex'!$K$1:$AV$6077,MATCH(Assets!O$1&"|"&Assets!$B27,'Data Annex'!$K$1:$K$6077,0),MATCH(Assets!O$2,'Data Annex'!$K$1:$AV$1,0)),"") -> 0.4467348956 | P27: =IFERROR(INDEX('Data Annex'!$K$1:$AV$6077,MATCH(Assets!P$1&"|"&Assets!$B27,'Data Annex'!$K$1:$K$6077,0),MATCH(Assets!P$2,'Data Annex'!$K$1:$AV$1,0)),"") -> 0.4845728928 | Q27: =IFERROR(INDEX('Data Annex'!$K$1:$AV$6077,MATCH(Assets!Q$1&"|"&Assets!$B27,'Data Annex'!$K$1:$K$6077,0),MATCH(Assets!Q$2,'Data Annex'!$K$1:$AV$1,0)),"") -> 0.04125642353 | R27: =IFERROR(INDEX('Data Annex'!$K$1:$AV$6077,MATCH(Assets!R$1&"|"&Assets!$B27,'Data Annex'!$K$1:$K$6077,0),MATCH(Assets!R$2,'Data Annex'!$K$1:$AV$1,0)),"") -> 0.1007141757 | S27: =IFERROR(INDEX('Data Annex'!$K$1:$AV$6077,MATCH(Assets!S$1&"|"&Assets!$B27,'Data Annex'!$K$1:$K$6077,0),MATCH(Assets!S$2,'Data Annex'!$K$1:$AV$1,0)),"") -> 0.07484794178 | T27: =IFERROR(INDEX('Data Annex'!$K$1:$AV$6077,MATCH(Assets!T$1&"|"&Assets!$B27,'Data Annex'!$K$1:$K$6077,0),MATCH(Assets!T$2,'Data Annex'!$K$1:$AV$1,0)),"") -> 0.04320756287 | U27: =IFERROR(INDEX('Data Annex'!$K$1:$AV$6077,MATCH(Assets!U$1&"|"&Assets!$B27,'Data Annex'!$K$1:$K$6077,0),MATCH(Assets!U$2,'Data Annex'!$K$1:$AV$1,0)),"") -> 0.05381175693 | V27: =IFERROR(INDEX('Data Annex'!$K$1:$AV$6077,MATCH(Assets!V$1&"|"&Assets!$B27,'Data Annex'!$K$1:$K$6077,0),MATCH(Assets!V$2,'Data Annex'!$K$1:$AV$1,0)),"") -> 0.05244617733 | W27: =IFERROR(INDEX('Data Annex'!$K$1:$AH$5813,MATCH(Assets!AC$1&"|"&Assets!$B27,'Data Annex'!$K$1:$K$5813,0),MATCH(Assets!AC$2,'Data Annex'!$K$1:$AH$1,0)),"") -> 
B28: IS | D28: IS | E28: =IFERROR(INDEX('Data Annex'!$K$1:$AV$6077,MATCH(Assets!E$1&"|"&Assets!$B28,'Data Annex'!$K$1:$K$6077,0),MATCH(Assets!E$2,'Data Annex'!$K$1:$AV$1,0)),"") -> 0.08145479479 | F28: =IFERROR(INDEX('Data Annex'!$K$1:$AV$6077,MATCH(Assets!F$1&"|"&Assets!$B28,'Data Annex'!$K$1:$K$6077,0),MATCH(Assets!F$2,'Data Annex'!$K$1:$AV$1,0)),"") -> 0.08310233134 | G28: =IFERROR(INDEX('Data Annex'!$K$1:$AV$6077,MATCH(Assets!G$1&"|"&Assets!$B28,'Data Annex'!$K$1:$K$6077,0),MATCH(Assets!G$2,'Data Annex'!$K$1:$AV$1,0)),"") -> 0.07804427047 | H28: =IFERROR(INDEX('Data Annex'!$K$1:$AV$6077,MATCH(Assets!H$1&"|"&Assets!$B28,'Data Annex'!$K$1:$K$6077,0),MATCH(Assets!H$2,'Data Annex'!$K$1:$AV$1,0)),"") -> 0.0272510171 | I28: =IFERROR(INDEX('Data Annex'!$K$1:$AV$6077,MATCH(Assets!I$1&"|"&Assets!$B28,'Data Annex'!$K$1:$K$6077,0),MATCH(Assets!I$2,'Data Annex'!$K$1:$AV$1,0)),"") -> 0.02002148255 | J28: =IFERROR(INDEX('Data Annex'!$K$1:$AV$6077,MATCH(Assets!J$1&"|"&Assets!$B28,'Data Annex'!$K$1:$K$6077,0),MATCH(Assets!J$2,'Data Annex'!$K$1:$AV$1,0)),"") -> 0.0159083668 | K28: =IFERROR(INDEX('Data Annex'!$K$1:$AV$6077,MATCH(Assets!K$1&"|"&Assets!$B28,'Data Annex'!$K$1:$K$6077,0),MATCH(Assets!K$2,'Data Annex'!$K$1:$AV$1,0)),"") -> 0.1003065121 | L28: =IFERROR(INDEX('Data Annex'!$K$1:$AV$6077,MATCH(Assets!L$1&"|"&Assets!$B28,'Data Annex'!$K$1:$K$6077,0),MATCH(Assets!L$2,'Data Annex'!$K$1:$AV$1,0)),"") -> 0.08094886428 | M28: =IFERROR(INDEX('Data Annex'!$K$1:$AV$6077,MATCH(Assets!M$1&"|"&Assets!$B28,'Data Annex'!$K$1:$K$6077,0),MATCH(Assets!M$2,'Data Annex'!$K$1:$AV$1,0)),"") -> 0.08255203616 | N28: =IFERROR(INDEX('Data Annex'!$K$1:$AV$6077,MATCH(Assets!N$1&"|"&Assets!$B28,'Data Annex'!$K$1:$K$6077,0),MATCH(Assets!N$2,'Data Annex'!$K$1:$AV$1,0)),"") -> 0.7674397479 | O28: =IFERROR(INDEX('Data Annex'!$K$1:$AV$6077,MATCH(Assets!O$1&"|"&Assets!$B28,'Data Annex'!$K$1:$K$6077,0),MATCH(Assets!O$2,'Data Annex'!$K$1:$AV$1,0)),"") -> 0.7936573472 | P28: =IFERROR(INDEX('Data Annex'!$K$1:$AV$6077,MATCH(Assets!P$1&"|"&Assets!$B28,'Data Annex'!$K$1:$K$6077,0),MATCH(Assets!P$2,'Data Annex'!$K$1:$AV$1,0)),"") -> 0.8033914678 | Q28: =IFERROR(INDEX('Data Annex'!$K$1:$AV$6077,MATCH(Assets!Q$1&"|"&Assets!$B28,'Data Annex'!$K$1:$K$6077,0),MATCH(Assets!Q$2,'Data Annex'!$K$1:$AV$1,0)),"") -> 0.001471866337 | R28: =IFERROR(INDEX('Data Annex'!$K$1:$AV$6077,MATCH(Assets!R$1&"|"&Assets!$B28,'Data Annex'!$K$1:$K$6077,0),MATCH(Assets!R$2,'Data Annex'!$K$1:$AV$1,0)),"") -> 0.003475611245 | S28: =IFERROR(INDEX('Data Annex'!$K$1:$AV$6077,MATCH(Assets!S$1&"|"&Assets!$B28,'Data Annex'!$K$1:$K$6077,0),MATCH(Assets!S$2,'Data Annex'!$K$1:$AV$1,0)),"") -> 0.004157442542 | T28: =IFERROR(INDEX('Data Annex'!$K$1:$AV$6077,MATCH(Assets!T$1&"|"&Assets!$B28,'Data Annex'!$K$1:$K$6077,0),MATCH(Assets!T$2,'Data Annex'!$K$1:$AV$1,0)),"") -> 0.02207606173 | U28: =IFERROR(INDEX('Data Annex'!$K$1:$AV$6077,MATCH(Assets!U$1&"|"&Assets!$B28,'Data Annex'!$K$1:$K$6077,0),MATCH(Assets!U$2,'Data Annex'!$K$1:$AV$1,0)),"") -> 0.01879436337 | V28: =IFERROR(INDEX('Data Annex'!$K$1:$AV$6077,MATCH(Assets!V$1&"|"&Assets!$B28,'Data Annex'!$K$1:$K$6077,0),MATCH(Assets!V$2,'Data Annex'!$K$1:$AV$1,0)),"") -> 0.01594641627 | W28: =IFERROR(INDEX('Data Annex'!$K$1:$AH$5813,MATCH(Assets!AC$1&"|"&Assets!$B28,'Data Annex'!$K$1:$K$5813,0),MATCH(Assets!AC$2,'Data Annex'!$K$1:$AH$1,0)),"") -> 
B29: IT | D29: IT | E29: =IFERROR(INDEX('Data Annex'!$K$1:$AV$6077,MATCH(Assets!E$1&"|"&Assets!$B29,'Data Annex'!$K$1:$K$6077,0),MATCH(Assets!E$2,'Data Annex'!$K$1:$AV$1,0)),"") -> 0.151304315 | F29: =IFERROR(INDEX('Data Annex'!$K$1:$AV$6077,MATCH(Assets!F$1&"|"&Assets!$B29,'Data Annex'!$K$1:$K$6077,0),MATCH(Assets!F$2,'Data Annex'!$K$1:$AV$1,0)),"") -> 0.1399332076 | G29: =IFERROR(INDEX('Data Annex'!$K$1:$AV$6077,MATCH(Assets!G$1&"|"&Assets!$B29,'Data Annex'!$K$1:$K$6077,0),MATCH(Assets!G$2,'Data Annex'!$K$1:$AV$1,0)),"") -> 0.1200651243 | H29: =IFERROR(INDEX('Data Annex'!$K$1:$AV$6077,MATCH(Assets!H$1&"|"&Assets!$B29,'Data Annex'!$K$1:$K$6077,0),MATCH(Assets!H$2,'Data Annex'!$K$1:$AV$1,0)),"") -> 0.01250005895 | I29: =IFERROR(INDEX('Data Annex'!$K$1:$AV$6077,MATCH(Assets!I$1&"|"&Assets!$B29,'Data Annex'!$K$1:$K$6077,0),MATCH(Assets!I$2,'Data Annex'!$K$1:$AV$1,0)),"") -> 0.009824019335 | J29: =IFERROR(INDEX('Data Annex'!$K$1:$AV$6077,MATCH(Assets!J$1&"|"&Assets!$B29,'Data Annex'!$K$1:$K$6077,0),MATCH(Assets!J$2,'Data Annex'!$K$1:$AV$1,0)),"") -> 0.01011406027 | K29: =IFERROR(INDEX('Data Annex'!$K$1:$AV$6077,MATCH(Assets!K$1&"|"&Assets!$B29,'Data Annex'!$K$1:$K$6077,0),MATCH(Assets!K$2,'Data Annex'!$K$1:$AV$1,0)),"") -> 0.2022343914 | L29: =IFERROR(INDEX('Data Annex'!$K$1:$AV$6077,MATCH(Assets!L$1&"|"&Assets!$B29,'Data Annex'!$K$1:$K$6077,0),MATCH(Assets!L$2,'Data Annex'!$K$1:$AV$1,0)),"") -> 0.1937270571 | M29: =IFERROR(INDEX('Data Annex'!$K$1:$AV$6077,MATCH(Assets!M$1&"|"&Assets!$B29,'Data Annex'!$K$1:$K$6077,0),MATCH(Assets!M$2,'Data Annex'!$K$1:$AV$1,0)),"") -> 0.2011277993 | N29: =IFERROR(INDEX('Data Annex'!$K$1:$AV$6077,MATCH(Assets!N$1&"|"&Assets!$B29,'Data Annex'!$K$1:$K$6077,0),MATCH(Assets!N$2,'Data Annex'!$K$1:$AV$1,0)),"") -> 0.5483674712 | O29: =IFERROR(INDEX('Data Annex'!$K$1:$AV$6077,MATCH(Assets!O$1&"|"&Assets!$B29,'Data Annex'!$K$1:$K$6077,0),MATCH(Assets!O$2,'Data Annex'!$K$1:$AV$1,0)),"") -> 0.5619357828 | P29: =IFERROR(INDEX('Data Annex'!$K$1:$AV$6077,MATCH(Assets!P$1&"|"&Assets!$B29,'Data Annex'!$K$1:$K$6077,0),MATCH(Assets!P$2,'Data Annex'!$K$1:$AV$1,0)),"") -> 0.5747989589 | Q29: =IFERROR(INDEX('Data Annex'!$K$1:$AV$6077,MATCH(Assets!Q$1&"|"&Assets!$B29,'Data Annex'!$K$1:$K$6077,0),MATCH(Assets!Q$2,'Data Annex'!$K$1:$AV$1,0)),"") -> 0.0279678223 | R29: =IFERROR(INDEX('Data Annex'!$K$1:$AV$6077,MATCH(Assets!R$1&"|"&Assets!$B29,'Data Annex'!$K$1:$K$6077,0),MATCH(Assets!R$2,'Data Annex'!$K$1:$AV$1,0)),"") -> 0.0432234794 | S29: =IFERROR(INDEX('Data Annex'!$K$1:$AV$6077,MATCH(Assets!S$1&"|"&Assets!$B29,'Data Annex'!$K$1:$K$6077,0),MATCH(Assets!S$2,'Data Annex'!$K$1:$AV$1,0)),"") -> 0.03874364451 | T29: =IFERROR(INDEX('Data Annex'!$K$1:$AV$6077,MATCH(Assets!T$1&"|"&Assets!$B29,'Data Annex'!$K$1:$K$6077,0),MATCH(Assets!T$2,'Data Annex'!$K$1:$AV$1,0)),"") -> 0.05762594114 | U29: =IFERROR(INDEX('Data Annex'!$K$1:$AV$6077,MATCH(Assets!U$1&"|"&Assets!$B29,'Data Annex'!$K$1:$K$6077,0),MATCH(Assets!U$2,'Data Annex'!$K$1:$AV$1,0)),"") -> 0.05135645381 | V29: =IFERROR(INDEX('Data Annex'!$K$1:$AV$6077,MATCH(Assets!V$1&"|"&Assets!$B29,'Data Annex'!$K$1:$K$6077,0),MATCH(Assets!V$2,'Data Annex'!$K$1:$AV$1,0)),"") -> 0.0551504127 | W29: =IFERROR(INDEX('Data Annex'!$K$1:$AH$5813,MATCH(Assets!AC$1&"|"&Assets!$B29,'Data Annex'!$K$1:$K$5813,0),MATCH(Assets!AC$2,'Data Annex'!$K$1:$AH$1,0)),"") -> 
B30: LI | D30: LI* | E30: =IFERROR(INDEX('Data Annex'!$K$1:$AV$6077,MATCH(Assets!E$1&"|"&Assets!$B30,'Data Annex'!$K$1:$K$6077,0),MATCH(Assets!E$2,'Data Annex'!$K$1:$AV$1,0)),"") -> n.a. | F30: =IFERROR(INDEX('Data Annex'!$K$1:$AV$6077,MATCH(Assets!F$1&"|"&Assets!$B30,'Data Annex'!$K$1:$K$6077,0),MATCH(Assets!F$2,'Data Annex'!$K$1:$AV$1,0)),"") -> 0.1358477679 | G30: =IFERROR(INDEX('Data Annex'!$K$1:$AV$6077,MATCH(Assets!G$1&"|"&Assets!$B30,'Data Annex'!$K$1:$K$6077,0),MATCH(Assets!G$2,'Data Annex'!$K$1:$AV$1,0)),"") -> 0.1388412774 | H30: =IFERROR(INDEX('Data Annex'!$K$1:$AV$6077,MATCH(Assets!H$1&"|"&Assets!$B30,'Data Annex'!$K$1:$K$6077,0),MATCH(Assets!H$2,'Data Annex'!$K$1:$AV$1,0)),"") -> n.a. | I30: =IFERROR(INDEX('Data Annex'!$K$1:$AV$6077,MATCH(Assets!I$1&"|"&Assets!$B30,'Data Annex'!$K$1:$K$6077,0),MATCH(Assets!I$2,'Data Annex'!$K$1:$AV$1,0)),"") -> 0.0540768903 | J30: =IFERROR(INDEX('Data Annex'!$K$1:$AV$6077,MATCH(Assets!J$1&"|"&Assets!$B30,'Data Annex'!$K$1:$K$6077,0),MATCH(Assets!J$2,'Data Annex'!$K$1:$AV$1,0)),"") -> 0.05350351509 | K30: =IFERROR(INDEX('Data Annex'!$K$1:$AV$6077,MATCH(Assets!K$1&"|"&Assets!$B30,'Data Annex'!$K$1:$K$6077,0),MATCH(Assets!K$2,'Data Annex'!$K$1:$AV$1,0)),"") -> n.a. | L30: =IFERROR(INDEX('Data Annex'!$K$1:$AV$6077,MATCH(Assets!L$1&"|"&Assets!$B30,'Data Annex'!$K$1:$K$6077,0),MATCH(Assets!L$2,'Data Annex'!$K$1:$AV$1,0)),"") -> 0.2106519332 | M30: =IFERROR(INDEX('Data Annex'!$K$1:$AV$6077,MATCH(Assets!M$1&"|"&Assets!$B30,'Data Annex'!$K$1:$K$6077,0),MATCH(Assets!M$2,'Data Annex'!$K$1:$AV$1,0)),"") -> 0.1897706631 | N30: =IFERROR(INDEX('Data Annex'!$K$1:$AV$6077,MATCH(Assets!N$1&"|"&Assets!$B30,'Data Annex'!$K$1:$K$6077,0),MATCH(Assets!N$2,'Data Annex'!$K$1:$AV$1,0)),"") -> n.a. | O30: =IFERROR(INDEX('Data Annex'!$K$1:$AV$6077,MATCH(Assets!O$1&"|"&Assets!$B30,'Data Annex'!$K$1:$K$6077,0),MATCH(Assets!O$2,'Data Annex'!$K$1:$AV$1,0)),"") -> 0.5337178988 | P30: =IFERROR(INDEX('Data Annex'!$K$1:$AV$6077,MATCH(Assets!P$1&"|"&Assets!$B30,'Data Annex'!$K$1:$K$6077,0),MATCH(Assets!P$2,'Data Annex'!$K$1:$AV$1,0)),"") -> 0.5597892051 | Q30: =IFERROR(INDEX('Data Annex'!$K$1:$AV$6077,MATCH(Assets!Q$1&"|"&Assets!$B30,'Data Annex'!$K$1:$K$6077,0),MATCH(Assets!Q$2,'Data Annex'!$K$1:$AV$1,0)),"") -> n.a. | R30: =IFERROR(INDEX('Data Annex'!$K$1:$AV$6077,MATCH(Assets!R$1&"|"&Assets!$B30,'Data Annex'!$K$1:$K$6077,0),MATCH(Assets!R$2,'Data Annex'!$K$1:$AV$1,0)),"") -> 0.02541976915 | S30: =IFERROR(INDEX('Data Annex'!$K$1:$AV$6077,MATCH(Assets!S$1&"|"&Assets!$B30,'Data Annex'!$K$1:$K$6077,0),MATCH(Assets!S$2,'Data Annex'!$K$1:$AV$1,0)),"") -> 0.01963809187 | T30: =IFERROR(INDEX('Data Annex'!$K$1:$AV$6077,MATCH(Assets!T$1&"|"&Assets!$B30,'Data Annex'!$K$1:$K$6077,0),MATCH(Assets!T$2,'Data Annex'!$K$1:$AV$1,0)),"") -> n.a. | U30: =IFERROR(INDEX('Data Annex'!$K$1:$AV$6077,MATCH(Assets!U$1&"|"&Assets!$B30,'Data Annex'!$K$1:$K$6077,0),MATCH(Assets!U$2,'Data Annex'!$K$1:$AV$1,0)),"") -> 0.04028574074 | V30: =IFERROR(INDEX('Data Annex'!$K$1:$AV$6077,MATCH(Assets!V$1&"|"&Assets!$B30,'Data Annex'!$K$1:$K$6077,0),MATCH(Assets!V$2,'Data Annex'!$K$1:$AV$1,0)),"") -> 0.03845724673
B31: LT | D31: LT | E31: =IFERROR(INDEX('Data Annex'!$K$1:$AV$6077,MATCH(Assets!E$1&"|"&Assets!$B31,'Data Annex'!$K$1:$K$6077,0),MATCH(Assets!E$2,'Data Annex'!$K$1:$AV$1,0)),"") -> 0.4253115365 | F31: =IFERROR(INDEX('Data Annex'!$K$1:$AV$6077,MATCH(Assets!F$1&"|"&Assets!$B31,'Data Annex'!$K$1:$K$6077,0),MATCH(Assets!F$2,'Data Annex'!$K$1:$AV$1,0)),"") -> 0.3606441242 | G31: =IFERROR(INDEX('Data Annex'!$K$1:$AV$6077,MATCH(Assets!G$1&"|"&Assets!$B31,'Data Annex'!$K$1:$K$6077,0),MATCH(Assets!G$2,'Data Annex'!$K$1:$AV$1,0)),"") -> 0.482967824 | H31: =IFERROR(INDEX('Data Annex'!$K$1:$AV$6077,MATCH(Assets!H$1&"|"&Assets!$B31,'Data Annex'!$K$1:$K$6077,0),MATCH(Assets!H$2,'Data Annex'!$K$1:$AV$1,0)),"") -> 0.0001800596138 | I31: =IFERROR(INDEX('Data Annex'!$K$1:$AV$6077,MATCH(Assets!I$1&"|"&Assets!$B31,'Data Annex'!$K$1:$K$6077,0),MATCH(Assets!I$2,'Data Annex'!$K$1:$AV$1,0)),"") -> 0.0004546475224 | J31: =IFERROR(INDEX('Data Annex'!$K$1:$AV$6077,MATCH(Assets!J$1&"|"&Assets!$B31,'Data Annex'!$K$1:$K$6077,0),MATCH(Assets!J$2,'Data Annex'!$K$1:$AV$1,0)),"") -> 0.0001687369419 | K31: =IFERROR(INDEX('Data Annex'!$K$1:$AV$6077,MATCH(Assets!K$1&"|"&Assets!$B31,'Data Annex'!$K$1:$K$6077,0),MATCH(Assets!K$2,'Data Annex'!$K$1:$AV$1,0)),"") -> 0.07956224906 | L31: =IFERROR(INDEX('Data Annex'!$K$1:$AV$6077,MATCH(Assets!L$1&"|"&Assets!$B31,'Data Annex'!$K$1:$K$6077,0),MATCH(Assets!L$2,'Data Annex'!$K$1:$AV$1,0)),"") -> 0.1149782249 | M31: =IFERROR(INDEX('Data Annex'!$K$1:$AV$6077,MATCH(Assets!M$1&"|"&Assets!$B31,'Data Annex'!$K$1:$K$6077,0),MATCH(Assets!M$2,'Data Annex'!$K$1:$AV$1,0)),"") -> 0.1063490176 | N31: =IFERROR(INDEX('Data Annex'!$K$1:$AV$6077,MATCH(Assets!N$1&"|"&Assets!$B31,'Data Annex'!$K$1:$K$6077,0),MATCH(Assets!N$2,'Data Annex'!$K$1:$AV$1,0)),"") -> 0.487767084 | O31: =IFERROR(INDEX('Data Annex'!$K$1:$AV$6077,MATCH(Assets!O$1&"|"&Assets!$B31,'Data Annex'!$K$1:$K$6077,0),MATCH(Assets!O$2,'Data Annex'!$K$1:$AV$1,0)),"") -> 0.5157140899 | P31: =IFERROR(INDEX('Data Annex'!$K$1:$AV$6077,MATCH(Assets!P$1&"|"&Assets!$B31,'Data Annex'!$K$1:$K$6077,0),MATCH(Assets!P$2,'Data Annex'!$K$1:$AV$1,0)),"") -> 0.3456010903 | Q31: =IFERROR(INDEX('Data Annex'!$K$1:$AV$6077,MATCH(Assets!Q$1&"|"&Assets!$B31,'Data Annex'!$K$1:$K$6077,0),MATCH(Assets!Q$2,'Data Annex'!$K$1:$AV$1,0)),"") -> 0.0009834218676 | R31: =IFERROR(INDEX('Data Annex'!$K$1:$AV$6077,MATCH(Assets!R$1&"|"&Assets!$B31,'Data Annex'!$K$1:$K$6077,0),MATCH(Assets!R$2,'Data Annex'!$K$1:$AV$1,0)),"") -> 0.001677230301 | S31: =IFERROR(INDEX('Data Annex'!$K$1:$AV$6077,MATCH(Assets!S$1&"|"&Assets!$B31,'Data Annex'!$K$1:$K$6077,0),MATCH(Assets!S$2,'Data Annex'!$K$1:$AV$1,0)),"") -> 0.000770238527 | T31: =IFERROR(INDEX('Data Annex'!$K$1:$AV$6077,MATCH(Assets!T$1&"|"&Assets!$B31,'Data Annex'!$K$1:$K$6077,0),MATCH(Assets!T$2,'Data Annex'!$K$1:$AV$1,0)),"") -> 0.006195649007 | U31: =IFERROR(INDEX('Data Annex'!$K$1:$AV$6077,MATCH(Assets!U$1&"|"&Assets!$B31,'Data Annex'!$K$1:$K$6077,0),MATCH(Assets!U$2,'Data Annex'!$K$1:$AV$1,0)),"") -> 0.006531683297 | V31: =IFERROR(INDEX('Data Annex'!$K$1:$AV$6077,MATCH(Assets!V$1&"|"&Assets!$B31,'Data Annex'!$K$1:$K$6077,0),MATCH(Assets!V$2,'Data Annex'!$K$1:$AV$1,0)),"") -> 0.06414306162 | W31: =IFERROR(INDEX('Data Annex'!$K$1:$AH$5813,MATCH(Assets!AC$1&"|"&Assets!$B31,'Data Annex'!$K$1:$K$5813,0),MATCH(Assets!AC$2,'Data Annex'!$K$1:$AH$1,0)),"") -> 
B32: LU | D32: LU | E32: =IFERROR(INDEX('Data Annex'!$K$1:$AV$6077,MATCH(Assets!E$1&"|"&Assets!$B32,'Data Annex'!$K$1:$K$6077,0),MATCH(Assets!E$2,'Data Annex'!$K$1:$AV$1,0)),"") -> 0.2640821146 | F32: =IFERROR(INDEX('Data Annex'!$K$1:$AV$6077,MATCH(Assets!F$1&"|"&Assets!$B32,'Data Annex'!$K$1:$K$6077,0),MATCH(Assets!F$2,'Data Annex'!$K$1:$AV$1,0)),"") -> 0.2849585482 | G32: =IFERROR(INDEX('Data Annex'!$K$1:$AV$6077,MATCH(Assets!G$1&"|"&Assets!$B32,'Data Annex'!$K$1:$K$6077,0),MATCH(Assets!G$2,'Data Annex'!$K$1:$AV$1,0)),"") -> 0.2883682489 | H32: =IFERROR(INDEX('Data Annex'!$K$1:$AV$6077,MATCH(Assets!H$1&"|"&Assets!$B32,'Data Annex'!$K$1:$K$6077,0),MATCH(Assets!H$2,'Data Annex'!$K$1:$AV$1,0)),"") -> 0.004855041201 | I32: =IFERROR(INDEX('Data Annex'!$K$1:$AV$6077,MATCH(Assets!I$1&"|"&Assets!$B32,'Data Annex'!$K$1:$K$6077,0),MATCH(Assets!I$2,'Data Annex'!$K$1:$AV$1,0)),"") -> 0.004808435864 | J32: =IFERROR(INDEX('Data Annex'!$K$1:$AV$6077,MATCH(Assets!J$1&"|"&Assets!$B32,'Data Annex'!$K$1:$K$6077,0),MATCH(Assets!J$2,'Data Annex'!$K$1:$AV$1,0)),"") -> 0.005477837539 | K32: =IFERROR(INDEX('Data Annex'!$K$1:$AV$6077,MATCH(Assets!K$1&"|"&Assets!$B32,'Data Annex'!$K$1:$K$6077,0),MATCH(Assets!K$2,'Data Annex'!$K$1:$AV$1,0)),"") -> 0.1328252707 | L32: =IFERROR(INDEX('Data Annex'!$K$1:$AV$6077,MATCH(Assets!L$1&"|"&Assets!$B32,'Data Annex'!$K$1:$K$6077,0),MATCH(Assets!L$2,'Data Annex'!$K$1:$AV$1,0)),"") -> 0.1156884818 | M32: =IFERROR(INDEX('Data Annex'!$K$1:$AV$6077,MATCH(Assets!M$1&"|"&Assets!$B32,'Data Annex'!$K$1:$K$6077,0),MATCH(Assets!M$2,'Data Annex'!$K$1:$AV$1,0)),"") -> 0.129972933 | N32: =IFERROR(INDEX('Data Annex'!$K$1:$AV$6077,MATCH(Assets!N$1&"|"&Assets!$B32,'Data Annex'!$K$1:$K$6077,0),MATCH(Assets!N$2,'Data Annex'!$K$1:$AV$1,0)),"") -> 0.5629471089 | O32: =IFERROR(INDEX('Data Annex'!$K$1:$AV$6077,MATCH(Assets!O$1&"|"&Assets!$B32,'Data Annex'!$K$1:$K$6077,0),MATCH(Assets!O$2,'Data Annex'!$K$1:$AV$1,0)),"") -> 0.5467493712 | P32: =IFERROR(INDEX('Data Annex'!$K$1:$AV$6077,MATCH(Assets!P$1&"|"&Assets!$B32,'Data Annex'!$K$1:$K$6077,0),MATCH(Assets!P$2,'Data Annex'!$K$1:$AV$1,0)),"") -> 0.5343251485 | Q32: =IFERROR(INDEX('Data Annex'!$K$1:$AV$6077,MATCH(Assets!Q$1&"|"&Assets!$B32,'Data Annex'!$K$1:$K$6077,0),MATCH(Assets!Q$2,'Data Annex'!$K$1:$AV$1,0)),"") -> 0.008573496307 | R32: =IFERROR(INDEX('Data Annex'!$K$1:$AV$6077,MATCH(Assets!R$1&"|"&Assets!$B32,'Data Annex'!$K$1:$K$6077,0),MATCH(Assets!R$2,'Data Annex'!$K$1:$AV$1,0)),"") -> 0.02287267285 | S32: =IFERROR(INDEX('Data Annex'!$K$1:$AV$6077,MATCH(Assets!S$1&"|"&Assets!$B32,'Data Annex'!$K$1:$K$6077,0),MATCH(Assets!S$2,'Data Annex'!$K$1:$AV$1,0)),"") -> 0.01783389726 | T32: =IFERROR(INDEX('Data Annex'!$K$1:$AV$6077,MATCH(Assets!T$1&"|"&Assets!$B32,'Data Annex'!$K$1:$K$6077,0),MATCH(Assets!T$2,'Data Annex'!$K$1:$AV$1,0)),"") -> 0.02671696823 | U32: =IFERROR(INDEX('Data Annex'!$K$1:$AV$6077,MATCH(Assets!U$1&"|"&Assets!$B32,'Data Annex'!$K$1:$K$6077,0),MATCH(Assets!U$2,'Data Annex'!$K$1:$AV$1,0)),"") -> 0.02492249016 | V32: =IFERROR(INDEX('Data Annex'!$K$1:$AV$6077,MATCH(Assets!V$1&"|"&Assets!$B32,'Data Annex'!$K$1:$K$6077,0),MATCH(Assets!V$2,'Data Annex'!$K$1:$AV$1,0)),"") -> 0.02402193481 | W32: =IFERROR(INDEX('Data Annex'!$K$1:$AH$5813,MATCH(Assets!AC$1&"|"&Assets!$B32,'Data Annex'!$K$1:$K$5813,0),MATCH(Assets!AC$2,'Data Annex'!$K$1:$AH$1,0)),"") -> 
B33: LV | D33: LV | E33: =IFERROR(INDEX('Data Annex'!$K$1:$AV$6077,MATCH(Assets!E$1&"|"&Assets!$B33,'Data Annex'!$K$1:$K$6077,0),MATCH(Assets!E$2,'Data Annex'!$K$1:$AV$1,0)),"") -> 0.3633901418 | F33: =IFERROR(INDEX('Data Annex'!$K$1:$AV$6077,MATCH(Assets!F$1&"|"&Assets!$B33,'Data Annex'!$K$1:$K$6077,0),MATCH(Assets!F$2,'Data Annex'!$K$1:$AV$1,0)),"") -> 0.3109241408 | G33: =IFERROR(INDEX('Data Annex'!$K$1:$AV$6077,MATCH(Assets!G$1&"|"&Assets!$B33,'Data Annex'!$K$1:$K$6077,0),MATCH(Assets!G$2,'Data Annex'!$K$1:$AV$1,0)),"") -> 0.29704862 | H33: =IFERROR(INDEX('Data Annex'!$K$1:$AV$6077,MATCH(Assets!H$1&"|"&Assets!$B33,'Data Annex'!$K$1:$K$6077,0),MATCH(Assets!H$2,'Data Annex'!$K$1:$AV$1,0)),"") -> 0.0002437415152 | I33: =IFERROR(INDEX('Data Annex'!$K$1:$AV$6077,MATCH(Assets!I$1&"|"&Assets!$B33,'Data Annex'!$K$1:$K$6077,0),MATCH(Assets!I$2,'Data Annex'!$K$1:$AV$1,0)),"") -> 9.017688358e-05 | J33: =IFERROR(INDEX('Data Annex'!$K$1:$AV$6077,MATCH(Assets!J$1&"|"&Assets!$B33,'Data Annex'!$K$1:$K$6077,0),MATCH(Assets!J$2,'Data Annex'!$K$1:$AV$1,0)),"") -> 9.071736242e-05 | K33: =IFERROR(INDEX('Data Annex'!$K$1:$AV$6077,MATCH(Assets!K$1&"|"&Assets!$B33,'Data Annex'!$K$1:$K$6077,0),MATCH(Assets!K$2,'Data Annex'!$K$1:$AV$1,0)),"") -> 0.115787641 | L33: =IFERROR(INDEX('Data Annex'!$K$1:$AV$6077,MATCH(Assets!L$1&"|"&Assets!$B33,'Data Annex'!$K$1:$K$6077,0),MATCH(Assets!L$2,'Data Annex'!$K$1:$AV$1,0)),"") -> 0.1082653331 | M33: =IFERROR(INDEX('Data Annex'!$K$1:$AV$6077,MATCH(Assets!M$1&"|"&Assets!$B33,'Data Annex'!$K$1:$K$6077,0),MATCH(Assets!M$2,'Data Annex'!$K$1:$AV$1,0)),"") -> 0.06779498645 | N33: =IFERROR(INDEX('Data Annex'!$K$1:$AV$6077,MATCH(Assets!N$1&"|"&Assets!$B33,'Data Annex'!$K$1:$K$6077,0),MATCH(Assets!N$2,'Data Annex'!$K$1:$AV$1,0)),"") -> 0.5123164645 | O33: =IFERROR(INDEX('Data Annex'!$K$1:$AV$6077,MATCH(Assets!O$1&"|"&Assets!$B33,'Data Annex'!$K$1:$K$6077,0),MATCH(Assets!O$2,'Data Annex'!$K$1:$AV$1,0)),"") -> 0.5687201914 | P33: =IFERROR(INDEX('Data Annex'!$K$1:$AV$6077,MATCH(Assets!P$1&"|"&Assets!$B33,'Data Annex'!$K$1:$K$6077,0),MATCH(Assets!P$2,'Data Annex'!$K$1:$AV$1,0)),"") -> 0.623278317 | Q33: =IFERROR(INDEX('Data Annex'!$K$1:$AV$6077,MATCH(Assets!Q$1&"|"&Assets!$B33,'Data Annex'!$K$1:$K$6077,0),MATCH(Assets!Q$2,'Data Annex'!$K$1:$AV$1,0)),"") -> 0.0008298646156 | R33: =IFERROR(INDEX('Data Annex'!$K$1:$AV$6077,MATCH(Assets!R$1&"|"&Assets!$B33,'Data Annex'!$K$1:$K$6077,0),MATCH(Assets!R$2,'Data Annex'!$K$1:$AV$1,0)),"") -> 0.002235252239 | S33: =IFERROR(INDEX('Data Annex'!$K$1:$AV$6077,MATCH(Assets!S$1&"|"&Assets!$B33,'Data Annex'!$K$1:$K$6077,0),MATCH(Assets!S$2,'Data Annex'!$K$1:$AV$1,0)),"") -> 0.001784337529 | T33: =IFERROR(INDEX('Data Annex'!$K$1:$AV$6077,MATCH(Assets!T$1&"|"&Assets!$B33,'Data Annex'!$K$1:$K$6077,0),MATCH(Assets!T$2,'Data Annex'!$K$1:$AV$1,0)),"") -> 0.007432146607 | U33: =IFERROR(INDEX('Data Annex'!$K$1:$AV$6077,MATCH(Assets!U$1&"|"&Assets!$B33,'Data Annex'!$K$1:$K$6077,0),MATCH(Assets!U$2,'Data Annex'!$K$1:$AV$1,0)),"") -> 0.009764905561 | V33: =IFERROR(INDEX('Data Annex'!$K$1:$AV$6077,MATCH(Assets!V$1&"|"&Assets!$B33,'Data Annex'!$K$1:$K$6077,0),MATCH(Assets!V$2,'Data Annex'!$K$1:$AV$1,0)),"") -> 0.01000302163 | W33: =IFERROR(INDEX('Data Annex'!$K$1:$AH$5813,MATCH(Assets!AC$1&"|"&Assets!$B33,'Data Annex'!$K$1:$K$5813,0),MATCH(Assets!AC$2,'Data Annex'!$K$1:$AH$1,0)),"") -> 
B34: MT | D34: MT | E34: =IFERROR(INDEX('Data Annex'!$K$1:$AV$6077,MATCH(Assets!E$1&"|"&Assets!$B34,'Data Annex'!$K$1:$K$6077,0),MATCH(Assets!E$2,'Data Annex'!$K$1:$AV$1,0)),"") -> 0.271958181 | F34: =IFERROR(INDEX('Data Annex'!$K$1:$AV$6077,MATCH(Assets!F$1&"|"&Assets!$B34,'Data Annex'!$K$1:$K$6077,0),MATCH(Assets!F$2,'Data Annex'!$K$1:$AV$1,0)),"") -> 0.2278077869 | G34: =IFERROR(INDEX('Data Annex'!$K$1:$AV$6077,MATCH(Assets!G$1&"|"&Assets!$B34,'Data Annex'!$K$1:$K$6077,0),MATCH(Assets!G$2,'Data Annex'!$K$1:$AV$1,0)),"") -> 0.2091831878 | H34: =IFERROR(INDEX('Data Annex'!$K$1:$AV$6077,MATCH(Assets!H$1&"|"&Assets!$B34,'Data Annex'!$K$1:$K$6077,0),MATCH(Assets!H$2,'Data Annex'!$K$1:$AV$1,0)),"") -> 0.00204582595 | I34: =IFERROR(INDEX('Data Annex'!$K$1:$AV$6077,MATCH(Assets!I$1&"|"&Assets!$B34,'Data Annex'!$K$1:$K$6077,0),MATCH(Assets!I$2,'Data Annex'!$K$1:$AV$1,0)),"") -> 0.002312245607 | J34: =IFERROR(INDEX('Data Annex'!$K$1:$AV$6077,MATCH(Assets!J$1&"|"&Assets!$B34,'Data Annex'!$K$1:$K$6077,0),MATCH(Assets!J$2,'Data Annex'!$K$1:$AV$1,0)),"") -> 0.002351171206 | K34: =IFERROR(INDEX('Data Annex'!$K$1:$AV$6077,MATCH(Assets!K$1&"|"&Assets!$B34,'Data Annex'!$K$1:$K$6077,0),MATCH(Assets!K$2,'Data Annex'!$K$1:$AV$1,0)),"") -> 0.2445847204 | L34: =IFERROR(INDEX('Data Annex'!$K$1:$AV$6077,MATCH(Assets!L$1&"|"&Assets!$B34,'Data Annex'!$K$1:$K$6077,0),MATCH(Assets!L$2,'Data Annex'!$K$1:$AV$1,0)),"") -> 0.2780496973 | M34: =IFERROR(INDEX('Data Annex'!$K$1:$AV$6077,MATCH(Assets!M$1&"|"&Assets!$B34,'Data Annex'!$K$1:$K$6077,0),MATCH(Assets!M$2,'Data Annex'!$K$1:$AV$1,0)),"") -> 0.2843485735 | N34: =IFERROR(INDEX('Data Annex'!$K$1:$AV$6077,MATCH(Assets!N$1&"|"&Assets!$B34,'Data Annex'!$K$1:$K$6077,0),MATCH(Assets!N$2,'Data Annex'!$K$1:$AV$1,0)),"") -> 0.4535184249 | O34: =IFERROR(INDEX('Data Annex'!$K$1:$AV$6077,MATCH(Assets!O$1&"|"&Assets!$B34,'Data Annex'!$K$1:$K$6077,0),MATCH(Assets!O$2,'Data Annex'!$K$1:$AV$1,0)),"") -> 0.4623008176 | P34: =IFERROR(INDEX('Data Annex'!$K$1:$AV$6077,MATCH(Assets!P$1&"|"&Assets!$B34,'Data Annex'!$K$1:$K$6077,0),MATCH(Assets!P$2,'Data Annex'!$K$1:$AV$1,0)),"") -> 0.4721177532 | Q34: =IFERROR(INDEX('Data Annex'!$K$1:$AV$6077,MATCH(Assets!Q$1&"|"&Assets!$B34,'Data Annex'!$K$1:$K$6077,0),MATCH(Assets!Q$2,'Data Annex'!$K$1:$AV$1,0)),"") -> 0.001745526472 | R34: =IFERROR(INDEX('Data Annex'!$K$1:$AV$6077,MATCH(Assets!R$1&"|"&Assets!$B34,'Data Annex'!$K$1:$K$6077,0),MATCH(Assets!R$2,'Data Annex'!$K$1:$AV$1,0)),"") -> 0.01112229614 | S34: =IFERROR(INDEX('Data Annex'!$K$1:$AV$6077,MATCH(Assets!S$1&"|"&Assets!$B34,'Data Annex'!$K$1:$K$6077,0),MATCH(Assets!S$2,'Data Annex'!$K$1:$AV$1,0)),"") -> 0.01596977044 | T34: =IFERROR(INDEX('Data Annex'!$K$1:$AV$6077,MATCH(Assets!T$1&"|"&Assets!$B34,'Data Annex'!$K$1:$K$6077,0),MATCH(Assets!T$2,'Data Annex'!$K$1:$AV$1,0)),"") -> 0.02614732129 | U34: =IFERROR(INDEX('Data Annex'!$K$1:$AV$6077,MATCH(Assets!U$1&"|"&Assets!$B34,'Data Annex'!$K$1:$K$6077,0),MATCH(Assets!U$2,'Data Annex'!$K$1:$AV$1,0)),"") -> 0.0184071724 | V34: =IFERROR(INDEX('Data Annex'!$K$1:$AV$6077,MATCH(Assets!V$1&"|"&Assets!$B34,'Data Annex'!$K$1:$K$6077,0),MATCH(Assets!V$2,'Data Annex'!$K$1:$AV$1,0)),"") -> 0.01602954386 | W34: =IFERROR(INDEX('Data Annex'!$K$1:$AH$5813,MATCH(Assets!AC$1&"|"&Assets!$B34,'Data Annex'!$K$1:$K$5813,0),MATCH(Assets!AC$2,'Data Annex'!$K$1:$AH$1,0)),"") -> 
B35: NL | D35: NL | E35: =IFERROR(INDEX('Data Annex'!$K$1:$AV$6077,MATCH(Assets!E$1&"|"&Assets!$B35,'Data Annex'!$K$1:$K$6077,0),MATCH(Assets!E$2,'Data Annex'!$K$1:$AV$1,0)),"") -> 0.1439185172 | F35: =IFERROR(INDEX('Data Annex'!$K$1:$AV$6077,MATCH(Assets!F$1&"|"&Assets!$B35,'Data Annex'!$K$1:$K$6077,0),MATCH(Assets!F$2,'Data Annex'!$K$1:$AV$1,0)),"") -> 0.1885044199 | G35: =IFERROR(INDEX('Data Annex'!$K$1:$AV$6077,MATCH(Assets!G$1&"|"&Assets!$B35,'Data Annex'!$K$1:$K$6077,0),MATCH(Assets!G$2,'Data Annex'!$K$1:$AV$1,0)),"") -> 0.1392717901 | H35: =IFERROR(INDEX('Data Annex'!$K$1:$AV$6077,MATCH(Assets!H$1&"|"&Assets!$B35,'Data Annex'!$K$1:$K$6077,0),MATCH(Assets!H$2,'Data Annex'!$K$1:$AV$1,0)),"") -> 0.01020253935 | I35: =IFERROR(INDEX('Data Annex'!$K$1:$AV$6077,MATCH(Assets!I$1&"|"&Assets!$B35,'Data Annex'!$K$1:$K$6077,0),MATCH(Assets!I$2,'Data Annex'!$K$1:$AV$1,0)),"") -> 0.005211312449 | J35: =IFERROR(INDEX('Data Annex'!$K$1:$AV$6077,MATCH(Assets!J$1&"|"&Assets!$B35,'Data Annex'!$K$1:$K$6077,0),MATCH(Assets!J$2,'Data Annex'!$K$1:$AV$1,0)),"") -> 0.007600141663 | K35: =IFERROR(INDEX('Data Annex'!$K$1:$AV$6077,MATCH(Assets!K$1&"|"&Assets!$B35,'Data Annex'!$K$1:$K$6077,0),MATCH(Assets!K$2,'Data Annex'!$K$1:$AV$1,0)),"") -> 0.07526288585 | L35: =IFERROR(INDEX('Data Annex'!$K$1:$AV$6077,MATCH(Assets!L$1&"|"&Assets!$B35,'Data Annex'!$K$1:$K$6077,0),MATCH(Assets!L$2,'Data Annex'!$K$1:$AV$1,0)),"") -> 0.06660930848 | M35: =IFERROR(INDEX('Data Annex'!$K$1:$AV$6077,MATCH(Assets!M$1&"|"&Assets!$B35,'Data Annex'!$K$1:$K$6077,0),MATCH(Assets!M$2,'Data Annex'!$K$1:$AV$1,0)),"") -> 0.07368302907 | N35: =IFERROR(INDEX('Data Annex'!$K$1:$AV$6077,MATCH(Assets!N$1&"|"&Assets!$B35,'Data Annex'!$K$1:$K$6077,0),MATCH(Assets!N$2,'Data Annex'!$K$1:$AV$1,0)),"") -> 0.7108533271 | O35: =IFERROR(INDEX('Data Annex'!$K$1:$AV$6077,MATCH(Assets!O$1&"|"&Assets!$B35,'Data Annex'!$K$1:$K$6077,0),MATCH(Assets!O$2,'Data Annex'!$K$1:$AV$1,0)),"") -> 0.6913461935 | P35: =IFERROR(INDEX('Data Annex'!$K$1:$AV$6077,MATCH(Assets!P$1&"|"&Assets!$B35,'Data Annex'!$K$1:$K$6077,0),MATCH(Assets!P$2,'Data Annex'!$K$1:$AV$1,0)),"") -> 0.7381341616 | Q35: =IFERROR(INDEX('Data Annex'!$K$1:$AV$6077,MATCH(Assets!Q$1&"|"&Assets!$B35,'Data Annex'!$K$1:$K$6077,0),MATCH(Assets!Q$2,'Data Annex'!$K$1:$AV$1,0)),"") -> 0.02429035474 | R35: =IFERROR(INDEX('Data Annex'!$K$1:$AV$6077,MATCH(Assets!R$1&"|"&Assets!$B35,'Data Annex'!$K$1:$K$6077,0),MATCH(Assets!R$2,'Data Annex'!$K$1:$AV$1,0)),"") -> 0.03921517223 | S35: =IFERROR(INDEX('Data Annex'!$K$1:$AV$6077,MATCH(Assets!S$1&"|"&Assets!$B35,'Data Annex'!$K$1:$K$6077,0),MATCH(Assets!S$2,'Data Annex'!$K$1:$AV$1,0)),"") -> 0.03385288448 | T35: =IFERROR(INDEX('Data Annex'!$K$1:$AV$6077,MATCH(Assets!T$1&"|"&Assets!$B35,'Data Annex'!$K$1:$K$6077,0),MATCH(Assets!T$2,'Data Annex'!$K$1:$AV$1,0)),"") -> 0.03547237582 | U35: =IFERROR(INDEX('Data Annex'!$K$1:$AV$6077,MATCH(Assets!U$1&"|"&Assets!$B35,'Data Annex'!$K$1:$K$6077,0),MATCH(Assets!U$2,'Data Annex'!$K$1:$AV$1,0)),"") -> 0.009113593483 | V35: =IFERROR(INDEX('Data Annex'!$K$1:$AV$6077,MATCH(Assets!V$1&"|"&Assets!$B35,'Data Annex'!$K$1:$K$6077,0),MATCH(Assets!V$2,'Data Annex'!$K$1:$AV$1,0)),"") -> 0.007457993096 | W35: =IFERROR(INDEX('Data Annex'!$K$1:$AH$5813,MATCH(Assets!AC$1&"|"&Assets!$B35,'Data Annex'!$K$1:$K$5813,0),MATCH(Assets!AC$2,'Data Annex'!$K$1:$AH$1,0)),"") -> 
B36: NO | D36: NO* | E36: =IFERROR(INDEX('Data Annex'!$K$1:$AV$6077,MATCH(Assets!E$1&"|"&Assets!$B36,'Data Annex'!$K$1:$K$6077,0),MATCH(Assets!E$2,'Data Annex'!$K$1:$AV$1,0)),"") -> n.a. | F36: =IFERROR(INDEX('Data Annex'!$K$1:$AV$6077,MATCH(Assets!F$1&"|"&Assets!$B36,'Data Annex'!$K$1:$K$6077,0),MATCH(Assets!F$2,'Data Annex'!$K$1:$AV$1,0)),"") -> 0.1231294544 | G36: =IFERROR(INDEX('Data Annex'!$K$1:$AV$6077,MATCH(Assets!G$1&"|"&Assets!$B36,'Data Annex'!$K$1:$K$6077,0),MATCH(Assets!G$2,'Data Annex'!$K$1:$AV$1,0)),"") -> 0.08944965782 | H36: =IFERROR(INDEX('Data Annex'!$K$1:$AV$6077,MATCH(Assets!H$1&"|"&Assets!$B36,'Data Annex'!$K$1:$K$6077,0),MATCH(Assets!H$2,'Data Annex'!$K$1:$AV$1,0)),"") -> n.a. | I36: =IFERROR(INDEX('Data Annex'!$K$1:$AV$6077,MATCH(Assets!I$1&"|"&Assets!$B36,'Data Annex'!$K$1:$K$6077,0),MATCH(Assets!I$2,'Data Annex'!$K$1:$AV$1,0)),"") -> 0.002854235967 | J36: =IFERROR(INDEX('Data Annex'!$K$1:$AV$6077,MATCH(Assets!J$1&"|"&Assets!$B36,'Data Annex'!$K$1:$K$6077,0),MATCH(Assets!J$2,'Data Annex'!$K$1:$AV$1,0)),"") -> 0.00309125633 | K36: =IFERROR(INDEX('Data Annex'!$K$1:$AV$6077,MATCH(Assets!K$1&"|"&Assets!$B36,'Data Annex'!$K$1:$K$6077,0),MATCH(Assets!K$2,'Data Annex'!$K$1:$AV$1,0)),"") -> n.a. | L36: =IFERROR(INDEX('Data Annex'!$K$1:$AV$6077,MATCH(Assets!L$1&"|"&Assets!$B36,'Data Annex'!$K$1:$K$6077,0),MATCH(Assets!L$2,'Data Annex'!$K$1:$AV$1,0)),"") -> 0.09746787724 | M36: =IFERROR(INDEX('Data Annex'!$K$1:$AV$6077,MATCH(Assets!M$1&"|"&Assets!$B36,'Data Annex'!$K$1:$K$6077,0),MATCH(Assets!M$2,'Data Annex'!$K$1:$AV$1,0)),"") -> 0.1211266905 | N36: =IFERROR(INDEX('Data Annex'!$K$1:$AV$6077,MATCH(Assets!N$1&"|"&Assets!$B36,'Data Annex'!$K$1:$K$6077,0),MATCH(Assets!N$2,'Data Annex'!$K$1:$AV$1,0)),"") -> n.a. | O36: =IFERROR(INDEX('Data Annex'!$K$1:$AV$6077,MATCH(Assets!O$1&"|"&Assets!$B36,'Data Annex'!$K$1:$K$6077,0),MATCH(Assets!O$2,'Data Annex'!$K$1:$AV$1,0)),"") -> 0.6610663037 | P36: =IFERROR(INDEX('Data Annex'!$K$1:$AV$6077,MATCH(Assets!P$1&"|"&Assets!$B36,'Data Annex'!$K$1:$K$6077,0),MATCH(Assets!P$2,'Data Annex'!$K$1:$AV$1,0)),"") -> 0.7028616656 | Q36: =IFERROR(INDEX('Data Annex'!$K$1:$AV$6077,MATCH(Assets!Q$1&"|"&Assets!$B36,'Data Annex'!$K$1:$K$6077,0),MATCH(Assets!Q$2,'Data Annex'!$K$1:$AV$1,0)),"") -> n.a. | R36: =IFERROR(INDEX('Data Annex'!$K$1:$AV$6077,MATCH(Assets!R$1&"|"&Assets!$B36,'Data Annex'!$K$1:$K$6077,0),MATCH(Assets!R$2,'Data Annex'!$K$1:$AV$1,0)),"") -> 0.09019131047 | S36: =IFERROR(INDEX('Data Annex'!$K$1:$AV$6077,MATCH(Assets!S$1&"|"&Assets!$B36,'Data Annex'!$K$1:$K$6077,0),MATCH(Assets!S$2,'Data Annex'!$K$1:$AV$1,0)),"") -> 0.05965756748 | T36: =IFERROR(INDEX('Data Annex'!$K$1:$AV$6077,MATCH(Assets!T$1&"|"&Assets!$B36,'Data Annex'!$K$1:$K$6077,0),MATCH(Assets!T$2,'Data Annex'!$K$1:$AV$1,0)),"") -> n.a. | U36: =IFERROR(INDEX('Data Annex'!$K$1:$AV$6077,MATCH(Assets!U$1&"|"&Assets!$B36,'Data Annex'!$K$1:$K$6077,0),MATCH(Assets!U$2,'Data Annex'!$K$1:$AV$1,0)),"") -> 0.0252908182 | V36: =IFERROR(INDEX('Data Annex'!$K$1:$AV$6077,MATCH(Assets!V$1&"|"&Assets!$B36,'Data Annex'!$K$1:$K$6077,0),MATCH(Assets!V$2,'Data Annex'!$K$1:$AV$1,0)),"") -> 0.02381316234 | W36: =IFERROR(INDEX('Data Annex'!$K$1:$AH$5813,MATCH(Assets!AC$1&"|"&Assets!$B36,'Data Annex'!$K$1:$K$5813,0),MATCH(Assets!AC$2,'Data Annex'!$K$1:$AH$1,0)),"") -> 
B37: PL | D37: PL | E37: =IFERROR(INDEX('Data Annex'!$K$1:$AV$6077,MATCH(Assets!E$1&"|"&Assets!$B37,'Data Annex'!$K$1:$K$6077,0),MATCH(Assets!E$2,'Data Annex'!$K$1:$AV$1,0)),"") -> 0.02940889358 | F37: =IFERROR(INDEX('Data Annex'!$K$1:$AV$6077,MATCH(Assets!F$1&"|"&Assets!$B37,'Data Annex'!$K$1:$K$6077,0),MATCH(Assets!F$2,'Data Annex'!$K$1:$AV$1,0)),"") -> 0.04953778529 | G37: =IFERROR(INDEX('Data Annex'!$K$1:$AV$6077,MATCH(Assets!G$1&"|"&Assets!$B37,'Data Annex'!$K$1:$K$6077,0),MATCH(Assets!G$2,'Data Annex'!$K$1:$AV$1,0)),"") -> 0.04377281997 | H37: =IFERROR(INDEX('Data Annex'!$K$1:$AV$6077,MATCH(Assets!H$1&"|"&Assets!$B37,'Data Annex'!$K$1:$K$6077,0),MATCH(Assets!H$2,'Data Annex'!$K$1:$AV$1,0)),"") -> 0.001393905096 | I37: =IFERROR(INDEX('Data Annex'!$K$1:$AV$6077,MATCH(Assets!I$1&"|"&Assets!$B37,'Data Annex'!$K$1:$K$6077,0),MATCH(Assets!I$2,'Data Annex'!$K$1:$AV$1,0)),"") -> 0.001934022554 | J37: =IFERROR(INDEX('Data Annex'!$K$1:$AV$6077,MATCH(Assets!J$1&"|"&Assets!$B37,'Data Annex'!$K$1:$K$6077,0),MATCH(Assets!J$2,'Data Annex'!$K$1:$AV$1,0)),"") -> 0.001244522185 | K37: =IFERROR(INDEX('Data Annex'!$K$1:$AV$6077,MATCH(Assets!K$1&"|"&Assets!$B37,'Data Annex'!$K$1:$K$6077,0),MATCH(Assets!K$2,'Data Annex'!$K$1:$AV$1,0)),"") -> 0.299927095 | L37: =IFERROR(INDEX('Data Annex'!$K$1:$AV$6077,MATCH(Assets!L$1&"|"&Assets!$B37,'Data Annex'!$K$1:$K$6077,0),MATCH(Assets!L$2,'Data Annex'!$K$1:$AV$1,0)),"") -> 0.2520736803 | M37: =IFERROR(INDEX('Data Annex'!$K$1:$AV$6077,MATCH(Assets!M$1&"|"&Assets!$B37,'Data Annex'!$K$1:$K$6077,0),MATCH(Assets!M$2,'Data Annex'!$K$1:$AV$1,0)),"") -> 0.2813809885 | N37: =IFERROR(INDEX('Data Annex'!$K$1:$AV$6077,MATCH(Assets!N$1&"|"&Assets!$B37,'Data Annex'!$K$1:$K$6077,0),MATCH(Assets!N$2,'Data Annex'!$K$1:$AV$1,0)),"") -> 0.6088998433 | O37: =IFERROR(INDEX('Data Annex'!$K$1:$AV$6077,MATCH(Assets!O$1&"|"&Assets!$B37,'Data Annex'!$K$1:$K$6077,0),MATCH(Assets!O$2,'Data Annex'!$K$1:$AV$1,0)),"") -> 0.6113758008 | P37: =IFERROR(INDEX('Data Annex'!$K$1:$AV$6077,MATCH(Assets!P$1&"|"&Assets!$B37,'Data Annex'!$K$1:$K$6077,0),MATCH(Assets!P$2,'Data Annex'!$K$1:$AV$1,0)),"") -> 0.6018975164 | Q37: =IFERROR(INDEX('Data Annex'!$K$1:$AV$6077,MATCH(Assets!Q$1&"|"&Assets!$B37,'Data Annex'!$K$1:$K$6077,0),MATCH(Assets!Q$2,'Data Annex'!$K$1:$AV$1,0)),"") -> 0.02596600989 | R37: =IFERROR(INDEX('Data Annex'!$K$1:$AV$6077,MATCH(Assets!R$1&"|"&Assets!$B37,'Data Annex'!$K$1:$K$6077,0),MATCH(Assets!R$2,'Data Annex'!$K$1:$AV$1,0)),"") -> 0.05137915819 | S37: =IFERROR(INDEX('Data Annex'!$K$1:$AV$6077,MATCH(Assets!S$1&"|"&Assets!$B37,'Data Annex'!$K$1:$K$6077,0),MATCH(Assets!S$2,'Data Annex'!$K$1:$AV$1,0)),"") -> 0.03791772342 | T37: =IFERROR(INDEX('Data Annex'!$K$1:$AV$6077,MATCH(Assets!T$1&"|"&Assets!$B37,'Data Annex'!$K$1:$K$6077,0),MATCH(Assets!T$2,'Data Annex'!$K$1:$AV$1,0)),"") -> 0.03440425312 | U37: =IFERROR(INDEX('Data Annex'!$K$1:$AV$6077,MATCH(Assets!U$1&"|"&Assets!$B37,'Data Annex'!$K$1:$K$6077,0),MATCH(Assets!U$2,'Data Annex'!$K$1:$AV$1,0)),"") -> 0.03369955287 | V37: =IFERROR(INDEX('Data Annex'!$K$1:$AV$6077,MATCH(Assets!V$1&"|"&Assets!$B37,'Data Annex'!$K$1:$K$6077,0),MATCH(Assets!V$2,'Data Annex'!$K$1:$AV$1,0)),"") -> 0.03378642954 | W37: =IFERROR(INDEX('Data Annex'!$K$1:$AH$5813,MATCH(Assets!AC$1&"|"&Assets!$B37,'Data Annex'!$K$1:$K$5813,0),MATCH(Assets!AC$2,'Data Annex'!$K$1:$AH$1,0)),"") -> 
B38: PT | D38: PT | E38: =IFERROR(INDEX('Data Annex'!$K$1:$AV$6077,MATCH(Assets!E$1&"|"&Assets!$B38,'Data Annex'!$K$1:$K$6077,0),MATCH(Assets!E$2,'Data Annex'!$K$1:$AV$1,0)),"") -> 0.1556176624 | F38: =IFERROR(INDEX('Data Annex'!$K$1:$AV$6077,MATCH(Assets!F$1&"|"&Assets!$B38,'Data Annex'!$K$1:$K$6077,0),MATCH(Assets!F$2,'Data Annex'!$K$1:$AV$1,0)),"") -> 0.07278205657 | G38: =IFERROR(INDEX('Data Annex'!$K$1:$AV$6077,MATCH(Assets!G$1&"|"&Assets!$B38,'Data Annex'!$K$1:$K$6077,0),MATCH(Assets!G$2,'Data Annex'!$K$1:$AV$1,0)),"") -> 0.1481971508 | H38: =IFERROR(INDEX('Data Annex'!$K$1:$AV$6077,MATCH(Assets!H$1&"|"&Assets!$B38,'Data Annex'!$K$1:$K$6077,0),MATCH(Assets!H$2,'Data Annex'!$K$1:$AV$1,0)),"") -> 0.01076177688 | I38: =IFERROR(INDEX('Data Annex'!$K$1:$AV$6077,MATCH(Assets!I$1&"|"&Assets!$B38,'Data Annex'!$K$1:$K$6077,0),MATCH(Assets!I$2,'Data Annex'!$K$1:$AV$1,0)),"") -> 0.009671635668 | J38: =IFERROR(INDEX('Data Annex'!$K$1:$AV$6077,MATCH(Assets!J$1&"|"&Assets!$B38,'Data Annex'!$K$1:$K$6077,0),MATCH(Assets!J$2,'Data Annex'!$K$1:$AV$1,0)),"") -> 0.008067637128 | K38: =IFERROR(INDEX('Data Annex'!$K$1:$AV$6077,MATCH(Assets!K$1&"|"&Assets!$B38,'Data Annex'!$K$1:$K$6077,0),MATCH(Assets!K$2,'Data Annex'!$K$1:$AV$1,0)),"") -> 0.2074939535 | L38: =IFERROR(INDEX('Data Annex'!$K$1:$AV$6077,MATCH(Assets!L$1&"|"&Assets!$B38,'Data Annex'!$K$1:$K$6077,0),MATCH(Assets!L$2,'Data Annex'!$K$1:$AV$1,0)),"") -> 0.1973832161 | M38: =IFERROR(INDEX('Data Annex'!$K$1:$AV$6077,MATCH(Assets!M$1&"|"&Assets!$B38,'Data Annex'!$K$1:$K$6077,0),MATCH(Assets!M$2,'Data Annex'!$K$1:$AV$1,0)),"") -> 0.2010112669 | N38: =IFERROR(INDEX('Data Annex'!$K$1:$AV$6077,MATCH(Assets!N$1&"|"&Assets!$B38,'Data Annex'!$K$1:$K$6077,0),MATCH(Assets!N$2,'Data Annex'!$K$1:$AV$1,0)),"") -> 0.566282567 | O38: =IFERROR(INDEX('Data Annex'!$K$1:$AV$6077,MATCH(Assets!O$1&"|"&Assets!$B38,'Data Annex'!$K$1:$K$6077,0),MATCH(Assets!O$2,'Data Annex'!$K$1:$AV$1,0)),"") -> 0.6505601037 | P38: =IFERROR(INDEX('Data Annex'!$K$1:$AV$6077,MATCH(Assets!P$1&"|"&Assets!$B38,'Data Annex'!$K$1:$K$6077,0),MATCH(Assets!P$2,'Data Annex'!$K$1:$AV$1,0)),"") -> 0.5846676298 | Q38: =IFERROR(INDEX('Data Annex'!$K$1:$AV$6077,MATCH(Assets!Q$1&"|"&Assets!$B38,'Data Annex'!$K$1:$K$6077,0),MATCH(Assets!Q$2,'Data Annex'!$K$1:$AV$1,0)),"") -> 0.006223677867 | R38: =IFERROR(INDEX('Data Annex'!$K$1:$AV$6077,MATCH(Assets!R$1&"|"&Assets!$B38,'Data Annex'!$K$1:$K$6077,0),MATCH(Assets!R$2,'Data Annex'!$K$1:$AV$1,0)),"") -> 0.01123704394 | S38: =IFERROR(INDEX('Data Annex'!$K$1:$AV$6077,MATCH(Assets!S$1&"|"&Assets!$B38,'Data Annex'!$K$1:$K$6077,0),MATCH(Assets!S$2,'Data Annex'!$K$1:$AV$1,0)),"") -> 0.008928453394 | T38: =IFERROR(INDEX('Data Annex'!$K$1:$AV$6077,MATCH(Assets!T$1&"|"&Assets!$B38,'Data Annex'!$K$1:$K$6077,0),MATCH(Assets!T$2,'Data Annex'!$K$1:$AV$1,0)),"") -> 0.05362036239 | U38: =IFERROR(INDEX('Data Annex'!$K$1:$AV$6077,MATCH(Assets!U$1&"|"&Assets!$B38,'Data Annex'!$K$1:$K$6077,0),MATCH(Assets!U$2,'Data Annex'!$K$1:$AV$1,0)),"") -> 0.05836594405 | V38: =IFERROR(INDEX('Data Annex'!$K$1:$AV$6077,MATCH(Assets!V$1&"|"&Assets!$B38,'Data Annex'!$K$1:$K$6077,0),MATCH(Assets!V$2,'Data Annex'!$K$1:$AV$1,0)),"") -> 0.04912786203 | W38: =IFERROR(INDEX('Data Annex'!$K$1:$AH$5813,MATCH(Assets!AC$1&"|"&Assets!$B38,'Data Annex'!$K$1:$K$5813,0),MATCH(Assets!AC$2,'Data Annex'!$K$1:$AH$1,0)),"") -> 
B39: RO | D39: RO | E39: =IFERROR(INDEX('Data Annex'!$K$1:$AV$6077,MATCH(Assets!E$1&"|"&Assets!$B39,'Data Annex'!$K$1:$K$6077,0),MATCH(Assets!E$2,'Data Annex'!$K$1:$AV$1,0)),"") -> 0.136358883 | F39: =IFERROR(INDEX('Data Annex'!$K$1:$AV$6077,MATCH(Assets!F$1&"|"&Assets!$B39,'Data Annex'!$K$1:$K$6077,0),MATCH(Assets!F$2,'Data Annex'!$K$1:$AV$1,0)),"") -> 0.1268686157 | G39: =IFERROR(INDEX('Data Annex'!$K$1:$AV$6077,MATCH(Assets!G$1&"|"&Assets!$B39,'Data Annex'!$K$1:$K$6077,0),MATCH(Assets!G$2,'Data Annex'!$K$1:$AV$1,0)),"") -> 0.1254791243 | H39: =IFERROR(INDEX('Data Annex'!$K$1:$AV$6077,MATCH(Assets!H$1&"|"&Assets!$B39,'Data Annex'!$K$1:$K$6077,0),MATCH(Assets!H$2,'Data Annex'!$K$1:$AV$1,0)),"") -> 0.001249147352 | I39: =IFERROR(INDEX('Data Annex'!$K$1:$AV$6077,MATCH(Assets!I$1&"|"&Assets!$B39,'Data Annex'!$K$1:$K$6077,0),MATCH(Assets!I$2,'Data Annex'!$K$1:$AV$1,0)),"") -> 0.001472088986 | J39: =IFERROR(INDEX('Data Annex'!$K$1:$AV$6077,MATCH(Assets!J$1&"|"&Assets!$B39,'Data Annex'!$K$1:$K$6077,0),MATCH(Assets!J$2,'Data Annex'!$K$1:$AV$1,0)),"") -> 0.001518481788 | K39: =IFERROR(INDEX('Data Annex'!$K$1:$AV$6077,MATCH(Assets!K$1&"|"&Assets!$B39,'Data Annex'!$K$1:$K$6077,0),MATCH(Assets!K$2,'Data Annex'!$K$1:$AV$1,0)),"") -> 0.3090569175 | L39: =IFERROR(INDEX('Data Annex'!$K$1:$AV$6077,MATCH(Assets!L$1&"|"&Assets!$B39,'Data Annex'!$K$1:$K$6077,0),MATCH(Assets!L$2,'Data Annex'!$K$1:$AV$1,0)),"") -> 0.2852317488 | M39: =IFERROR(INDEX('Data Annex'!$K$1:$AV$6077,MATCH(Assets!M$1&"|"&Assets!$B39,'Data Annex'!$K$1:$K$6077,0),MATCH(Assets!M$2,'Data Annex'!$K$1:$AV$1,0)),"") -> 0.2843248433 | N39: =IFERROR(INDEX('Data Annex'!$K$1:$AV$6077,MATCH(Assets!N$1&"|"&Assets!$B39,'Data Annex'!$K$1:$K$6077,0),MATCH(Assets!N$2,'Data Annex'!$K$1:$AV$1,0)),"") -> 0.5309379706 | O39: =IFERROR(INDEX('Data Annex'!$K$1:$AV$6077,MATCH(Assets!O$1&"|"&Assets!$B39,'Data Annex'!$K$1:$K$6077,0),MATCH(Assets!O$2,'Data Annex'!$K$1:$AV$1,0)),"") -> 0.5609642321 | P39: =IFERROR(INDEX('Data Annex'!$K$1:$AV$6077,MATCH(Assets!P$1&"|"&Assets!$B39,'Data Annex'!$K$1:$K$6077,0),MATCH(Assets!P$2,'Data Annex'!$K$1:$AV$1,0)),"") -> 0.5599391226 | Q39: =IFERROR(INDEX('Data Annex'!$K$1:$AV$6077,MATCH(Assets!Q$1&"|"&Assets!$B39,'Data Annex'!$K$1:$K$6077,0),MATCH(Assets!Q$2,'Data Annex'!$K$1:$AV$1,0)),"") -> 0.0006496869472 | R39: =IFERROR(INDEX('Data Annex'!$K$1:$AV$6077,MATCH(Assets!R$1&"|"&Assets!$B39,'Data Annex'!$K$1:$K$6077,0),MATCH(Assets!R$2,'Data Annex'!$K$1:$AV$1,0)),"") -> 0.001982125658 | S39: =IFERROR(INDEX('Data Annex'!$K$1:$AV$6077,MATCH(Assets!S$1&"|"&Assets!$B39,'Data Annex'!$K$1:$K$6077,0),MATCH(Assets!S$2,'Data Annex'!$K$1:$AV$1,0)),"") -> 0.001837069574 | T39: =IFERROR(INDEX('Data Annex'!$K$1:$AV$6077,MATCH(Assets!T$1&"|"&Assets!$B39,'Data Annex'!$K$1:$K$6077,0),MATCH(Assets!T$2,'Data Annex'!$K$1:$AV$1,0)),"") -> 0.02174739456 | U39: =IFERROR(INDEX('Data Annex'!$K$1:$AV$6077,MATCH(Assets!U$1&"|"&Assets!$B39,'Data Annex'!$K$1:$K$6077,0),MATCH(Assets!U$2,'Data Annex'!$K$1:$AV$1,0)),"") -> 0.02348118884 | V39: =IFERROR(INDEX('Data Annex'!$K$1:$AV$6077,MATCH(Assets!V$1&"|"&Assets!$B39,'Data Annex'!$K$1:$K$6077,0),MATCH(Assets!V$2,'Data Annex'!$K$1:$AV$1,0)),"") -> 0.02690135846
B40: SE | D40: SE | E40: =IFERROR(INDEX('Data Annex'!$K$1:$AV$6077,MATCH(Assets!E$1&"|"&Assets!$B40,'Data Annex'!$K$1:$K$6077,0),MATCH(Assets!E$2,'Data Annex'!$K$1:$AV$1,0)),"") -> 0.1140588099 | F40: =IFERROR(INDEX('Data Annex'!$K$1:$AV$6077,MATCH(Assets!F$1&"|"&Assets!$B40,'Data Annex'!$K$1:$K$6077,0),MATCH(Assets!F$2,'Data Annex'!$K$1:$AV$1,0)),"") -> 0.1630226599 | G40: =IFERROR(INDEX('Data Annex'!$K$1:$AV$6077,MATCH(Assets!G$1&"|"&Assets!$B40,'Data Annex'!$K$1:$K$6077,0),MATCH(Assets!G$2,'Data Annex'!$K$1:$AV$1,0)),"") -> 0.1234345243 | H40: =IFERROR(INDEX('Data Annex'!$K$1:$AV$6077,MATCH(Assets!H$1&"|"&Assets!$B40,'Data Annex'!$K$1:$K$6077,0),MATCH(Assets!H$2,'Data Annex'!$K$1:$AV$1,0)),"") -> 0.01259797677 | I40: =IFERROR(INDEX('Data Annex'!$K$1:$AV$6077,MATCH(Assets!I$1&"|"&Assets!$B40,'Data Annex'!$K$1:$K$6077,0),MATCH(Assets!I$2,'Data Annex'!$K$1:$AV$1,0)),"") -> 0.006196988384 | J40: =IFERROR(INDEX('Data Annex'!$K$1:$AV$6077,MATCH(Assets!J$1&"|"&Assets!$B40,'Data Annex'!$K$1:$K$6077,0),MATCH(Assets!J$2,'Data Annex'!$K$1:$AV$1,0)),"") -> 0.005702254089 | K40: =IFERROR(INDEX('Data Annex'!$K$1:$AV$6077,MATCH(Assets!K$1&"|"&Assets!$B40,'Data Annex'!$K$1:$K$6077,0),MATCH(Assets!K$2,'Data Annex'!$K$1:$AV$1,0)),"") -> 0.07400356607 | L40: =IFERROR(INDEX('Data Annex'!$K$1:$AV$6077,MATCH(Assets!L$1&"|"&Assets!$B40,'Data Annex'!$K$1:$K$6077,0),MATCH(Assets!L$2,'Data Annex'!$K$1:$AV$1,0)),"") -> 0.07644783285 | M40: =IFERROR(INDEX('Data Annex'!$K$1:$AV$6077,MATCH(Assets!M$1&"|"&Assets!$B40,'Data Annex'!$K$1:$K$6077,0),MATCH(Assets!M$2,'Data Annex'!$K$1:$AV$1,0)),"") -> 0.07591296024 | N40: =IFERROR(INDEX('Data Annex'!$K$1:$AV$6077,MATCH(Assets!N$1&"|"&Assets!$B40,'Data Annex'!$K$1:$K$6077,0),MATCH(Assets!N$2,'Data Annex'!$K$1:$AV$1,0)),"") -> 0.7220889456 | O40: =IFERROR(INDEX('Data Annex'!$K$1:$AV$6077,MATCH(Assets!O$1&"|"&Assets!$B40,'Data Annex'!$K$1:$K$6077,0),MATCH(Assets!O$2,'Data Annex'!$K$1:$AV$1,0)),"") -> 0.6701593176 | P40: =IFERROR(INDEX('Data Annex'!$K$1:$AV$6077,MATCH(Assets!P$1&"|"&Assets!$B40,'Data Annex'!$K$1:$K$6077,0),MATCH(Assets!P$2,'Data Annex'!$K$1:$AV$1,0)),"") -> 0.7381521982 | Q40: =IFERROR(INDEX('Data Annex'!$K$1:$AV$6077,MATCH(Assets!Q$1&"|"&Assets!$B40,'Data Annex'!$K$1:$K$6077,0),MATCH(Assets!Q$2,'Data Annex'!$K$1:$AV$1,0)),"") -> 0.0208916913 | R40: =IFERROR(INDEX('Data Annex'!$K$1:$AV$6077,MATCH(Assets!R$1&"|"&Assets!$B40,'Data Annex'!$K$1:$K$6077,0),MATCH(Assets!R$2,'Data Annex'!$K$1:$AV$1,0)),"") -> 0.04530357682 | S40: =IFERROR(INDEX('Data Annex'!$K$1:$AV$6077,MATCH(Assets!S$1&"|"&Assets!$B40,'Data Annex'!$K$1:$K$6077,0),MATCH(Assets!S$2,'Data Annex'!$K$1:$AV$1,0)),"") -> 0.02892283122 | T40: =IFERROR(INDEX('Data Annex'!$K$1:$AV$6077,MATCH(Assets!T$1&"|"&Assets!$B40,'Data Annex'!$K$1:$K$6077,0),MATCH(Assets!T$2,'Data Annex'!$K$1:$AV$1,0)),"") -> 0.05635901039 | U40: =IFERROR(INDEX('Data Annex'!$K$1:$AV$6077,MATCH(Assets!U$1&"|"&Assets!$B40,'Data Annex'!$K$1:$K$6077,0),MATCH(Assets!U$2,'Data Annex'!$K$1:$AV$1,0)),"") -> 0.03886962445 | V40: =IFERROR(INDEX('Data Annex'!$K$1:$AV$6077,MATCH(Assets!V$1&"|"&Assets!$B40,'Data Annex'!$K$1:$K$6077,0),MATCH(Assets!V$2,'Data Annex'!$K$1:$AV$1,0)),"") -> 0.0278752319
B41: SI | D41: SI | E41: =IFERROR(INDEX('Data Annex'!$K$1:$AV$6077,MATCH(Assets!E$1&"|"&Assets!$B41,'Data Annex'!$K$1:$K$6077,0),MATCH(Assets!E$2,'Data Annex'!$K$1:$AV$1,0)),"") -> 0.23596831 | F41: =IFERROR(INDEX('Data Annex'!$K$1:$AV$6077,MATCH(Assets!F$1&"|"&Assets!$B41,'Data Annex'!$K$1:$K$6077,0),MATCH(Assets!F$2,'Data Annex'!$K$1:$AV$1,0)),"") -> 0.1950686815 | G41: =IFERROR(INDEX('Data Annex'!$K$1:$AV$6077,MATCH(Assets!G$1&"|"&Assets!$B41,'Data Annex'!$K$1:$K$6077,0),MATCH(Assets!G$2,'Data Annex'!$K$1:$AV$1,0)),"") -> 0.2065596698 | H41: =IFERROR(INDEX('Data Annex'!$K$1:$AV$6077,MATCH(Assets!H$1&"|"&Assets!$B41,'Data Annex'!$K$1:$K$6077,0),MATCH(Assets!H$2,'Data Annex'!$K$1:$AV$1,0)),"") -> 0.005039673725 | I41: =IFERROR(INDEX('Data Annex'!$K$1:$AV$6077,MATCH(Assets!I$1&"|"&Assets!$B41,'Data Annex'!$K$1:$K$6077,0),MATCH(Assets!I$2,'Data Annex'!$K$1:$AV$1,0)),"") -> 0.005421447014 | J41: =IFERROR(INDEX('Data Annex'!$K$1:$AV$6077,MATCH(Assets!J$1&"|"&Assets!$B41,'Data Annex'!$K$1:$K$6077,0),MATCH(Assets!J$2,'Data Annex'!$K$1:$AV$1,0)),"") -> 0.005109610637 | K41: =IFERROR(INDEX('Data Annex'!$K$1:$AV$6077,MATCH(Assets!K$1&"|"&Assets!$B41,'Data Annex'!$K$1:$K$6077,0),MATCH(Assets!K$2,'Data Annex'!$K$1:$AV$1,0)),"") -> 0.2154547278 | L41: =IFERROR(INDEX('Data Annex'!$K$1:$AV$6077,MATCH(Assets!L$1&"|"&Assets!$B41,'Data Annex'!$K$1:$K$6077,0),MATCH(Assets!L$2,'Data Annex'!$K$1:$AV$1,0)),"") -> 0.1906734041 | M41: =IFERROR(INDEX('Data Annex'!$K$1:$AV$6077,MATCH(Assets!M$1&"|"&Assets!$B41,'Data Annex'!$K$1:$K$6077,0),MATCH(Assets!M$2,'Data Annex'!$K$1:$AV$1,0)),"") -> 0.1903205315 | N41: =IFERROR(INDEX('Data Annex'!$K$1:$AV$6077,MATCH(Assets!N$1&"|"&Assets!$B41,'Data Annex'!$K$1:$K$6077,0),MATCH(Assets!N$2,'Data Annex'!$K$1:$AV$1,0)),"") -> 0.5212987946 | O41: =IFERROR(INDEX('Data Annex'!$K$1:$AV$6077,MATCH(Assets!O$1&"|"&Assets!$B41,'Data Annex'!$K$1:$K$6077,0),MATCH(Assets!O$2,'Data Annex'!$K$1:$AV$1,0)),"") -> 0.5840901359 | P41: =IFERROR(INDEX('Data Annex'!$K$1:$AV$6077,MATCH(Assets!P$1&"|"&Assets!$B41,'Data Annex'!$K$1:$K$6077,0),MATCH(Assets!P$2,'Data Annex'!$K$1:$AV$1,0)),"") -> 0.5736142008 | Q41: =IFERROR(INDEX('Data Annex'!$K$1:$AV$6077,MATCH(Assets!Q$1&"|"&Assets!$B41,'Data Annex'!$K$1:$K$6077,0),MATCH(Assets!Q$2,'Data Annex'!$K$1:$AV$1,0)),"") -> 0.0004991608091 | R41: =IFERROR(INDEX('Data Annex'!$K$1:$AV$6077,MATCH(Assets!R$1&"|"&Assets!$B41,'Data Annex'!$K$1:$K$6077,0),MATCH(Assets!R$2,'Data Annex'!$K$1:$AV$1,0)),"") -> 0.002659509923 | S41: =IFERROR(INDEX('Data Annex'!$K$1:$AV$6077,MATCH(Assets!S$1&"|"&Assets!$B41,'Data Annex'!$K$1:$K$6077,0),MATCH(Assets!S$2,'Data Annex'!$K$1:$AV$1,0)),"") -> 0.002385908356 | T41: =IFERROR(INDEX('Data Annex'!$K$1:$AV$6077,MATCH(Assets!T$1&"|"&Assets!$B41,'Data Annex'!$K$1:$K$6077,0),MATCH(Assets!T$2,'Data Annex'!$K$1:$AV$1,0)),"") -> 0.02173930479 | U41: =IFERROR(INDEX('Data Annex'!$K$1:$AV$6077,MATCH(Assets!U$1&"|"&Assets!$B41,'Data Annex'!$K$1:$K$6077,0),MATCH(Assets!U$2,'Data Annex'!$K$1:$AV$1,0)),"") -> 0.02208682156 | V41: =IFERROR(INDEX('Data Annex'!$K$1:$AV$6077,MATCH(Assets!V$1&"|"&Assets!$B41,'Data Annex'!$K$1:$K$6077,0),MATCH(Assets!V$2,'Data Annex'!$K$1:$AV$1,0)),"") -> 0.02201007883
B42: SK | D42: SK | E42: =IFERROR(INDEX('Data Annex'!$K$1:$AV$6077,MATCH(Assets!E$1&"|"&Assets!$B42,'Data Annex'!$K$1:$K$6077,0),MATCH(Assets!E$2,'Data Annex'!$K$1:$AV$1,0)),"") -> 0.1433206515 | F42: =IFERROR(INDEX('Data Annex'!$K$1:$AV$6077,MATCH(Assets!F$1&"|"&Assets!$B42,'Data Annex'!$K$1:$K$6077,0),MATCH(Assets!F$2,'Data Annex'!$K$1:$AV$1,0)),"") -> 0.06666436522 | G42: =IFERROR(INDEX('Data Annex'!$K$1:$AV$6077,MATCH(Assets!G$1&"|"&Assets!$B42,'Data Annex'!$K$1:$K$6077,0),MATCH(Assets!G$2,'Data Annex'!$K$1:$AV$1,0)),"") -> 0.1243693578 | H42: =IFERROR(INDEX('Data Annex'!$K$1:$AV$6077,MATCH(Assets!H$1&"|"&Assets!$B42,'Data Annex'!$K$1:$K$6077,0),MATCH(Assets!H$2,'Data Annex'!$K$1:$AV$1,0)),"") -> 0.0003578635534 | I42: =IFERROR(INDEX('Data Annex'!$K$1:$AV$6077,MATCH(Assets!I$1&"|"&Assets!$B42,'Data Annex'!$K$1:$K$6077,0),MATCH(Assets!I$2,'Data Annex'!$K$1:$AV$1,0)),"") -> 0.0003993063864 | J42: =IFERROR(INDEX('Data Annex'!$K$1:$AV$6077,MATCH(Assets!J$1&"|"&Assets!$B42,'Data Annex'!$K$1:$K$6077,0),MATCH(Assets!J$2,'Data Annex'!$K$1:$AV$1,0)),"") -> 0.0002775492105 | K42: =IFERROR(INDEX('Data Annex'!$K$1:$AV$6077,MATCH(Assets!K$1&"|"&Assets!$B42,'Data Annex'!$K$1:$K$6077,0),MATCH(Assets!K$2,'Data Annex'!$K$1:$AV$1,0)),"") -> 0.1254711849 | L42: =IFERROR(INDEX('Data Annex'!$K$1:$AV$6077,MATCH(Assets!L$1&"|"&Assets!$B42,'Data Annex'!$K$1:$K$6077,0),MATCH(Assets!L$2,'Data Annex'!$K$1:$AV$1,0)),"") -> 0.1158562241 | M42: =IFERROR(INDEX('Data Annex'!$K$1:$AV$6077,MATCH(Assets!M$1&"|"&Assets!$B42,'Data Annex'!$K$1:$K$6077,0),MATCH(Assets!M$2,'Data Annex'!$K$1:$AV$1,0)),"") -> 0.1287348562 | N42: =IFERROR(INDEX('Data Annex'!$K$1:$AV$6077,MATCH(Assets!N$1&"|"&Assets!$B42,'Data Annex'!$K$1:$K$6077,0),MATCH(Assets!N$2,'Data Annex'!$K$1:$AV$1,0)),"") -> 0.7133092843 | O42: =IFERROR(INDEX('Data Annex'!$K$1:$AV$6077,MATCH(Assets!O$1&"|"&Assets!$B42,'Data Annex'!$K$1:$K$6077,0),MATCH(Assets!O$2,'Data Annex'!$K$1:$AV$1,0)),"") -> 0.7946253659 | P42: =IFERROR(INDEX('Data Annex'!$K$1:$AV$6077,MATCH(Assets!P$1&"|"&Assets!$B42,'Data Annex'!$K$1:$K$6077,0),MATCH(Assets!P$2,'Data Annex'!$K$1:$AV$1,0)),"") -> 0.7257954833 | Q42: =IFERROR(INDEX('Data Annex'!$K$1:$AV$6077,MATCH(Assets!Q$1&"|"&Assets!$B42,'Data Annex'!$K$1:$K$6077,0),MATCH(Assets!Q$2,'Data Annex'!$K$1:$AV$1,0)),"") -> 0.002756716427 | R42: =IFERROR(INDEX('Data Annex'!$K$1:$AV$6077,MATCH(Assets!R$1&"|"&Assets!$B42,'Data Annex'!$K$1:$K$6077,0),MATCH(Assets!R$2,'Data Annex'!$K$1:$AV$1,0)),"") -> 0.008000397315 | S42: =IFERROR(INDEX('Data Annex'!$K$1:$AV$6077,MATCH(Assets!S$1&"|"&Assets!$B42,'Data Annex'!$K$1:$K$6077,0),MATCH(Assets!S$2,'Data Annex'!$K$1:$AV$1,0)),"") -> 0.008405040506 | T42: =IFERROR(INDEX('Data Annex'!$K$1:$AV$6077,MATCH(Assets!T$1&"|"&Assets!$B42,'Data Annex'!$K$1:$K$6077,0),MATCH(Assets!T$2,'Data Annex'!$K$1:$AV$1,0)),"") -> 0.01478429922 | U42: =IFERROR(INDEX('Data Annex'!$K$1:$AV$6077,MATCH(Assets!U$1&"|"&Assets!$B42,'Data Annex'!$K$1:$K$6077,0),MATCH(Assets!U$2,'Data Annex'!$K$1:$AV$1,0)),"") -> 0.01445434108 | V42: =IFERROR(INDEX('Data Annex'!$K$1:$AV$6077,MATCH(Assets!V$1&"|"&Assets!$B42,'Data Annex'!$K$1:$K$6077,0),MATCH(Assets!V$2,'Data Annex'!$K$1:$AV$1,0)),"") -> 0.01241771298
B43: EU | D43: EU/EEA | E43: =IFERROR(INDEX('Data Annex'!$K$1:$AV$6077,MATCH(Assets!E$1&"|"&Assets!$B43,'Data Annex'!$K$1:$K$6077,0),MATCH(Assets!E$2,'Data Annex'!$K$1:$AV$1,0)),"") -> 0.1489907081 | F43: =IFERROR(INDEX('Data Annex'!$K$1:$AV$6077,MATCH(Assets!F$1&"|"&Assets!$B43,'Data Annex'!$K$1:$K$6077,0),MATCH(Assets!F$2,'Data Annex'!$K$1:$AV$1,0)),"") -> 0.1528070523 | G43: =IFERROR(INDEX('Data Annex'!$K$1:$AV$6077,MATCH(Assets!G$1&"|"&Assets!$B43,'Data Annex'!$K$1:$K$6077,0),MATCH(Assets!G$2,'Data Annex'!$K$1:$AV$1,0)),"") -> 0.1371186112 | H43: =IFERROR(INDEX('Data Annex'!$K$1:$AV$6077,MATCH(Assets!H$1&"|"&Assets!$B43,'Data Annex'!$K$1:$K$6077,0),MATCH(Assets!H$2,'Data Annex'!$K$1:$AV$1,0)),"") -> 0.01653775797 | I43: =IFERROR(INDEX('Data Annex'!$K$1:$AV$6077,MATCH(Assets!I$1&"|"&Assets!$B43,'Data Annex'!$K$1:$K$6077,0),MATCH(Assets!I$2,'Data Annex'!$K$1:$AV$1,0)),"") -> 0.01137371026 | J43: =IFERROR(INDEX('Data Annex'!$K$1:$AV$6077,MATCH(Assets!J$1&"|"&Assets!$B43,'Data Annex'!$K$1:$K$6077,0),MATCH(Assets!J$2,'Data Annex'!$K$1:$AV$1,0)),"") -> 0.01291046135 | K43: =IFERROR(INDEX('Data Annex'!$K$1:$AV$6077,MATCH(Assets!K$1&"|"&Assets!$B43,'Data Annex'!$K$1:$K$6077,0),MATCH(Assets!K$2,'Data Annex'!$K$1:$AV$1,0)),"") -> 0.1191526242 | L43: =IFERROR(INDEX('Data Annex'!$K$1:$AV$6077,MATCH(Assets!L$1&"|"&Assets!$B43,'Data Annex'!$K$1:$K$6077,0),MATCH(Assets!L$2,'Data Annex'!$K$1:$AV$1,0)),"") -> 0.1116510348 | M43: =IFERROR(INDEX('Data Annex'!$K$1:$AV$6077,MATCH(Assets!M$1&"|"&Assets!$B43,'Data Annex'!$K$1:$K$6077,0),MATCH(Assets!M$2,'Data Annex'!$K$1:$AV$1,0)),"") -> 0.115959708 | N43: =IFERROR(INDEX('Data Annex'!$K$1:$AV$6077,MATCH(Assets!N$1&"|"&Assets!$B43,'Data Annex'!$K$1:$K$6077,0),MATCH(Assets!N$2,'Data Annex'!$K$1:$AV$1,0)),"") -> 0.6057547972 | O43: =IFERROR(INDEX('Data Annex'!$K$1:$AV$6077,MATCH(Assets!O$1&"|"&Assets!$B43,'Data Annex'!$K$1:$K$6077,0),MATCH(Assets!O$2,'Data Annex'!$K$1:$AV$1,0)),"") -> 0.5926736265 | P43: =IFERROR(INDEX('Data Annex'!$K$1:$AV$6077,MATCH(Assets!P$1&"|"&Assets!$B43,'Data Annex'!$K$1:$K$6077,0),MATCH(Assets!P$2,'Data Annex'!$K$1:$AV$1,0)),"") -> 0.6176266186 | Q43: =IFERROR(INDEX('Data Annex'!$K$1:$AV$6077,MATCH(Assets!Q$1&"|"&Assets!$B43,'Data Annex'!$K$1:$K$6077,0),MATCH(Assets!Q$2,'Data Annex'!$K$1:$AV$1,0)),"") -> 0.05339638142 | R43: =IFERROR(INDEX('Data Annex'!$K$1:$AV$6077,MATCH(Assets!R$1&"|"&Assets!$B43,'Data Annex'!$K$1:$K$6077,0),MATCH(Assets!R$2,'Data Annex'!$K$1:$AV$1,0)),"") -> 0.08087398247 | S43: =IFERROR(INDEX('Data Annex'!$K$1:$AV$6077,MATCH(Assets!S$1&"|"&Assets!$B43,'Data Annex'!$K$1:$K$6077,0),MATCH(Assets!S$2,'Data Annex'!$K$1:$AV$1,0)),"") -> 0.06713348633 | T43: =IFERROR(INDEX('Data Annex'!$K$1:$AV$6077,MATCH(Assets!T$1&"|"&Assets!$B43,'Data Annex'!$K$1:$K$6077,0),MATCH(Assets!T$2,'Data Annex'!$K$1:$AV$1,0)),"") -> 0.05616773085 | U43: =IFERROR(INDEX('Data Annex'!$K$1:$AV$6077,MATCH(Assets!U$1&"|"&Assets!$B43,'Data Annex'!$K$1:$K$6077,0),MATCH(Assets!U$2,'Data Annex'!$K$1:$AV$1,0)),"") -> 0.05062059385 | V43: =IFERROR(INDEX('Data Annex'!$K$1:$AV$6077,MATCH(Assets!V$1&"|"&Assets!$B43,'Data Annex'!$K$1:$K$6077,0),MATCH(Assets!V$2,'Data Annex'!$K$1:$AV$1,0)),"") -> 0.04925111453
F46: T02_1 | G46: T02_1 | H46: T02_1 | I46: T02_2 | J46: T02_2 | K46: T02_2 | O46: T03_1 | P46: T03_1 | Q46: T03_1 | R46: T03_2 | S46: T03_2 | T46: T03_2 | U46: T03_3 | V46: T03_3 | W46: T03_3
F47: =TEXT(F52,"YYYYMM")+0 -> 202112 | G47: 202209 | H47: 202212 | I47: 202112 | J47: 202209 | K47: 202212 | O47: =TEXT(O52,"YYYYMM")+0 -> 202112 | P47: 202209 | Q47: 202212 | R47: 202112 | S47: 202209 | T47: 202212 | U47: 202112 | V47: 202209 | W47: 202212
D48: Assets | M48: Financial Assets
D50: Volumes bn EUR | M50: % of total financial assets
F51: Total Assets | I51: Total Financial Assets | O51: Share of financial assets valued at (amortised) cost | R51: Share of financial assets at fair value through OCI | U51: Share of financial assets at fair value through profit&loss
F52: =EOMONTH($A$3,-12) -> 2021-12-31 | G52: =EOMONTH($A$3,-3) -> 2022-09-30 | H52: =$A$3 -> 2022-12-01 | I52: =EOMONTH($A$3,-12) -> 2021-12-31 | J52: =EOMONTH($A$3,-3) -> 2022-09-30 | K52: =$A$3 -> 2022-12-01 | O52: =EOMONTH($A$3,-12) -> 2021-12-31 | P52: =EOMONTH($A$3,-3) -> 2022-09-30 | Q52: =$A$3 -> 2022-12-01 | R52: =EOMONTH($A$3,-12) -> 2021-12-31 | S52: =EOMONTH($A$3,-3) -> 2022-09-30 | T52: =$A$3 -> 2022-12-01 | U52: =EOMONTH($A$3,-12) -> 2021-12-31 | V52: =EOMONTH($A$3,-3) -> 2022-09-30 | W52: =$A$3 -> 2022-12-01
B53: AT | D53: =IF(OR(F53="n.a.",G53="n.a.",H53="n.a.",I53="n.a.",J53="n.a.",K53="n.a."),$B53&"*",$B53) -> AT | F53: =IFERROR(INDEX('Data Annex'!$K$1:$AV$6077,MATCH(Assets!F$46&"|"&Assets!$B53,'Data Annex'!$K$1:$K$6077,0),MATCH(Assets!F$47,'Data Annex'!$K$1:$AV$1,0)),"") -> 770.2547033 | G53: =IFERROR(INDEX('Data Annex'!$K$1:$AV$6077,MATCH(Assets!G$46&"|"&Assets!$B53,'Data Annex'!$K$1:$K$6077,0),MATCH(Assets!G$47,'Data Annex'!$K$1:$AV$1,0)),"") -> 814.0728076 | H53: =IFERROR(INDEX('Data Annex'!$K$1:$AV$6077,MATCH(Assets!H$46&"|"&Assets!$B53,'Data Annex'!$K$1:$K$6077,0),MATCH(Assets!H$47,'Data Annex'!$K$1:$AV$1,0)),"") -> 772.3290079 | I53: =IFERROR(INDEX('Data Annex'!$K$1:$AV$6077,MATCH(Assets!I$46&"|"&Assets!$B53,'Data Annex'!$K$1:$K$6077,0),MATCH(Assets!I$47,'Data Annex'!$K$1:$AV$1,0)),"") -> 735.1744825 | J53: =IFERROR(INDEX('Data Annex'!$K$1:$AV$6077,MATCH(Assets!J$46&"|"&Assets!$B53,'Data Annex'!$K$1:$K$6077,0),MATCH(Assets!J$47,'Data Annex'!$K$1:$AV$1,0)),"") -> 796.133644 | K53: =IFERROR(INDEX('Data Annex'!$K$1:$AV$6077,MATCH(Assets!K$46&"|"&Assets!$B53,'Data Annex'!$K$1:$K$6077,0),MATCH(Assets!K$47,'Data Annex'!$K$1:$AV$1,0)),"") -> 753.8800734 | L53: =K53/H53 -> 0.9761125966 | M53: =+D53 -> AT | O53: =IFERROR(INDEX('Data Annex'!$K$1:$AV$6077,MATCH(Assets!O$46&"|"&Assets!$B53,'Data Annex'!$K$1:$K$6077,0),MATCH(Assets!O$47,'Data Annex'!$K$1:$AV$1,0)),"") -> 0.9214437988 | P53: =IFERROR(INDEX('Data Annex'!$K$1:$AV$6077,MATCH(Assets!P$46&"|"&Assets!$B53,'Data Annex'!$K$1:$K$6077,0),MATCH(Assets!P$47,'Data Annex'!$K$1:$AV$1,0)),"") -> 0.9189886888 | Q53: =IFERROR(INDEX('Data Annex'!$K$1:$AV$6077,MATCH(Assets!Q$46&"|"&Assets!$B53,'Data Annex'!$K$1:$K$6077,0),MATCH(Assets!Q$47,'Data Annex'!$K$1:$AV$1,0)),"") -> 0.916736312 | R53: =IFERROR(INDEX('Data Annex'!$K$1:$AV$6077,MATCH(Assets!R$46&"|"&Assets!$B53,'Data Annex'!$K$1:$K$6077,0),MATCH(Assets!R$47,'Data Annex'!$K$1:$AV$1,0)),"") -> 0.04693319731 | S53: =IFERROR(INDEX('Data Annex'!$K$1:$AV$6077,MATCH(Assets!S$46&"|"&Assets!$B53,'Data Annex'!$K$1:$K$6077,0),MATCH(Assets!S$47,'Data Annex'!$K$1:$AV$1,0)),"") -> 0.03964974188 | T53: =IFERROR(INDEX('Data Annex'!$K$1:$AV$6077,MATCH(Assets!T$46&"|"&Assets!$B53,'Data Annex'!$K$1:$K$6077,0),MATCH(Assets!T$47,'Data Annex'!$K$1:$AV$1,0)),"") -> 0.04072974555 | U53: =IFERROR(INDEX('Data Annex'!$K$1:$AV$6077,MATCH(Assets!U$46&"|"&Assets!$B53,'Data Annex'!$K$1:$K$6077,0),MATCH(Assets!U$47,'Data Annex'!$K$1:$AV$1,0)),"") -> 0.03162300384 | V53: =IFERROR(INDEX('Data Annex'!$K$1:$AV$6077,MATCH(Assets!V$46&"|"&Assets!$B53,'Data Annex'!$K$1:$K$6077,0),MATCH(Assets!V$47,'Data Annex'!$K$1:$AV$1,0)),"") -> 0.04136156929 | W53: =IFERROR(INDEX('Data Annex'!$K$1:$AV$6077,MATCH(Assets!W$46&"|"&Assets!$B53,'Data Annex'!$K$1:$K$6077,0),MATCH(Assets!W$47,'Data Annex'!$K$1:$AV$1,0)),"") -> 0.0425339425
B54: BE | D54: =IF(OR(F54="n.a.",G54="n.a.",H54="n.a.",I54="n.a.",J54="n.a.",K54="n.a."),$B54&"*",$B54) -> BE | F54: =IFERROR(INDEX('Data Annex'!$K$1:$AV$6077,MATCH(Assets!F$46&"|"&Assets!$B54,'Data Annex'!$K$1:$K$6077,0),MATCH(Assets!F$47,'Data Annex'!$K$1:$AV$1,0)),"") -> 1219.65139 | G54: =IFERROR(INDEX('Data Annex'!$K$1:$AV$6077,MATCH(Assets!G$46&"|"&Assets!$B54,'Data Annex'!$K$1:$K$6077,0),MATCH(Assets!G$47,'Data Annex'!$K$1:$AV$1,0)),"") -> 1255.13627 | H54: =IFERROR(INDEX('Data Annex'!$K$1:$AV$6077,MATCH(Assets!H$46&"|"&Assets!$B54,'Data Annex'!$K$1:$K$6077,0),MATCH(Assets!H$47,'Data Annex'!$K$1:$AV$1,0)),"") -> 1199.121062 | I54: =IFERROR(INDEX('Data Annex'!$K$1:$AV$6077,MATCH(Assets!I$46&"|"&Assets!$B54,'Data Annex'!$K$1:$K$6077,0),MATCH(Assets!I$47,'Data Annex'!$K$1:$AV$1,0)),"") -> 1167.887566 | J54: =IFERROR(INDEX('Data Annex'!$K$1:$AV$6077,MATCH(Assets!J$46&"|"&Assets!$B54,'Data Annex'!$K$1:$K$6077,0),MATCH(Assets!J$47,'Data Annex'!$K$1:$AV$1,0)),"") -> 1217.822114 | K54: =IFERROR(INDEX('Data Annex'!$K$1:$AV$6077,MATCH(Assets!K$46&"|"&Assets!$B54,'Data Annex'!$K$1:$K$6077,0),MATCH(Assets!K$47,'Data Annex'!$K$1:$AV$1,0)),"") -> 1164.38599 | L54: 0.9710328891 | M54: BE | O54: =IFERROR(INDEX('Data Annex'!$K$1:$AV$6077,MATCH(Assets!O$46&"|"&Assets!$B54,'Data Annex'!$K$1:$K$6077,0),MATCH(Assets!O$47,'Data Annex'!$K$1:$AV$1,0)),"") -> 0.9232086745 | P54: =IFERROR(INDEX('Data Annex'!$K$1:$AV$6077,MATCH(Assets!P$46&"|"&Assets!$B54,'Data Annex'!$K$1:$K$6077,0),MATCH(Assets!P$47,'Data Annex'!$K$1:$AV$1,0)),"") -> 0.9135100157 | Q54: =IFERROR(INDEX('Data Annex'!$K$1:$AV$6077,MATCH(Assets!Q$46&"|"&Assets!$B54,'Data Annex'!$K$1:$K$6077,0),MATCH(Assets!Q$47,'Data Annex'!$K$1:$AV$1,0)),"") -> 0.9200457706 | R54: =IFERROR(INDEX('Data Annex'!$K$1:$AV$6077,MATCH(Assets!R$46&"|"&Assets!$B54,'Data Annex'!$K$1:$K$6077,0),MATCH(Assets!R$47,'Data Annex'!$K$1:$AV$1,0)),"") -> 0.03082699843 | S54: =IFERROR(INDEX('Data Annex'!$K$1:$AV$6077,MATCH(Assets!S$46&"|"&Assets!$B54,'Data Annex'!$K$1:$K$6077,0),MATCH(Assets!S$47,'Data Annex'!$K$1:$AV$1,0)),"") -> 0.02529809269 | T54: =IFERROR(INDEX('Data Annex'!$K$1:$AV$6077,MATCH(Assets!T$46&"|"&Assets!$B54,'Data Annex'!$K$1:$K$6077,0),MATCH(Assets!T$47,'Data Annex'!$K$1:$AV$1,0)),"") -> 0.02550235443 | U54: =IFERROR(INDEX('Data Annex'!$K$1:$AV$6077,MATCH(Assets!U$46&"|"&Assets!$B54,'Data Annex'!$K$1:$K$6077,0),MATCH(Assets!U$47,'Data Annex'!$K$1:$AV$1,0)),"") -> 0.04596432704 | V54: =IFERROR(INDEX('Data Annex'!$K$1:$AV$6077,MATCH(Assets!V$46&"|"&Assets!$B54,'Data Annex'!$K$1:$K$6077,0),MATCH(Assets!V$47,'Data Annex'!$K$1:$AV$1,0)),"") -> 0.06119189165 | W54: =IFERROR(INDEX('Data Annex'!$K$1:$AV$6077,MATCH(Assets!W$46&"|"&Assets!$B54,'Data Annex'!$K$1:$K$6077,0),MATCH(Assets!W$47,'Data Annex'!$K$1:$AV$1,0)),"") -> 0.05445187499
B55: BG | D55: BG | F55: =IFERROR(INDEX('Data Annex'!$K$1:$AV$6077,MATCH(Assets!F$46&"|"&Assets!$B55,'Data Annex'!$K$1:$K$6077,0),MATCH(Assets!F$47,'Data Annex'!$K$1:$AV$1,0)),"") -> 39.59424481 | G55: =IFERROR(INDEX('Data Annex'!$K$1:$AV$6077,MATCH(Assets!G$46&"|"&Assets!$B55,'Data Annex'!$K$1:$K$6077,0),MATCH(Assets!G$47,'Data Annex'!$K$1:$AV$1,0)),"") -> 36.97134421 | H55: =IFERROR(INDEX('Data Annex'!$K$1:$AV$6077,MATCH(Assets!H$46&"|"&Assets!$B55,'Data Annex'!$K$1:$K$6077,0),MATCH(Assets!H$47,'Data Annex'!$K$1:$AV$1,0)),"") -> 38.85573116 | I55: =IFERROR(INDEX('Data Annex'!$K$1:$AV$6077,MATCH(Assets!I$46&"|"&Assets!$B55,'Data Annex'!$K$1:$K$6077,0),MATCH(Assets!I$47,'Data Annex'!$K$1:$AV$1,0)),"") -> 38.01141426 | J55: =IFERROR(INDEX('Data Annex'!$K$1:$AV$6077,MATCH(Assets!J$46&"|"&Assets!$B55,'Data Annex'!$K$1:$K$6077,0),MATCH(Assets!J$47,'Data Annex'!$K$1:$AV$1,0)),"") -> 36.07902751 | K55: =IFERROR(INDEX('Data Annex'!$K$1:$AV$6077,MATCH(Assets!K$46&"|"&Assets!$B55,'Data Annex'!$K$1:$K$6077,0),MATCH(Assets!K$47,'Data Annex'!$K$1:$AV$1,0)),"") -> 37.98054096 | L55: 0.9774759044 | M55: BG | O55: =IFERROR(INDEX('Data Annex'!$K$1:$AV$6077,MATCH(Assets!O$46&"|"&Assets!$B55,'Data Annex'!$K$1:$K$6077,0),MATCH(Assets!O$47,'Data Annex'!$K$1:$AV$1,0)),"") -> 0.8975808984 | P55: =IFERROR(INDEX('Data Annex'!$K$1:$AV$6077,MATCH(Assets!P$46&"|"&Assets!$B55,'Data Annex'!$K$1:$K$6077,0),MATCH(Assets!P$47,'Data Annex'!$K$1:$AV$1,0)),"") -> 0.9305997778 | Q55: =IFERROR(INDEX('Data Annex'!$K$1:$AV$6077,MATCH(Assets!Q$46&"|"&Assets!$B55,'Data Annex'!$K$1:$K$6077,0),MATCH(Assets!Q$47,'Data Annex'!$K$1:$AV$1,0)),"") -> 0.9359891345 | R55: =IFERROR(INDEX('Data Annex'!$K$1:$AV$6077,MATCH(Assets!R$46&"|"&Assets!$B55,'Data Annex'!$K$1:$K$6077,0),MATCH(Assets!R$47,'Data Annex'!$K$1:$AV$1,0)),"") -> 0.09430632378 | S55: =IFERROR(INDEX('Data Annex'!$K$1:$AV$6077,MATCH(Assets!S$46&"|"&Assets!$B55,'Data Annex'!$K$1:$K$6077,0),MATCH(Assets!S$47,'Data Annex'!$K$1:$AV$1,0)),"") -> 0.06071265425 | T55: =IFERROR(INDEX('Data Annex'!$K$1:$AV$6077,MATCH(Assets!T$46&"|"&Assets!$B55,'Data Annex'!$K$1:$K$6077,0),MATCH(Assets!T$47,'Data Annex'!$K$1:$AV$1,0)),"") -> 0.05794482086 | U55: =IFERROR(INDEX('Data Annex'!$K$1:$AV$6077,MATCH(Assets!U$46&"|"&Assets!$B55,'Data Annex'!$K$1:$K$6077,0),MATCH(Assets!U$47,'Data Annex'!$K$1:$AV$1,0)),"") -> 0.008112777788 | V55: =IFERROR(INDEX('Data Annex'!$K$1:$AV$6077,MATCH(Assets!V$46&"|"&Assets!$B55,'Data Annex'!$K$1:$K$6077,0),MATCH(Assets!V$47,'Data Annex'!$K$1:$AV$1,0)),"") -> 0.008687567919 | W55: =IFERROR(INDEX('Data Annex'!$K$1:$AV$6077,MATCH(Assets!W$46&"|"&Assets!$B55,'Data Annex'!$K$1:$K$6077,0),MATCH(Assets!W$47,'Data Annex'!$K$1:$AV$1,0)),"") -> 0.006066044606
B56: CY | D56: CY | F56: =IFERROR(INDEX('Data Annex'!$K$1:$AV$6077,MATCH(Assets!F$46&"|"&Assets!$B56,'Data Annex'!$K$1:$K$6077,0),MATCH(Assets!F$47,'Data Annex'!$K$1:$AV$1,0)),"") -> 42.7003974 | G56: =IFERROR(INDEX('Data Annex'!$K$1:$AV$6077,MATCH(Assets!G$46&"|"&Assets!$B56,'Data Annex'!$K$1:$K$6077,0),MATCH(Assets!G$47,'Data Annex'!$K$1:$AV$1,0)),"") -> 44.85151766 | H56: =IFERROR(INDEX('Data Annex'!$K$1:$AV$6077,MATCH(Assets!H$46&"|"&Assets!$B56,'Data Annex'!$K$1:$K$6077,0),MATCH(Assets!H$47,'Data Annex'!$K$1:$AV$1,0)),"") -> 44.89651904 | I56: =IFERROR(INDEX('Data Annex'!$K$1:$AV$6077,MATCH(Assets!I$46&"|"&Assets!$B56,'Data Annex'!$K$1:$K$6077,0),MATCH(Assets!I$47,'Data Annex'!$K$1:$AV$1,0)),"") -> 39.26921611 | J56: =IFERROR(INDEX('Data Annex'!$K$1:$AV$6077,MATCH(Assets!J$46&"|"&Assets!$B56,'Data Annex'!$K$1:$K$6077,0),MATCH(Assets!J$47,'Data Annex'!$K$1:$AV$1,0)),"") -> 41.61390895 | K56: =IFERROR(INDEX('Data Annex'!$K$1:$AV$6077,MATCH(Assets!K$46&"|"&Assets!$B56,'Data Annex'!$K$1:$K$6077,0),MATCH(Assets!K$47,'Data Annex'!$K$1:$AV$1,0)),"") -> 42.03364324 | L56: 0.9362339027 | M56: CY | O56: =IFERROR(INDEX('Data Annex'!$K$1:$AV$6077,MATCH(Assets!O$46&"|"&Assets!$B56,'Data Annex'!$K$1:$K$6077,0),MATCH(Assets!O$47,'Data Annex'!$K$1:$AV$1,0)),"") -> 0.9679387531 | P56: =IFERROR(INDEX('Data Annex'!$K$1:$AV$6077,MATCH(Assets!P$46&"|"&Assets!$B56,'Data Annex'!$K$1:$K$6077,0),MATCH(Assets!P$47,'Data Annex'!$K$1:$AV$1,0)),"") -> 0.9771807142 | Q56: =IFERROR(INDEX('Data Annex'!$K$1:$AV$6077,MATCH(Assets!Q$46&"|"&Assets!$B56,'Data Annex'!$K$1:$K$6077,0),MATCH(Assets!Q$47,'Data Annex'!$K$1:$AV$1,0)),"") -> 0.9795701155 | R56: =IFERROR(INDEX('Data Annex'!$K$1:$AV$6077,MATCH(Assets!R$46&"|"&Assets!$B56,'Data Annex'!$K$1:$K$6077,0),MATCH(Assets!R$47,'Data Annex'!$K$1:$AV$1,0)),"") -> 0.02372548921 | S56: =IFERROR(INDEX('Data Annex'!$K$1:$AV$6077,MATCH(Assets!S$46&"|"&Assets!$B56,'Data Annex'!$K$1:$K$6077,0),MATCH(Assets!S$47,'Data Annex'!$K$1:$AV$1,0)),"") -> 0.01453710189 | T56: =IFERROR(INDEX('Data Annex'!$K$1:$AV$6077,MATCH(Assets!T$46&"|"&Assets!$B56,'Data Annex'!$K$1:$K$6077,0),MATCH(Assets!T$47,'Data Annex'!$K$1:$AV$1,0)),"") -> 0.0132814564 | U56: =IFERROR(INDEX('Data Annex'!$K$1:$AV$6077,MATCH(Assets!U$46&"|"&Assets!$B56,'Data Annex'!$K$1:$K$6077,0),MATCH(Assets!U$47,'Data Annex'!$K$1:$AV$1,0)),"") -> 0.00833575766 | V56: =IFERROR(INDEX('Data Annex'!$K$1:$AV$6077,MATCH(Assets!V$46&"|"&Assets!$B56,'Data Annex'!$K$1:$K$6077,0),MATCH(Assets!V$47,'Data Annex'!$K$1:$AV$1,0)),"") -> 0.008282183931 | W56: =IFERROR(INDEX('Data Annex'!$K$1:$AV$6077,MATCH(Assets!W$46&"|"&Assets!$B56,'Data Annex'!$K$1:$K$6077,0),MATCH(Assets!W$47,'Data Annex'!$K$1:$AV$1,0)),"") -> 0.007148428136
B57: CZ | D57: CZ | F57: =IFERROR(INDEX('Data Annex'!$K$1:$AV$6077,MATCH(Assets!F$46&"|"&Assets!$B57,'Data Annex'!$K$1:$K$6077,0),MATCH(Assets!F$47,'Data Annex'!$K$1:$AV$1,0)),"") -> 188.729599 | G57: =IFERROR(INDEX('Data Annex'!$K$1:$AV$6077,MATCH(Assets!G$46&"|"&Assets!$B57,'Data Annex'!$K$1:$K$6077,0),MATCH(Assets!G$47,'Data Annex'!$K$1:$AV$1,0)),"") -> 214.0235953 | H57: =IFERROR(INDEX('Data Annex'!$K$1:$AV$6077,MATCH(Assets!H$46&"|"&Assets!$B57,'Data Annex'!$K$1:$K$6077,0),MATCH(Assets!H$47,'Data Annex'!$K$1:$AV$1,0)),"") -> 196.9470137 | I57: =IFERROR(INDEX('Data Annex'!$K$1:$AV$6077,MATCH(Assets!I$46&"|"&Assets!$B57,'Data Annex'!$K$1:$K$6077,0),MATCH(Assets!I$47,'Data Annex'!$K$1:$AV$1,0)),"") -> 186.0979703 | J57: =IFERROR(INDEX('Data Annex'!$K$1:$AV$6077,MATCH(Assets!J$46&"|"&Assets!$B57,'Data Annex'!$K$1:$K$6077,0),MATCH(Assets!J$47,'Data Annex'!$K$1:$AV$1,0)),"") -> 211.811314 | K57: =IFERROR(INDEX('Data Annex'!$K$1:$AV$6077,MATCH(Assets!K$46&"|"&Assets!$B57,'Data Annex'!$K$1:$K$6077,0),MATCH(Assets!K$47,'Data Annex'!$K$1:$AV$1,0)),"") -> 194.4875906 | L57: 0.9875122598 | M57: CZ | O57: =IFERROR(INDEX('Data Annex'!$K$1:$AV$6077,MATCH(Assets!O$46&"|"&Assets!$B57,'Data Annex'!$K$1:$K$6077,0),MATCH(Assets!O$47,'Data Annex'!$K$1:$AV$1,0)),"") -> 0.9490795501 | P57: =IFERROR(INDEX('Data Annex'!$K$1:$AV$6077,MATCH(Assets!P$46&"|"&Assets!$B57,'Data Annex'!$K$1:$K$6077,0),MATCH(Assets!P$47,'Data Annex'!$K$1:$AV$1,0)),"") -> 0.9321584719 | Q57: =IFERROR(INDEX('Data Annex'!$K$1:$AV$6077,MATCH(Assets!Q$46&"|"&Assets!$B57,'Data Annex'!$K$1:$K$6077,0),MATCH(Assets!Q$47,'Data Annex'!$K$1:$AV$1,0)),"") -> 0.9298772738 | R57: =IFERROR(INDEX('Data Annex'!$K$1:$AV$6077,MATCH(Assets!R$46&"|"&Assets!$B57,'Data Annex'!$K$1:$K$6077,0),MATCH(Assets!R$47,'Data Annex'!$K$1:$AV$1,0)),"") -> 0.01847958429 | S57: =IFERROR(INDEX('Data Annex'!$K$1:$AV$6077,MATCH(Assets!S$46&"|"&Assets!$B57,'Data Annex'!$K$1:$K$6077,0),MATCH(Assets!S$47,'Data Annex'!$K$1:$AV$1,0)),"") -> 0.01719665427 | T57: =IFERROR(INDEX('Data Annex'!$K$1:$AV$6077,MATCH(Assets!T$46&"|"&Assets!$B57,'Data Annex'!$K$1:$K$6077,0),MATCH(Assets!T$47,'Data Annex'!$K$1:$AV$1,0)),"") -> 0.02009717757 | U57: =IFERROR(INDEX('Data Annex'!$K$1:$AV$6077,MATCH(Assets!U$46&"|"&Assets!$B57,'Data Annex'!$K$1:$K$6077,0),MATCH(Assets!U$47,'Data Annex'!$K$1:$AV$1,0)),"") -> 0.03244086561 | V57: =IFERROR(INDEX('Data Annex'!$K$1:$AV$6077,MATCH(Assets!V$46&"|"&Assets!$B57,'Data Annex'!$K$1:$K$6077,0),MATCH(Assets!V$47,'Data Annex'!$K$1:$AV$1,0)),"") -> 0.05064487388 | W57: =IFERROR(INDEX('Data Annex'!$K$1:$AV$6077,MATCH(Assets!W$46&"|"&Assets!$B57,'Data Annex'!$K$1:$K$6077,0),MATCH(Assets!W$47,'Data Annex'!$K$1:$AV$1,0)),"") -> 0.0500255486
B58: DE | D58: DE | F58: =IFERROR(INDEX('Data Annex'!$K$1:$AV$6077,MATCH(Assets!F$46&"|"&Assets!$B58,'Data Annex'!$K$1:$K$6077,0),MATCH(Assets!F$47,'Data Annex'!$K$1:$AV$1,0)),"") -> 3746.473901 | G58: =IFERROR(INDEX('Data Annex'!$K$1:$AV$6077,MATCH(Assets!G$46&"|"&Assets!$B58,'Data Annex'!$K$1:$K$6077,0),MATCH(Assets!G$47,'Data Annex'!$K$1:$AV$1,0)),"") -> 4357.107614 | H58: =IFERROR(INDEX('Data Annex'!$K$1:$AV$6077,MATCH(Assets!H$46&"|"&Assets!$B58,'Data Annex'!$K$1:$K$6077,0),MATCH(Assets!H$47,'Data Annex'!$K$1:$AV$1,0)),"") -> 3934.749036 | I58: =IFERROR(INDEX('Data Annex'!$K$1:$AV$6077,MATCH(Assets!I$46&"|"&Assets!$B58,'Data Annex'!$K$1:$K$6077,0),MATCH(Assets!I$47,'Data Annex'!$K$1:$AV$1,0)),"") -> 3649.237456 | J58: =IFERROR(INDEX('Data Annex'!$K$1:$AV$6077,MATCH(Assets!J$46&"|"&Assets!$B58,'Data Annex'!$K$1:$K$6077,0),MATCH(Assets!J$47,'Data Annex'!$K$1:$AV$1,0)),"") -> 4274.682632 | K58: =IFERROR(INDEX('Data Annex'!$K$1:$AV$6077,MATCH(Assets!K$46&"|"&Assets!$B58,'Data Annex'!$K$1:$K$6077,0),MATCH(Assets!K$47,'Data Annex'!$K$1:$AV$1,0)),"") -> 3854.712503 | L58: 0.9796590503 | M58: DE | O58: =IFERROR(INDEX('Data Annex'!$K$1:$AV$6077,MATCH(Assets!O$46&"|"&Assets!$B58,'Data Annex'!$K$1:$K$6077,0),MATCH(Assets!O$47,'Data Annex'!$K$1:$AV$1,0)),"") -> 0.7373256951 | P58: =IFERROR(INDEX('Data Annex'!$K$1:$AV$6077,MATCH(Assets!P$46&"|"&Assets!$B58,'Data Annex'!$K$1:$K$6077,0),MATCH(Assets!P$47,'Data Annex'!$K$1:$AV$1,0)),"") -> 0.7252718429 | Q58: =IFERROR(INDEX('Data Annex'!$K$1:$AV$6077,MATCH(Assets!Q$46&"|"&Assets!$B58,'Data Annex'!$K$1:$K$6077,0),MATCH(Assets!Q$47,'Data Annex'!$K$1:$AV$1,0)),"") -> 0.7361934646 | R58: =IFERROR(INDEX('Data Annex'!$K$1:$AV$6077,MATCH(Assets!R$46&"|"&Assets!$B58,'Data Annex'!$K$1:$K$6077,0),MATCH(Assets!R$47,'Data Annex'!$K$1:$AV$1,0)),"") -> 0.05486951567 | S58: =IFERROR(INDEX('Data Annex'!$K$1:$AV$6077,MATCH(Assets!S$46&"|"&Assets!$B58,'Data Annex'!$K$1:$K$6077,0),MATCH(Assets!S$47,'Data Annex'!$K$1:$AV$1,0)),"") -> 0.04331941232 | T58: =IFERROR(INDEX('Data Annex'!$K$1:$AV$6077,MATCH(Assets!T$46&"|"&Assets!$B58,'Data Annex'!$K$1:$K$6077,0),MATCH(Assets!T$47,'Data Annex'!$K$1:$AV$1,0)),"") -> 0.04955452698 | U58: =IFERROR(INDEX('Data Annex'!$K$1:$AV$6077,MATCH(Assets!U$46&"|"&Assets!$B58,'Data Annex'!$K$1:$K$6077,0),MATCH(Assets!U$47,'Data Annex'!$K$1:$AV$1,0)),"") -> 0.2078047892 | V58: =IFERROR(INDEX('Data Annex'!$K$1:$AV$6077,MATCH(Assets!V$46&"|"&Assets!$B58,'Data Annex'!$K$1:$K$6077,0),MATCH(Assets!V$47,'Data Annex'!$K$1:$AV$1,0)),"") -> 0.2314087448 | W58: =IFERROR(INDEX('Data Annex'!$K$1:$AV$6077,MATCH(Assets!W$46&"|"&Assets!$B58,'Data Annex'!$K$1:$K$6077,0),MATCH(Assets!W$47,'Data Annex'!$K$1:$AV$1,0)),"") -> 0.2142520084
B59: DK | D59: DK | F59: =IFERROR(INDEX('Data Annex'!$K$1:$AV$6077,MATCH(Assets!F$46&"|"&Assets!$B59,'Data Annex'!$K$1:$K$6077,0),MATCH(Assets!F$47,'Data Annex'!$K$1:$AV$1,0)),"") -> 786.2634194 | G59: =IFERROR(INDEX('Data Annex'!$K$1:$AV$6077,MATCH(Assets!G$46&"|"&Assets!$B59,'Data Annex'!$K$1:$K$6077,0),MATCH(Assets!G$47,'Data Annex'!$K$1:$AV$1,0)),"") -> 779.8036133 | H59: =IFERROR(INDEX('Data Annex'!$K$1:$AV$6077,MATCH(Assets!H$46&"|"&Assets!$B59,'Data Annex'!$K$1:$K$6077,0),MATCH(Assets!H$47,'Data Annex'!$K$1:$AV$1,0)),"") -> 760.0865553 | I59: =IFERROR(INDEX('Data Annex'!$K$1:$AV$6077,MATCH(Assets!I$46&"|"&Assets!$B59,'Data Annex'!$K$1:$K$6077,0),MATCH(Assets!I$47,'Data Annex'!$K$1:$AV$1,0)),"") -> 765.5085366 | J59: =IFERROR(INDEX('Data Annex'!$K$1:$AV$6077,MATCH(Assets!J$46&"|"&Assets!$B59,'Data Annex'!$K$1:$K$6077,0),MATCH(Assets!J$47,'Data Annex'!$K$1:$AV$1,0)),"") -> 762.6690936 | K59: =IFERROR(INDEX('Data Annex'!$K$1:$AV$6077,MATCH(Assets!K$46&"|"&Assets!$B59,'Data Annex'!$K$1:$K$6077,0),MATCH(Assets!K$47,'Data Annex'!$K$1:$AV$1,0)),"") -> 741.8718046 | L59: 0.9760359519 | M59: DK | O59: =IFERROR(INDEX('Data Annex'!$K$1:$AV$6077,MATCH(Assets!O$46&"|"&Assets!$B59,'Data Annex'!$K$1:$K$6077,0),MATCH(Assets!O$47,'Data Annex'!$K$1:$AV$1,0)),"") -> 0.3469981407 | P59: =IFERROR(INDEX('Data Annex'!$K$1:$AV$6077,MATCH(Assets!P$46&"|"&Assets!$B59,'Data Annex'!$K$1:$K$6077,0),MATCH(Assets!P$47,'Data Annex'!$K$1:$AV$1,0)),"") -> 0.3530852452 | Q59: =IFERROR(INDEX('Data Annex'!$K$1:$AV$6077,MATCH(Assets!Q$46&"|"&Assets!$B59,'Data Annex'!$K$1:$K$6077,0),MATCH(Assets!Q$47,'Data Annex'!$K$1:$AV$1,0)),"") -> 0.3513789559 | R59: =IFERROR(INDEX('Data Annex'!$K$1:$AV$6077,MATCH(Assets!R$46&"|"&Assets!$B59,'Data Annex'!$K$1:$K$6077,0),MATCH(Assets!R$47,'Data Annex'!$K$1:$AV$1,0)),"") -> 0.02097958472 | S59: =IFERROR(INDEX('Data Annex'!$K$1:$AV$6077,MATCH(Assets!S$46&"|"&Assets!$B59,'Data Annex'!$K$1:$K$6077,0),MATCH(Assets!S$47,'Data Annex'!$K$1:$AV$1,0)),"") -> 0.02031324763 | T59: =IFERROR(INDEX('Data Annex'!$K$1:$AV$6077,MATCH(Assets!T$46&"|"&Assets!$B59,'Data Annex'!$K$1:$K$6077,0),MATCH(Assets!T$47,'Data Annex'!$K$1:$AV$1,0)),"") -> 0.02117620653 | U59: =IFERROR(INDEX('Data Annex'!$K$1:$AV$6077,MATCH(Assets!U$46&"|"&Assets!$B59,'Data Annex'!$K$1:$K$6077,0),MATCH(Assets!U$47,'Data Annex'!$K$1:$AV$1,0)),"") -> 0.6320222746 | V59: =IFERROR(INDEX('Data Annex'!$K$1:$AV$6077,MATCH(Assets!V$46&"|"&Assets!$B59,'Data Annex'!$K$1:$K$6077,0),MATCH(Assets!V$47,'Data Annex'!$K$1:$AV$1,0)),"") -> 0.6266015072 | W59: =IFERROR(INDEX('Data Annex'!$K$1:$AV$6077,MATCH(Assets!W$46&"|"&Assets!$B59,'Data Annex'!$K$1:$K$6077,0),MATCH(Assets!W$47,'Data Annex'!$K$1:$AV$1,0)),"") -> 0.6274448376
B60: EE | D60: EE | F60: =IFERROR(INDEX('Data Annex'!$K$1:$AV$6077,MATCH(Assets!F$46&"|"&Assets!$B60,'Data Annex'!$K$1:$K$6077,0),MATCH(Assets!F$47,'Data Annex'!$K$1:$AV$1,0)),"") -> 36.87963035 | G60: =IFERROR(INDEX('Data Annex'!$K$1:$AV$6077,MATCH(Assets!G$46&"|"&Assets!$B60,'Data Annex'!$K$1:$K$6077,0),MATCH(Assets!G$47,'Data Annex'!$K$1:$AV$1,0)),"") -> 44.37547826 | H60: =IFERROR(INDEX('Data Annex'!$K$1:$AV$6077,MATCH(Assets!H$46&"|"&Assets!$B60,'Data Annex'!$K$1:$K$6077,0),MATCH(Assets!H$47,'Data Annex'!$K$1:$AV$1,0)),"") -> 43.07146208 | I60: =IFERROR(INDEX('Data Annex'!$K$1:$AV$6077,MATCH(Assets!I$46&"|"&Assets!$B60,'Data Annex'!$K$1:$K$6077,0),MATCH(Assets!I$47,'Data Annex'!$K$1:$AV$1,0)),"") -> 36.56626752 | J60: =IFERROR(INDEX('Data Annex'!$K$1:$AV$6077,MATCH(Assets!J$46&"|"&Assets!$B60,'Data Annex'!$K$1:$K$6077,0),MATCH(Assets!J$47,'Data Annex'!$K$1:$AV$1,0)),"") -> 43.93602738 | K60: =IFERROR(INDEX('Data Annex'!$K$1:$AV$6077,MATCH(Assets!K$46&"|"&Assets!$B60,'Data Annex'!$K$1:$K$6077,0),MATCH(Assets!K$47,'Data Annex'!$K$1:$AV$1,0)),"") -> 42.60264342 | L60: 0.9891153297 | M60: EE | O60: =IFERROR(INDEX('Data Annex'!$K$1:$AV$6077,MATCH(Assets!O$46&"|"&Assets!$B60,'Data Annex'!$K$1:$K$6077,0),MATCH(Assets!O$47,'Data Annex'!$K$1:$AV$1,0)),"") -> 0.9225323444 | P60: =IFERROR(INDEX('Data Annex'!$K$1:$AV$6077,MATCH(Assets!P$46&"|"&Assets!$B60,'Data Annex'!$K$1:$K$6077,0),MATCH(Assets!P$47,'Data Annex'!$K$1:$AV$1,0)),"") -> 0.9378208634 | Q60: =IFERROR(INDEX('Data Annex'!$K$1:$AV$6077,MATCH(Assets!Q$46&"|"&Assets!$B60,'Data Annex'!$K$1:$K$6077,0),MATCH(Assets!Q$47,'Data Annex'!$K$1:$AV$1,0)),"") -> 0.9796139687 | R60: =IFERROR(INDEX('Data Annex'!$K$1:$AV$6077,MATCH(Assets!R$46&"|"&Assets!$B60,'Data Annex'!$K$1:$K$6077,0),MATCH(Assets!R$47,'Data Annex'!$K$1:$AV$1,0)),"") -> 5.24283948e-05 | S60: =IFERROR(INDEX('Data Annex'!$K$1:$AV$6077,MATCH(Assets!S$46&"|"&Assets!$B60,'Data Annex'!$K$1:$K$6077,0),MATCH(Assets!S$47,'Data Annex'!$K$1:$AV$1,0)),"") -> 7.299961197e-05 | T60: =IFERROR(INDEX('Data Annex'!$K$1:$AV$6077,MATCH(Assets!T$46&"|"&Assets!$B60,'Data Annex'!$K$1:$K$6077,0),MATCH(Assets!T$47,'Data Annex'!$K$1:$AV$1,0)),"") -> 7.537085242e-05 | U60: =IFERROR(INDEX('Data Annex'!$K$1:$AV$6077,MATCH(Assets!U$46&"|"&Assets!$B60,'Data Annex'!$K$1:$K$6077,0),MATCH(Assets!U$47,'Data Annex'!$K$1:$AV$1,0)),"") -> 0.07741522717 | V60: =IFERROR(INDEX('Data Annex'!$K$1:$AV$6077,MATCH(Assets!V$46&"|"&Assets!$B60,'Data Annex'!$K$1:$K$6077,0),MATCH(Assets!V$47,'Data Annex'!$K$1:$AV$1,0)),"") -> 0.06210613698 | W60: =IFERROR(INDEX('Data Annex'!$K$1:$AV$6077,MATCH(Assets!W$46&"|"&Assets!$B60,'Data Annex'!$K$1:$K$6077,0),MATCH(Assets!W$47,'Data Annex'!$K$1:$AV$1,0)),"") -> 0.02031066042
B61: ES | D61: ES | F61: =IFERROR(INDEX('Data Annex'!$K$1:$AV$6077,MATCH(Assets!F$46&"|"&Assets!$B61,'Data Annex'!$K$1:$K$6077,0),MATCH(Assets!F$47,'Data Annex'!$K$1:$AV$1,0)),"") -> 3560.145082 | G61: =IFERROR(INDEX('Data Annex'!$K$1:$AV$6077,MATCH(Assets!G$46&"|"&Assets!$B61,'Data Annex'!$K$1:$K$6077,0),MATCH(Assets!G$47,'Data Annex'!$K$1:$AV$1,0)),"") -> 3875.3458 | H61: =IFERROR(INDEX('Data Annex'!$K$1:$AV$6077,MATCH(Assets!H$46&"|"&Assets!$B61,'Data Annex'!$K$1:$K$6077,0),MATCH(Assets!H$47,'Data Annex'!$K$1:$AV$1,0)),"") -> 3650.771167 | I61: =IFERROR(INDEX('Data Annex'!$K$1:$AV$6077,MATCH(Assets!I$46&"|"&Assets!$B61,'Data Annex'!$K$1:$K$6077,0),MATCH(Assets!I$47,'Data Annex'!$K$1:$AV$1,0)),"") -> 3341.32965 | J61: =IFERROR(INDEX('Data Annex'!$K$1:$AV$6077,MATCH(Assets!J$46&"|"&Assets!$B61,'Data Annex'!$K$1:$K$6077,0),MATCH(Assets!J$47,'Data Annex'!$K$1:$AV$1,0)),"") -> 3658.709468 | K61: =IFERROR(INDEX('Data Annex'!$K$1:$AV$6077,MATCH(Assets!K$46&"|"&Assets!$B61,'Data Annex'!$K$1:$K$6077,0),MATCH(Assets!K$47,'Data Annex'!$K$1:$AV$1,0)),"") -> 3436.730703 | L61: 0.941371164 | M61: ES | O61: =IFERROR(INDEX('Data Annex'!$K$1:$AV$6077,MATCH(Assets!O$46&"|"&Assets!$B61,'Data Annex'!$K$1:$K$6077,0),MATCH(Assets!O$47,'Data Annex'!$K$1:$AV$1,0)),"") -> 0.8579124806 | P61: =IFERROR(INDEX('Data Annex'!$K$1:$AV$6077,MATCH(Assets!P$46&"|"&Assets!$B61,'Data Annex'!$K$1:$K$6077,0),MATCH(Assets!P$47,'Data Annex'!$K$1:$AV$1,0)),"") -> 0.856181974 | Q61: =IFERROR(INDEX('Data Annex'!$K$1:$AV$6077,MATCH(Assets!Q$46&"|"&Assets!$B61,'Data Annex'!$K$1:$K$6077,0),MATCH(Assets!Q$47,'Data Annex'!$K$1:$AV$1,0)),"") -> 0.8623066684 | R61: =IFERROR(INDEX('Data Annex'!$K$1:$AV$6077,MATCH(Assets!R$46&"|"&Assets!$B61,'Data Annex'!$K$1:$K$6077,0),MATCH(Assets!R$47,'Data Annex'!$K$1:$AV$1,0)),"") -> 0.0535704553 | S61: =IFERROR(INDEX('Data Annex'!$K$1:$AV$6077,MATCH(Assets!S$46&"|"&Assets!$B61,'Data Annex'!$K$1:$K$6077,0),MATCH(Assets!S$47,'Data Annex'!$K$1:$AV$1,0)),"") -> 0.0433111188 | T61: =IFERROR(INDEX('Data Annex'!$K$1:$AV$6077,MATCH(Assets!T$46&"|"&Assets!$B61,'Data Annex'!$K$1:$K$6077,0),MATCH(Assets!T$47,'Data Annex'!$K$1:$AV$1,0)),"") -> 0.04311764279 | U61: =IFERROR(INDEX('Data Annex'!$K$1:$AV$6077,MATCH(Assets!U$46&"|"&Assets!$B61,'Data Annex'!$K$1:$K$6077,0),MATCH(Assets!U$47,'Data Annex'!$K$1:$AV$1,0)),"") -> 0.08851706408 | V61: =IFERROR(INDEX('Data Annex'!$K$1:$AV$6077,MATCH(Assets!V$46&"|"&Assets!$B61,'Data Annex'!$K$1:$K$6077,0),MATCH(Assets!V$47,'Data Annex'!$K$1:$AV$1,0)),"") -> 0.1005069072 | W61: =IFERROR(INDEX('Data Annex'!$K$1:$AV$6077,MATCH(Assets!W$46&"|"&Assets!$B61,'Data Annex'!$K$1:$K$6077,0),MATCH(Assets!W$47,'Data Annex'!$K$1:$AV$1,0)),"") -> 0.09457568881
B62: FI | D62: FI | F62: =IFERROR(INDEX('Data Annex'!$K$1:$AV$6077,MATCH(Assets!F$46&"|"&Assets!$B62,'Data Annex'!$K$1:$K$6077,0),MATCH(Assets!F$47,'Data Annex'!$K$1:$AV$1,0)),"") -> 707.1898926 | G62: =IFERROR(INDEX('Data Annex'!$K$1:$AV$6077,MATCH(Assets!G$46&"|"&Assets!$B62,'Data Annex'!$K$1:$K$6077,0),MATCH(Assets!G$47,'Data Annex'!$K$1:$AV$1,0)),"") -> 771.455554 | H62: =IFERROR(INDEX('Data Annex'!$K$1:$AV$6077,MATCH(Assets!H$46&"|"&Assets!$B62,'Data Annex'!$K$1:$K$6077,0),MATCH(Assets!H$47,'Data Annex'!$K$1:$AV$1,0)),"") -> 733.029499 | I62: =IFERROR(INDEX('Data Annex'!$K$1:$AV$6077,MATCH(Assets!I$46&"|"&Assets!$B62,'Data Annex'!$K$1:$K$6077,0),MATCH(Assets!I$47,'Data Annex'!$K$1:$AV$1,0)),"") -> 692.1537861 | J62: =IFERROR(INDEX('Data Annex'!$K$1:$AV$6077,MATCH(Assets!J$46&"|"&Assets!$B62,'Data Annex'!$K$1:$K$6077,0),MATCH(Assets!J$47,'Data Annex'!$K$1:$AV$1,0)),"") -> 759.0730271 | K62: =IFERROR(INDEX('Data Annex'!$K$1:$AV$6077,MATCH(Assets!K$46&"|"&Assets!$B62,'Data Annex'!$K$1:$K$6077,0),MATCH(Assets!K$47,'Data Annex'!$K$1:$AV$1,0)),"") -> 721.1461167 | L62: 0.9837886711 | M62: FI | O62: =IFERROR(INDEX('Data Annex'!$K$1:$AV$6077,MATCH(Assets!O$46&"|"&Assets!$B62,'Data Annex'!$K$1:$K$6077,0),MATCH(Assets!O$47,'Data Annex'!$K$1:$AV$1,0)),"") -> 0.709146484 | P62: =IFERROR(INDEX('Data Annex'!$K$1:$AV$6077,MATCH(Assets!P$46&"|"&Assets!$B62,'Data Annex'!$K$1:$K$6077,0),MATCH(Assets!P$47,'Data Annex'!$K$1:$AV$1,0)),"") -> 0.6901565918 | Q62: =IFERROR(INDEX('Data Annex'!$K$1:$AV$6077,MATCH(Assets!Q$46&"|"&Assets!$B62,'Data Annex'!$K$1:$K$6077,0),MATCH(Assets!Q$47,'Data Annex'!$K$1:$AV$1,0)),"") -> 0.7193180477 | R62: =IFERROR(INDEX('Data Annex'!$K$1:$AV$6077,MATCH(Assets!R$46&"|"&Assets!$B62,'Data Annex'!$K$1:$K$6077,0),MATCH(Assets!R$47,'Data Annex'!$K$1:$AV$1,0)),"") -> 0.06846656968 | S62: =IFERROR(INDEX('Data Annex'!$K$1:$AV$6077,MATCH(Assets!S$46&"|"&Assets!$B62,'Data Annex'!$K$1:$K$6077,0),MATCH(Assets!S$47,'Data Annex'!$K$1:$AV$1,0)),"") -> 0.06355227252 | T62: =IFERROR(INDEX('Data Annex'!$K$1:$AV$6077,MATCH(Assets!T$46&"|"&Assets!$B62,'Data Annex'!$K$1:$K$6077,0),MATCH(Assets!T$47,'Data Annex'!$K$1:$AV$1,0)),"") -> 0.06165284961 | U62: =IFERROR(INDEX('Data Annex'!$K$1:$AV$6077,MATCH(Assets!U$46&"|"&Assets!$B62,'Data Annex'!$K$1:$K$6077,0),MATCH(Assets!U$47,'Data Annex'!$K$1:$AV$1,0)),"") -> 0.2223869463 | V62: =IFERROR(INDEX('Data Annex'!$K$1:$AV$6077,MATCH(Assets!V$46&"|"&Assets!$B62,'Data Annex'!$K$1:$K$6077,0),MATCH(Assets!V$47,'Data Annex'!$K$1:$AV$1,0)),"") -> 0.2462911357 | W62: =IFERROR(INDEX('Data Annex'!$K$1:$AV$6077,MATCH(Assets!W$46&"|"&Assets!$B62,'Data Annex'!$K$1:$K$6077,0),MATCH(Assets!W$47,'Data Annex'!$K$1:$AV$1,0)),"") -> 0.2190291027
B63: FR | D63: FR | F63: =IFERROR(INDEX('Data Annex'!$K$1:$AV$6077,MATCH(Assets!F$46&"|"&Assets!$B63,'Data Annex'!$K$1:$K$6077,0),MATCH(Assets!F$47,'Data Annex'!$K$1:$AV$1,0)),"") -> 8607.637954 | G63: =IFERROR(INDEX('Data Annex'!$K$1:$AV$6077,MATCH(Assets!G$46&"|"&Assets!$B63,'Data Annex'!$K$1:$K$6077,0),MATCH(Assets!G$47,'Data Annex'!$K$1:$AV$1,0)),"") -> 9472.535575 | H63: =IFERROR(INDEX('Data Annex'!$K$1:$AV$6077,MATCH(Assets!H$46&"|"&Assets!$B63,'Data Annex'!$K$1:$K$6077,0),MATCH(Assets!H$47,'Data Annex'!$K$1:$AV$1,0)),"") -> 8899.554235 | I63: =IFERROR(INDEX('Data Annex'!$K$1:$AV$6077,MATCH(Assets!I$46&"|"&Assets!$B63,'Data Annex'!$K$1:$K$6077,0),MATCH(Assets!I$47,'Data Annex'!$K$1:$AV$1,0)),"") -> 7935.420572 | J63: =IFERROR(INDEX('Data Annex'!$K$1:$AV$6077,MATCH(Assets!J$46&"|"&Assets!$B63,'Data Annex'!$K$1:$K$6077,0),MATCH(Assets!J$47,'Data Annex'!$K$1:$AV$1,0)),"") -> 8689.372028 | K63: =IFERROR(INDEX('Data Annex'!$K$1:$AV$6077,MATCH(Assets!K$46&"|"&Assets!$B63,'Data Annex'!$K$1:$K$6077,0),MATCH(Assets!K$47,'Data Annex'!$K$1:$AV$1,0)),"") -> 8219.843267 | L63: 0.9236241557 | M63: FR | O63: =IFERROR(INDEX('Data Annex'!$K$1:$AV$6077,MATCH(Assets!O$46&"|"&Assets!$B63,'Data Annex'!$K$1:$K$6077,0),MATCH(Assets!O$47,'Data Annex'!$K$1:$AV$1,0)),"") -> 0.7606363264 | P63: =IFERROR(INDEX('Data Annex'!$K$1:$AV$6077,MATCH(Assets!P$46&"|"&Assets!$B63,'Data Annex'!$K$1:$K$6077,0),MATCH(Assets!P$47,'Data Annex'!$K$1:$AV$1,0)),"") -> 0.7251783782 | Q63: =IFERROR(INDEX('Data Annex'!$K$1:$AV$6077,MATCH(Assets!Q$46&"|"&Assets!$B63,'Data Annex'!$K$1:$K$6077,0),MATCH(Assets!Q$47,'Data Annex'!$K$1:$AV$1,0)),"") -> 0.7585822353 | R63: =IFERROR(INDEX('Data Annex'!$K$1:$AV$6077,MATCH(Assets!R$46&"|"&Assets!$B63,'Data Annex'!$K$1:$K$6077,0),MATCH(Assets!R$47,'Data Annex'!$K$1:$AV$1,0)),"") -> 0.03397541111 | S63: =IFERROR(INDEX('Data Annex'!$K$1:$AV$6077,MATCH(Assets!S$46&"|"&Assets!$B63,'Data Annex'!$K$1:$K$6077,0),MATCH(Assets!S$47,'Data Annex'!$K$1:$AV$1,0)),"") -> 0.02863761765 | T63: =IFERROR(INDEX('Data Annex'!$K$1:$AV$6077,MATCH(Assets!T$46&"|"&Assets!$B63,'Data Annex'!$K$1:$K$6077,0),MATCH(Assets!T$47,'Data Annex'!$K$1:$AV$1,0)),"") -> 0.02988009312 | U63: =IFERROR(INDEX('Data Annex'!$K$1:$AV$6077,MATCH(Assets!U$46&"|"&Assets!$B63,'Data Annex'!$K$1:$K$6077,0),MATCH(Assets!U$47,'Data Annex'!$K$1:$AV$1,0)),"") -> 0.2053882625 | V63: =IFERROR(INDEX('Data Annex'!$K$1:$AV$6077,MATCH(Assets!V$46&"|"&Assets!$B63,'Data Annex'!$K$1:$K$6077,0),MATCH(Assets!V$47,'Data Annex'!$K$1:$AV$1,0)),"") -> 0.2461840041 | W63: =IFERROR(INDEX('Data Annex'!$K$1:$AV$6077,MATCH(Assets!W$46&"|"&Assets!$B63,'Data Annex'!$K$1:$K$6077,0),MATCH(Assets!W$47,'Data Annex'!$K$1:$AV$1,0)),"") -> 0.2115376716
B64: GR | D64: GR | F64: =IFERROR(INDEX('Data Annex'!$K$1:$AV$6077,MATCH(Assets!F$46&"|"&Assets!$B64,'Data Annex'!$K$1:$K$6077,0),MATCH(Assets!F$47,'Data Annex'!$K$1:$AV$1,0)),"") -> 310.8845714 | G64: =IFERROR(INDEX('Data Annex'!$K$1:$AV$6077,MATCH(Assets!G$46&"|"&Assets!$B64,'Data Annex'!$K$1:$K$6077,0),MATCH(Assets!G$47,'Data Annex'!$K$1:$AV$1,0)),"") -> 323.7056065 | H64: =IFERROR(INDEX('Data Annex'!$K$1:$AV$6077,MATCH(Assets!H$46&"|"&Assets!$B64,'Data Annex'!$K$1:$K$6077,0),MATCH(Assets!H$47,'Data Annex'!$K$1:$AV$1,0)),"") -> 312.5480767 | I64: =IFERROR(INDEX('Data Annex'!$K$1:$AV$6077,MATCH(Assets!I$46&"|"&Assets!$B64,'Data Annex'!$K$1:$K$6077,0),MATCH(Assets!I$47,'Data Annex'!$K$1:$AV$1,0)),"") -> 267.2495314 | J64: =IFERROR(INDEX('Data Annex'!$K$1:$AV$6077,MATCH(Assets!J$46&"|"&Assets!$B64,'Data Annex'!$K$1:$K$6077,0),MATCH(Assets!J$47,'Data Annex'!$K$1:$AV$1,0)),"") -> 280.9200295 | K64: =IFERROR(INDEX('Data Annex'!$K$1:$AV$6077,MATCH(Assets!K$46&"|"&Assets!$B64,'Data Annex'!$K$1:$K$6077,0),MATCH(Assets!K$47,'Data Annex'!$K$1:$AV$1,0)),"") -> 270.9795878 | L64: 0.8670012967 | M64: GR | O64: =IFERROR(INDEX('Data Annex'!$K$1:$AV$6077,MATCH(Assets!O$46&"|"&Assets!$B64,'Data Annex'!$K$1:$K$6077,0),MATCH(Assets!O$47,'Data Annex'!$K$1:$AV$1,0)),"") -> 0.8951848871 | P64: =IFERROR(INDEX('Data Annex'!$K$1:$AV$6077,MATCH(Assets!P$46&"|"&Assets!$B64,'Data Annex'!$K$1:$K$6077,0),MATCH(Assets!P$47,'Data Annex'!$K$1:$AV$1,0)),"") -> 0.9257903284 | Q64: =IFERROR(INDEX('Data Annex'!$K$1:$AV$6077,MATCH(Assets!Q$46&"|"&Assets!$B64,'Data Annex'!$K$1:$K$6077,0),MATCH(Assets!Q$47,'Data Annex'!$K$1:$AV$1,0)),"") -> 0.9311882364 | R64: =IFERROR(INDEX('Data Annex'!$K$1:$AV$6077,MATCH(Assets!R$46&"|"&Assets!$B64,'Data Annex'!$K$1:$K$6077,0),MATCH(Assets!R$47,'Data Annex'!$K$1:$AV$1,0)),"") -> 0.06645308751 | S64: =IFERROR(INDEX('Data Annex'!$K$1:$AV$6077,MATCH(Assets!S$46&"|"&Assets!$B64,'Data Annex'!$K$1:$K$6077,0),MATCH(Assets!S$47,'Data Annex'!$K$1:$AV$1,0)),"") -> 0.03412072508 | T64: =IFERROR(INDEX('Data Annex'!$K$1:$AV$6077,MATCH(Assets!T$46&"|"&Assets!$B64,'Data Annex'!$K$1:$K$6077,0),MATCH(Assets!T$47,'Data Annex'!$K$1:$AV$1,0)),"") -> 0.03277321067 | U64: =IFERROR(INDEX('Data Annex'!$K$1:$AV$6077,MATCH(Assets!U$46&"|"&Assets!$B64,'Data Annex'!$K$1:$K$6077,0),MATCH(Assets!U$47,'Data Annex'!$K$1:$AV$1,0)),"") -> 0.03836202542 | V64: =IFERROR(INDEX('Data Annex'!$K$1:$AV$6077,MATCH(Assets!V$46&"|"&Assets!$B64,'Data Annex'!$K$1:$K$6077,0),MATCH(Assets!V$47,'Data Annex'!$K$1:$AV$1,0)),"") -> 0.04008894657 | W64: =IFERROR(INDEX('Data Annex'!$K$1:$AV$6077,MATCH(Assets!W$46&"|"&Assets!$B64,'Data Annex'!$K$1:$K$6077,0),MATCH(Assets!W$47,'Data Annex'!$K$1:$AV$1,0)),"") -> 0.03603855298
B65: HR | D65: HR | F65: =IFERROR(INDEX('Data Annex'!$K$1:$AV$6077,MATCH(Assets!F$46&"|"&Assets!$B65,'Data Annex'!$K$1:$K$6077,0),MATCH(Assets!F$47,'Data Annex'!$K$1:$AV$1,0)),"") -> 52.08060345 | G65: =IFERROR(INDEX('Data Annex'!$K$1:$AV$6077,MATCH(Assets!G$46&"|"&Assets!$B65,'Data Annex'!$K$1:$K$6077,0),MATCH(Assets!G$47,'Data Annex'!$K$1:$AV$1,0)),"") -> 57.48844687 | H65: =IFERROR(INDEX('Data Annex'!$K$1:$AV$6077,MATCH(Assets!H$46&"|"&Assets!$B65,'Data Annex'!$K$1:$K$6077,0),MATCH(Assets!H$47,'Data Annex'!$K$1:$AV$1,0)),"") -> 59.51394166 | I65: =IFERROR(INDEX('Data Annex'!$K$1:$AV$6077,MATCH(Assets!I$46&"|"&Assets!$B65,'Data Annex'!$K$1:$K$6077,0),MATCH(Assets!I$47,'Data Annex'!$K$1:$AV$1,0)),"") -> 50.91536861 | J65: =IFERROR(INDEX('Data Annex'!$K$1:$AV$6077,MATCH(Assets!J$46&"|"&Assets!$B65,'Data Annex'!$K$1:$K$6077,0),MATCH(Assets!J$47,'Data Annex'!$K$1:$AV$1,0)),"") -> 56.32086035 | K65: =IFERROR(INDEX('Data Annex'!$K$1:$AV$6077,MATCH(Assets!K$46&"|"&Assets!$B65,'Data Annex'!$K$1:$K$6077,0),MATCH(Assets!K$47,'Data Annex'!$K$1:$AV$1,0)),"") -> 58.35231302 | L65: 0.980481403 | M65: HR | O65: =IFERROR(INDEX('Data Annex'!$K$1:$AV$6077,MATCH(Assets!O$46&"|"&Assets!$B65,'Data Annex'!$K$1:$K$6077,0),MATCH(Assets!O$47,'Data Annex'!$K$1:$AV$1,0)),"") -> 0.9024232144 | P65: =IFERROR(INDEX('Data Annex'!$K$1:$AV$6077,MATCH(Assets!P$46&"|"&Assets!$B65,'Data Annex'!$K$1:$K$6077,0),MATCH(Assets!P$47,'Data Annex'!$K$1:$AV$1,0)),"") -> 0.9199826389 | Q65: =IFERROR(INDEX('Data Annex'!$K$1:$AV$6077,MATCH(Assets!Q$46&"|"&Assets!$B65,'Data Annex'!$K$1:$K$6077,0),MATCH(Assets!Q$47,'Data Annex'!$K$1:$AV$1,0)),"") -> 0.9304596143 | R65: =IFERROR(INDEX('Data Annex'!$K$1:$AV$6077,MATCH(Assets!R$46&"|"&Assets!$B65,'Data Annex'!$K$1:$K$6077,0),MATCH(Assets!R$47,'Data Annex'!$K$1:$AV$1,0)),"") -> 0.09010067175 | S65: =IFERROR(INDEX('Data Annex'!$K$1:$AV$6077,MATCH(Assets!S$46&"|"&Assets!$B65,'Data Annex'!$K$1:$K$6077,0),MATCH(Assets!S$47,'Data Annex'!$K$1:$AV$1,0)),"") -> 0.06830405688 | T65: =IFERROR(INDEX('Data Annex'!$K$1:$AV$6077,MATCH(Assets!T$46&"|"&Assets!$B65,'Data Annex'!$K$1:$K$6077,0),MATCH(Assets!T$47,'Data Annex'!$K$1:$AV$1,0)),"") -> 0.06125776388 | U65: =IFERROR(INDEX('Data Annex'!$K$1:$AV$6077,MATCH(Assets!U$46&"|"&Assets!$B65,'Data Annex'!$K$1:$K$6077,0),MATCH(Assets!U$47,'Data Annex'!$K$1:$AV$1,0)),"") -> 0.007476113884 | V65: =IFERROR(INDEX('Data Annex'!$K$1:$AV$6077,MATCH(Assets!V$46&"|"&Assets!$B65,'Data Annex'!$K$1:$K$6077,0),MATCH(Assets!V$47,'Data Annex'!$K$1:$AV$1,0)),"") -> 0.01171330418 | W65: =IFERROR(INDEX('Data Annex'!$K$1:$AV$6077,MATCH(Assets!W$46&"|"&Assets!$B65,'Data Annex'!$K$1:$K$6077,0),MATCH(Assets!W$47,'Data Annex'!$K$1:$AV$1,0)),"") -> 0.008282621797
B66: HU | D66: HU | F66: =IFERROR(INDEX('Data Annex'!$K$1:$AV$6077,MATCH(Assets!F$46&"|"&Assets!$B66,'Data Annex'!$K$1:$K$6077,0),MATCH(Assets!F$47,'Data Annex'!$K$1:$AV$1,0)),"") -> 128.0360964 | G66: =IFERROR(INDEX('Data Annex'!$K$1:$AV$6077,MATCH(Assets!G$46&"|"&Assets!$B66,'Data Annex'!$K$1:$K$6077,0),MATCH(Assets!G$47,'Data Annex'!$K$1:$AV$1,0)),"") -> 132.2515047 | H66: =IFERROR(INDEX('Data Annex'!$K$1:$AV$6077,MATCH(Assets!H$46&"|"&Assets!$B66,'Data Annex'!$K$1:$K$6077,0),MATCH(Assets!H$47,'Data Annex'!$K$1:$AV$1,0)),"") -> 135.8205324 | I66: =IFERROR(INDEX('Data Annex'!$K$1:$AV$6077,MATCH(Assets!I$46&"|"&Assets!$B66,'Data Annex'!$K$1:$K$6077,0),MATCH(Assets!I$47,'Data Annex'!$K$1:$AV$1,0)),"") -> 124.1956242 | J66: =IFERROR(INDEX('Data Annex'!$K$1:$AV$6077,MATCH(Assets!J$46&"|"&Assets!$B66,'Data Annex'!$K$1:$K$6077,0),MATCH(Assets!J$47,'Data Annex'!$K$1:$AV$1,0)),"") -> 128.8639868 | K66: =IFERROR(INDEX('Data Annex'!$K$1:$AV$6077,MATCH(Assets!K$46&"|"&Assets!$B66,'Data Annex'!$K$1:$K$6077,0),MATCH(Assets!K$47,'Data Annex'!$K$1:$AV$1,0)),"") -> 131.970136 | L66: 0.9716508524 | M66: HU | O66: =IFERROR(INDEX('Data Annex'!$K$1:$AV$6077,MATCH(Assets!O$46&"|"&Assets!$B66,'Data Annex'!$K$1:$K$6077,0),MATCH(Assets!O$47,'Data Annex'!$K$1:$AV$1,0)),"") -> 0.8704727969 | P66: =IFERROR(INDEX('Data Annex'!$K$1:$AV$6077,MATCH(Assets!P$46&"|"&Assets!$B66,'Data Annex'!$K$1:$K$6077,0),MATCH(Assets!P$47,'Data Annex'!$K$1:$AV$1,0)),"") -> 0.8679432381 | Q66: =IFERROR(INDEX('Data Annex'!$K$1:$AV$6077,MATCH(Assets!Q$46&"|"&Assets!$B66,'Data Annex'!$K$1:$K$6077,0),MATCH(Assets!Q$47,'Data Annex'!$K$1:$AV$1,0)),"") -> 0.8752714325 | R66: =IFERROR(INDEX('Data Annex'!$K$1:$AV$6077,MATCH(Assets!R$46&"|"&Assets!$B66,'Data Annex'!$K$1:$K$6077,0),MATCH(Assets!R$47,'Data Annex'!$K$1:$AV$1,0)),"") -> 0.06939312368 | S66: =IFERROR(INDEX('Data Annex'!$K$1:$AV$6077,MATCH(Assets!S$46&"|"&Assets!$B66,'Data Annex'!$K$1:$K$6077,0),MATCH(Assets!S$47,'Data Annex'!$K$1:$AV$1,0)),"") -> 0.05462502923 | T66: =IFERROR(INDEX('Data Annex'!$K$1:$AV$6077,MATCH(Assets!T$46&"|"&Assets!$B66,'Data Annex'!$K$1:$K$6077,0),MATCH(Assets!T$47,'Data Annex'!$K$1:$AV$1,0)),"") -> 0.04996381798 | U66: =IFERROR(INDEX('Data Annex'!$K$1:$AV$6077,MATCH(Assets!U$46&"|"&Assets!$B66,'Data Annex'!$K$1:$K$6077,0),MATCH(Assets!U$47,'Data Annex'!$K$1:$AV$1,0)),"") -> 0.06013407939 | V66: =IFERROR(INDEX('Data Annex'!$K$1:$AV$6077,MATCH(Assets!V$46&"|"&Assets!$B66,'Data Annex'!$K$1:$K$6077,0),MATCH(Assets!V$47,'Data Annex'!$K$1:$AV$1,0)),"") -> 0.07743173271 | W66: =IFERROR(INDEX('Data Annex'!$K$1:$AV$6077,MATCH(Assets!W$46&"|"&Assets!$B66,'Data Annex'!$K$1:$K$6077,0),MATCH(Assets!W$47,'Data Annex'!$K$1:$AV$1,0)),"") -> 0.07476474954
B67: IE | D67: IE | F67: =IFERROR(INDEX('Data Annex'!$K$1:$AV$6077,MATCH(Assets!F$46&"|"&Assets!$B67,'Data Annex'!$K$1:$K$6077,0),MATCH(Assets!F$47,'Data Annex'!$K$1:$AV$1,0)),"") -> 340.3670565 | G67: =IFERROR(INDEX('Data Annex'!$K$1:$AV$6077,MATCH(Assets!G$46&"|"&Assets!$B67,'Data Annex'!$K$1:$K$6077,0),MATCH(Assets!G$47,'Data Annex'!$K$1:$AV$1,0)),"") -> 406.1934205 | H67: =IFERROR(INDEX('Data Annex'!$K$1:$AV$6077,MATCH(Assets!H$46&"|"&Assets!$B67,'Data Annex'!$K$1:$K$6077,0),MATCH(Assets!H$47,'Data Annex'!$K$1:$AV$1,0)),"") -> 382.1267967 | I67: =IFERROR(INDEX('Data Annex'!$K$1:$AV$6077,MATCH(Assets!I$46&"|"&Assets!$B67,'Data Annex'!$K$1:$K$6077,0),MATCH(Assets!I$47,'Data Annex'!$K$1:$AV$1,0)),"") -> 325.6606255 | J67: =IFERROR(INDEX('Data Annex'!$K$1:$AV$6077,MATCH(Assets!J$46&"|"&Assets!$B67,'Data Annex'!$K$1:$K$6077,0),MATCH(Assets!J$47,'Data Annex'!$K$1:$AV$1,0)),"") -> 384.3354389 | K67: =IFERROR(INDEX('Data Annex'!$K$1:$AV$6077,MATCH(Assets!K$46&"|"&Assets!$B67,'Data Annex'!$K$1:$K$6077,0),MATCH(Assets!K$47,'Data Annex'!$K$1:$AV$1,0)),"") -> 362.0857069 | L67: 0.9475538227 | M67: IE | O67: =IFERROR(INDEX('Data Annex'!$K$1:$AV$6077,MATCH(Assets!O$46&"|"&Assets!$B67,'Data Annex'!$K$1:$K$6077,0),MATCH(Assets!O$47,'Data Annex'!$K$1:$AV$1,0)),"") -> 0.8493015933 | P67: =IFERROR(INDEX('Data Annex'!$K$1:$AV$6077,MATCH(Assets!P$46&"|"&Assets!$B67,'Data Annex'!$K$1:$K$6077,0),MATCH(Assets!P$47,'Data Annex'!$K$1:$AV$1,0)),"") -> 0.7784017629 | Q67: =IFERROR(INDEX('Data Annex'!$K$1:$AV$6077,MATCH(Assets!Q$46&"|"&Assets!$B67,'Data Annex'!$K$1:$K$6077,0),MATCH(Assets!Q$47,'Data Annex'!$K$1:$AV$1,0)),"") -> 0.7959153358 | R67: =IFERROR(INDEX('Data Annex'!$K$1:$AV$6077,MATCH(Assets!R$46&"|"&Assets!$B67,'Data Annex'!$K$1:$K$6077,0),MATCH(Assets!R$47,'Data Annex'!$K$1:$AV$1,0)),"") -> 0.08832542827 | S67: =IFERROR(INDEX('Data Annex'!$K$1:$AV$6077,MATCH(Assets!S$46&"|"&Assets!$B67,'Data Annex'!$K$1:$K$6077,0),MATCH(Assets!S$47,'Data Annex'!$K$1:$AV$1,0)),"") -> 0.06448695439 | T67: =IFERROR(INDEX('Data Annex'!$K$1:$AV$6077,MATCH(Assets!T$46&"|"&Assets!$B67,'Data Annex'!$K$1:$K$6077,0),MATCH(Assets!T$47,'Data Annex'!$K$1:$AV$1,0)),"") -> 0.06785908771 | U67: =IFERROR(INDEX('Data Annex'!$K$1:$AV$6077,MATCH(Assets!U$46&"|"&Assets!$B67,'Data Annex'!$K$1:$K$6077,0),MATCH(Assets!U$47,'Data Annex'!$K$1:$AV$1,0)),"") -> 0.06237297841 | V67: =IFERROR(INDEX('Data Annex'!$K$1:$AV$6077,MATCH(Assets!V$46&"|"&Assets!$B67,'Data Annex'!$K$1:$K$6077,0),MATCH(Assets!V$47,'Data Annex'!$K$1:$AV$1,0)),"") -> 0.1571112827 | W67: =IFERROR(INDEX('Data Annex'!$K$1:$AV$6077,MATCH(Assets!W$46&"|"&Assets!$B67,'Data Annex'!$K$1:$K$6077,0),MATCH(Assets!W$47,'Data Annex'!$K$1:$AV$1,0)),"") -> 0.1362255765
B68: IS | D68: IS | F68: =IFERROR(INDEX('Data Annex'!$K$1:$AV$6077,MATCH(Assets!F$46&"|"&Assets!$B68,'Data Annex'!$K$1:$K$6077,0),MATCH(Assets!F$47,'Data Annex'!$K$1:$AV$1,0)),"") -> 30.30138198 | G68: =IFERROR(INDEX('Data Annex'!$K$1:$AV$6077,MATCH(Assets!G$46&"|"&Assets!$B68,'Data Annex'!$K$1:$K$6077,0),MATCH(Assets!G$47,'Data Annex'!$K$1:$AV$1,0)),"") -> 33.69542724 | H68: =IFERROR(INDEX('Data Annex'!$K$1:$AV$6077,MATCH(Assets!H$46&"|"&Assets!$B68,'Data Annex'!$K$1:$K$6077,0),MATCH(Assets!H$47,'Data Annex'!$K$1:$AV$1,0)),"") -> 31.83375359 | I68: =IFERROR(INDEX('Data Annex'!$K$1:$AV$6077,MATCH(Assets!I$46&"|"&Assets!$B68,'Data Annex'!$K$1:$K$6077,0),MATCH(Assets!I$47,'Data Annex'!$K$1:$AV$1,0)),"") -> 29.6324468 | J68: =IFERROR(INDEX('Data Annex'!$K$1:$AV$6077,MATCH(Assets!J$46&"|"&Assets!$B68,'Data Annex'!$K$1:$K$6077,0),MATCH(Assets!J$47,'Data Annex'!$K$1:$AV$1,0)),"") -> 33.06214314 | K68: =IFERROR(INDEX('Data Annex'!$K$1:$AV$6077,MATCH(Assets!K$46&"|"&Assets!$B68,'Data Annex'!$K$1:$K$6077,0),MATCH(Assets!K$47,'Data Annex'!$K$1:$AV$1,0)),"") -> 31.3261193 | L68: 0.9840535837 | M68: IS | O68: =IFERROR(INDEX('Data Annex'!$K$1:$AV$6077,MATCH(Assets!O$46&"|"&Assets!$B68,'Data Annex'!$K$1:$K$6077,0),MATCH(Assets!O$47,'Data Annex'!$K$1:$AV$1,0)),"") -> 0.8625115706 | P68: =IFERROR(INDEX('Data Annex'!$K$1:$AV$6077,MATCH(Assets!P$46&"|"&Assets!$B68,'Data Annex'!$K$1:$K$6077,0),MATCH(Assets!P$47,'Data Annex'!$K$1:$AV$1,0)),"") -> 0.8888593425 | Q68: =IFERROR(INDEX('Data Annex'!$K$1:$AV$6077,MATCH(Assets!Q$46&"|"&Assets!$B68,'Data Annex'!$K$1:$K$6077,0),MATCH(Assets!Q$47,'Data Annex'!$K$1:$AV$1,0)),"") -> 0.8914982412 | R68: =IFERROR(INDEX('Data Annex'!$K$1:$AV$6077,MATCH(Assets!R$46&"|"&Assets!$B68,'Data Annex'!$K$1:$K$6077,0),MATCH(Assets!R$47,'Data Annex'!$K$1:$AV$1,0)),"") -> 0.03059727713 | S68: =IFERROR(INDEX('Data Annex'!$K$1:$AV$6077,MATCH(Assets!S$46&"|"&Assets!$B68,'Data Annex'!$K$1:$K$6077,0),MATCH(Assets!S$47,'Data Annex'!$K$1:$AV$1,0)),"") -> 0.02881865414 | T68: =IFERROR(INDEX('Data Annex'!$K$1:$AV$6077,MATCH(Assets!T$46&"|"&Assets!$B68,'Data Annex'!$K$1:$K$6077,0),MATCH(Assets!T$47,'Data Annex'!$K$1:$AV$1,0)),"") -> 0.02440131101 | U68: =IFERROR(INDEX('Data Annex'!$K$1:$AV$6077,MATCH(Assets!U$46&"|"&Assets!$B68,'Data Annex'!$K$1:$K$6077,0),MATCH(Assets!U$47,'Data Annex'!$K$1:$AV$1,0)),"") -> 0.1068911523 | V68: =IFERROR(INDEX('Data Annex'!$K$1:$AV$6077,MATCH(Assets!V$46&"|"&Assets!$B68,'Data Annex'!$K$1:$K$6077,0),MATCH(Assets!V$47,'Data Annex'!$K$1:$AV$1,0)),"") -> 0.0823220034 | W68: =IFERROR(INDEX('Data Annex'!$K$1:$AV$6077,MATCH(Assets!W$46&"|"&Assets!$B68,'Data Annex'!$K$1:$K$6077,0),MATCH(Assets!W$47,'Data Annex'!$K$1:$AV$1,0)),"") -> 0.08410044774
B69: IT | D69: IT | F69: =IFERROR(INDEX('Data Annex'!$K$1:$AV$6077,MATCH(Assets!F$46&"|"&Assets!$B69,'Data Annex'!$K$1:$K$6077,0),MATCH(Assets!F$47,'Data Annex'!$K$1:$AV$1,0)),"") -> 2799.04117 | G69: =IFERROR(INDEX('Data Annex'!$K$1:$AV$6077,MATCH(Assets!G$46&"|"&Assets!$B69,'Data Annex'!$K$1:$K$6077,0),MATCH(Assets!G$47,'Data Annex'!$K$1:$AV$1,0)),"") -> 2833.701878 | H69: =IFERROR(INDEX('Data Annex'!$K$1:$AV$6077,MATCH(Assets!H$46&"|"&Assets!$B69,'Data Annex'!$K$1:$K$6077,0),MATCH(Assets!H$47,'Data Annex'!$K$1:$AV$1,0)),"") -> 2668.25202 | I69: =IFERROR(INDEX('Data Annex'!$K$1:$AV$6077,MATCH(Assets!I$46&"|"&Assets!$B69,'Data Annex'!$K$1:$K$6077,0),MATCH(Assets!I$47,'Data Annex'!$K$1:$AV$1,0)),"") -> 2637.743788 | J69: =IFERROR(INDEX('Data Annex'!$K$1:$AV$6077,MATCH(Assets!J$46&"|"&Assets!$B69,'Data Annex'!$K$1:$K$6077,0),MATCH(Assets!J$47,'Data Annex'!$K$1:$AV$1,0)),"") -> 2688.172998 | K69: =IFERROR(INDEX('Data Annex'!$K$1:$AV$6077,MATCH(Assets!K$46&"|"&Assets!$B69,'Data Annex'!$K$1:$K$6077,0),MATCH(Assets!K$47,'Data Annex'!$K$1:$AV$1,0)),"") -> 2521.09682 | L69: 0.9448495873 | M69: IT | O69: =IFERROR(INDEX('Data Annex'!$K$1:$AV$6077,MATCH(Assets!O$46&"|"&Assets!$B69,'Data Annex'!$K$1:$K$6077,0),MATCH(Assets!O$47,'Data Annex'!$K$1:$AV$1,0)),"") -> 0.8561018397 | P69: =IFERROR(INDEX('Data Annex'!$K$1:$AV$6077,MATCH(Assets!P$46&"|"&Assets!$B69,'Data Annex'!$K$1:$K$6077,0),MATCH(Assets!P$47,'Data Annex'!$K$1:$AV$1,0)),"") -> 0.8620504525 | Q69: =IFERROR(INDEX('Data Annex'!$K$1:$AV$6077,MATCH(Assets!Q$46&"|"&Assets!$B69,'Data Annex'!$K$1:$K$6077,0),MATCH(Assets!Q$47,'Data Annex'!$K$1:$AV$1,0)),"") -> 0.8676548902 | R69: =IFERROR(INDEX('Data Annex'!$K$1:$AV$6077,MATCH(Assets!R$46&"|"&Assets!$B69,'Data Annex'!$K$1:$K$6077,0),MATCH(Assets!R$47,'Data Annex'!$K$1:$AV$1,0)),"") -> 0.07316366452 | S69: =IFERROR(INDEX('Data Annex'!$K$1:$AV$6077,MATCH(Assets!S$46&"|"&Assets!$B69,'Data Annex'!$K$1:$K$6077,0),MATCH(Assets!S$47,'Data Annex'!$K$1:$AV$1,0)),"") -> 0.06302846586 | T69: =IFERROR(INDEX('Data Annex'!$K$1:$AV$6077,MATCH(Assets!T$46&"|"&Assets!$B69,'Data Annex'!$K$1:$K$6077,0),MATCH(Assets!T$47,'Data Annex'!$K$1:$AV$1,0)),"") -> 0.06298141379 | U69: =IFERROR(INDEX('Data Annex'!$K$1:$AV$6077,MATCH(Assets!U$46&"|"&Assets!$B69,'Data Annex'!$K$1:$K$6077,0),MATCH(Assets!U$47,'Data Annex'!$K$1:$AV$1,0)),"") -> 0.07073449576 | V69: =IFERROR(INDEX('Data Annex'!$K$1:$AV$6077,MATCH(Assets!V$46&"|"&Assets!$B69,'Data Annex'!$K$1:$K$6077,0),MATCH(Assets!V$47,'Data Annex'!$K$1:$AV$1,0)),"") -> 0.07492108161 | W69: =IFERROR(INDEX('Data Annex'!$K$1:$AV$6077,MATCH(Assets!W$46&"|"&Assets!$B69,'Data Annex'!$K$1:$K$6077,0),MATCH(Assets!W$47,'Data Annex'!$K$1:$AV$1,0)),"") -> 0.06936369605
B70: LI | D70: LI* | F70: =IFERROR(INDEX('Data Annex'!$K$1:$AV$6077,MATCH(Assets!F$46&"|"&Assets!$B70,'Data Annex'!$K$1:$K$6077,0),MATCH(Assets!F$47,'Data Annex'!$K$1:$AV$1,0)),"") -> n.a. | G70: =IFERROR(INDEX('Data Annex'!$K$1:$AV$6077,MATCH(Assets!G$46&"|"&Assets!$B70,'Data Annex'!$K$1:$K$6077,0),MATCH(Assets!G$47,'Data Annex'!$K$1:$AV$1,0)),"") -> 103.7373348 | H70: =IFERROR(INDEX('Data Annex'!$K$1:$AV$6077,MATCH(Assets!H$46&"|"&Assets!$B70,'Data Annex'!$K$1:$K$6077,0),MATCH(Assets!H$47,'Data Annex'!$K$1:$AV$1,0)),"") -> 100.4865525 | I70: =IFERROR(INDEX('Data Annex'!$K$1:$AV$6077,MATCH(Assets!I$46&"|"&Assets!$B70,'Data Annex'!$K$1:$K$6077,0),MATCH(Assets!I$47,'Data Annex'!$K$1:$AV$1,0)),"") -> n.a. | J70: =IFERROR(INDEX('Data Annex'!$K$1:$AV$6077,MATCH(Assets!J$46&"|"&Assets!$B70,'Data Annex'!$K$1:$K$6077,0),MATCH(Assets!J$47,'Data Annex'!$K$1:$AV$1,0)),"") -> 99.55819939 | K70: =IFERROR(INDEX('Data Annex'!$K$1:$AV$6077,MATCH(Assets!K$46&"|"&Assets!$B70,'Data Annex'!$K$1:$K$6077,0),MATCH(Assets!K$47,'Data Annex'!$K$1:$AV$1,0)),"") -> 96.62211629 | M70: LI* | O70: =IFERROR(INDEX('Data Annex'!$K$1:$AV$6077,MATCH(Assets!O$46&"|"&Assets!$B70,'Data Annex'!$K$1:$K$6077,0),MATCH(Assets!O$47,'Data Annex'!$K$1:$AV$1,0)),"") -> n.a. | P70: =IFERROR(INDEX('Data Annex'!$K$1:$AV$6077,MATCH(Assets!P$46&"|"&Assets!$B70,'Data Annex'!$K$1:$K$6077,0),MATCH(Assets!P$47,'Data Annex'!$K$1:$AV$1,0)),"") -> 0.7257386494 | Q70: =IFERROR(INDEX('Data Annex'!$K$1:$AV$6077,MATCH(Assets!Q$46&"|"&Assets!$B70,'Data Annex'!$K$1:$K$6077,0),MATCH(Assets!Q$47,'Data Annex'!$K$1:$AV$1,0)),"") -> 0.8339356438 | R70: =IFERROR(INDEX('Data Annex'!$K$1:$AV$6077,MATCH(Assets!R$46&"|"&Assets!$B70,'Data Annex'!$K$1:$K$6077,0),MATCH(Assets!R$47,'Data Annex'!$K$1:$AV$1,0)),"") -> n.a. | S70: =IFERROR(INDEX('Data Annex'!$K$1:$AV$6077,MATCH(Assets!S$46&"|"&Assets!$B70,'Data Annex'!$K$1:$K$6077,0),MATCH(Assets!S$47,'Data Annex'!$K$1:$AV$1,0)),"") -> 0.2294097578 | T70: =IFERROR(INDEX('Data Annex'!$K$1:$AV$6077,MATCH(Assets!T$46&"|"&Assets!$B70,'Data Annex'!$K$1:$K$6077,0),MATCH(Assets!T$47,'Data Annex'!$K$1:$AV$1,0)),"") -> 0.1268561533 | U70: =IFERROR(INDEX('Data Annex'!$K$1:$AV$6077,MATCH(Assets!U$46&"|"&Assets!$B70,'Data Annex'!$K$1:$K$6077,0),MATCH(Assets!U$47,'Data Annex'!$K$1:$AV$1,0)),"") -> n.a. | V70: =IFERROR(INDEX('Data Annex'!$K$1:$AV$6077,MATCH(Assets!V$46&"|"&Assets!$B70,'Data Annex'!$K$1:$K$6077,0),MATCH(Assets!V$47,'Data Annex'!$K$1:$AV$1,0)),"") -> 0.04485159281 | W70: =IFERROR(INDEX('Data Annex'!$K$1:$AV$6077,MATCH(Assets!W$46&"|"&Assets!$B70,'Data Annex'!$K$1:$K$6077,0),MATCH(Assets!W$47,'Data Annex'!$K$1:$AV$1,0)),"") -> 0.03920820296
B71: LT | D71: LT | F71: =IFERROR(INDEX('Data Annex'!$K$1:$AV$6077,MATCH(Assets!F$46&"|"&Assets!$B71,'Data Annex'!$K$1:$K$6077,0),MATCH(Assets!F$47,'Data Annex'!$K$1:$AV$1,0)),"") -> 31.783918 | G71: =IFERROR(INDEX('Data Annex'!$K$1:$AV$6077,MATCH(Assets!G$46&"|"&Assets!$B71,'Data Annex'!$K$1:$K$6077,0),MATCH(Assets!G$47,'Data Annex'!$K$1:$AV$1,0)),"") -> 20.904106 | H71: =IFERROR(INDEX('Data Annex'!$K$1:$AV$6077,MATCH(Assets!H$46&"|"&Assets!$B71,'Data Annex'!$K$1:$K$6077,0),MATCH(Assets!H$47,'Data Annex'!$K$1:$AV$1,0)),"") -> 32.227679 | I71: =IFERROR(INDEX('Data Annex'!$K$1:$AV$6077,MATCH(Assets!I$46&"|"&Assets!$B71,'Data Annex'!$K$1:$K$6077,0),MATCH(Assets!I$47,'Data Annex'!$K$1:$AV$1,0)),"") -> 31.586996 | J71: =IFERROR(INDEX('Data Annex'!$K$1:$AV$6077,MATCH(Assets!J$46&"|"&Assets!$B71,'Data Annex'!$K$1:$K$6077,0),MATCH(Assets!J$47,'Data Annex'!$K$1:$AV$1,0)),"") -> 20.767567 | K71: =IFERROR(INDEX('Data Annex'!$K$1:$AV$6077,MATCH(Assets!K$46&"|"&Assets!$B71,'Data Annex'!$K$1:$K$6077,0),MATCH(Assets!K$47,'Data Annex'!$K$1:$AV$1,0)),"") -> 30.160497 | L71: 0.9358569384 | M71: LT | O71: =IFERROR(INDEX('Data Annex'!$K$1:$AV$6077,MATCH(Assets!O$46&"|"&Assets!$B71,'Data Annex'!$K$1:$K$6077,0),MATCH(Assets!O$47,'Data Annex'!$K$1:$AV$1,0)),"") -> 0.9406859076 | P71: =IFERROR(INDEX('Data Annex'!$K$1:$AV$6077,MATCH(Assets!P$46&"|"&Assets!$B71,'Data Annex'!$K$1:$K$6077,0),MATCH(Assets!P$47,'Data Annex'!$K$1:$AV$1,0)),"") -> 0.9305623042 | Q71: =IFERROR(INDEX('Data Annex'!$K$1:$AV$6077,MATCH(Assets!Q$46&"|"&Assets!$B71,'Data Annex'!$K$1:$K$6077,0),MATCH(Assets!Q$47,'Data Annex'!$K$1:$AV$1,0)),"") -> 0.953813029 | R71: =IFERROR(INDEX('Data Annex'!$K$1:$AV$6077,MATCH(Assets!R$46&"|"&Assets!$B71,'Data Annex'!$K$1:$K$6077,0),MATCH(Assets!R$47,'Data Annex'!$K$1:$AV$1,0)),"") -> 0.002473359607 | S71: =IFERROR(INDEX('Data Annex'!$K$1:$AV$6077,MATCH(Assets!S$46&"|"&Assets!$B71,'Data Annex'!$K$1:$K$6077,0),MATCH(Assets!S$47,'Data Annex'!$K$1:$AV$1,0)),"") -> 0.005866310676 | T71: =IFERROR(INDEX('Data Annex'!$K$1:$AV$6077,MATCH(Assets!T$46&"|"&Assets!$B71,'Data Annex'!$K$1:$K$6077,0),MATCH(Assets!T$47,'Data Annex'!$K$1:$AV$1,0)),"") -> 0.002828070108 | U71: =IFERROR(INDEX('Data Annex'!$K$1:$AV$6077,MATCH(Assets!U$46&"|"&Assets!$B71,'Data Annex'!$K$1:$K$6077,0),MATCH(Assets!U$47,'Data Annex'!$K$1:$AV$1,0)),"") -> 0.05684073281 | V71: =IFERROR(INDEX('Data Annex'!$K$1:$AV$6077,MATCH(Assets!V$46&"|"&Assets!$B71,'Data Annex'!$K$1:$K$6077,0),MATCH(Assets!V$47,'Data Annex'!$K$1:$AV$1,0)),"") -> 0.06357138513 | W71: =IFERROR(INDEX('Data Annex'!$K$1:$AV$6077,MATCH(Assets!W$46&"|"&Assets!$B71,'Data Annex'!$K$1:$K$6077,0),MATCH(Assets!W$47,'Data Annex'!$K$1:$AV$1,0)),"") -> 0.04335890088
B72: LU | D72: LU | F72: =IFERROR(INDEX('Data Annex'!$K$1:$AV$6077,MATCH(Assets!F$46&"|"&Assets!$B72,'Data Annex'!$K$1:$K$6077,0),MATCH(Assets!F$47,'Data Annex'!$K$1:$AV$1,0)),"") -> 194.7509769 | G72: =IFERROR(INDEX('Data Annex'!$K$1:$AV$6077,MATCH(Assets!G$46&"|"&Assets!$B72,'Data Annex'!$K$1:$K$6077,0),MATCH(Assets!G$47,'Data Annex'!$K$1:$AV$1,0)),"") -> 207.9809125 | H72: =IFERROR(INDEX('Data Annex'!$K$1:$AV$6077,MATCH(Assets!H$46&"|"&Assets!$B72,'Data Annex'!$K$1:$K$6077,0),MATCH(Assets!H$47,'Data Annex'!$K$1:$AV$1,0)),"") -> 193.7963788 | I72: =IFERROR(INDEX('Data Annex'!$K$1:$AV$6077,MATCH(Assets!I$46&"|"&Assets!$B72,'Data Annex'!$K$1:$K$6077,0),MATCH(Assets!I$47,'Data Annex'!$K$1:$AV$1,0)),"") -> 189.5478212 | J72: =IFERROR(INDEX('Data Annex'!$K$1:$AV$6077,MATCH(Assets!J$46&"|"&Assets!$B72,'Data Annex'!$K$1:$K$6077,0),MATCH(Assets!J$47,'Data Annex'!$K$1:$AV$1,0)),"") -> 202.7975103 | K72: =IFERROR(INDEX('Data Annex'!$K$1:$AV$6077,MATCH(Assets!K$46&"|"&Assets!$B72,'Data Annex'!$K$1:$K$6077,0),MATCH(Assets!K$47,'Data Annex'!$K$1:$AV$1,0)),"") -> 189.1410148 | L72: 0.9759780652 | M72: LU | O72: =IFERROR(INDEX('Data Annex'!$K$1:$AV$6077,MATCH(Assets!O$46&"|"&Assets!$B72,'Data Annex'!$K$1:$K$6077,0),MATCH(Assets!O$47,'Data Annex'!$K$1:$AV$1,0)),"") -> 0.9365413508 | P72: =IFERROR(INDEX('Data Annex'!$K$1:$AV$6077,MATCH(Assets!P$46&"|"&Assets!$B72,'Data Annex'!$K$1:$K$6077,0),MATCH(Assets!P$47,'Data Annex'!$K$1:$AV$1,0)),"") -> 0.9382346433 | Q72: =IFERROR(INDEX('Data Annex'!$K$1:$AV$6077,MATCH(Assets!Q$46&"|"&Assets!$B72,'Data Annex'!$K$1:$K$6077,0),MATCH(Assets!Q$47,'Data Annex'!$K$1:$AV$1,0)),"") -> 0.9404116938 | R72: =IFERROR(INDEX('Data Annex'!$K$1:$AV$6077,MATCH(Assets!R$46&"|"&Assets!$B72,'Data Annex'!$K$1:$K$6077,0),MATCH(Assets!R$47,'Data Annex'!$K$1:$AV$1,0)),"") -> 0.04623243636 | S72: =IFERROR(INDEX('Data Annex'!$K$1:$AV$6077,MATCH(Assets!S$46&"|"&Assets!$B72,'Data Annex'!$K$1:$K$6077,0),MATCH(Assets!S$47,'Data Annex'!$K$1:$AV$1,0)),"") -> 0.03218459911 | T72: =IFERROR(INDEX('Data Annex'!$K$1:$AV$6077,MATCH(Assets!T$46&"|"&Assets!$B72,'Data Annex'!$K$1:$K$6077,0),MATCH(Assets!T$47,'Data Annex'!$K$1:$AV$1,0)),"") -> 0.03429716428 | U72: =IFERROR(INDEX('Data Annex'!$K$1:$AV$6077,MATCH(Assets!U$46&"|"&Assets!$B72,'Data Annex'!$K$1:$K$6077,0),MATCH(Assets!U$47,'Data Annex'!$K$1:$AV$1,0)),"") -> 0.01722621284 | V72: =IFERROR(INDEX('Data Annex'!$K$1:$AV$6077,MATCH(Assets!V$46&"|"&Assets!$B72,'Data Annex'!$K$1:$K$6077,0),MATCH(Assets!V$47,'Data Annex'!$K$1:$AV$1,0)),"") -> 0.02958075755 | W72: =IFERROR(INDEX('Data Annex'!$K$1:$AV$6077,MATCH(Assets!W$46&"|"&Assets!$B72,'Data Annex'!$K$1:$K$6077,0),MATCH(Assets!W$47,'Data Annex'!$K$1:$AV$1,0)),"") -> 0.02529114195
B73: LV | D73: LV | F73: =IFERROR(INDEX('Data Annex'!$K$1:$AV$6077,MATCH(Assets!F$46&"|"&Assets!$B73,'Data Annex'!$K$1:$K$6077,0),MATCH(Assets!F$47,'Data Annex'!$K$1:$AV$1,0)),"") -> 49.60984583 | G73: =IFERROR(INDEX('Data Annex'!$K$1:$AV$6077,MATCH(Assets!G$46&"|"&Assets!$B73,'Data Annex'!$K$1:$K$6077,0),MATCH(Assets!G$47,'Data Annex'!$K$1:$AV$1,0)),"") -> 49.65881601 | H73: =IFERROR(INDEX('Data Annex'!$K$1:$AV$6077,MATCH(Assets!H$46&"|"&Assets!$B73,'Data Annex'!$K$1:$K$6077,0),MATCH(Assets!H$47,'Data Annex'!$K$1:$AV$1,0)),"") -> 51.38371449 | I73: =IFERROR(INDEX('Data Annex'!$K$1:$AV$6077,MATCH(Assets!I$46&"|"&Assets!$B73,'Data Annex'!$K$1:$K$6077,0),MATCH(Assets!I$47,'Data Annex'!$K$1:$AV$1,0)),"") -> 49.24113819 | J73: =IFERROR(INDEX('Data Annex'!$K$1:$AV$6077,MATCH(Assets!J$46&"|"&Assets!$B73,'Data Annex'!$K$1:$K$6077,0),MATCH(Assets!J$47,'Data Annex'!$K$1:$AV$1,0)),"") -> 49.17390236 | K73: =IFERROR(INDEX('Data Annex'!$K$1:$AV$6077,MATCH(Assets!K$46&"|"&Assets!$B73,'Data Annex'!$K$1:$K$6077,0),MATCH(Assets!K$47,'Data Annex'!$K$1:$AV$1,0)),"") -> 50.86972209 | L73: 0.9899969784 | M73: LV | O73: =IFERROR(INDEX('Data Annex'!$K$1:$AV$6077,MATCH(Assets!O$46&"|"&Assets!$B73,'Data Annex'!$K$1:$K$6077,0),MATCH(Assets!O$47,'Data Annex'!$K$1:$AV$1,0)),"") -> 0.9119344142 | P73: =IFERROR(INDEX('Data Annex'!$K$1:$AV$6077,MATCH(Assets!P$46&"|"&Assets!$B73,'Data Annex'!$K$1:$K$6077,0),MATCH(Assets!P$47,'Data Annex'!$K$1:$AV$1,0)),"") -> 0.9166276761 | Q73: =IFERROR(INDEX('Data Annex'!$K$1:$AV$6077,MATCH(Assets!Q$46&"|"&Assets!$B73,'Data Annex'!$K$1:$K$6077,0),MATCH(Assets!Q$47,'Data Annex'!$K$1:$AV$1,0)),"") -> 0.9565591169 | R73: =IFERROR(INDEX('Data Annex'!$K$1:$AV$6077,MATCH(Assets!R$46&"|"&Assets!$B73,'Data Annex'!$K$1:$K$6077,0),MATCH(Assets!R$47,'Data Annex'!$K$1:$AV$1,0)),"") -> 0.005939348697 | S73: =IFERROR(INDEX('Data Annex'!$K$1:$AV$6077,MATCH(Assets!S$46&"|"&Assets!$B73,'Data Annex'!$K$1:$K$6077,0),MATCH(Assets!S$47,'Data Annex'!$K$1:$AV$1,0)),"") -> 0.00379260684 | T73: =IFERROR(INDEX('Data Annex'!$K$1:$AV$6077,MATCH(Assets!T$46&"|"&Assets!$B73,'Data Annex'!$K$1:$K$6077,0),MATCH(Assets!T$47,'Data Annex'!$K$1:$AV$1,0)),"") -> 0.003544761905 | U73: =IFERROR(INDEX('Data Annex'!$K$1:$AV$6077,MATCH(Assets!U$46&"|"&Assets!$B73,'Data Annex'!$K$1:$K$6077,0),MATCH(Assets!U$47,'Data Annex'!$K$1:$AV$1,0)),"") -> 0.08212623706 | V73: =IFERROR(INDEX('Data Annex'!$K$1:$AV$6077,MATCH(Assets!V$46&"|"&Assets!$B73,'Data Annex'!$K$1:$K$6077,0),MATCH(Assets!V$47,'Data Annex'!$K$1:$AV$1,0)),"") -> 0.07957971702 | W73: =IFERROR(INDEX('Data Annex'!$K$1:$AV$6077,MATCH(Assets!W$46&"|"&Assets!$B73,'Data Annex'!$K$1:$K$6077,0),MATCH(Assets!W$47,'Data Annex'!$K$1:$AV$1,0)),"") -> 0.03989612123
B74: MT | D74: MT | F74: =IFERROR(INDEX('Data Annex'!$K$1:$AV$6077,MATCH(Assets!F$46&"|"&Assets!$B74,'Data Annex'!$K$1:$K$6077,0),MATCH(Assets!F$47,'Data Annex'!$K$1:$AV$1,0)),"") -> 24.90991725 | G74: =IFERROR(INDEX('Data Annex'!$K$1:$AV$6077,MATCH(Assets!G$46&"|"&Assets!$B74,'Data Annex'!$K$1:$K$6077,0),MATCH(Assets!G$47,'Data Annex'!$K$1:$AV$1,0)),"") -> 25.87580002 | H74: =IFERROR(INDEX('Data Annex'!$K$1:$AV$6077,MATCH(Assets!H$46&"|"&Assets!$B74,'Data Annex'!$K$1:$K$6077,0),MATCH(Assets!H$47,'Data Annex'!$K$1:$AV$1,0)),"") -> 25.838336 | I74: =IFERROR(INDEX('Data Annex'!$K$1:$AV$6077,MATCH(Assets!I$46&"|"&Assets!$B74,'Data Annex'!$K$1:$K$6077,0),MATCH(Assets!I$47,'Data Annex'!$K$1:$AV$1,0)),"") -> 24.25858964 | J74: =IFERROR(INDEX('Data Annex'!$K$1:$AV$6077,MATCH(Assets!J$46&"|"&Assets!$B74,'Data Annex'!$K$1:$K$6077,0),MATCH(Assets!J$47,'Data Annex'!$K$1:$AV$1,0)),"") -> 25.39950012 | K74: =IFERROR(INDEX('Data Annex'!$K$1:$AV$6077,MATCH(Assets!K$46&"|"&Assets!$B74,'Data Annex'!$K$1:$K$6077,0),MATCH(Assets!K$47,'Data Annex'!$K$1:$AV$1,0)),"") -> 25.42415926 | L74: 0.9839704561 | M74: MT | O74: =IFERROR(INDEX('Data Annex'!$K$1:$AV$6077,MATCH(Assets!O$46&"|"&Assets!$B74,'Data Annex'!$K$1:$K$6077,0),MATCH(Assets!O$47,'Data Annex'!$K$1:$AV$1,0)),"") -> 0.8949021448 | P74: =IFERROR(INDEX('Data Annex'!$K$1:$AV$6077,MATCH(Assets!P$46&"|"&Assets!$B74,'Data Annex'!$K$1:$K$6077,0),MATCH(Assets!P$47,'Data Annex'!$K$1:$AV$1,0)),"") -> 0.9219192615 | Q74: =IFERROR(INDEX('Data Annex'!$K$1:$AV$6077,MATCH(Assets!Q$46&"|"&Assets!$B74,'Data Annex'!$K$1:$K$6077,0),MATCH(Assets!Q$47,'Data Annex'!$K$1:$AV$1,0)),"") -> 0.9311340858 | R74: =IFERROR(INDEX('Data Annex'!$K$1:$AV$6077,MATCH(Assets!R$46&"|"&Assets!$B74,'Data Annex'!$K$1:$K$6077,0),MATCH(Assets!R$47,'Data Annex'!$K$1:$AV$1,0)),"") -> 0.09757629019 | S74: =IFERROR(INDEX('Data Annex'!$K$1:$AV$6077,MATCH(Assets!S$46&"|"&Assets!$B74,'Data Annex'!$K$1:$K$6077,0),MATCH(Assets!S$47,'Data Annex'!$K$1:$AV$1,0)),"") -> 0.0617772485 | T74: =IFERROR(INDEX('Data Annex'!$K$1:$AV$6077,MATCH(Assets!T$46&"|"&Assets!$B74,'Data Annex'!$K$1:$K$6077,0),MATCH(Assets!T$47,'Data Annex'!$K$1:$AV$1,0)),"") -> 0.04795341124 | U74: =IFERROR(INDEX('Data Annex'!$K$1:$AV$6077,MATCH(Assets!U$46&"|"&Assets!$B74,'Data Annex'!$K$1:$K$6077,0),MATCH(Assets!U$47,'Data Annex'!$K$1:$AV$1,0)),"") -> 0.00752156506 | V74: =IFERROR(INDEX('Data Annex'!$K$1:$AV$6077,MATCH(Assets!V$46&"|"&Assets!$B74,'Data Annex'!$K$1:$K$6077,0),MATCH(Assets!V$47,'Data Annex'!$K$1:$AV$1,0)),"") -> 0.01630348997 | W74: =IFERROR(INDEX('Data Annex'!$K$1:$AV$6077,MATCH(Assets!W$46&"|"&Assets!$B74,'Data Annex'!$K$1:$K$6077,0),MATCH(Assets!W$47,'Data Annex'!$K$1:$AV$1,0)),"") -> 0.02091250298
B75: NL | D75: NL | F75: =IFERROR(INDEX('Data Annex'!$K$1:$AV$6077,MATCH(Assets!F$46&"|"&Assets!$B75,'Data Annex'!$K$1:$K$6077,0),MATCH(Assets!F$47,'Data Annex'!$K$1:$AV$1,0)),"") -> 2244.036916 | G75: =IFERROR(INDEX('Data Annex'!$K$1:$AV$6077,MATCH(Assets!G$46&"|"&Assets!$B75,'Data Annex'!$K$1:$K$6077,0),MATCH(Assets!G$47,'Data Annex'!$K$1:$AV$1,0)),"") -> 2475.448891 | H75: =IFERROR(INDEX('Data Annex'!$K$1:$AV$6077,MATCH(Assets!H$46&"|"&Assets!$B75,'Data Annex'!$K$1:$K$6077,0),MATCH(Assets!H$47,'Data Annex'!$K$1:$AV$1,0)),"") -> 2197.589706 | I75: =IFERROR(INDEX('Data Annex'!$K$1:$AV$6077,MATCH(Assets!I$46&"|"&Assets!$B75,'Data Annex'!$K$1:$K$6077,0),MATCH(Assets!I$47,'Data Annex'!$K$1:$AV$1,0)),"") -> 2164.435596 | J75: =IFERROR(INDEX('Data Annex'!$K$1:$AV$6077,MATCH(Assets!J$46&"|"&Assets!$B75,'Data Annex'!$K$1:$K$6077,0),MATCH(Assets!J$47,'Data Annex'!$K$1:$AV$1,0)),"") -> 2452.888656 | K75: =IFERROR(INDEX('Data Annex'!$K$1:$AV$6077,MATCH(Assets!K$46&"|"&Assets!$B75,'Data Annex'!$K$1:$K$6077,0),MATCH(Assets!K$47,'Data Annex'!$K$1:$AV$1,0)),"") -> 2181.200097 | L75: 0.9925420069 | M75: NL | O75: =IFERROR(INDEX('Data Annex'!$K$1:$AV$6077,MATCH(Assets!O$46&"|"&Assets!$B75,'Data Annex'!$K$1:$K$6077,0),MATCH(Assets!O$47,'Data Annex'!$K$1:$AV$1,0)),"") -> 0.8885853871 | P75: =IFERROR(INDEX('Data Annex'!$K$1:$AV$6077,MATCH(Assets!P$46&"|"&Assets!$B75,'Data Annex'!$K$1:$K$6077,0),MATCH(Assets!P$47,'Data Annex'!$K$1:$AV$1,0)),"") -> 0.8737554925 | Q75: =IFERROR(INDEX('Data Annex'!$K$1:$AV$6077,MATCH(Assets!Q$46&"|"&Assets!$B75,'Data Annex'!$K$1:$K$6077,0),MATCH(Assets!Q$47,'Data Annex'!$K$1:$AV$1,0)),"") -> 0.8841088628 | R75: =IFERROR(INDEX('Data Annex'!$K$1:$AV$6077,MATCH(Assets!R$46&"|"&Assets!$B75,'Data Annex'!$K$1:$K$6077,0),MATCH(Assets!R$47,'Data Annex'!$K$1:$AV$1,0)),"") -> 0.04510824845 | S75: =IFERROR(INDEX('Data Annex'!$K$1:$AV$6077,MATCH(Assets!S$46&"|"&Assets!$B75,'Data Annex'!$K$1:$K$6077,0),MATCH(Assets!S$47,'Data Annex'!$K$1:$AV$1,0)),"") -> 0.03776067391 | T75: =IFERROR(INDEX('Data Annex'!$K$1:$AV$6077,MATCH(Assets!T$46&"|"&Assets!$B75,'Data Annex'!$K$1:$K$6077,0),MATCH(Assets!T$47,'Data Annex'!$K$1:$AV$1,0)),"") -> 0.04204021508 | U75: =IFERROR(INDEX('Data Annex'!$K$1:$AV$6077,MATCH(Assets!U$46&"|"&Assets!$B75,'Data Annex'!$K$1:$K$6077,0),MATCH(Assets!U$47,'Data Annex'!$K$1:$AV$1,0)),"") -> 0.06630636442 | V75: =IFERROR(INDEX('Data Annex'!$K$1:$AV$6077,MATCH(Assets!V$46&"|"&Assets!$B75,'Data Annex'!$K$1:$K$6077,0),MATCH(Assets!V$47,'Data Annex'!$K$1:$AV$1,0)),"") -> 0.08848383358 | W75: =IFERROR(INDEX('Data Annex'!$K$1:$AV$6077,MATCH(Assets!W$46&"|"&Assets!$B75,'Data Annex'!$K$1:$K$6077,0),MATCH(Assets!W$47,'Data Annex'!$K$1:$AV$1,0)),"") -> 0.07385092209
B76: NO | D76: NO* | F76: =IFERROR(INDEX('Data Annex'!$K$1:$AV$6077,MATCH(Assets!F$46&"|"&Assets!$B76,'Data Annex'!$K$1:$K$6077,0),MATCH(Assets!F$47,'Data Annex'!$K$1:$AV$1,0)),"") -> n.a. | G76: =IFERROR(INDEX('Data Annex'!$K$1:$AV$6077,MATCH(Assets!G$46&"|"&Assets!$B76,'Data Annex'!$K$1:$K$6077,0),MATCH(Assets!G$47,'Data Annex'!$K$1:$AV$1,0)),"") -> 360.1558376 | H76: =IFERROR(INDEX('Data Annex'!$K$1:$AV$6077,MATCH(Assets!H$46&"|"&Assets!$B76,'Data Annex'!$K$1:$K$6077,0),MATCH(Assets!H$47,'Data Annex'!$K$1:$AV$1,0)),"") -> 340.3082606 | I76: =IFERROR(INDEX('Data Annex'!$K$1:$AV$6077,MATCH(Assets!I$46&"|"&Assets!$B76,'Data Annex'!$K$1:$K$6077,0),MATCH(Assets!I$47,'Data Annex'!$K$1:$AV$1,0)),"") -> n.a. | J76: =IFERROR(INDEX('Data Annex'!$K$1:$AV$6077,MATCH(Assets!J$46&"|"&Assets!$B76,'Data Annex'!$K$1:$K$6077,0),MATCH(Assets!J$47,'Data Annex'!$K$1:$AV$1,0)),"") -> 351.0472018 | K76: =IFERROR(INDEX('Data Annex'!$K$1:$AV$6077,MATCH(Assets!K$46&"|"&Assets!$B76,'Data Annex'!$K$1:$K$6077,0),MATCH(Assets!K$47,'Data Annex'!$K$1:$AV$1,0)),"") -> 332.2044447 | L76: 0.9761868377 | M76: NO* | O76: =IFERROR(INDEX('Data Annex'!$K$1:$AV$6077,MATCH(Assets!O$46&"|"&Assets!$B76,'Data Annex'!$K$1:$K$6077,0),MATCH(Assets!O$47,'Data Annex'!$K$1:$AV$1,0)),"") -> n.a. | P76: =IFERROR(INDEX('Data Annex'!$K$1:$AV$6077,MATCH(Assets!P$46&"|"&Assets!$B76,'Data Annex'!$K$1:$K$6077,0),MATCH(Assets!P$47,'Data Annex'!$K$1:$AV$1,0)),"") -> 0.7664028281 | Q76: =IFERROR(INDEX('Data Annex'!$K$1:$AV$6077,MATCH(Assets!Q$46&"|"&Assets!$B76,'Data Annex'!$K$1:$K$6077,0),MATCH(Assets!Q$47,'Data Annex'!$K$1:$AV$1,0)),"") -> 0.7700755984 | R76: =IFERROR(INDEX('Data Annex'!$K$1:$AV$6077,MATCH(Assets!R$46&"|"&Assets!$B76,'Data Annex'!$K$1:$K$6077,0),MATCH(Assets!R$47,'Data Annex'!$K$1:$AV$1,0)),"") -> n.a. | S76: =IFERROR(INDEX('Data Annex'!$K$1:$AV$6077,MATCH(Assets!S$46&"|"&Assets!$B76,'Data Annex'!$K$1:$K$6077,0),MATCH(Assets!S$47,'Data Annex'!$K$1:$AV$1,0)),"") -> 0.06500023115 | T76: =IFERROR(INDEX('Data Annex'!$K$1:$AV$6077,MATCH(Assets!T$46&"|"&Assets!$B76,'Data Annex'!$K$1:$K$6077,0),MATCH(Assets!T$47,'Data Annex'!$K$1:$AV$1,0)),"") -> 0.06990307922 | U76: =IFERROR(INDEX('Data Annex'!$K$1:$AV$6077,MATCH(Assets!U$46&"|"&Assets!$B76,'Data Annex'!$K$1:$K$6077,0),MATCH(Assets!U$47,'Data Annex'!$K$1:$AV$1,0)),"") -> n.a. | V76: =IFERROR(INDEX('Data Annex'!$K$1:$AV$6077,MATCH(Assets!V$46&"|"&Assets!$B76,'Data Annex'!$K$1:$K$6077,0),MATCH(Assets!V$47,'Data Annex'!$K$1:$AV$1,0)),"") -> 0.1685969407 | W76: =IFERROR(INDEX('Data Annex'!$K$1:$AV$6077,MATCH(Assets!W$46&"|"&Assets!$B76,'Data Annex'!$K$1:$K$6077,0),MATCH(Assets!W$47,'Data Annex'!$K$1:$AV$1,0)),"") -> 0.1600213224
B77: PL | D77: =IF(OR(F77="n.a.",G77="n.a.",H77="n.a.",I77="n.a.",J77="n.a.",K77="n.a."),$B77&"*",$B77) -> PL | F77: =IFERROR(INDEX('Data Annex'!$K$1:$AV$6077,MATCH(Assets!F$46&"|"&Assets!$B77,'Data Annex'!$K$1:$K$6077,0),MATCH(Assets!F$47,'Data Annex'!$K$1:$AV$1,0)),"") -> 198.2130124 | G77: =IFERROR(INDEX('Data Annex'!$K$1:$AV$6077,MATCH(Assets!G$46&"|"&Assets!$B77,'Data Annex'!$K$1:$K$6077,0),MATCH(Assets!G$47,'Data Annex'!$K$1:$AV$1,0)),"") -> 202.0578209 | H77: =IFERROR(INDEX('Data Annex'!$K$1:$AV$6077,MATCH(Assets!H$46&"|"&Assets!$B77,'Data Annex'!$K$1:$K$6077,0),MATCH(Assets!H$47,'Data Annex'!$K$1:$AV$1,0)),"") -> 207.0630553 | I77: =IFERROR(INDEX('Data Annex'!$K$1:$AV$6077,MATCH(Assets!I$46&"|"&Assets!$B77,'Data Annex'!$K$1:$K$6077,0),MATCH(Assets!I$47,'Data Annex'!$K$1:$AV$1,0)),"") -> 191.3936418 | J77: =IFERROR(INDEX('Data Annex'!$K$1:$AV$6077,MATCH(Assets!J$46&"|"&Assets!$B77,'Data Annex'!$K$1:$K$6077,0),MATCH(Assets!J$47,'Data Annex'!$K$1:$AV$1,0)),"") -> 195.2485627 | K77: =IFERROR(INDEX('Data Annex'!$K$1:$AV$6077,MATCH(Assets!K$46&"|"&Assets!$B77,'Data Annex'!$K$1:$K$6077,0),MATCH(Assets!K$47,'Data Annex'!$K$1:$AV$1,0)),"") -> 200.067134 | L77: 0.9662135705 | M77: PL | O77: =IFERROR(INDEX('Data Annex'!$K$1:$AV$6077,MATCH(Assets!O$46&"|"&Assets!$B77,'Data Annex'!$K$1:$K$6077,0),MATCH(Assets!O$47,'Data Annex'!$K$1:$AV$1,0)),"") -> 0.7862291122 | P77: =IFERROR(INDEX('Data Annex'!$K$1:$AV$6077,MATCH(Assets!P$46&"|"&Assets!$B77,'Data Annex'!$K$1:$K$6077,0),MATCH(Assets!P$47,'Data Annex'!$K$1:$AV$1,0)),"") -> 0.8116098467 | Q77: =IFERROR(INDEX('Data Annex'!$K$1:$AV$6077,MATCH(Assets!Q$46&"|"&Assets!$B77,'Data Annex'!$K$1:$K$6077,0),MATCH(Assets!Q$47,'Data Annex'!$K$1:$AV$1,0)),"") -> 0.8190257405 | R77: =IFERROR(INDEX('Data Annex'!$K$1:$AV$6077,MATCH(Assets!R$46&"|"&Assets!$B77,'Data Annex'!$K$1:$K$6077,0),MATCH(Assets!R$47,'Data Annex'!$K$1:$AV$1,0)),"") -> 0.178230105 | S77: =IFERROR(INDEX('Data Annex'!$K$1:$AV$6077,MATCH(Assets!S$46&"|"&Assets!$B77,'Data Annex'!$K$1:$K$6077,0),MATCH(Assets!S$47,'Data Annex'!$K$1:$AV$1,0)),"") -> 0.1267640415 | T77: =IFERROR(INDEX('Data Annex'!$K$1:$AV$6077,MATCH(Assets!T$46&"|"&Assets!$B77,'Data Annex'!$K$1:$K$6077,0),MATCH(Assets!T$47,'Data Annex'!$K$1:$AV$1,0)),"") -> 0.1348810638 | U77: =IFERROR(INDEX('Data Annex'!$K$1:$AV$6077,MATCH(Assets!U$46&"|"&Assets!$B77,'Data Annex'!$K$1:$K$6077,0),MATCH(Assets!U$47,'Data Annex'!$K$1:$AV$1,0)),"") -> 0.03554078274 | V77: =IFERROR(INDEX('Data Annex'!$K$1:$AV$6077,MATCH(Assets!V$46&"|"&Assets!$B77,'Data Annex'!$K$1:$K$6077,0),MATCH(Assets!V$47,'Data Annex'!$K$1:$AV$1,0)),"") -> 0.06162611181 | W77: =IFERROR(INDEX('Data Annex'!$K$1:$AV$6077,MATCH(Assets!W$46&"|"&Assets!$B77,'Data Annex'!$K$1:$K$6077,0),MATCH(Assets!W$47,'Data Annex'!$K$1:$AV$1,0)),"") -> 0.04609319568
B78: PT | D78: PT | F78: =IFERROR(INDEX('Data Annex'!$K$1:$AV$6077,MATCH(Assets!F$46&"|"&Assets!$B78,'Data Annex'!$K$1:$K$6077,0),MATCH(Assets!F$47,'Data Annex'!$K$1:$AV$1,0)),"") -> 298.1901471 | G78: =IFERROR(INDEX('Data Annex'!$K$1:$AV$6077,MATCH(Assets!G$46&"|"&Assets!$B78,'Data Annex'!$K$1:$K$6077,0),MATCH(Assets!G$47,'Data Annex'!$K$1:$AV$1,0)),"") -> 309.5966459 | H78: =IFERROR(INDEX('Data Annex'!$K$1:$AV$6077,MATCH(Assets!H$46&"|"&Assets!$B78,'Data Annex'!$K$1:$K$6077,0),MATCH(Assets!H$47,'Data Annex'!$K$1:$AV$1,0)),"") -> 294.3619669 | I78: =IFERROR(INDEX('Data Annex'!$K$1:$AV$6077,MATCH(Assets!I$46&"|"&Assets!$B78,'Data Annex'!$K$1:$K$6077,0),MATCH(Assets!I$47,'Data Annex'!$K$1:$AV$1,0)),"") -> 282.2010834 | J78: =IFERROR(INDEX('Data Annex'!$K$1:$AV$6077,MATCH(Assets!J$46&"|"&Assets!$B78,'Data Annex'!$K$1:$K$6077,0),MATCH(Assets!J$47,'Data Annex'!$K$1:$AV$1,0)),"") -> 291.5267454 | K78: =IFERROR(INDEX('Data Annex'!$K$1:$AV$6077,MATCH(Assets!K$46&"|"&Assets!$B78,'Data Annex'!$K$1:$K$6077,0),MATCH(Assets!K$47,'Data Annex'!$K$1:$AV$1,0)),"") -> 279.9005928 | L78: 0.950872138 | M78: PT | O78: =IFERROR(INDEX('Data Annex'!$K$1:$AV$6077,MATCH(Assets!O$46&"|"&Assets!$B78,'Data Annex'!$K$1:$K$6077,0),MATCH(Assets!O$47,'Data Annex'!$K$1:$AV$1,0)),"") -> 0.8632131532 | P78: =IFERROR(INDEX('Data Annex'!$K$1:$AV$6077,MATCH(Assets!P$46&"|"&Assets!$B78,'Data Annex'!$K$1:$K$6077,0),MATCH(Assets!P$47,'Data Annex'!$K$1:$AV$1,0)),"") -> 0.9090495617 | Q78: =IFERROR(INDEX('Data Annex'!$K$1:$AV$6077,MATCH(Assets!Q$46&"|"&Assets!$B78,'Data Annex'!$K$1:$K$6077,0),MATCH(Assets!Q$47,'Data Annex'!$K$1:$AV$1,0)),"") -> 0.9171273813 | R78: =IFERROR(INDEX('Data Annex'!$K$1:$AV$6077,MATCH(Assets!R$46&"|"&Assets!$B78,'Data Annex'!$K$1:$K$6077,0),MATCH(Assets!R$47,'Data Annex'!$K$1:$AV$1,0)),"") -> 0.1118336635 | S78: =IFERROR(INDEX('Data Annex'!$K$1:$AV$6077,MATCH(Assets!S$46&"|"&Assets!$B78,'Data Annex'!$K$1:$K$6077,0),MATCH(Assets!S$47,'Data Annex'!$K$1:$AV$1,0)),"") -> 0.06100675268 | T78: =IFERROR(INDEX('Data Annex'!$K$1:$AV$6077,MATCH(Assets!T$46&"|"&Assets!$B78,'Data Annex'!$K$1:$K$6077,0),MATCH(Assets!T$47,'Data Annex'!$K$1:$AV$1,0)),"") -> 0.05954792083 | U78: =IFERROR(INDEX('Data Annex'!$K$1:$AV$6077,MATCH(Assets!U$46&"|"&Assets!$B78,'Data Annex'!$K$1:$K$6077,0),MATCH(Assets!U$47,'Data Annex'!$K$1:$AV$1,0)),"") -> 0.02495318332 | V78: =IFERROR(INDEX('Data Annex'!$K$1:$AV$6077,MATCH(Assets!V$46&"|"&Assets!$B78,'Data Annex'!$K$1:$K$6077,0),MATCH(Assets!V$47,'Data Annex'!$K$1:$AV$1,0)),"") -> 0.02994368567 | W78: =IFERROR(INDEX('Data Annex'!$K$1:$AV$6077,MATCH(Assets!W$46&"|"&Assets!$B78,'Data Annex'!$K$1:$K$6077,0),MATCH(Assets!W$47,'Data Annex'!$K$1:$AV$1,0)),"") -> 0.02332469785
B79: RO | D79: RO | F79: =IFERROR(INDEX('Data Annex'!$K$1:$AV$6077,MATCH(Assets!F$46&"|"&Assets!$B79,'Data Annex'!$K$1:$K$6077,0),MATCH(Assets!F$47,'Data Annex'!$K$1:$AV$1,0)),"") -> 58.97109372 | G79: =IFERROR(INDEX('Data Annex'!$K$1:$AV$6077,MATCH(Assets!G$46&"|"&Assets!$B79,'Data Annex'!$K$1:$K$6077,0),MATCH(Assets!G$47,'Data Annex'!$K$1:$AV$1,0)),"") -> 62.09610108 | H79: =IFERROR(INDEX('Data Annex'!$K$1:$AV$6077,MATCH(Assets!H$46&"|"&Assets!$B79,'Data Annex'!$K$1:$K$6077,0),MATCH(Assets!H$47,'Data Annex'!$K$1:$AV$1,0)),"") -> 63.32142321 | I79: =IFERROR(INDEX('Data Annex'!$K$1:$AV$6077,MATCH(Assets!I$46&"|"&Assets!$B79,'Data Annex'!$K$1:$K$6077,0),MATCH(Assets!I$47,'Data Annex'!$K$1:$AV$1,0)),"") -> 57.68862608 | J79: =IFERROR(INDEX('Data Annex'!$K$1:$AV$6077,MATCH(Assets!J$46&"|"&Assets!$B79,'Data Annex'!$K$1:$K$6077,0),MATCH(Assets!J$47,'Data Annex'!$K$1:$AV$1,0)),"") -> 60.63801081 | K79: =IFERROR(INDEX('Data Annex'!$K$1:$AV$6077,MATCH(Assets!K$46&"|"&Assets!$B79,'Data Annex'!$K$1:$K$6077,0),MATCH(Assets!K$47,'Data Annex'!$K$1:$AV$1,0)),"") -> 61.61799091 | L79: 0.9730986415 | M79: RO | O79: =IFERROR(INDEX('Data Annex'!$K$1:$AV$6077,MATCH(Assets!O$46&"|"&Assets!$B79,'Data Annex'!$K$1:$K$6077,0),MATCH(Assets!O$47,'Data Annex'!$K$1:$AV$1,0)),"") -> 0.7388099549 | P79: =IFERROR(INDEX('Data Annex'!$K$1:$AV$6077,MATCH(Assets!P$46&"|"&Assets!$B79,'Data Annex'!$K$1:$K$6077,0),MATCH(Assets!P$47,'Data Annex'!$K$1:$AV$1,0)),"") -> 0.8445516804 | Q79: =IFERROR(INDEX('Data Annex'!$K$1:$AV$6077,MATCH(Assets!Q$46&"|"&Assets!$B79,'Data Annex'!$K$1:$K$6077,0),MATCH(Assets!Q$47,'Data Annex'!$K$1:$AV$1,0)),"") -> 0.7674404425 | R79: =IFERROR(INDEX('Data Annex'!$K$1:$AV$6077,MATCH(Assets!R$46&"|"&Assets!$B79,'Data Annex'!$K$1:$K$6077,0),MATCH(Assets!R$47,'Data Annex'!$K$1:$AV$1,0)),"") -> 0.2413026598 | S79: =IFERROR(INDEX('Data Annex'!$K$1:$AV$6077,MATCH(Assets!S$46&"|"&Assets!$B79,'Data Annex'!$K$1:$K$6077,0),MATCH(Assets!S$47,'Data Annex'!$K$1:$AV$1,0)),"") -> 0.1434125145 | T79: =IFERROR(INDEX('Data Annex'!$K$1:$AV$6077,MATCH(Assets!T$46&"|"&Assets!$B79,'Data Annex'!$K$1:$K$6077,0),MATCH(Assets!T$47,'Data Annex'!$K$1:$AV$1,0)),"") -> 0.2183169018 | U79: =IFERROR(INDEX('Data Annex'!$K$1:$AV$6077,MATCH(Assets!U$46&"|"&Assets!$B79,'Data Annex'!$K$1:$K$6077,0),MATCH(Assets!U$47,'Data Annex'!$K$1:$AV$1,0)),"") -> 0.01988738533 | V79: =IFERROR(INDEX('Data Annex'!$K$1:$AV$6077,MATCH(Assets!V$46&"|"&Assets!$B79,'Data Annex'!$K$1:$K$6077,0),MATCH(Assets!V$47,'Data Annex'!$K$1:$AV$1,0)),"") -> 0.01203580511 | W79: =IFERROR(INDEX('Data Annex'!$K$1:$AV$6077,MATCH(Assets!W$46&"|"&Assets!$B79,'Data Annex'!$K$1:$K$6077,0),MATCH(Assets!W$47,'Data Annex'!$K$1:$AV$1,0)),"") -> 0.0142426557
B80: SE | D80: SE | F80: =IFERROR(INDEX('Data Annex'!$K$1:$AV$6077,MATCH(Assets!F$46&"|"&Assets!$B80,'Data Annex'!$K$1:$K$6077,0),MATCH(Assets!F$47,'Data Annex'!$K$1:$AV$1,0)),"") -> 966.6495631 | G80: =IFERROR(INDEX('Data Annex'!$K$1:$AV$6077,MATCH(Assets!G$46&"|"&Assets!$B80,'Data Annex'!$K$1:$K$6077,0),MATCH(Assets!G$47,'Data Annex'!$K$1:$AV$1,0)),"") -> 1081.430118 | H80: =IFERROR(INDEX('Data Annex'!$K$1:$AV$6077,MATCH(Assets!H$46&"|"&Assets!$B80,'Data Annex'!$K$1:$K$6077,0),MATCH(Assets!H$47,'Data Annex'!$K$1:$AV$1,0)),"") -> 951.8729539 | I80: =IFERROR(INDEX('Data Annex'!$K$1:$AV$6077,MATCH(Assets!I$46&"|"&Assets!$B80,'Data Annex'!$K$1:$K$6077,0),MATCH(Assets!I$47,'Data Annex'!$K$1:$AV$1,0)),"") -> 912.1701503 | J80: =IFERROR(INDEX('Data Annex'!$K$1:$AV$6077,MATCH(Assets!J$46&"|"&Assets!$B80,'Data Annex'!$K$1:$K$6077,0),MATCH(Assets!J$47,'Data Annex'!$K$1:$AV$1,0)),"") -> 1039.395335 | K80: =IFERROR(INDEX('Data Annex'!$K$1:$AV$6077,MATCH(Assets!K$46&"|"&Assets!$B80,'Data Annex'!$K$1:$K$6077,0),MATCH(Assets!K$47,'Data Annex'!$K$1:$AV$1,0)),"") -> 925.3392745 | L80: 0.9721247681 | M80: SE | O80: =IFERROR(INDEX('Data Annex'!$K$1:$AV$6077,MATCH(Assets!O$46&"|"&Assets!$B80,'Data Annex'!$K$1:$K$6077,0),MATCH(Assets!O$47,'Data Annex'!$K$1:$AV$1,0)),"") -> 0.8841417195 | P80: =IFERROR(INDEX('Data Annex'!$K$1:$AV$6077,MATCH(Assets!P$46&"|"&Assets!$B80,'Data Annex'!$K$1:$K$6077,0),MATCH(Assets!P$47,'Data Annex'!$K$1:$AV$1,0)),"") -> 0.8536753681 | Q80: =IFERROR(INDEX('Data Annex'!$K$1:$AV$6077,MATCH(Assets!Q$46&"|"&Assets!$B80,'Data Annex'!$K$1:$K$6077,0),MATCH(Assets!Q$47,'Data Annex'!$K$1:$AV$1,0)),"") -> 0.8763501349 | R80: =IFERROR(INDEX('Data Annex'!$K$1:$AV$6077,MATCH(Assets!R$46&"|"&Assets!$B80,'Data Annex'!$K$1:$K$6077,0),MATCH(Assets!R$47,'Data Annex'!$K$1:$AV$1,0)),"") -> 0.01278625268 | S80: =IFERROR(INDEX('Data Annex'!$K$1:$AV$6077,MATCH(Assets!S$46&"|"&Assets!$B80,'Data Annex'!$K$1:$K$6077,0),MATCH(Assets!S$47,'Data Annex'!$K$1:$AV$1,0)),"") -> 0.01158547799 | T80: =IFERROR(INDEX('Data Annex'!$K$1:$AV$6077,MATCH(Assets!T$46&"|"&Assets!$B80,'Data Annex'!$K$1:$K$6077,0),MATCH(Assets!T$47,'Data Annex'!$K$1:$AV$1,0)),"") -> 0.01295786739 | U80: =IFERROR(INDEX('Data Annex'!$K$1:$AV$6077,MATCH(Assets!U$46&"|"&Assets!$B80,'Data Annex'!$K$1:$K$6077,0),MATCH(Assets!U$47,'Data Annex'!$K$1:$AV$1,0)),"") -> 0.1030720278 | V80: =IFERROR(INDEX('Data Annex'!$K$1:$AV$6077,MATCH(Assets!V$46&"|"&Assets!$B80,'Data Annex'!$K$1:$K$6077,0),MATCH(Assets!V$47,'Data Annex'!$K$1:$AV$1,0)),"") -> 0.1347391539 | W80: =IFERROR(INDEX('Data Annex'!$K$1:$AV$6077,MATCH(Assets!W$46&"|"&Assets!$B80,'Data Annex'!$K$1:$K$6077,0),MATCH(Assets!W$47,'Data Annex'!$K$1:$AV$1,0)),"") -> 0.1106919977
B81: SI | D81: SI | F81: =IFERROR(INDEX('Data Annex'!$K$1:$AV$6077,MATCH(Assets!F$46&"|"&Assets!$B81,'Data Annex'!$K$1:$K$6077,0),MATCH(Assets!F$47,'Data Annex'!$K$1:$AV$1,0)),"") -> 35.37942506 | G81: =IFERROR(INDEX('Data Annex'!$K$1:$AV$6077,MATCH(Assets!G$46&"|"&Assets!$B81,'Data Annex'!$K$1:$K$6077,0),MATCH(Assets!G$47,'Data Annex'!$K$1:$AV$1,0)),"") -> 43.52480664 | H81: =IFERROR(INDEX('Data Annex'!$K$1:$AV$6077,MATCH(Assets!H$46&"|"&Assets!$B81,'Data Annex'!$K$1:$K$6077,0),MATCH(Assets!H$47,'Data Annex'!$K$1:$AV$1,0)),"") -> 44.79119845 | I81: =IFERROR(INDEX('Data Annex'!$K$1:$AV$6077,MATCH(Assets!I$46&"|"&Assets!$B81,'Data Annex'!$K$1:$K$6077,0),MATCH(Assets!I$47,'Data Annex'!$K$1:$AV$1,0)),"") -> 34.61030096 | J81: =IFERROR(INDEX('Data Annex'!$K$1:$AV$6077,MATCH(Assets!J$46&"|"&Assets!$B81,'Data Annex'!$K$1:$K$6077,0),MATCH(Assets!J$47,'Data Annex'!$K$1:$AV$1,0)),"") -> 42.563482 | K81: =IFERROR(INDEX('Data Annex'!$K$1:$AV$6077,MATCH(Assets!K$46&"|"&Assets!$B81,'Data Annex'!$K$1:$K$6077,0),MATCH(Assets!K$47,'Data Annex'!$K$1:$AV$1,0)),"") -> 43.80534065 | L81: 0.9779899212 | M81: SI | O81: =IFERROR(INDEX('Data Annex'!$K$1:$AV$6077,MATCH(Assets!O$46&"|"&Assets!$B81,'Data Annex'!$K$1:$K$6077,0),MATCH(Assets!O$47,'Data Annex'!$K$1:$AV$1,0)),"") -> 0.8467476306 | P81: =IFERROR(INDEX('Data Annex'!$K$1:$AV$6077,MATCH(Assets!P$46&"|"&Assets!$B81,'Data Annex'!$K$1:$K$6077,0),MATCH(Assets!P$47,'Data Annex'!$K$1:$AV$1,0)),"") -> 0.8868840193 | Q81: =IFERROR(INDEX('Data Annex'!$K$1:$AV$6077,MATCH(Assets!Q$46&"|"&Assets!$B81,'Data Annex'!$K$1:$K$6077,0),MATCH(Assets!Q$47,'Data Annex'!$K$1:$AV$1,0)),"") -> 0.8928954615 | R81: =IFERROR(INDEX('Data Annex'!$K$1:$AV$6077,MATCH(Assets!R$46&"|"&Assets!$B81,'Data Annex'!$K$1:$K$6077,0),MATCH(Assets!R$47,'Data Annex'!$K$1:$AV$1,0)),"") -> 0.150836993 | S81: =IFERROR(INDEX('Data Annex'!$K$1:$AV$6077,MATCH(Assets!S$46&"|"&Assets!$B81,'Data Annex'!$K$1:$K$6077,0),MATCH(Assets!S$47,'Data Annex'!$K$1:$AV$1,0)),"") -> 0.1078415301 | T81: =IFERROR(INDEX('Data Annex'!$K$1:$AV$6077,MATCH(Assets!T$46&"|"&Assets!$B81,'Data Annex'!$K$1:$K$6077,0),MATCH(Assets!T$47,'Data Annex'!$K$1:$AV$1,0)),"") -> 0.1025750497 | U81: =IFERROR(INDEX('Data Annex'!$K$1:$AV$6077,MATCH(Assets!U$46&"|"&Assets!$B81,'Data Annex'!$K$1:$K$6077,0),MATCH(Assets!U$47,'Data Annex'!$K$1:$AV$1,0)),"") -> 0.002415376324 | V81: =IFERROR(INDEX('Data Annex'!$K$1:$AV$6077,MATCH(Assets!V$46&"|"&Assets!$B81,'Data Annex'!$K$1:$K$6077,0),MATCH(Assets!V$47,'Data Annex'!$K$1:$AV$1,0)),"") -> 0.005274450632 | W81: =IFERROR(INDEX('Data Annex'!$K$1:$AV$6077,MATCH(Assets!W$46&"|"&Assets!$B81,'Data Annex'!$K$1:$K$6077,0),MATCH(Assets!W$47,'Data Annex'!$K$1:$AV$1,0)),"") -> 0.004529488879
B82: SK | D82: SK | F82: =IFERROR(INDEX('Data Annex'!$K$1:$AV$6077,MATCH(Assets!F$46&"|"&Assets!$B82,'Data Annex'!$K$1:$K$6077,0),MATCH(Assets!F$47,'Data Annex'!$K$1:$AV$1,0)),"") -> 65.90587123 | G82: =IFERROR(INDEX('Data Annex'!$K$1:$AV$6077,MATCH(Assets!G$46&"|"&Assets!$B82,'Data Annex'!$K$1:$K$6077,0),MATCH(Assets!G$47,'Data Annex'!$K$1:$AV$1,0)),"") -> 69.16517943 | H82: =IFERROR(INDEX('Data Annex'!$K$1:$AV$6077,MATCH(Assets!H$46&"|"&Assets!$B82,'Data Annex'!$K$1:$K$6077,0),MATCH(Assets!H$47,'Data Annex'!$K$1:$AV$1,0)),"") -> 68.34103028 | I82: =IFERROR(INDEX('Data Annex'!$K$1:$AV$6077,MATCH(Assets!I$46&"|"&Assets!$B82,'Data Annex'!$K$1:$K$6077,0),MATCH(Assets!I$47,'Data Annex'!$K$1:$AV$1,0)),"") -> 64.93149911 | J82: =IFERROR(INDEX('Data Annex'!$K$1:$AV$6077,MATCH(Assets!J$46&"|"&Assets!$B82,'Data Annex'!$K$1:$K$6077,0),MATCH(Assets!J$47,'Data Annex'!$K$1:$AV$1,0)),"") -> 68.16544233 | K82: =IFERROR(INDEX('Data Annex'!$K$1:$AV$6077,MATCH(Assets!K$46&"|"&Assets!$B82,'Data Annex'!$K$1:$K$6077,0),MATCH(Assets!K$47,'Data Annex'!$K$1:$AV$1,0)),"") -> 67.49239098 | L82: 0.987582287 | M82: SK | O82: =IFERROR(INDEX('Data Annex'!$K$1:$AV$6077,MATCH(Assets!O$46&"|"&Assets!$B82,'Data Annex'!$K$1:$K$6077,0),MATCH(Assets!O$47,'Data Annex'!$K$1:$AV$1,0)),"") -> 0.9645371154 | P82: =IFERROR(INDEX('Data Annex'!$K$1:$AV$6077,MATCH(Assets!P$46&"|"&Assets!$B82,'Data Annex'!$K$1:$K$6077,0),MATCH(Assets!P$47,'Data Annex'!$K$1:$AV$1,0)),"") -> 0.9686391769 | Q82: =IFERROR(INDEX('Data Annex'!$K$1:$AV$6077,MATCH(Assets!Q$46&"|"&Assets!$B82,'Data Annex'!$K$1:$K$6077,0),MATCH(Assets!Q$47,'Data Annex'!$K$1:$AV$1,0)),"") -> 0.9666200882 | R82: =IFERROR(INDEX('Data Annex'!$K$1:$AV$6077,MATCH(Assets!R$46&"|"&Assets!$B82,'Data Annex'!$K$1:$K$6077,0),MATCH(Assets!R$47,'Data Annex'!$K$1:$AV$1,0)),"") -> 0.03099583197 | S82: =IFERROR(INDEX('Data Annex'!$K$1:$AV$6077,MATCH(Assets!S$46&"|"&Assets!$B82,'Data Annex'!$K$1:$K$6077,0),MATCH(Assets!S$47,'Data Annex'!$K$1:$AV$1,0)),"") -> 0.02224824301 | T82: =IFERROR(INDEX('Data Annex'!$K$1:$AV$6077,MATCH(Assets!T$46&"|"&Assets!$B82,'Data Annex'!$K$1:$K$6077,0),MATCH(Assets!T$47,'Data Annex'!$K$1:$AV$1,0)),"") -> 0.02390825405 | U82: =IFERROR(INDEX('Data Annex'!$K$1:$AV$6077,MATCH(Assets!U$46&"|"&Assets!$B82,'Data Annex'!$K$1:$K$6077,0),MATCH(Assets!U$47,'Data Annex'!$K$1:$AV$1,0)),"") -> 0.004467052624 | V82: =IFERROR(INDEX('Data Annex'!$K$1:$AV$6077,MATCH(Assets!V$46&"|"&Assets!$B82,'Data Annex'!$K$1:$K$6077,0),MATCH(Assets!V$47,'Data Annex'!$K$1:$AV$1,0)),"") -> 0.009112580112 | W82: =IFERROR(INDEX('Data Annex'!$K$1:$AV$6077,MATCH(Assets!W$46&"|"&Assets!$B82,'Data Annex'!$K$1:$K$6077,0),MATCH(Assets!W$47,'Data Annex'!$K$1:$AV$1,0)),"") -> 0.009471657767
B83: EU | D83: =+D43 -> EU/EEA | F83: =IFERROR(INDEX('Data Annex'!$K$1:$AV$6077,MATCH(Assets!F$46&"|"&Assets!$B83,'Data Annex'!$K$1:$K$6077,0),MATCH(Assets!F$47,'Data Annex'!$K$1:$AV$1,0)),"") -> 26181.7277 | G83: =IFERROR(INDEX('Data Annex'!$K$1:$AV$6077,MATCH(Assets!G$46&"|"&Assets!$B83,'Data Annex'!$K$1:$K$6077,0),MATCH(Assets!G$47,'Data Annex'!$K$1:$AV$1,0)),"") -> 29005.98673 | H83: =IFERROR(INDEX('Data Annex'!$K$1:$AV$6077,MATCH(Assets!H$46&"|"&Assets!$B83,'Data Annex'!$K$1:$K$6077,0),MATCH(Assets!H$47,'Data Annex'!$K$1:$AV$1,0)),"") -> 27029.11929 | I83: =IFERROR(INDEX('Data Annex'!$K$1:$AV$6077,MATCH(Assets!I$46&"|"&Assets!$B83,'Data Annex'!$K$1:$K$6077,0),MATCH(Assets!I$47,'Data Annex'!$K$1:$AV$1,0)),"") -> 24711.15947 | J83: =IFERROR(INDEX('Data Annex'!$K$1:$AV$6077,MATCH(Assets!J$46&"|"&Assets!$B83,'Data Annex'!$K$1:$K$6077,0),MATCH(Assets!J$47,'Data Annex'!$K$1:$AV$1,0)),"") -> 27537.68645 | K83: =IFERROR(INDEX('Data Annex'!$K$1:$AV$6077,MATCH(Assets!K$46&"|"&Assets!$B83,'Data Annex'!$K$1:$K$6077,0),MATCH(Assets!K$47,'Data Annex'!$K$1:$AV$1,0)),"") -> 25697.90505 | L83: 0.9507488855 | M83: =D83 -> EU/EEA | O83: =IFERROR(INDEX('Data Annex'!$K$1:$AV$6077,MATCH(Assets!O$46&"|"&Assets!$B83,'Data Annex'!$K$1:$K$6077,0),MATCH(Assets!O$47,'Data Annex'!$K$1:$AV$1,0)),"") -> 0.7963690133 | P83: =IFERROR(INDEX('Data Annex'!$K$1:$AV$6077,MATCH(Assets!P$46&"|"&Assets!$B83,'Data Annex'!$K$1:$K$6077,0),MATCH(Assets!P$47,'Data Annex'!$K$1:$AV$1,0)),"") -> 0.7807107839 | Q83: =IFERROR(INDEX('Data Annex'!$K$1:$AV$6077,MATCH(Assets!Q$46&"|"&Assets!$B83,'Data Annex'!$K$1:$K$6077,0),MATCH(Assets!Q$47,'Data Annex'!$K$1:$AV$1,0)),"") -> 0.7973853041 | R83: =IFERROR(INDEX('Data Annex'!$K$1:$AV$6077,MATCH(Assets!R$46&"|"&Assets!$B83,'Data Annex'!$K$1:$K$6077,0),MATCH(Assets!R$47,'Data Annex'!$K$1:$AV$1,0)),"") -> 0.04780245865 | S83: =IFERROR(INDEX('Data Annex'!$K$1:$AV$6077,MATCH(Assets!S$46&"|"&Assets!$B83,'Data Annex'!$K$1:$K$6077,0),MATCH(Assets!S$47,'Data Annex'!$K$1:$AV$1,0)),"") -> 0.03983154614 | T83: =IFERROR(INDEX('Data Annex'!$K$1:$AV$6077,MATCH(Assets!T$46&"|"&Assets!$B83,'Data Annex'!$K$1:$K$6077,0),MATCH(Assets!T$47,'Data Annex'!$K$1:$AV$1,0)),"") -> 0.04145585335 | U83: =IFERROR(INDEX('Data Annex'!$K$1:$AV$6077,MATCH(Assets!U$46&"|"&Assets!$B83,'Data Annex'!$K$1:$K$6077,0),MATCH(Assets!U$47,'Data Annex'!$K$1:$AV$1,0)),"") -> 0.155828528 | V83: =IFERROR(INDEX('Data Annex'!$K$1:$AV$6077,MATCH(Assets!V$46&"|"&Assets!$B83,'Data Annex'!$K$1:$K$6077,0),MATCH(Assets!V$47,'Data Annex'!$K$1:$AV$1,0)),"") -> 0.1794576699 | W83: =IFERROR(INDEX('Data Annex'!$K$1:$AV$6077,MATCH(Assets!W$46&"|"&Assets!$B83,'Data Annex'!$K$1:$K$6077,0),MATCH(Assets!W$47,'Data Annex'!$K$1:$AV$1,0)),"") -> 0.1611588426
D84: * The EBA Risk Dashboard does not include data from Norwegian nor Liechtensteiner banks from June 2021 to March 2022 due to the implementation of the reporting framework based on CRR2/CRD5 taking place only in Q2 2022.
N85: =G43+J43+M43+P43+S43 -> 0.9507488854
D86: Individual country data includes subsidiaries, which are excluded from EU aggregate. For example, at country level the subsidiary in country X of a bank domiciled in country Y is included both in data for countries X and Y (for the latter as part of the consolidated entity). In the EU aggregate, only the consolidated entity domiciled in country Y is considered. The sample of banks is unbalanced and reviewed annually. As of Q1 2020 onwards UK banks are removed from the EU/EEA aggregate and subsidiaries of UK banks in EU member states are used instead.
D87: * Norwegian banks have not implemented yet the reporting framework based on CRR2/CRD5. Therefore, Norwegian figures are included in the EBA Risk dashboard only until March 2021.

Sheet Loans Composition (hidden)
E1: T20_1 | F1: T20_1 | G1: T20_1 | H1: T20_2 | I1: T20_2 | J1: T20_2 | K1: T20_3 | L1: T20_3 | M1: T20_3 | N1: T20_4 | O1: T20_4 | P1: T20_4 | Q1: T20_5 | R1: T20_5 | S1: T20_5 | T1: T20_6 | U1: T20_6 | V1: T20_6
A2: ='Reference Dates'!$C$8 -> 202212 | E2: =TEXT(E50,"YYYYMM")+0 -> 202112 | F2: 202209 | G2: 202212 | H2: 202112 | I2: 202209 | J2: 202212 | K2: =TEXT(K50,"YYYYMM")+0 -> 202112 | L2: 202209 | M2: 202212 | N2: 202112 | O2: 202209 | P2: 202212 | Q2: 202112 | R2: 202209 | S2: 202212 | T2: 202112 | U2: 202209 | V2: 202212
A3: =DATE(LEFT(A2,4),RIGHT(A2,2),1) -> 2022-12-01 | D3: Statistical Annex
D4: Loans: composition and asset quality
H7: of which: loans and advances at amortised cost - by segment (volumes) (2)
D9: Volumes bn EUR
E10: Loans and advances (1) | H10: HHs | K10: …of which mortgages | N10: NFCs | Q10: …of which SMEs | T10: …of which CRE
E11: =EOMONTH($A$3,-12) -> 2021-12-31 | F11: =EOMONTH($A$3,-3) -> 2022-09-30 | G11: =EOMONTH($A$3,0) -> 2022-12-31 | H11: =EOMONTH($A$3,-12) -> 2021-12-31 | I11: =EOMONTH($A$3,-3) -> 2022-09-30 | J11: =EOMONTH($A$3,0) -> 2022-12-31 | K11: =EOMONTH($A$3,-12) -> 2021-12-31 | L11: =EOMONTH($A$3,-3) -> 2022-09-30 | M11: =EOMONTH($A$3,0) -> 2022-12-31 | N11: =EOMONTH($A$3,-12) -> 2021-12-31 | O11: =EOMONTH($A$3,-3) -> 2022-09-30 | P11: =EOMONTH($A$3,0) -> 2022-12-31 | Q11: =EOMONTH($A$3,-12) -> 2021-12-31 | R11: =EOMONTH($A$3,-3) -> 2022-09-30 | S11: =EOMONTH($A$3,0) -> 2022-12-31 | T11: =EOMONTH($A$3,-12) -> 2021-12-31 | U11: =EOMONTH($A$3,-3) -> 2022-09-30 | V11: =EOMONTH($A$3,0) -> 2022-12-31
A12: 1 | B12: AT | D12: AT | E12: =IFERROR(INDEX('Data Annex'!$K$1:$AV$6077,MATCH(E$1&"|"&$B12,'Data Annex'!$K$1:$K$6077,0),MATCH(E$2,'Data Annex'!$K$1:$AV$1,0)),"") -> 614.4431251 | F12: =IFERROR(INDEX('Data Annex'!$K$1:$AV$6077,MATCH(F$1&"|"&$B12,'Data Annex'!$K$1:$K$6077,0),MATCH(F$2,'Data Annex'!$K$1:$AV$1,0)),"") -> 663.635823 | G12: =IFERROR(INDEX('Data Annex'!$K$1:$AV$6077,MATCH(G$1&"|"&$B12,'Data Annex'!$K$1:$K$6077,0),MATCH(G$2,'Data Annex'!$K$1:$AV$1,0)),"") -> 625.347551 | H12: =IFERROR(INDEX('Data Annex'!$K$1:$AV$6077,MATCH(H$1&"|"&$B12,'Data Annex'!$K$1:$K$6077,0),MATCH(H$2,'Data Annex'!$K$1:$AV$1,0)),"") -> 183.9032754 | I12: =IFERROR(INDEX('Data Annex'!$K$1:$AV$6077,MATCH(I$1&"|"&$B12,'Data Annex'!$K$1:$K$6077,0),MATCH(I$2,'Data Annex'!$K$1:$AV$1,0)),"") -> 192.8857191 | J12: =IFERROR(INDEX('Data Annex'!$K$1:$AV$6077,MATCH(J$1&"|"&$B12,'Data Annex'!$K$1:$K$6077,0),MATCH(J$2,'Data Annex'!$K$1:$AV$1,0)),"") -> 192.221172 | K12: =IFERROR(INDEX('Data Annex'!$K$1:$AV$6077,MATCH(K$1&"|"&$B12,'Data Annex'!$K$1:$K$6077,0),MATCH(K$2,'Data Annex'!$K$1:$AV$1,0)),"") -> 126.4303388 | L12: =IFERROR(INDEX('Data Annex'!$K$1:$AV$6077,MATCH(L$1&"|"&$B12,'Data Annex'!$K$1:$K$6077,0),MATCH(L$2,'Data Annex'!$K$1:$AV$1,0)),"") -> 134.4692092 | M12: =IFERROR(INDEX('Data Annex'!$K$1:$AV$6077,MATCH(M$1&"|"&$B12,'Data Annex'!$K$1:$K$6077,0),MATCH(M$2,'Data Annex'!$K$1:$AV$1,0)),"") -> 138.7384222 | N12: =IFERROR(INDEX('Data Annex'!$K$1:$AV$6077,MATCH(N$1&"|"&$B12,'Data Annex'!$K$1:$K$6077,0),MATCH(N$2,'Data Annex'!$K$1:$AV$1,0)),"") -> 213.0995983 | O12: =IFERROR(INDEX('Data Annex'!$K$1:$AV$6077,MATCH(O$1&"|"&$B12,'Data Annex'!$K$1:$K$6077,0),MATCH(O$2,'Data Annex'!$K$1:$AV$1,0)),"") -> 226.5142964 | P12: =IFERROR(INDEX('Data Annex'!$K$1:$AV$6077,MATCH(P$1&"|"&$B12,'Data Annex'!$K$1:$K$6077,0),MATCH(P$2,'Data Annex'!$K$1:$AV$1,0)),"") -> 222.5076124 | Q12: =IFERROR(INDEX('Data Annex'!$K$1:$AV$6077,MATCH(Q$1&"|"&$B12,'Data Annex'!$K$1:$K$6077,0),MATCH(Q$2,'Data Annex'!$K$1:$AV$1,0)),"") -> 72.80820397 | R12: =IFERROR(INDEX('Data Annex'!$K$1:$AV$6077,MATCH(R$1&"|"&$B12,'Data Annex'!$K$1:$K$6077,0),MATCH(R$2,'Data Annex'!$K$1:$AV$1,0)),"") -> 77.4012412 | S12: =IFERROR(INDEX('Data Annex'!$K$1:$AV$6077,MATCH(S$1&"|"&$B12,'Data Annex'!$K$1:$K$6077,0),MATCH(S$2,'Data Annex'!$K$1:$AV$1,0)),"") -> 77.63690729 | T12: =IFERROR(INDEX('Data Annex'!$K$1:$AV$6077,MATCH(T$1&"|"&$B12,'Data Annex'!$K$1:$K$6077,0),MATCH(T$2,'Data Annex'!$K$1:$AV$1,0)),"") -> 60.49005072 | U12: =IFERROR(INDEX('Data Annex'!$K$1:$AV$6077,MATCH(U$1&"|"&$B12,'Data Annex'!$K$1:$K$6077,0),MATCH(U$2,'Data Annex'!$K$1:$AV$1,0)),"") -> 64.25342206 | V12: =IFERROR(INDEX('Data Annex'!$K$1:$AV$6077,MATCH(V$1&"|"&$B12,'Data Annex'!$K$1:$K$6077,0),MATCH(V$2,'Data Annex'!$K$1:$AV$1,0)),"") -> 65.43127929
A13: 2 | B13: BE | D13: BE | E13: =IFERROR(INDEX('Data Annex'!$K$1:$AV$6077,MATCH(E$1&"|"&$B13,'Data Annex'!$K$1:$K$6077,0),MATCH(E$2,'Data Annex'!$K$1:$AV$1,0)),"") -> 970.8464016 | F13: =IFERROR(INDEX('Data Annex'!$K$1:$AV$6077,MATCH(F$1&"|"&$B13,'Data Annex'!$K$1:$K$6077,0),MATCH(F$2,'Data Annex'!$K$1:$AV$1,0)),"") -> 1011.358752 | G13: =IFERROR(INDEX('Data Annex'!$K$1:$AV$6077,MATCH(G$1&"|"&$B13,'Data Annex'!$K$1:$K$6077,0),MATCH(G$2,'Data Annex'!$K$1:$AV$1,0)),"") -> 965.2903901 | H13: =IFERROR(INDEX('Data Annex'!$K$1:$AV$6077,MATCH(H$1&"|"&$B13,'Data Annex'!$K$1:$K$6077,0),MATCH(H$2,'Data Annex'!$K$1:$AV$1,0)),"") -> 323.7127445 | I13: =IFERROR(INDEX('Data Annex'!$K$1:$AV$6077,MATCH(I$1&"|"&$B13,'Data Annex'!$K$1:$K$6077,0),MATCH(I$2,'Data Annex'!$K$1:$AV$1,0)),"") -> 343.8169534 | J13: =IFERROR(INDEX('Data Annex'!$K$1:$AV$6077,MATCH(J$1&"|"&$B13,'Data Annex'!$K$1:$K$6077,0),MATCH(J$2,'Data Annex'!$K$1:$AV$1,0)),"") -> 347.6503175 | K13: =IFERROR(INDEX('Data Annex'!$K$1:$AV$6077,MATCH(K$1&"|"&$B13,'Data Annex'!$K$1:$K$6077,0),MATCH(K$2,'Data Annex'!$K$1:$AV$1,0)),"") -> 279.8528886 | L13: =IFERROR(INDEX('Data Annex'!$K$1:$AV$6077,MATCH(L$1&"|"&$B13,'Data Annex'!$K$1:$K$6077,0),MATCH(L$2,'Data Annex'!$K$1:$AV$1,0)),"") -> 297.701623 | M13: =IFERROR(INDEX('Data Annex'!$K$1:$AV$6077,MATCH(M$1&"|"&$B13,'Data Annex'!$K$1:$K$6077,0),MATCH(M$2,'Data Annex'!$K$1:$AV$1,0)),"") -> 302.3624427 | N13: =IFERROR(INDEX('Data Annex'!$K$1:$AV$6077,MATCH(N$1&"|"&$B13,'Data Annex'!$K$1:$K$6077,0),MATCH(N$2,'Data Annex'!$K$1:$AV$1,0)),"") -> 277.232969 | O13: =IFERROR(INDEX('Data Annex'!$K$1:$AV$6077,MATCH(O$1&"|"&$B13,'Data Annex'!$K$1:$K$6077,0),MATCH(O$2,'Data Annex'!$K$1:$AV$1,0)),"") -> 300.7141338 | P13: =IFERROR(INDEX('Data Annex'!$K$1:$AV$6077,MATCH(P$1&"|"&$B13,'Data Annex'!$K$1:$K$6077,0),MATCH(P$2,'Data Annex'!$K$1:$AV$1,0)),"") -> 301.889747 | Q13: =IFERROR(INDEX('Data Annex'!$K$1:$AV$6077,MATCH(Q$1&"|"&$B13,'Data Annex'!$K$1:$K$6077,0),MATCH(Q$2,'Data Annex'!$K$1:$AV$1,0)),"") -> 132.2625834 | R13: =IFERROR(INDEX('Data Annex'!$K$1:$AV$6077,MATCH(R$1&"|"&$B13,'Data Annex'!$K$1:$K$6077,0),MATCH(R$2,'Data Annex'!$K$1:$AV$1,0)),"") -> 141.1495953 | S13: =IFERROR(INDEX('Data Annex'!$K$1:$AV$6077,MATCH(S$1&"|"&$B13,'Data Annex'!$K$1:$K$6077,0),MATCH(S$2,'Data Annex'!$K$1:$AV$1,0)),"") -> 141.3116453 | T13: =IFERROR(INDEX('Data Annex'!$K$1:$AV$6077,MATCH(T$1&"|"&$B13,'Data Annex'!$K$1:$K$6077,0),MATCH(T$2,'Data Annex'!$K$1:$AV$1,0)),"") -> 75.88187253 | U13: =IFERROR(INDEX('Data Annex'!$K$1:$AV$6077,MATCH(U$1&"|"&$B13,'Data Annex'!$K$1:$K$6077,0),MATCH(U$2,'Data Annex'!$K$1:$AV$1,0)),"") -> 80.748055 | V13: =IFERROR(INDEX('Data Annex'!$K$1:$AV$6077,MATCH(V$1&"|"&$B13,'Data Annex'!$K$1:$K$6077,0),MATCH(V$2,'Data Annex'!$K$1:$AV$1,0)),"") -> 82.45291031
A14: 3 | B14: BG | D14: BG | E14: =IFERROR(INDEX('Data Annex'!$K$1:$AV$6077,MATCH(E$1&"|"&$B14,'Data Annex'!$K$1:$K$6077,0),MATCH(E$2,'Data Annex'!$K$1:$AV$1,0)),"") -> 31.66753554 | F14: =IFERROR(INDEX('Data Annex'!$K$1:$AV$6077,MATCH(F$1&"|"&$B14,'Data Annex'!$K$1:$K$6077,0),MATCH(F$2,'Data Annex'!$K$1:$AV$1,0)),"") -> 30.32730494 | G14: =IFERROR(INDEX('Data Annex'!$K$1:$AV$6077,MATCH(G$1&"|"&$B14,'Data Annex'!$K$1:$K$6077,0),MATCH(G$2,'Data Annex'!$K$1:$AV$1,0)),"") -> 32.08684477 | H14: =IFERROR(INDEX('Data Annex'!$K$1:$AV$6077,MATCH(H$1&"|"&$B14,'Data Annex'!$K$1:$K$6077,0),MATCH(H$2,'Data Annex'!$K$1:$AV$1,0)),"") -> 10.13896257 | I14: =IFERROR(INDEX('Data Annex'!$K$1:$AV$6077,MATCH(I$1&"|"&$B14,'Data Annex'!$K$1:$K$6077,0),MATCH(I$2,'Data Annex'!$K$1:$AV$1,0)),"") -> 10.00031343 | J14: =IFERROR(INDEX('Data Annex'!$K$1:$AV$6077,MATCH(J$1&"|"&$B14,'Data Annex'!$K$1:$K$6077,0),MATCH(J$2,'Data Annex'!$K$1:$AV$1,0)),"") -> 10.15335822 | K14: =IFERROR(INDEX('Data Annex'!$K$1:$AV$6077,MATCH(K$1&"|"&$B14,'Data Annex'!$K$1:$K$6077,0),MATCH(K$2,'Data Annex'!$K$1:$AV$1,0)),"") -> 4.80587739 | L14: =IFERROR(INDEX('Data Annex'!$K$1:$AV$6077,MATCH(L$1&"|"&$B14,'Data Annex'!$K$1:$K$6077,0),MATCH(L$2,'Data Annex'!$K$1:$AV$1,0)),"") -> 4.724031087 | M14: =IFERROR(INDEX('Data Annex'!$K$1:$AV$6077,MATCH(M$1&"|"&$B14,'Data Annex'!$K$1:$K$6077,0),MATCH(M$2,'Data Annex'!$K$1:$AV$1,0)),"") -> 4.930069537 | N14: =IFERROR(INDEX('Data Annex'!$K$1:$AV$6077,MATCH(N$1&"|"&$B14,'Data Annex'!$K$1:$K$6077,0),MATCH(N$2,'Data Annex'!$K$1:$AV$1,0)),"") -> 11.80435627 | O14: =IFERROR(INDEX('Data Annex'!$K$1:$AV$6077,MATCH(O$1&"|"&$B14,'Data Annex'!$K$1:$K$6077,0),MATCH(O$2,'Data Annex'!$K$1:$AV$1,0)),"") -> 10.87616218 | P14: =IFERROR(INDEX('Data Annex'!$K$1:$AV$6077,MATCH(P$1&"|"&$B14,'Data Annex'!$K$1:$K$6077,0),MATCH(P$2,'Data Annex'!$K$1:$AV$1,0)),"") -> 11.23154413 | Q14: =IFERROR(INDEX('Data Annex'!$K$1:$AV$6077,MATCH(Q$1&"|"&$B14,'Data Annex'!$K$1:$K$6077,0),MATCH(Q$2,'Data Annex'!$K$1:$AV$1,0)),"") -> 5.809790367 | R14: =IFERROR(INDEX('Data Annex'!$K$1:$AV$6077,MATCH(R$1&"|"&$B14,'Data Annex'!$K$1:$K$6077,0),MATCH(R$2,'Data Annex'!$K$1:$AV$1,0)),"") -> 5.992600982 | S14: =IFERROR(INDEX('Data Annex'!$K$1:$AV$6077,MATCH(S$1&"|"&$B14,'Data Annex'!$K$1:$K$6077,0),MATCH(S$2,'Data Annex'!$K$1:$AV$1,0)),"") -> 6.166300746 | T14: =IFERROR(INDEX('Data Annex'!$K$1:$AV$6077,MATCH(T$1&"|"&$B14,'Data Annex'!$K$1:$K$6077,0),MATCH(T$2,'Data Annex'!$K$1:$AV$1,0)),"") -> 5.793511607 | U14: =IFERROR(INDEX('Data Annex'!$K$1:$AV$6077,MATCH(U$1&"|"&$B14,'Data Annex'!$K$1:$K$6077,0),MATCH(U$2,'Data Annex'!$K$1:$AV$1,0)),"") -> 4.91465794 | V14: =IFERROR(INDEX('Data Annex'!$K$1:$AV$6077,MATCH(V$1&"|"&$B14,'Data Annex'!$K$1:$K$6077,0),MATCH(V$2,'Data Annex'!$K$1:$AV$1,0)),"") -> 4.98004346
A15: 4 | B15: CY | D15: CY | E15: =IFERROR(INDEX('Data Annex'!$K$1:$AV$6077,MATCH(E$1&"|"&$B15,'Data Annex'!$K$1:$K$6077,0),MATCH(E$2,'Data Annex'!$K$1:$AV$1,0)),"") -> 33.05790402 | F15: =IFERROR(INDEX('Data Annex'!$K$1:$AV$6077,MATCH(F$1&"|"&$B15,'Data Annex'!$K$1:$K$6077,0),MATCH(F$2,'Data Annex'!$K$1:$AV$1,0)),"") -> 34.60768411 | G15: =IFERROR(INDEX('Data Annex'!$K$1:$AV$6077,MATCH(G$1&"|"&$B15,'Data Annex'!$K$1:$K$6077,0),MATCH(G$2,'Data Annex'!$K$1:$AV$1,0)),"") -> 35.14058287 | H15: =IFERROR(INDEX('Data Annex'!$K$1:$AV$6077,MATCH(H$1&"|"&$B15,'Data Annex'!$K$1:$K$6077,0),MATCH(H$2,'Data Annex'!$K$1:$AV$1,0)),"") -> 8.288976923 | I15: =IFERROR(INDEX('Data Annex'!$K$1:$AV$6077,MATCH(I$1&"|"&$B15,'Data Annex'!$K$1:$K$6077,0),MATCH(I$2,'Data Annex'!$K$1:$AV$1,0)),"") -> 8.331073354 | J15: =IFERROR(INDEX('Data Annex'!$K$1:$AV$6077,MATCH(J$1&"|"&$B15,'Data Annex'!$K$1:$K$6077,0),MATCH(J$2,'Data Annex'!$K$1:$AV$1,0)),"") -> 8.349337654 | K15: =IFERROR(INDEX('Data Annex'!$K$1:$AV$6077,MATCH(K$1&"|"&$B15,'Data Annex'!$K$1:$K$6077,0),MATCH(K$2,'Data Annex'!$K$1:$AV$1,0)),"") -> 6.38735566 | L15: =IFERROR(INDEX('Data Annex'!$K$1:$AV$6077,MATCH(L$1&"|"&$B15,'Data Annex'!$K$1:$K$6077,0),MATCH(L$2,'Data Annex'!$K$1:$AV$1,0)),"") -> 6.461402431 | M15: =IFERROR(INDEX('Data Annex'!$K$1:$AV$6077,MATCH(M$1&"|"&$B15,'Data Annex'!$K$1:$K$6077,0),MATCH(M$2,'Data Annex'!$K$1:$AV$1,0)),"") -> 6.499689226 | N15: =IFERROR(INDEX('Data Annex'!$K$1:$AV$6077,MATCH(N$1&"|"&$B15,'Data Annex'!$K$1:$K$6077,0),MATCH(N$2,'Data Annex'!$K$1:$AV$1,0)),"") -> 7.198088535 | O15: =IFERROR(INDEX('Data Annex'!$K$1:$AV$6077,MATCH(O$1&"|"&$B15,'Data Annex'!$K$1:$K$6077,0),MATCH(O$2,'Data Annex'!$K$1:$AV$1,0)),"") -> 7.608429888 | P15: =IFERROR(INDEX('Data Annex'!$K$1:$AV$6077,MATCH(P$1&"|"&$B15,'Data Annex'!$K$1:$K$6077,0),MATCH(P$2,'Data Annex'!$K$1:$AV$1,0)),"") -> 7.684706804 | Q15: =IFERROR(INDEX('Data Annex'!$K$1:$AV$6077,MATCH(Q$1&"|"&$B15,'Data Annex'!$K$1:$K$6077,0),MATCH(Q$2,'Data Annex'!$K$1:$AV$1,0)),"") -> 5.738514739 | R15: =IFERROR(INDEX('Data Annex'!$K$1:$AV$6077,MATCH(R$1&"|"&$B15,'Data Annex'!$K$1:$K$6077,0),MATCH(R$2,'Data Annex'!$K$1:$AV$1,0)),"") -> 5.685762974 | S15: =IFERROR(INDEX('Data Annex'!$K$1:$AV$6077,MATCH(S$1&"|"&$B15,'Data Annex'!$K$1:$K$6077,0),MATCH(S$2,'Data Annex'!$K$1:$AV$1,0)),"") -> 5.523036139 | T15: =IFERROR(INDEX('Data Annex'!$K$1:$AV$6077,MATCH(T$1&"|"&$B15,'Data Annex'!$K$1:$K$6077,0),MATCH(T$2,'Data Annex'!$K$1:$AV$1,0)),"") -> 5.305111833 | U15: =IFERROR(INDEX('Data Annex'!$K$1:$AV$6077,MATCH(U$1&"|"&$B15,'Data Annex'!$K$1:$K$6077,0),MATCH(U$2,'Data Annex'!$K$1:$AV$1,0)),"") -> 5.462611012 | V15: =IFERROR(INDEX('Data Annex'!$K$1:$AV$6077,MATCH(V$1&"|"&$B15,'Data Annex'!$K$1:$K$6077,0),MATCH(V$2,'Data Annex'!$K$1:$AV$1,0)),"") -> 5.560469446
A16: 5 | B16: CZ | D16: CZ | E16: =IFERROR(INDEX('Data Annex'!$K$1:$AV$6077,MATCH(E$1&"|"&$B16,'Data Annex'!$K$1:$K$6077,0),MATCH(E$2,'Data Annex'!$K$1:$AV$1,0)),"") -> 150.0152183 | F16: =IFERROR(INDEX('Data Annex'!$K$1:$AV$6077,MATCH(F$1&"|"&$B16,'Data Annex'!$K$1:$K$6077,0),MATCH(F$2,'Data Annex'!$K$1:$AV$1,0)),"") -> 167.6421402 | G16: =IFERROR(INDEX('Data Annex'!$K$1:$AV$6077,MATCH(G$1&"|"&$B16,'Data Annex'!$K$1:$K$6077,0),MATCH(G$2,'Data Annex'!$K$1:$AV$1,0)),"") -> 150.9006807 | H16: =IFERROR(INDEX('Data Annex'!$K$1:$AV$6077,MATCH(H$1&"|"&$B16,'Data Annex'!$K$1:$K$6077,0),MATCH(H$2,'Data Annex'!$K$1:$AV$1,0)),"") -> 58.98030649 | I16: =IFERROR(INDEX('Data Annex'!$K$1:$AV$6077,MATCH(I$1&"|"&$B16,'Data Annex'!$K$1:$K$6077,0),MATCH(I$2,'Data Annex'!$K$1:$AV$1,0)),"") -> 62.38028923 | J16: =IFERROR(INDEX('Data Annex'!$K$1:$AV$6077,MATCH(J$1&"|"&$B16,'Data Annex'!$K$1:$K$6077,0),MATCH(J$2,'Data Annex'!$K$1:$AV$1,0)),"") -> 64.04357025 | K16: =IFERROR(INDEX('Data Annex'!$K$1:$AV$6077,MATCH(K$1&"|"&$B16,'Data Annex'!$K$1:$K$6077,0),MATCH(K$2,'Data Annex'!$K$1:$AV$1,0)),"") -> 46.33505221 | L16: =IFERROR(INDEX('Data Annex'!$K$1:$AV$6077,MATCH(L$1&"|"&$B16,'Data Annex'!$K$1:$K$6077,0),MATCH(L$2,'Data Annex'!$K$1:$AV$1,0)),"") -> 49.55267923 | M16: =IFERROR(INDEX('Data Annex'!$K$1:$AV$6077,MATCH(M$1&"|"&$B16,'Data Annex'!$K$1:$K$6077,0),MATCH(M$2,'Data Annex'!$K$1:$AV$1,0)),"") -> 50.99747356 | N16: =IFERROR(INDEX('Data Annex'!$K$1:$AV$6077,MATCH(N$1&"|"&$B16,'Data Annex'!$K$1:$K$6077,0),MATCH(N$2,'Data Annex'!$K$1:$AV$1,0)),"") -> 32.9441701 | O16: =IFERROR(INDEX('Data Annex'!$K$1:$AV$6077,MATCH(O$1&"|"&$B16,'Data Annex'!$K$1:$K$6077,0),MATCH(O$2,'Data Annex'!$K$1:$AV$1,0)),"") -> 37.13545726 | P16: =IFERROR(INDEX('Data Annex'!$K$1:$AV$6077,MATCH(P$1&"|"&$B16,'Data Annex'!$K$1:$K$6077,0),MATCH(P$2,'Data Annex'!$K$1:$AV$1,0)),"") -> 36.79948416 | Q16: =IFERROR(INDEX('Data Annex'!$K$1:$AV$6077,MATCH(Q$1&"|"&$B16,'Data Annex'!$K$1:$K$6077,0),MATCH(Q$2,'Data Annex'!$K$1:$AV$1,0)),"") -> 12.47601262 | R16: =IFERROR(INDEX('Data Annex'!$K$1:$AV$6077,MATCH(R$1&"|"&$B16,'Data Annex'!$K$1:$K$6077,0),MATCH(R$2,'Data Annex'!$K$1:$AV$1,0)),"") -> 14.07925276 | S16: =IFERROR(INDEX('Data Annex'!$K$1:$AV$6077,MATCH(S$1&"|"&$B16,'Data Annex'!$K$1:$K$6077,0),MATCH(S$2,'Data Annex'!$K$1:$AV$1,0)),"") -> 12.8965739 | T16: =IFERROR(INDEX('Data Annex'!$K$1:$AV$6077,MATCH(T$1&"|"&$B16,'Data Annex'!$K$1:$K$6077,0),MATCH(T$2,'Data Annex'!$K$1:$AV$1,0)),"") -> 13.8353419 | U16: =IFERROR(INDEX('Data Annex'!$K$1:$AV$6077,MATCH(U$1&"|"&$B16,'Data Annex'!$K$1:$K$6077,0),MATCH(U$2,'Data Annex'!$K$1:$AV$1,0)),"") -> 15.23425798 | V16: =IFERROR(INDEX('Data Annex'!$K$1:$AV$6077,MATCH(V$1&"|"&$B16,'Data Annex'!$K$1:$K$6077,0),MATCH(V$2,'Data Annex'!$K$1:$AV$1,0)),"") -> 15.1996751
A17: 6 | B17: DE | D17: DE | E17: =IFERROR(INDEX('Data Annex'!$K$1:$AV$6077,MATCH(E$1&"|"&$B17,'Data Annex'!$K$1:$K$6077,0),MATCH(E$2,'Data Annex'!$K$1:$AV$1,0)),"") -> 2707.488851 | F17: =IFERROR(INDEX('Data Annex'!$K$1:$AV$6077,MATCH(F$1&"|"&$B17,'Data Annex'!$K$1:$K$6077,0),MATCH(F$2,'Data Annex'!$K$1:$AV$1,0)),"") -> 3128.176723 | G17: =IFERROR(INDEX('Data Annex'!$K$1:$AV$6077,MATCH(G$1&"|"&$B17,'Data Annex'!$K$1:$K$6077,0),MATCH(G$2,'Data Annex'!$K$1:$AV$1,0)),"") -> 2871.081636 | H17: =IFERROR(INDEX('Data Annex'!$K$1:$AV$6077,MATCH(H$1&"|"&$B17,'Data Annex'!$K$1:$K$6077,0),MATCH(H$2,'Data Annex'!$K$1:$AV$1,0)),"") -> 545.5156444 | I17: =IFERROR(INDEX('Data Annex'!$K$1:$AV$6077,MATCH(I$1&"|"&$B17,'Data Annex'!$K$1:$K$6077,0),MATCH(I$2,'Data Annex'!$K$1:$AV$1,0)),"") -> 556.0833225 | J17: =IFERROR(INDEX('Data Annex'!$K$1:$AV$6077,MATCH(J$1&"|"&$B17,'Data Annex'!$K$1:$K$6077,0),MATCH(J$2,'Data Annex'!$K$1:$AV$1,0)),"") -> 554.071365 | K17: =IFERROR(INDEX('Data Annex'!$K$1:$AV$6077,MATCH(K$1&"|"&$B17,'Data Annex'!$K$1:$K$6077,0),MATCH(K$2,'Data Annex'!$K$1:$AV$1,0)),"") -> 377.1712888 | L17: =IFERROR(INDEX('Data Annex'!$K$1:$AV$6077,MATCH(L$1&"|"&$B17,'Data Annex'!$K$1:$K$6077,0),MATCH(L$2,'Data Annex'!$K$1:$AV$1,0)),"") -> 384.9985909 | M17: =IFERROR(INDEX('Data Annex'!$K$1:$AV$6077,MATCH(M$1&"|"&$B17,'Data Annex'!$K$1:$K$6077,0),MATCH(M$2,'Data Annex'!$K$1:$AV$1,0)),"") -> 388.5299142 | N17: =IFERROR(INDEX('Data Annex'!$K$1:$AV$6077,MATCH(N$1&"|"&$B17,'Data Annex'!$K$1:$K$6077,0),MATCH(N$2,'Data Annex'!$K$1:$AV$1,0)),"") -> 813.9629301 | O17: =IFERROR(INDEX('Data Annex'!$K$1:$AV$6077,MATCH(O$1&"|"&$B17,'Data Annex'!$K$1:$K$6077,0),MATCH(O$2,'Data Annex'!$K$1:$AV$1,0)),"") -> 854.135696 | P17: =IFERROR(INDEX('Data Annex'!$K$1:$AV$6077,MATCH(P$1&"|"&$B17,'Data Annex'!$K$1:$K$6077,0),MATCH(P$2,'Data Annex'!$K$1:$AV$1,0)),"") -> 861.6438804 | Q17: =IFERROR(INDEX('Data Annex'!$K$1:$AV$6077,MATCH(Q$1&"|"&$B17,'Data Annex'!$K$1:$K$6077,0),MATCH(Q$2,'Data Annex'!$K$1:$AV$1,0)),"") -> 210.2601942 | R17: =IFERROR(INDEX('Data Annex'!$K$1:$AV$6077,MATCH(R$1&"|"&$B17,'Data Annex'!$K$1:$K$6077,0),MATCH(R$2,'Data Annex'!$K$1:$AV$1,0)),"") -> 203.8466781 | S17: =IFERROR(INDEX('Data Annex'!$K$1:$AV$6077,MATCH(S$1&"|"&$B17,'Data Annex'!$K$1:$K$6077,0),MATCH(S$2,'Data Annex'!$K$1:$AV$1,0)),"") -> 216.9813221 | T17: =IFERROR(INDEX('Data Annex'!$K$1:$AV$6077,MATCH(T$1&"|"&$B17,'Data Annex'!$K$1:$K$6077,0),MATCH(T$2,'Data Annex'!$K$1:$AV$1,0)),"") -> 263.9548568 | U17: =IFERROR(INDEX('Data Annex'!$K$1:$AV$6077,MATCH(U$1&"|"&$B17,'Data Annex'!$K$1:$K$6077,0),MATCH(U$2,'Data Annex'!$K$1:$AV$1,0)),"") -> 260.3475928 | V17: =IFERROR(INDEX('Data Annex'!$K$1:$AV$6077,MATCH(V$1&"|"&$B17,'Data Annex'!$K$1:$K$6077,0),MATCH(V$2,'Data Annex'!$K$1:$AV$1,0)),"") -> 275.3993783
A18: 7 | B18: DK | D18: DK | E18: =IFERROR(INDEX('Data Annex'!$K$1:$AV$6077,MATCH(E$1&"|"&$B18,'Data Annex'!$K$1:$K$6077,0),MATCH(E$2,'Data Annex'!$K$1:$AV$1,0)),"") -> 623.1034641 | F18: =IFERROR(INDEX('Data Annex'!$K$1:$AV$6077,MATCH(F$1&"|"&$B18,'Data Annex'!$K$1:$K$6077,0),MATCH(F$2,'Data Annex'!$K$1:$AV$1,0)),"") -> 588.3658345 | G18: =IFERROR(INDEX('Data Annex'!$K$1:$AV$6077,MATCH(G$1&"|"&$B18,'Data Annex'!$K$1:$K$6077,0),MATCH(G$2,'Data Annex'!$K$1:$AV$1,0)),"") -> 587.0516506 | H18: =IFERROR(INDEX('Data Annex'!$K$1:$AV$6077,MATCH(H$1&"|"&$B18,'Data Annex'!$K$1:$K$6077,0),MATCH(H$2,'Data Annex'!$K$1:$AV$1,0)),"") -> 74.71888761 | I18: =IFERROR(INDEX('Data Annex'!$K$1:$AV$6077,MATCH(I$1&"|"&$B18,'Data Annex'!$K$1:$K$6077,0),MATCH(I$2,'Data Annex'!$K$1:$AV$1,0)),"") -> 70.92018278 | J18: =IFERROR(INDEX('Data Annex'!$K$1:$AV$6077,MATCH(J$1&"|"&$B18,'Data Annex'!$K$1:$K$6077,0),MATCH(J$2,'Data Annex'!$K$1:$AV$1,0)),"") -> 72.53541551 | K18: =IFERROR(INDEX('Data Annex'!$K$1:$AV$6077,MATCH(K$1&"|"&$B18,'Data Annex'!$K$1:$K$6077,0),MATCH(K$2,'Data Annex'!$K$1:$AV$1,0)),"") -> 56.69973328 | L18: =IFERROR(INDEX('Data Annex'!$K$1:$AV$6077,MATCH(L$1&"|"&$B18,'Data Annex'!$K$1:$K$6077,0),MATCH(L$2,'Data Annex'!$K$1:$AV$1,0)),"") -> 55.43320923 | M18: =IFERROR(INDEX('Data Annex'!$K$1:$AV$6077,MATCH(M$1&"|"&$B18,'Data Annex'!$K$1:$K$6077,0),MATCH(M$2,'Data Annex'!$K$1:$AV$1,0)),"") -> 54.92398369 | N18: =IFERROR(INDEX('Data Annex'!$K$1:$AV$6077,MATCH(N$1&"|"&$B18,'Data Annex'!$K$1:$K$6077,0),MATCH(N$2,'Data Annex'!$K$1:$AV$1,0)),"") -> 84.60525685 | O18: =IFERROR(INDEX('Data Annex'!$K$1:$AV$6077,MATCH(O$1&"|"&$B18,'Data Annex'!$K$1:$K$6077,0),MATCH(O$2,'Data Annex'!$K$1:$AV$1,0)),"") -> 89.54736583 | P18: =IFERROR(INDEX('Data Annex'!$K$1:$AV$6077,MATCH(P$1&"|"&$B18,'Data Annex'!$K$1:$K$6077,0),MATCH(P$2,'Data Annex'!$K$1:$AV$1,0)),"") -> 89.76188749 | Q18: =IFERROR(INDEX('Data Annex'!$K$1:$AV$6077,MATCH(Q$1&"|"&$B18,'Data Annex'!$K$1:$K$6077,0),MATCH(Q$2,'Data Annex'!$K$1:$AV$1,0)),"") -> 39.75499394 | R18: =IFERROR(INDEX('Data Annex'!$K$1:$AV$6077,MATCH(R$1&"|"&$B18,'Data Annex'!$K$1:$K$6077,0),MATCH(R$2,'Data Annex'!$K$1:$AV$1,0)),"") -> 37.96964734 | S18: =IFERROR(INDEX('Data Annex'!$K$1:$AV$6077,MATCH(S$1&"|"&$B18,'Data Annex'!$K$1:$K$6077,0),MATCH(S$2,'Data Annex'!$K$1:$AV$1,0)),"") -> 37.28619258 | T18: =IFERROR(INDEX('Data Annex'!$K$1:$AV$6077,MATCH(T$1&"|"&$B18,'Data Annex'!$K$1:$K$6077,0),MATCH(T$2,'Data Annex'!$K$1:$AV$1,0)),"") -> 25.30762745 | U18: =IFERROR(INDEX('Data Annex'!$K$1:$AV$6077,MATCH(U$1&"|"&$B18,'Data Annex'!$K$1:$K$6077,0),MATCH(U$2,'Data Annex'!$K$1:$AV$1,0)),"") -> 24.52800367 | V18: =IFERROR(INDEX('Data Annex'!$K$1:$AV$6077,MATCH(V$1&"|"&$B18,'Data Annex'!$K$1:$K$6077,0),MATCH(V$2,'Data Annex'!$K$1:$AV$1,0)),"") -> 22.49735241
A19: 8 | B19: EE | D19: EE | E19: =IFERROR(INDEX('Data Annex'!$K$1:$AV$6077,MATCH(E$1&"|"&$B19,'Data Annex'!$K$1:$K$6077,0),MATCH(E$2,'Data Annex'!$K$1:$AV$1,0)),"") -> 33.29235268 | F19: =IFERROR(INDEX('Data Annex'!$K$1:$AV$6077,MATCH(F$1&"|"&$B19,'Data Annex'!$K$1:$K$6077,0),MATCH(F$2,'Data Annex'!$K$1:$AV$1,0)),"") -> 39.90551389 | G19: =IFERROR(INDEX('Data Annex'!$K$1:$AV$6077,MATCH(G$1&"|"&$B19,'Data Annex'!$K$1:$K$6077,0),MATCH(G$2,'Data Annex'!$K$1:$AV$1,0)),"") -> 40.25282473 | H19: =IFERROR(INDEX('Data Annex'!$K$1:$AV$6077,MATCH(H$1&"|"&$B19,'Data Annex'!$K$1:$K$6077,0),MATCH(H$2,'Data Annex'!$K$1:$AV$1,0)),"") -> 13.79132184 | I19: =IFERROR(INDEX('Data Annex'!$K$1:$AV$6077,MATCH(I$1&"|"&$B19,'Data Annex'!$K$1:$K$6077,0),MATCH(I$2,'Data Annex'!$K$1:$AV$1,0)),"") -> 15.72071358 | J19: =IFERROR(INDEX('Data Annex'!$K$1:$AV$6077,MATCH(J$1&"|"&$B19,'Data Annex'!$K$1:$K$6077,0),MATCH(J$2,'Data Annex'!$K$1:$AV$1,0)),"") -> 15.95735029 | K19: =IFERROR(INDEX('Data Annex'!$K$1:$AV$6077,MATCH(K$1&"|"&$B19,'Data Annex'!$K$1:$K$6077,0),MATCH(K$2,'Data Annex'!$K$1:$AV$1,0)),"") -> 11.5476231 | L19: =IFERROR(INDEX('Data Annex'!$K$1:$AV$6077,MATCH(L$1&"|"&$B19,'Data Annex'!$K$1:$K$6077,0),MATCH(L$2,'Data Annex'!$K$1:$AV$1,0)),"") -> 13.1916469 | M19: =IFERROR(INDEX('Data Annex'!$K$1:$AV$6077,MATCH(M$1&"|"&$B19,'Data Annex'!$K$1:$K$6077,0),MATCH(M$2,'Data Annex'!$K$1:$AV$1,0)),"") -> 13.42583292 | N19: =IFERROR(INDEX('Data Annex'!$K$1:$AV$6077,MATCH(N$1&"|"&$B19,'Data Annex'!$K$1:$K$6077,0),MATCH(N$2,'Data Annex'!$K$1:$AV$1,0)),"") -> 10.30371825 | O19: =IFERROR(INDEX('Data Annex'!$K$1:$AV$6077,MATCH(O$1&"|"&$B19,'Data Annex'!$K$1:$K$6077,0),MATCH(O$2,'Data Annex'!$K$1:$AV$1,0)),"") -> 12.97981804 | P19: =IFERROR(INDEX('Data Annex'!$K$1:$AV$6077,MATCH(P$1&"|"&$B19,'Data Annex'!$K$1:$K$6077,0),MATCH(P$2,'Data Annex'!$K$1:$AV$1,0)),"") -> 12.96430164 | Q19: =IFERROR(INDEX('Data Annex'!$K$1:$AV$6077,MATCH(Q$1&"|"&$B19,'Data Annex'!$K$1:$K$6077,0),MATCH(Q$2,'Data Annex'!$K$1:$AV$1,0)),"") -> 7.160277468 | R19: =IFERROR(INDEX('Data Annex'!$K$1:$AV$6077,MATCH(R$1&"|"&$B19,'Data Annex'!$K$1:$K$6077,0),MATCH(R$2,'Data Annex'!$K$1:$AV$1,0)),"") -> 8.754478174 | S19: =IFERROR(INDEX('Data Annex'!$K$1:$AV$6077,MATCH(S$1&"|"&$B19,'Data Annex'!$K$1:$K$6077,0),MATCH(S$2,'Data Annex'!$K$1:$AV$1,0)),"") -> 9.011303356 | T19: =IFERROR(INDEX('Data Annex'!$K$1:$AV$6077,MATCH(T$1&"|"&$B19,'Data Annex'!$K$1:$K$6077,0),MATCH(T$2,'Data Annex'!$K$1:$AV$1,0)),"") -> 5.975523731 | U19: =IFERROR(INDEX('Data Annex'!$K$1:$AV$6077,MATCH(U$1&"|"&$B19,'Data Annex'!$K$1:$K$6077,0),MATCH(U$2,'Data Annex'!$K$1:$AV$1,0)),"") -> 7.655653823 | V19: =IFERROR(INDEX('Data Annex'!$K$1:$AV$6077,MATCH(V$1&"|"&$B19,'Data Annex'!$K$1:$K$6077,0),MATCH(V$2,'Data Annex'!$K$1:$AV$1,0)),"") -> 7.700695698
A20: 9 | B20: ES | D20: ES | E20: =IFERROR(INDEX('Data Annex'!$K$1:$AV$6077,MATCH(E$1&"|"&$B20,'Data Annex'!$K$1:$K$6077,0),MATCH(E$2,'Data Annex'!$K$1:$AV$1,0)),"") -> 2705.721082 | F20: =IFERROR(INDEX('Data Annex'!$K$1:$AV$6077,MATCH(F$1&"|"&$B20,'Data Annex'!$K$1:$K$6077,0),MATCH(F$2,'Data Annex'!$K$1:$AV$1,0)),"") -> 2904.515866 | G20: =IFERROR(INDEX('Data Annex'!$K$1:$AV$6077,MATCH(G$1&"|"&$B20,'Data Annex'!$K$1:$K$6077,0),MATCH(G$2,'Data Annex'!$K$1:$AV$1,0)),"") -> 2724.930476 | H20: =IFERROR(INDEX('Data Annex'!$K$1:$AV$6077,MATCH(H$1&"|"&$B20,'Data Annex'!$K$1:$K$6077,0),MATCH(H$2,'Data Annex'!$K$1:$AV$1,0)),"") -> 1179.847223 | I20: =IFERROR(INDEX('Data Annex'!$K$1:$AV$6077,MATCH(I$1&"|"&$B20,'Data Annex'!$K$1:$K$6077,0),MATCH(I$2,'Data Annex'!$K$1:$AV$1,0)),"") -> 1227.961714 | J20: =IFERROR(INDEX('Data Annex'!$K$1:$AV$6077,MATCH(J$1&"|"&$B20,'Data Annex'!$K$1:$K$6077,0),MATCH(J$2,'Data Annex'!$K$1:$AV$1,0)),"") -> 1216.147593 | K20: =IFERROR(INDEX('Data Annex'!$K$1:$AV$6077,MATCH(K$1&"|"&$B20,'Data Annex'!$K$1:$K$6077,0),MATCH(K$2,'Data Annex'!$K$1:$AV$1,0)),"") -> 834.647604 | L20: =IFERROR(INDEX('Data Annex'!$K$1:$AV$6077,MATCH(L$1&"|"&$B20,'Data Annex'!$K$1:$K$6077,0),MATCH(L$2,'Data Annex'!$K$1:$AV$1,0)),"") -> 848.2026552 | M20: =IFERROR(INDEX('Data Annex'!$K$1:$AV$6077,MATCH(M$1&"|"&$B20,'Data Annex'!$K$1:$K$6077,0),MATCH(M$2,'Data Annex'!$K$1:$AV$1,0)),"") -> 841.7742758 | N20: =IFERROR(INDEX('Data Annex'!$K$1:$AV$6077,MATCH(N$1&"|"&$B20,'Data Annex'!$K$1:$K$6077,0),MATCH(N$2,'Data Annex'!$K$1:$AV$1,0)),"") -> 746.5655197 | O20: =IFERROR(INDEX('Data Annex'!$K$1:$AV$6077,MATCH(O$1&"|"&$B20,'Data Annex'!$K$1:$K$6077,0),MATCH(O$2,'Data Annex'!$K$1:$AV$1,0)),"") -> 812.2441109 | P20: =IFERROR(INDEX('Data Annex'!$K$1:$AV$6077,MATCH(P$1&"|"&$B20,'Data Annex'!$K$1:$K$6077,0),MATCH(P$2,'Data Annex'!$K$1:$AV$1,0)),"") -> 798.2400942 | Q20: =IFERROR(INDEX('Data Annex'!$K$1:$AV$6077,MATCH(Q$1&"|"&$B20,'Data Annex'!$K$1:$K$6077,0),MATCH(Q$2,'Data Annex'!$K$1:$AV$1,0)),"") -> 316.9268567 | R20: =IFERROR(INDEX('Data Annex'!$K$1:$AV$6077,MATCH(R$1&"|"&$B20,'Data Annex'!$K$1:$K$6077,0),MATCH(R$2,'Data Annex'!$K$1:$AV$1,0)),"") -> 324.3910426 | S20: =IFERROR(INDEX('Data Annex'!$K$1:$AV$6077,MATCH(S$1&"|"&$B20,'Data Annex'!$K$1:$K$6077,0),MATCH(S$2,'Data Annex'!$K$1:$AV$1,0)),"") -> 318.0234138 | T20: =IFERROR(INDEX('Data Annex'!$K$1:$AV$6077,MATCH(T$1&"|"&$B20,'Data Annex'!$K$1:$K$6077,0),MATCH(T$2,'Data Annex'!$K$1:$AV$1,0)),"") -> 106.7546139 | U20: =IFERROR(INDEX('Data Annex'!$K$1:$AV$6077,MATCH(U$1&"|"&$B20,'Data Annex'!$K$1:$K$6077,0),MATCH(U$2,'Data Annex'!$K$1:$AV$1,0)),"") -> 119.540688 | V20: =IFERROR(INDEX('Data Annex'!$K$1:$AV$6077,MATCH(V$1&"|"&$B20,'Data Annex'!$K$1:$K$6077,0),MATCH(V$2,'Data Annex'!$K$1:$AV$1,0)),"") -> 117.4326854
A21: 10 | B21: FI | D21: FI | E21: =IFERROR(INDEX('Data Annex'!$K$1:$AV$6077,MATCH(E$1&"|"&$B21,'Data Annex'!$K$1:$K$6077,0),MATCH(E$2,'Data Annex'!$K$1:$AV$1,0)),"") -> 550.6595311 | F21: =IFERROR(INDEX('Data Annex'!$K$1:$AV$6077,MATCH(F$1&"|"&$B21,'Data Annex'!$K$1:$K$6077,0),MATCH(F$2,'Data Annex'!$K$1:$AV$1,0)),"") -> 575.5035993 | G21: =IFERROR(INDEX('Data Annex'!$K$1:$AV$6077,MATCH(G$1&"|"&$B21,'Data Annex'!$K$1:$K$6077,0),MATCH(G$2,'Data Annex'!$K$1:$AV$1,0)),"") -> 571.3632431 | H21: =IFERROR(INDEX('Data Annex'!$K$1:$AV$6077,MATCH(H$1&"|"&$B21,'Data Annex'!$K$1:$K$6077,0),MATCH(H$2,'Data Annex'!$K$1:$AV$1,0)),"") -> 205.4535665 | I21: =IFERROR(INDEX('Data Annex'!$K$1:$AV$6077,MATCH(I$1&"|"&$B21,'Data Annex'!$K$1:$K$6077,0),MATCH(I$2,'Data Annex'!$K$1:$AV$1,0)),"") -> 201.3257013 | J21: =IFERROR(INDEX('Data Annex'!$K$1:$AV$6077,MATCH(J$1&"|"&$B21,'Data Annex'!$K$1:$K$6077,0),MATCH(J$2,'Data Annex'!$K$1:$AV$1,0)),"") -> 200.4956731 | K21: =IFERROR(INDEX('Data Annex'!$K$1:$AV$6077,MATCH(K$1&"|"&$B21,'Data Annex'!$K$1:$K$6077,0),MATCH(K$2,'Data Annex'!$K$1:$AV$1,0)),"") -> 171.5023208 | L21: =IFERROR(INDEX('Data Annex'!$K$1:$AV$6077,MATCH(L$1&"|"&$B21,'Data Annex'!$K$1:$K$6077,0),MATCH(L$2,'Data Annex'!$K$1:$AV$1,0)),"") -> 168.9775998 | M21: =IFERROR(INDEX('Data Annex'!$K$1:$AV$6077,MATCH(M$1&"|"&$B21,'Data Annex'!$K$1:$K$6077,0),MATCH(M$2,'Data Annex'!$K$1:$AV$1,0)),"") -> 166.8950392 | N21: =IFERROR(INDEX('Data Annex'!$K$1:$AV$6077,MATCH(N$1&"|"&$B21,'Data Annex'!$K$1:$K$6077,0),MATCH(N$2,'Data Annex'!$K$1:$AV$1,0)),"") -> 161.02297 | O21: =IFERROR(INDEX('Data Annex'!$K$1:$AV$6077,MATCH(O$1&"|"&$B21,'Data Annex'!$K$1:$K$6077,0),MATCH(O$2,'Data Annex'!$K$1:$AV$1,0)),"") -> 172.8134752 | P21: =IFERROR(INDEX('Data Annex'!$K$1:$AV$6077,MATCH(P$1&"|"&$B21,'Data Annex'!$K$1:$K$6077,0),MATCH(P$2,'Data Annex'!$K$1:$AV$1,0)),"") -> 172.7596365 | Q21: =IFERROR(INDEX('Data Annex'!$K$1:$AV$6077,MATCH(Q$1&"|"&$B21,'Data Annex'!$K$1:$K$6077,0),MATCH(Q$2,'Data Annex'!$K$1:$AV$1,0)),"") -> 62.71110799 | R21: =IFERROR(INDEX('Data Annex'!$K$1:$AV$6077,MATCH(R$1&"|"&$B21,'Data Annex'!$K$1:$K$6077,0),MATCH(R$2,'Data Annex'!$K$1:$AV$1,0)),"") -> 63.38909009 | S21: =IFERROR(INDEX('Data Annex'!$K$1:$AV$6077,MATCH(S$1&"|"&$B21,'Data Annex'!$K$1:$K$6077,0),MATCH(S$2,'Data Annex'!$K$1:$AV$1,0)),"") -> 64.47012456 | T21: =IFERROR(INDEX('Data Annex'!$K$1:$AV$6077,MATCH(T$1&"|"&$B21,'Data Annex'!$K$1:$K$6077,0),MATCH(T$2,'Data Annex'!$K$1:$AV$1,0)),"") -> 35.33126657 | U21: =IFERROR(INDEX('Data Annex'!$K$1:$AV$6077,MATCH(U$1&"|"&$B21,'Data Annex'!$K$1:$K$6077,0),MATCH(U$2,'Data Annex'!$K$1:$AV$1,0)),"") -> 35.29069855 | V21: =IFERROR(INDEX('Data Annex'!$K$1:$AV$6077,MATCH(V$1&"|"&$B21,'Data Annex'!$K$1:$K$6077,0),MATCH(V$2,'Data Annex'!$K$1:$AV$1,0)),"") -> 33.44455303
A22: 11 | B22: FR | D22: FR | E22: =IFERROR(INDEX('Data Annex'!$K$1:$AV$6077,MATCH(E$1&"|"&$B22,'Data Annex'!$K$1:$K$6077,0),MATCH(E$2,'Data Annex'!$K$1:$AV$1,0)),"") -> 5831.210567 | F22: =IFERROR(INDEX('Data Annex'!$K$1:$AV$6077,MATCH(F$1&"|"&$B22,'Data Annex'!$K$1:$K$6077,0),MATCH(F$2,'Data Annex'!$K$1:$AV$1,0)),"") -> 6077.24691 | G22: =IFERROR(INDEX('Data Annex'!$K$1:$AV$6077,MATCH(G$1&"|"&$B22,'Data Annex'!$K$1:$K$6077,0),MATCH(G$2,'Data Annex'!$K$1:$AV$1,0)),"") -> 6008.448736 | H22: =IFERROR(INDEX('Data Annex'!$K$1:$AV$6077,MATCH(H$1&"|"&$B22,'Data Annex'!$K$1:$K$6077,0),MATCH(H$2,'Data Annex'!$K$1:$AV$1,0)),"") -> 1979.711109 | I22: =IFERROR(INDEX('Data Annex'!$K$1:$AV$6077,MATCH(I$1&"|"&$B22,'Data Annex'!$K$1:$K$6077,0),MATCH(I$2,'Data Annex'!$K$1:$AV$1,0)),"") -> 2004.713435 | J22: =IFERROR(INDEX('Data Annex'!$K$1:$AV$6077,MATCH(J$1&"|"&$B22,'Data Annex'!$K$1:$K$6077,0),MATCH(J$2,'Data Annex'!$K$1:$AV$1,0)),"") -> 2021.41064 | K22: =IFERROR(INDEX('Data Annex'!$K$1:$AV$6077,MATCH(K$1&"|"&$B22,'Data Annex'!$K$1:$K$6077,0),MATCH(K$2,'Data Annex'!$K$1:$AV$1,0)),"") -> 663.75311 | L22: =IFERROR(INDEX('Data Annex'!$K$1:$AV$6077,MATCH(L$1&"|"&$B22,'Data Annex'!$K$1:$K$6077,0),MATCH(L$2,'Data Annex'!$K$1:$AV$1,0)),"") -> 632.880832 | M22: =IFERROR(INDEX('Data Annex'!$K$1:$AV$6077,MATCH(M$1&"|"&$B22,'Data Annex'!$K$1:$K$6077,0),MATCH(M$2,'Data Annex'!$K$1:$AV$1,0)),"") -> 636.8553997 | N22: =IFERROR(INDEX('Data Annex'!$K$1:$AV$6077,MATCH(N$1&"|"&$B22,'Data Annex'!$K$1:$K$6077,0),MATCH(N$2,'Data Annex'!$K$1:$AV$1,0)),"") -> 1752.714073 | O22: =IFERROR(INDEX('Data Annex'!$K$1:$AV$6077,MATCH(O$1&"|"&$B22,'Data Annex'!$K$1:$K$6077,0),MATCH(O$2,'Data Annex'!$K$1:$AV$1,0)),"") -> 1898.901483 | P22: =IFERROR(INDEX('Data Annex'!$K$1:$AV$6077,MATCH(P$1&"|"&$B22,'Data Annex'!$K$1:$K$6077,0),MATCH(P$2,'Data Annex'!$K$1:$AV$1,0)),"") -> 1914.817788 | Q22: =IFERROR(INDEX('Data Annex'!$K$1:$AV$6077,MATCH(Q$1&"|"&$B22,'Data Annex'!$K$1:$K$6077,0),MATCH(Q$2,'Data Annex'!$K$1:$AV$1,0)),"") -> 805.4414963 | R22: =IFERROR(INDEX('Data Annex'!$K$1:$AV$6077,MATCH(R$1&"|"&$B22,'Data Annex'!$K$1:$K$6077,0),MATCH(R$2,'Data Annex'!$K$1:$AV$1,0)),"") -> 860.0372454 | S22: =IFERROR(INDEX('Data Annex'!$K$1:$AV$6077,MATCH(S$1&"|"&$B22,'Data Annex'!$K$1:$K$6077,0),MATCH(S$2,'Data Annex'!$K$1:$AV$1,0)),"") -> 867.6529107 | T22: =IFERROR(INDEX('Data Annex'!$K$1:$AV$6077,MATCH(T$1&"|"&$B22,'Data Annex'!$K$1:$K$6077,0),MATCH(T$2,'Data Annex'!$K$1:$AV$1,0)),"") -> 243.6605797 | U22: =IFERROR(INDEX('Data Annex'!$K$1:$AV$6077,MATCH(U$1&"|"&$B22,'Data Annex'!$K$1:$K$6077,0),MATCH(U$2,'Data Annex'!$K$1:$AV$1,0)),"") -> 264.3950494 | V22: =IFERROR(INDEX('Data Annex'!$K$1:$AV$6077,MATCH(V$1&"|"&$B22,'Data Annex'!$K$1:$K$6077,0),MATCH(V$2,'Data Annex'!$K$1:$AV$1,0)),"") -> 275.529426
A23: 13 | B23: GR | D23: GR | E23: =IFERROR(INDEX('Data Annex'!$K$1:$AV$6077,MATCH(E$1&"|"&$B23,'Data Annex'!$K$1:$K$6077,0),MATCH(E$2,'Data Annex'!$K$1:$AV$1,0)),"") -> 215.8534006 | F23: =IFERROR(INDEX('Data Annex'!$K$1:$AV$6077,MATCH(F$1&"|"&$B23,'Data Annex'!$K$1:$K$6077,0),MATCH(F$2,'Data Annex'!$K$1:$AV$1,0)),"") -> 225.3019558 | G23: =IFERROR(INDEX('Data Annex'!$K$1:$AV$6077,MATCH(G$1&"|"&$B23,'Data Annex'!$K$1:$K$6077,0),MATCH(G$2,'Data Annex'!$K$1:$AV$1,0)),"") -> 215.0979925 | H23: =IFERROR(INDEX('Data Annex'!$K$1:$AV$6077,MATCH(H$1&"|"&$B23,'Data Annex'!$K$1:$K$6077,0),MATCH(H$2,'Data Annex'!$K$1:$AV$1,0)),"") -> 46.6778413 | I23: =IFERROR(INDEX('Data Annex'!$K$1:$AV$6077,MATCH(I$1&"|"&$B23,'Data Annex'!$K$1:$K$6077,0),MATCH(I$2,'Data Annex'!$K$1:$AV$1,0)),"") -> 45.92545169 | J23: =IFERROR(INDEX('Data Annex'!$K$1:$AV$6077,MATCH(J$1&"|"&$B23,'Data Annex'!$K$1:$K$6077,0),MATCH(J$2,'Data Annex'!$K$1:$AV$1,0)),"") -> 45.66721785 | K23: =IFERROR(INDEX('Data Annex'!$K$1:$AV$6077,MATCH(K$1&"|"&$B23,'Data Annex'!$K$1:$K$6077,0),MATCH(K$2,'Data Annex'!$K$1:$AV$1,0)),"") -> 33.49054137 | L23: =IFERROR(INDEX('Data Annex'!$K$1:$AV$6077,MATCH(L$1&"|"&$B23,'Data Annex'!$K$1:$K$6077,0),MATCH(L$2,'Data Annex'!$K$1:$AV$1,0)),"") -> 32.8748225 | M23: =IFERROR(INDEX('Data Annex'!$K$1:$AV$6077,MATCH(M$1&"|"&$B23,'Data Annex'!$K$1:$K$6077,0),MATCH(M$2,'Data Annex'!$K$1:$AV$1,0)),"") -> 32.76788064 | N23: =IFERROR(INDEX('Data Annex'!$K$1:$AV$6077,MATCH(N$1&"|"&$B23,'Data Annex'!$K$1:$K$6077,0),MATCH(N$2,'Data Annex'!$K$1:$AV$1,0)),"") -> 78.14847751 | O23: =IFERROR(INDEX('Data Annex'!$K$1:$AV$6077,MATCH(O$1&"|"&$B23,'Data Annex'!$K$1:$K$6077,0),MATCH(O$2,'Data Annex'!$K$1:$AV$1,0)),"") -> 82.34158979 | P23: =IFERROR(INDEX('Data Annex'!$K$1:$AV$6077,MATCH(P$1&"|"&$B23,'Data Annex'!$K$1:$K$6077,0),MATCH(P$2,'Data Annex'!$K$1:$AV$1,0)),"") -> 83.5349545 | Q23: =IFERROR(INDEX('Data Annex'!$K$1:$AV$6077,MATCH(Q$1&"|"&$B23,'Data Annex'!$K$1:$K$6077,0),MATCH(Q$2,'Data Annex'!$K$1:$AV$1,0)),"") -> 34.97012693 | R23: =IFERROR(INDEX('Data Annex'!$K$1:$AV$6077,MATCH(R$1&"|"&$B23,'Data Annex'!$K$1:$K$6077,0),MATCH(R$2,'Data Annex'!$K$1:$AV$1,0)),"") -> 34.2670395 | S23: =IFERROR(INDEX('Data Annex'!$K$1:$AV$6077,MATCH(S$1&"|"&$B23,'Data Annex'!$K$1:$K$6077,0),MATCH(S$2,'Data Annex'!$K$1:$AV$1,0)),"") -> 34.94245864 | T23: =IFERROR(INDEX('Data Annex'!$K$1:$AV$6077,MATCH(T$1&"|"&$B23,'Data Annex'!$K$1:$K$6077,0),MATCH(T$2,'Data Annex'!$K$1:$AV$1,0)),"") -> 24.02944395 | U23: =IFERROR(INDEX('Data Annex'!$K$1:$AV$6077,MATCH(U$1&"|"&$B23,'Data Annex'!$K$1:$K$6077,0),MATCH(U$2,'Data Annex'!$K$1:$AV$1,0)),"") -> 23.13798938 | V23: =IFERROR(INDEX('Data Annex'!$K$1:$AV$6077,MATCH(V$1&"|"&$B23,'Data Annex'!$K$1:$K$6077,0),MATCH(V$2,'Data Annex'!$K$1:$AV$1,0)),"") -> 23.68219743
A24: 14 | B24: HR | D24: HR | E24: =IFERROR(INDEX('Data Annex'!$K$1:$AV$6077,MATCH(E$1&"|"&$B24,'Data Annex'!$K$1:$K$6077,0),MATCH(E$2,'Data Annex'!$K$1:$AV$1,0)),"") -> 44.4859072 | F24: =IFERROR(INDEX('Data Annex'!$K$1:$AV$6077,MATCH(F$1&"|"&$B24,'Data Annex'!$K$1:$K$6077,0),MATCH(F$2,'Data Annex'!$K$1:$AV$1,0)),"") -> 48.41658636 | G24: =IFERROR(INDEX('Data Annex'!$K$1:$AV$6077,MATCH(G$1&"|"&$B24,'Data Annex'!$K$1:$K$6077,0),MATCH(G$2,'Data Annex'!$K$1:$AV$1,0)),"") -> 50.70053289 | H24: =IFERROR(INDEX('Data Annex'!$K$1:$AV$6077,MATCH(H$1&"|"&$B24,'Data Annex'!$K$1:$K$6077,0),MATCH(H$2,'Data Annex'!$K$1:$AV$1,0)),"") -> 13.96527387 | I24: =IFERROR(INDEX('Data Annex'!$K$1:$AV$6077,MATCH(I$1&"|"&$B24,'Data Annex'!$K$1:$K$6077,0),MATCH(I$2,'Data Annex'!$K$1:$AV$1,0)),"") -> 14.55686296 | J24: =IFERROR(INDEX('Data Annex'!$K$1:$AV$6077,MATCH(J$1&"|"&$B24,'Data Annex'!$K$1:$K$6077,0),MATCH(J$2,'Data Annex'!$K$1:$AV$1,0)),"") -> 14.71376326 | K24: =IFERROR(INDEX('Data Annex'!$K$1:$AV$6077,MATCH(K$1&"|"&$B24,'Data Annex'!$K$1:$K$6077,0),MATCH(K$2,'Data Annex'!$K$1:$AV$1,0)),"") -> 5.748823262 | L24: =IFERROR(INDEX('Data Annex'!$K$1:$AV$6077,MATCH(L$1&"|"&$B24,'Data Annex'!$K$1:$K$6077,0),MATCH(L$2,'Data Annex'!$K$1:$AV$1,0)),"") -> 6.304384391 | M24: =IFERROR(INDEX('Data Annex'!$K$1:$AV$6077,MATCH(M$1&"|"&$B24,'Data Annex'!$K$1:$K$6077,0),MATCH(M$2,'Data Annex'!$K$1:$AV$1,0)),"") -> 6.526139849 | N24: =IFERROR(INDEX('Data Annex'!$K$1:$AV$6077,MATCH(N$1&"|"&$B24,'Data Annex'!$K$1:$K$6077,0),MATCH(N$2,'Data Annex'!$K$1:$AV$1,0)),"") -> 10.30076776 | O24: =IFERROR(INDEX('Data Annex'!$K$1:$AV$6077,MATCH(O$1&"|"&$B24,'Data Annex'!$K$1:$K$6077,0),MATCH(O$2,'Data Annex'!$K$1:$AV$1,0)),"") -> 11.87633693 | P24: =IFERROR(INDEX('Data Annex'!$K$1:$AV$6077,MATCH(P$1&"|"&$B24,'Data Annex'!$K$1:$K$6077,0),MATCH(P$2,'Data Annex'!$K$1:$AV$1,0)),"") -> 12.16786669 | Q24: =IFERROR(INDEX('Data Annex'!$K$1:$AV$6077,MATCH(Q$1&"|"&$B24,'Data Annex'!$K$1:$K$6077,0),MATCH(Q$2,'Data Annex'!$K$1:$AV$1,0)),"") -> 5.447385959 | R24: =IFERROR(INDEX('Data Annex'!$K$1:$AV$6077,MATCH(R$1&"|"&$B24,'Data Annex'!$K$1:$K$6077,0),MATCH(R$2,'Data Annex'!$K$1:$AV$1,0)),"") -> 5.792690116 | S24: =IFERROR(INDEX('Data Annex'!$K$1:$AV$6077,MATCH(S$1&"|"&$B24,'Data Annex'!$K$1:$K$6077,0),MATCH(S$2,'Data Annex'!$K$1:$AV$1,0)),"") -> 5.875728485 | T24: =IFERROR(INDEX('Data Annex'!$K$1:$AV$6077,MATCH(T$1&"|"&$B24,'Data Annex'!$K$1:$K$6077,0),MATCH(T$2,'Data Annex'!$K$1:$AV$1,0)),"") -> 4.214770793 | U24: =IFERROR(INDEX('Data Annex'!$K$1:$AV$6077,MATCH(U$1&"|"&$B24,'Data Annex'!$K$1:$K$6077,0),MATCH(U$2,'Data Annex'!$K$1:$AV$1,0)),"") -> 4.354752653 | V24: =IFERROR(INDEX('Data Annex'!$K$1:$AV$6077,MATCH(V$1&"|"&$B24,'Data Annex'!$K$1:$K$6077,0),MATCH(V$2,'Data Annex'!$K$1:$AV$1,0)),"") -> 4.783556922
A25: 15 | B25: HU | D25: HU | E25: =IFERROR(INDEX('Data Annex'!$K$1:$AV$6077,MATCH(E$1&"|"&$B25,'Data Annex'!$K$1:$K$6077,0),MATCH(E$2,'Data Annex'!$K$1:$AV$1,0)),"") -> 93.08447391 | F25: =IFERROR(INDEX('Data Annex'!$K$1:$AV$6077,MATCH(F$1&"|"&$B25,'Data Annex'!$K$1:$K$6077,0),MATCH(F$2,'Data Annex'!$K$1:$AV$1,0)),"") -> 95.45073347 | G25: =IFERROR(INDEX('Data Annex'!$K$1:$AV$6077,MATCH(G$1&"|"&$B25,'Data Annex'!$K$1:$K$6077,0),MATCH(G$2,'Data Annex'!$K$1:$AV$1,0)),"") -> 98.58170791 | H25: =IFERROR(INDEX('Data Annex'!$K$1:$AV$6077,MATCH(H$1&"|"&$B25,'Data Annex'!$K$1:$K$6077,0),MATCH(H$2,'Data Annex'!$K$1:$AV$1,0)),"") -> 28.64597051 | I25: =IFERROR(INDEX('Data Annex'!$K$1:$AV$6077,MATCH(I$1&"|"&$B25,'Data Annex'!$K$1:$K$6077,0),MATCH(I$2,'Data Annex'!$K$1:$AV$1,0)),"") -> 29.1338236 | J25: =IFERROR(INDEX('Data Annex'!$K$1:$AV$6077,MATCH(J$1&"|"&$B25,'Data Annex'!$K$1:$K$6077,0),MATCH(J$2,'Data Annex'!$K$1:$AV$1,0)),"") -> 28.93186762 | K25: =IFERROR(INDEX('Data Annex'!$K$1:$AV$6077,MATCH(K$1&"|"&$B25,'Data Annex'!$K$1:$K$6077,0),MATCH(K$2,'Data Annex'!$K$1:$AV$1,0)),"") -> 13.7022425 | L25: =IFERROR(INDEX('Data Annex'!$K$1:$AV$6077,MATCH(L$1&"|"&$B25,'Data Annex'!$K$1:$K$6077,0),MATCH(L$2,'Data Annex'!$K$1:$AV$1,0)),"") -> 13.67038885 | M25: =IFERROR(INDEX('Data Annex'!$K$1:$AV$6077,MATCH(M$1&"|"&$B25,'Data Annex'!$K$1:$K$6077,0),MATCH(M$2,'Data Annex'!$K$1:$AV$1,0)),"") -> 14.12040896 | N25: =IFERROR(INDEX('Data Annex'!$K$1:$AV$6077,MATCH(N$1&"|"&$B25,'Data Annex'!$K$1:$K$6077,0),MATCH(N$2,'Data Annex'!$K$1:$AV$1,0)),"") -> 31.61264084 | O25: =IFERROR(INDEX('Data Annex'!$K$1:$AV$6077,MATCH(O$1&"|"&$B25,'Data Annex'!$K$1:$K$6077,0),MATCH(O$2,'Data Annex'!$K$1:$AV$1,0)),"") -> 34.40266395 | P25: =IFERROR(INDEX('Data Annex'!$K$1:$AV$6077,MATCH(P$1&"|"&$B25,'Data Annex'!$K$1:$K$6077,0),MATCH(P$2,'Data Annex'!$K$1:$AV$1,0)),"") -> 34.90447137 | Q25: =IFERROR(INDEX('Data Annex'!$K$1:$AV$6077,MATCH(Q$1&"|"&$B25,'Data Annex'!$K$1:$K$6077,0),MATCH(Q$2,'Data Annex'!$K$1:$AV$1,0)),"") -> 14.946715 | R25: =IFERROR(INDEX('Data Annex'!$K$1:$AV$6077,MATCH(R$1&"|"&$B25,'Data Annex'!$K$1:$K$6077,0),MATCH(R$2,'Data Annex'!$K$1:$AV$1,0)),"") -> 16.70843124 | S25: =IFERROR(INDEX('Data Annex'!$K$1:$AV$6077,MATCH(S$1&"|"&$B25,'Data Annex'!$K$1:$K$6077,0),MATCH(S$2,'Data Annex'!$K$1:$AV$1,0)),"") -> 17.04112587 | T25: =IFERROR(INDEX('Data Annex'!$K$1:$AV$6077,MATCH(T$1&"|"&$B25,'Data Annex'!$K$1:$K$6077,0),MATCH(T$2,'Data Annex'!$K$1:$AV$1,0)),"") -> 10.23475665 | U25: =IFERROR(INDEX('Data Annex'!$K$1:$AV$6077,MATCH(U$1&"|"&$B25,'Data Annex'!$K$1:$K$6077,0),MATCH(U$2,'Data Annex'!$K$1:$AV$1,0)),"") -> 11.49106363 | V25: =IFERROR(INDEX('Data Annex'!$K$1:$AV$6077,MATCH(V$1&"|"&$B25,'Data Annex'!$K$1:$K$6077,0),MATCH(V$2,'Data Annex'!$K$1:$AV$1,0)),"") -> 11.6744765
A26: 16 | B26: IE | D26: IE | E26: =IFERROR(INDEX('Data Annex'!$K$1:$AV$6077,MATCH(E$1&"|"&$B26,'Data Annex'!$K$1:$K$6077,0),MATCH(E$2,'Data Annex'!$K$1:$AV$1,0)),"") -> 271.2034033 | F26: =IFERROR(INDEX('Data Annex'!$K$1:$AV$6077,MATCH(F$1&"|"&$B26,'Data Annex'!$K$1:$K$6077,0),MATCH(F$2,'Data Annex'!$K$1:$AV$1,0)),"") -> 300.5950964 | G26: =IFERROR(INDEX('Data Annex'!$K$1:$AV$6077,MATCH(G$1&"|"&$B26,'Data Annex'!$K$1:$K$6077,0),MATCH(G$2,'Data Annex'!$K$1:$AV$1,0)),"") -> 292.4490626 | H26: =IFERROR(INDEX('Data Annex'!$K$1:$AV$6077,MATCH(H$1&"|"&$B26,'Data Annex'!$K$1:$K$6077,0),MATCH(H$2,'Data Annex'!$K$1:$AV$1,0)),"") -> 82.64912746 | I26: =IFERROR(INDEX('Data Annex'!$K$1:$AV$6077,MATCH(I$1&"|"&$B26,'Data Annex'!$K$1:$K$6077,0),MATCH(I$2,'Data Annex'!$K$1:$AV$1,0)),"") -> 80.36732314 | J26: =IFERROR(INDEX('Data Annex'!$K$1:$AV$6077,MATCH(J$1&"|"&$B26,'Data Annex'!$K$1:$K$6077,0),MATCH(J$2,'Data Annex'!$K$1:$AV$1,0)),"") -> 79.83828786 | K26: =IFERROR(INDEX('Data Annex'!$K$1:$AV$6077,MATCH(K$1&"|"&$B26,'Data Annex'!$K$1:$K$6077,0),MATCH(K$2,'Data Annex'!$K$1:$AV$1,0)),"") -> 72.49325301 | L26: =IFERROR(INDEX('Data Annex'!$K$1:$AV$6077,MATCH(L$1&"|"&$B26,'Data Annex'!$K$1:$K$6077,0),MATCH(L$2,'Data Annex'!$K$1:$AV$1,0)),"") -> 68.82731848 | M26: =IFERROR(INDEX('Data Annex'!$K$1:$AV$6077,MATCH(M$1&"|"&$B26,'Data Annex'!$K$1:$K$6077,0),MATCH(M$2,'Data Annex'!$K$1:$AV$1,0)),"") -> 68.2052736 | N26: =IFERROR(INDEX('Data Annex'!$K$1:$AV$6077,MATCH(N$1&"|"&$B26,'Data Annex'!$K$1:$K$6077,0),MATCH(N$2,'Data Annex'!$K$1:$AV$1,0)),"") -> 67.19320117 | O26: =IFERROR(INDEX('Data Annex'!$K$1:$AV$6077,MATCH(O$1&"|"&$B26,'Data Annex'!$K$1:$K$6077,0),MATCH(O$2,'Data Annex'!$K$1:$AV$1,0)),"") -> 70.09824213 | P26: =IFERROR(INDEX('Data Annex'!$K$1:$AV$6077,MATCH(P$1&"|"&$B26,'Data Annex'!$K$1:$K$6077,0),MATCH(P$2,'Data Annex'!$K$1:$AV$1,0)),"") -> 69.58224517 | Q26: =IFERROR(INDEX('Data Annex'!$K$1:$AV$6077,MATCH(Q$1&"|"&$B26,'Data Annex'!$K$1:$K$6077,0),MATCH(Q$2,'Data Annex'!$K$1:$AV$1,0)),"") -> 28.05725847 | R26: =IFERROR(INDEX('Data Annex'!$K$1:$AV$6077,MATCH(R$1&"|"&$B26,'Data Annex'!$K$1:$K$6077,0),MATCH(R$2,'Data Annex'!$K$1:$AV$1,0)),"") -> 27.5305144 | S26: =IFERROR(INDEX('Data Annex'!$K$1:$AV$6077,MATCH(S$1&"|"&$B26,'Data Annex'!$K$1:$K$6077,0),MATCH(S$2,'Data Annex'!$K$1:$AV$1,0)),"") -> 26.45555972 | T26: =IFERROR(INDEX('Data Annex'!$K$1:$AV$6077,MATCH(T$1&"|"&$B26,'Data Annex'!$K$1:$K$6077,0),MATCH(T$2,'Data Annex'!$K$1:$AV$1,0)),"") -> 19.50621375 | U26: =IFERROR(INDEX('Data Annex'!$K$1:$AV$6077,MATCH(U$1&"|"&$B26,'Data Annex'!$K$1:$K$6077,0),MATCH(U$2,'Data Annex'!$K$1:$AV$1,0)),"") -> 19.12142456 | V26: =IFERROR(INDEX('Data Annex'!$K$1:$AV$6077,MATCH(V$1&"|"&$B26,'Data Annex'!$K$1:$K$6077,0),MATCH(V$2,'Data Annex'!$K$1:$AV$1,0)),"") -> 18.49709409
A27: 17 | B27: IS | D27: IS | E27: =IFERROR(INDEX('Data Annex'!$K$1:$AV$6077,MATCH(E$1&"|"&$B27,'Data Annex'!$K$1:$K$6077,0),MATCH(E$2,'Data Annex'!$K$1:$AV$1,0)),"") -> 25.87420766 | F27: =IFERROR(INDEX('Data Annex'!$K$1:$AV$6077,MATCH(F$1&"|"&$B27,'Data Annex'!$K$1:$K$6077,0),MATCH(F$2,'Data Annex'!$K$1:$AV$1,0)),"") -> 29.65809895 | G27: =IFERROR(INDEX('Data Annex'!$K$1:$AV$6077,MATCH(G$1&"|"&$B27,'Data Annex'!$K$1:$K$6077,0),MATCH(G$2,'Data Annex'!$K$1:$AV$1,0)),"") -> 28.16351044 | H27: =IFERROR(INDEX('Data Annex'!$K$1:$AV$6077,MATCH(H$1&"|"&$B27,'Data Annex'!$K$1:$K$6077,0),MATCH(H$2,'Data Annex'!$K$1:$AV$1,0)),"") -> 12.05403789 | I27: =IFERROR(INDEX('Data Annex'!$K$1:$AV$6077,MATCH(I$1&"|"&$B27,'Data Annex'!$K$1:$K$6077,0),MATCH(I$2,'Data Annex'!$K$1:$AV$1,0)),"") -> 13.66454617 | J27: =IFERROR(INDEX('Data Annex'!$K$1:$AV$6077,MATCH(J$1&"|"&$B27,'Data Annex'!$K$1:$K$6077,0),MATCH(J$2,'Data Annex'!$K$1:$AV$1,0)),"") -> 12.87341264 | K27: =IFERROR(INDEX('Data Annex'!$K$1:$AV$6077,MATCH(K$1&"|"&$B27,'Data Annex'!$K$1:$K$6077,0),MATCH(K$2,'Data Annex'!$K$1:$AV$1,0)),"") -> 10.70668944 | L27: =IFERROR(INDEX('Data Annex'!$K$1:$AV$6077,MATCH(L$1&"|"&$B27,'Data Annex'!$K$1:$K$6077,0),MATCH(L$2,'Data Annex'!$K$1:$AV$1,0)),"") -> 12.15712696 | M27: =IFERROR(INDEX('Data Annex'!$K$1:$AV$6077,MATCH(M$1&"|"&$B27,'Data Annex'!$K$1:$K$6077,0),MATCH(M$2,'Data Annex'!$K$1:$AV$1,0)),"") -> 11.46585674 | N27: =IFERROR(INDEX('Data Annex'!$K$1:$AV$6077,MATCH(N$1&"|"&$B27,'Data Annex'!$K$1:$K$6077,0),MATCH(N$2,'Data Annex'!$K$1:$AV$1,0)),"") -> 10.44151112 | O27: =IFERROR(INDEX('Data Annex'!$K$1:$AV$6077,MATCH(O$1&"|"&$B27,'Data Annex'!$K$1:$K$6077,0),MATCH(O$2,'Data Annex'!$K$1:$AV$1,0)),"") -> 11.89487443 | P27: =IFERROR(INDEX('Data Annex'!$K$1:$AV$6077,MATCH(P$1&"|"&$B27,'Data Annex'!$K$1:$K$6077,0),MATCH(P$2,'Data Annex'!$K$1:$AV$1,0)),"") -> 11.57536791 | Q27: =IFERROR(INDEX('Data Annex'!$K$1:$AV$6077,MATCH(Q$1&"|"&$B27,'Data Annex'!$K$1:$K$6077,0),MATCH(Q$2,'Data Annex'!$K$1:$AV$1,0)),"") -> 5.784438262 | R27: =IFERROR(INDEX('Data Annex'!$K$1:$AV$6077,MATCH(R$1&"|"&$B27,'Data Annex'!$K$1:$K$6077,0),MATCH(R$2,'Data Annex'!$K$1:$AV$1,0)),"") -> 6.06123116 | S27: =IFERROR(INDEX('Data Annex'!$K$1:$AV$6077,MATCH(S$1&"|"&$B27,'Data Annex'!$K$1:$K$6077,0),MATCH(S$2,'Data Annex'!$K$1:$AV$1,0)),"") -> 4.98438546 | T27: =IFERROR(INDEX('Data Annex'!$K$1:$AV$6077,MATCH(T$1&"|"&$B27,'Data Annex'!$K$1:$K$6077,0),MATCH(T$2,'Data Annex'!$K$1:$AV$1,0)),"") -> 4.666290456 | U27: =IFERROR(INDEX('Data Annex'!$K$1:$AV$6077,MATCH(U$1&"|"&$B27,'Data Annex'!$K$1:$K$6077,0),MATCH(U$2,'Data Annex'!$K$1:$AV$1,0)),"") -> 5.059377745 | V27: =IFERROR(INDEX('Data Annex'!$K$1:$AV$6077,MATCH(V$1&"|"&$B27,'Data Annex'!$K$1:$K$6077,0),MATCH(V$2,'Data Annex'!$K$1:$AV$1,0)),"") -> 4.849437145
A28: 18 | B28: IT | D28: IT | E28: =IFERROR(INDEX('Data Annex'!$K$1:$AV$6077,MATCH(E$1&"|"&$B28,'Data Annex'!$K$1:$K$6077,0),MATCH(E$2,'Data Annex'!$K$1:$AV$1,0)),"") -> 1970.076778 | F28: =IFERROR(INDEX('Data Annex'!$K$1:$AV$6077,MATCH(F$1&"|"&$B28,'Data Annex'!$K$1:$K$6077,0),MATCH(F$2,'Data Annex'!$K$1:$AV$1,0)),"") -> 2007.811972 | G28: =IFERROR(INDEX('Data Annex'!$K$1:$AV$6077,MATCH(G$1&"|"&$B28,'Data Annex'!$K$1:$K$6077,0),MATCH(G$2,'Data Annex'!$K$1:$AV$1,0)),"") -> 1872.543 | H28: =IFERROR(INDEX('Data Annex'!$K$1:$AV$6077,MATCH(H$1&"|"&$B28,'Data Annex'!$K$1:$K$6077,0),MATCH(H$2,'Data Annex'!$K$1:$AV$1,0)),"") -> 561.0576095 | I28: =IFERROR(INDEX('Data Annex'!$K$1:$AV$6077,MATCH(I$1&"|"&$B28,'Data Annex'!$K$1:$K$6077,0),MATCH(I$2,'Data Annex'!$K$1:$AV$1,0)),"") -> 582.2329555 | J28: =IFERROR(INDEX('Data Annex'!$K$1:$AV$6077,MATCH(J$1&"|"&$B28,'Data Annex'!$K$1:$K$6077,0),MATCH(J$2,'Data Annex'!$K$1:$AV$1,0)),"") -> 581.2149383 | K28: =IFERROR(INDEX('Data Annex'!$K$1:$AV$6077,MATCH(K$1&"|"&$B28,'Data Annex'!$K$1:$K$6077,0),MATCH(K$2,'Data Annex'!$K$1:$AV$1,0)),"") -> 398.046688 | L28: =IFERROR(INDEX('Data Annex'!$K$1:$AV$6077,MATCH(L$1&"|"&$B28,'Data Annex'!$K$1:$K$6077,0),MATCH(L$2,'Data Annex'!$K$1:$AV$1,0)),"") -> 413.9541441 | M28: =IFERROR(INDEX('Data Annex'!$K$1:$AV$6077,MATCH(M$1&"|"&$B28,'Data Annex'!$K$1:$K$6077,0),MATCH(M$2,'Data Annex'!$K$1:$AV$1,0)),"") -> 414.843142 | N28: =IFERROR(INDEX('Data Annex'!$K$1:$AV$6077,MATCH(N$1&"|"&$B28,'Data Annex'!$K$1:$K$6077,0),MATCH(N$2,'Data Annex'!$K$1:$AV$1,0)),"") -> 724.3776695 | O28: =IFERROR(INDEX('Data Annex'!$K$1:$AV$6077,MATCH(O$1&"|"&$B28,'Data Annex'!$K$1:$K$6077,0),MATCH(O$2,'Data Annex'!$K$1:$AV$1,0)),"") -> 745.510814 | P28: =IFERROR(INDEX('Data Annex'!$K$1:$AV$6077,MATCH(P$1&"|"&$B28,'Data Annex'!$K$1:$K$6077,0),MATCH(P$2,'Data Annex'!$K$1:$AV$1,0)),"") -> 713.4876321 | Q28: =IFERROR(INDEX('Data Annex'!$K$1:$AV$6077,MATCH(Q$1&"|"&$B28,'Data Annex'!$K$1:$K$6077,0),MATCH(Q$2,'Data Annex'!$K$1:$AV$1,0)),"") -> 330.2444445 | R28: =IFERROR(INDEX('Data Annex'!$K$1:$AV$6077,MATCH(R$1&"|"&$B28,'Data Annex'!$K$1:$K$6077,0),MATCH(R$2,'Data Annex'!$K$1:$AV$1,0)),"") -> 336.1181599 | S28: =IFERROR(INDEX('Data Annex'!$K$1:$AV$6077,MATCH(S$1&"|"&$B28,'Data Annex'!$K$1:$K$6077,0),MATCH(S$2,'Data Annex'!$K$1:$AV$1,0)),"") -> 322.5959074 | T28: =IFERROR(INDEX('Data Annex'!$K$1:$AV$6077,MATCH(T$1&"|"&$B28,'Data Annex'!$K$1:$K$6077,0),MATCH(T$2,'Data Annex'!$K$1:$AV$1,0)),"") -> 142.933521 | U28: =IFERROR(INDEX('Data Annex'!$K$1:$AV$6077,MATCH(U$1&"|"&$B28,'Data Annex'!$K$1:$K$6077,0),MATCH(U$2,'Data Annex'!$K$1:$AV$1,0)),"") -> 144.9966095 | V28: =IFERROR(INDEX('Data Annex'!$K$1:$AV$6077,MATCH(V$1&"|"&$B28,'Data Annex'!$K$1:$K$6077,0),MATCH(V$2,'Data Annex'!$K$1:$AV$1,0)),"") -> 138.9399776
B29: LI | D29: LI* | E29: =IFERROR(INDEX('Data Annex'!$K$1:$AV$6077,MATCH(E$1&"|"&$B29,'Data Annex'!$K$1:$K$6077,0),MATCH(E$2,'Data Annex'!$K$1:$AV$1,0)),"") -> n.a. | F29: =IFERROR(INDEX('Data Annex'!$K$1:$AV$6077,MATCH(F$1&"|"&$B29,'Data Annex'!$K$1:$K$6077,0),MATCH(F$2,'Data Annex'!$K$1:$AV$1,0)),"") -> 69.46186204 | G29: =IFERROR(INDEX('Data Annex'!$K$1:$AV$6077,MATCH(G$1&"|"&$B29,'Data Annex'!$K$1:$K$6077,0),MATCH(G$2,'Data Annex'!$K$1:$AV$1,0)),"") -> 70.14054564 | H29: =IFERROR(INDEX('Data Annex'!$K$1:$AV$6077,MATCH(H$1&"|"&$B29,'Data Annex'!$K$1:$K$6077,0),MATCH(H$2,'Data Annex'!$K$1:$AV$1,0)),"") -> n.a. | I29: =IFERROR(INDEX('Data Annex'!$K$1:$AV$6077,MATCH(I$1&"|"&$B29,'Data Annex'!$K$1:$K$6077,0),MATCH(I$2,'Data Annex'!$K$1:$AV$1,0)),"") -> 22.22308614 | J29: =IFERROR(INDEX('Data Annex'!$K$1:$AV$6077,MATCH(J$1&"|"&$B29,'Data Annex'!$K$1:$K$6077,0),MATCH(J$2,'Data Annex'!$K$1:$AV$1,0)),"") -> 21.50018896 | K29: =IFERROR(INDEX('Data Annex'!$K$1:$AV$6077,MATCH(K$1&"|"&$B29,'Data Annex'!$K$1:$K$6077,0),MATCH(K$2,'Data Annex'!$K$1:$AV$1,0)),"") -> n.a. | L29: =IFERROR(INDEX('Data Annex'!$K$1:$AV$6077,MATCH(L$1&"|"&$B29,'Data Annex'!$K$1:$K$6077,0),MATCH(L$2,'Data Annex'!$K$1:$AV$1,0)),"") -> 12.75206116 | M29: =IFERROR(INDEX('Data Annex'!$K$1:$AV$6077,MATCH(M$1&"|"&$B29,'Data Annex'!$K$1:$K$6077,0),MATCH(M$2,'Data Annex'!$K$1:$AV$1,0)),"") -> 12.39298778 | N29: =IFERROR(INDEX('Data Annex'!$K$1:$AV$6077,MATCH(N$1&"|"&$B29,'Data Annex'!$K$1:$K$6077,0),MATCH(N$2,'Data Annex'!$K$1:$AV$1,0)),"") -> n.a. | O29: =IFERROR(INDEX('Data Annex'!$K$1:$AV$6077,MATCH(O$1&"|"&$B29,'Data Annex'!$K$1:$K$6077,0),MATCH(O$2,'Data Annex'!$K$1:$AV$1,0)),"") -> 7.918955772 | P29: =IFERROR(INDEX('Data Annex'!$K$1:$AV$6077,MATCH(P$1&"|"&$B29,'Data Annex'!$K$1:$K$6077,0),MATCH(P$2,'Data Annex'!$K$1:$AV$1,0)),"") -> 8.059045283 | Q29: =IFERROR(INDEX('Data Annex'!$K$1:$AV$6077,MATCH(Q$1&"|"&$B29,'Data Annex'!$K$1:$K$6077,0),MATCH(Q$2,'Data Annex'!$K$1:$AV$1,0)),"") -> n.a. | R29: =IFERROR(INDEX('Data Annex'!$K$1:$AV$6077,MATCH(R$1&"|"&$B29,'Data Annex'!$K$1:$K$6077,0),MATCH(R$2,'Data Annex'!$K$1:$AV$1,0)),"") -> 4.840262319 | S29: =IFERROR(INDEX('Data Annex'!$K$1:$AV$6077,MATCH(S$1&"|"&$B29,'Data Annex'!$K$1:$K$6077,0),MATCH(S$2,'Data Annex'!$K$1:$AV$1,0)),"") -> 4.910358485 | T29: =IFERROR(INDEX('Data Annex'!$K$1:$AV$6077,MATCH(T$1&"|"&$B29,'Data Annex'!$K$1:$K$6077,0),MATCH(T$2,'Data Annex'!$K$1:$AV$1,0)),"") -> n.a. | U29: =IFERROR(INDEX('Data Annex'!$K$1:$AV$6077,MATCH(U$1&"|"&$B29,'Data Annex'!$K$1:$K$6077,0),MATCH(U$2,'Data Annex'!$K$1:$AV$1,0)),"") -> 2.659964674 | V29: =IFERROR(INDEX('Data Annex'!$K$1:$AV$6077,MATCH(V$1&"|"&$B29,'Data Annex'!$K$1:$K$6077,0),MATCH(V$2,'Data Annex'!$K$1:$AV$1,0)),"") -> 2.573496706
A30: 19 | B30: LT | D30: LT | E30: =IFERROR(INDEX('Data Annex'!$K$1:$AV$6077,MATCH(E$1&"|"&$B30,'Data Annex'!$K$1:$K$6077,0),MATCH(E$2,'Data Annex'!$K$1:$AV$1,0)),"") -> 28.790394 | F30: =IFERROR(INDEX('Data Annex'!$K$1:$AV$6077,MATCH(F$1&"|"&$B30,'Data Annex'!$K$1:$K$6077,0),MATCH(F$2,'Data Annex'!$K$1:$AV$1,0)),"") -> 18.156502 | G30: =IFERROR(INDEX('Data Annex'!$K$1:$AV$6077,MATCH(G$1&"|"&$B30,'Data Annex'!$K$1:$K$6077,0),MATCH(G$2,'Data Annex'!$K$1:$AV$1,0)),"") -> 26.585648 | H30: =IFERROR(INDEX('Data Annex'!$K$1:$AV$6077,MATCH(H$1&"|"&$B30,'Data Annex'!$K$1:$K$6077,0),MATCH(H$2,'Data Annex'!$K$1:$AV$1,0)),"") -> 8.681146 | I30: =IFERROR(INDEX('Data Annex'!$K$1:$AV$6077,MATCH(I$1&"|"&$B30,'Data Annex'!$K$1:$K$6077,0),MATCH(I$2,'Data Annex'!$K$1:$AV$1,0)),"") -> 6.44433 | J30: =IFERROR(INDEX('Data Annex'!$K$1:$AV$6077,MATCH(J$1&"|"&$B30,'Data Annex'!$K$1:$K$6077,0),MATCH(J$2,'Data Annex'!$K$1:$AV$1,0)),"") -> 6.42375 | K30: =IFERROR(INDEX('Data Annex'!$K$1:$AV$6077,MATCH(K$1&"|"&$B30,'Data Annex'!$K$1:$K$6077,0),MATCH(K$2,'Data Annex'!$K$1:$AV$1,0)),"") -> 7.332805 | L30: =IFERROR(INDEX('Data Annex'!$K$1:$AV$6077,MATCH(L$1&"|"&$B30,'Data Annex'!$K$1:$K$6077,0),MATCH(L$2,'Data Annex'!$K$1:$AV$1,0)),"") -> 5.126777 | M30: =IFERROR(INDEX('Data Annex'!$K$1:$AV$6077,MATCH(M$1&"|"&$B30,'Data Annex'!$K$1:$K$6077,0),MATCH(M$2,'Data Annex'!$K$1:$AV$1,0)),"") -> 4.995779 | N30: =IFERROR(INDEX('Data Annex'!$K$1:$AV$6077,MATCH(N$1&"|"&$B30,'Data Annex'!$K$1:$K$6077,0),MATCH(N$2,'Data Annex'!$K$1:$AV$1,0)),"") -> 6.321703 | O30: =IFERROR(INDEX('Data Annex'!$K$1:$AV$6077,MATCH(O$1&"|"&$B30,'Data Annex'!$K$1:$K$6077,0),MATCH(O$2,'Data Annex'!$K$1:$AV$1,0)),"") -> 4.241873 | P30: =IFERROR(INDEX('Data Annex'!$K$1:$AV$6077,MATCH(P$1&"|"&$B30,'Data Annex'!$K$1:$K$6077,0),MATCH(P$2,'Data Annex'!$K$1:$AV$1,0)),"") -> 4.168224 | Q30: =IFERROR(INDEX('Data Annex'!$K$1:$AV$6077,MATCH(Q$1&"|"&$B30,'Data Annex'!$K$1:$K$6077,0),MATCH(Q$2,'Data Annex'!$K$1:$AV$1,0)),"") -> 3.226914 | R30: =IFERROR(INDEX('Data Annex'!$K$1:$AV$6077,MATCH(R$1&"|"&$B30,'Data Annex'!$K$1:$K$6077,0),MATCH(R$2,'Data Annex'!$K$1:$AV$1,0)),"") -> 2.970675 | S30: =IFERROR(INDEX('Data Annex'!$K$1:$AV$6077,MATCH(S$1&"|"&$B30,'Data Annex'!$K$1:$K$6077,0),MATCH(S$2,'Data Annex'!$K$1:$AV$1,0)),"") -> 2.943923 | T30: =IFERROR(INDEX('Data Annex'!$K$1:$AV$6077,MATCH(T$1&"|"&$B30,'Data Annex'!$K$1:$K$6077,0),MATCH(T$2,'Data Annex'!$K$1:$AV$1,0)),"") -> 3.805725 | U30: =IFERROR(INDEX('Data Annex'!$K$1:$AV$6077,MATCH(U$1&"|"&$B30,'Data Annex'!$K$1:$K$6077,0),MATCH(U$2,'Data Annex'!$K$1:$AV$1,0)),"") -> 2.526842 | V30: =IFERROR(INDEX('Data Annex'!$K$1:$AV$6077,MATCH(V$1&"|"&$B30,'Data Annex'!$K$1:$K$6077,0),MATCH(V$2,'Data Annex'!$K$1:$AV$1,0)),"") -> 2.542504
